Workbook

Sheet Summary
B2: Inputs: | L2: Assumptions: | N2: Current year plus three required data set.
C3: Rate Impact for Year (2025-2030) | D3: 2026 | I3: Include CA Climate Credit in Rates | J3: N | L3: Current Effective Rates | N3: 2026-01-01
C4: Baseline Region - (Residential bill) | D4: 9 warm | I4: Typical residential average usage kWh/month | J4: 500 | L4: Sales Forecast | N4: =D3 -> 2026
L5: Residential bill calculated using | N5: Schedule D, Basic, Single Family | S5: Annual Usage
L6: Non-CARE bill impact calculated with average summer usage of | P6: =IF($D$4="All",SUMPRODUCT('Res Bill Impact'!P$22:P$30,'Res Bill Impact'!$T$22:$T$30),VLOOKUP(D$4,'Res Bill Impact'!$O$22:$S$30,2,FALSE)) -> 662.7146021 | Q6: kWh per month | R6: Non-CARE | S6: =(P6*4)+(P7*8) -> 6180.969156
B7: Pending Proceedings | D7: Include in Impact (Y) | E7: Applicable Year(s) | L7: Non-CARE bill impact calculated with average winter usage of | P7: =IF($D$4="All",SUMPRODUCT('Res Bill Impact'!Q$22:Q$30,'Res Bill Impact'!$T$22:$T$30),VLOOKUP(D$4,'Res Bill Impact'!$O$22:$S$30,3,FALSE)) -> 441.2638435 | Q7: kWh per month
B8: 2023 ERRA Review | D8: Y | E8: 2026 | L8: CARE bill impact calculated with average summer usage of | P8: =IF($D$4="All",SUMPRODUCT('Res Bill Impact'!R$22:R$30,'Res Bill Impact'!$U$22:$U$30),VLOOKUP(D$4,'Res Bill Impact'!$O$22:$S$30,4,FALSE)) -> 642.8036573 | Q8: kWh per month | R8: CARE | S8: =(P8*4)+(P10*8) -> 5959.821544
B9: 2024 ERRA Review | D9: Y | E9: 2027
B10: Woolsey WEMA FRC | D10: Y | E10: 2026-2030 | L10: CARE bill impact calculated with average winter usage of | P10: =IF($D$4="All",SUMPRODUCT('Res Bill Impact'!S$22:S$30,'Res Bill Impact'!$U$22:$U$30),VLOOKUP(D$4,'Res Bill Impact'!$O$22:$S$30,5,FALSE)) -> 423.5758643 | Q10: kWh per month
B11: Section 851 - Sale of Hydroelectric TULE | D11: Y | E11: 2027 | L11: Essential Use (Basic) bill impact calculated with average summer usage of | P11: =IF($D$4="All",SUMPRODUCT('Res Bill Impact'!I$22:I$30,'Res Bill Impact'!$T$22:$T$30),VLOOKUP(D$4,'Res Bill Impact'!$H$22:$L$30,2,FALSE)) -> 514.0473 | Q11: kWh per month | R11: Essential Use (Basic) | S11: =(P11*4)+(P12*8) -> 4976.2212
B12: NextGen | D12: Y | E12: 2026-2030 | L12: Essential Use (Basic) bill impact calculated with average winter usage of | P12: =IF($D$4="All",SUMPRODUCT('Res Bill Impact'!J$22:J$30,'Res Bill Impact'!$T$22:$T$30),VLOOKUP(D$4,'Res Bill Impact'!$H$22:$L$30,3,FALSE)) -> 365.004 | Q12: kWh per month
B13: IQP 2027 Bridge Funding | D13: Y | E13: 2027 | L13: Essential Use (All-Electric) bill impact calculated with average summer usage of | P13: =IF($D$4="All",SUMPRODUCT('Res Bill Impact'!K$22:K$30,'Res Bill Impact'!$T$22:$T$30),VLOOKUP(D$4,'Res Bill Impact'!$H$22:$L$30,4,FALSE)) -> 380.2125 | Q13: kWh per month | R13: Essential Use (All-Electric) | S13: =(P13*4)+(P15*8) -> 4903.2204
B14: 2024 WMCE | D14: Y | E14: 2027
B15: Energy Efficiency Program and Portfolio | D15: Y | E15: 2026-2030 | L15: Essential Use (All-Electric) bill impact calculated with average winter usage of | P15: =IF($D$4="All",SUMPRODUCT('Res Bill Impact'!L$22:L$30,'Res Bill Impact'!$T$22:$T$30),VLOOKUP(D$4,'Res Bill Impact'!$H$22:$L$30,5,FALSE)) -> 422.7963 | Q15: kWh per month
B16: Section 851 - Sale of North Coast Property | D16: Y | E16: 2027 | L16: Average monthly usage is for all customers (Non-CARE and CARE) based on seasonal usage in | R16: 2025
B17: Section 851 - Ontario Easements | D17: Y | E17: 2027 | L17: Summer season | N17: 4 | O17: months
B18: IQP 2028-2033 Application | D18: Y | E18: 2028-2030 | L18: Winter Season | N18: 8 | O18: months
B19: Wildfire Self-Insurance | D19: Y | E19: 2026 | L19: Residential Bi-Annual Climate Credit | N19: -36
B29: Outputs:
D30: (A) | E30: (B) | F30: (C) | G30: (D) | H30: (D)/(A) | I30: (D)/(B) | J30: (D)/(C) | N30: (A) | O30: (B) | P30: (C) | Q30: (D) | R30: (D)/(A) | S30: (D)/(B) | T30: (D)/(C)
B31: Bundled Average Rates - ¢/kWh | L31: Total System (Bundled and Unbundled) Average Rates - ¢/kWh
B32: Customer Group | D32: 2026-01-01 | E32: 2026-01-01 | F32: =$D$3&" Authorized" -> 2026 Authorized | G32: =$D$3&" w/Pending" -> 2026 w/Pending | H32: ="% Change over "&MONTH(D32)&"/"&DAY(D32)&"/"&YEAR(D32) -> % Change over 1/1/2026 | I32: ="% Change over "&MONTH(E32)&"/"&DAY(E32)&"/"&YEAR(E32) -> % Change over 1/1/2026 | J32: % Change over Authorized | L32: Customer Group | N32: =$D$32 -> 2026-01-01 | O32: =$E$32 -> 2026-01-01 | P32: =$D$3&" Authorized" -> 2026 Authorized | Q32: =$D$3&" w/Pending" -> 2026 w/Pending | R32: =$H$32 -> % Change over 1/1/2026 | S32: =$I$32 -> % Change over 1/1/2026 | T32: % Change over Authorized
B33: Residential | D33: =IF(J3="Y",'SAR and RAR'!W28,'SAR and RAR'!X28) -> 34.45079839 | E33: ='SAR and RAR'!G28 -> 34.45079839 | F33: ='SAR and RAR'!H28 -> 33.32103335 | G33: ='SAR and RAR'!I28 -> 33.64302916 | H33: =$G33/D33-1 -> -0.02344703939 | I33: =$G33/E33-1 -> -0.02344703939 | J33: =$G33/F33-1 -> 0.009663440077 | L33: Total Residential (RAR) | N33: =IF(J3="Y",'SAR and RAR'!Z28,'SAR and RAR'!AA28) -> 32.05610311 | O33: ='SAR and RAR'!O28 -> 32.05610311 | P33: ='SAR and RAR'!P28 -> 31.08364582 | Q33: ='SAR and RAR'!Q28 -> 31.41679468 | R33: =$Q33/N33-1 -> -0.01994342319 | S33: -0.01994342319 | T33: 0.01071781808
C34: Small Commercial | D34: =IF(J3="Y",'SAR and AR (GS1)'!W28,'SAR and AR (GS1)'!X28) -> 30.53542358 | E34: ='SAR and AR (GS1)'!G28 -> 30.53542358 | F34: ='SAR and AR (GS1)'!H28 -> 29.75984847 | G34: ='SAR and AR (GS1)'!I28 -> 30.03716636 | H34: -0.01631735061 | I34: =$G34/E34-1 -> -0.01631735061 | J34: =$G34/F34-1 -> 0.00931852493 | M34: Total Small Commercial (AR) | N34: =IF(J3="Y",'SAR and AR (GS1)'!Z28,'SAR and AR (GS1)'!AA28) -> 27.15054885 | O34: ='SAR and AR (GS1)'!O28 -> 27.15054885 | P34: ='SAR and AR (GS1)'!P28 -> 26.34887513 | Q34: ='SAR and AR (GS1)'!Q28 -> 26.62491287 | R34: =$Q34/N34-1 -> -0.01936005019 | S34: =$Q34/O34-1 -> -0.01936005019 | T34: =$Q34/P34-1 -> 0.01047626269
B35: System | D35: =IF(J3="Y",'SAR and RAR'!W29,'SAR and RAR'!X29) -> 28.8581489 | E35: ='SAR and RAR'!G29 -> 28.8581489 | F35: ='SAR and RAR'!H29 -> 27.95849479 | G35: ='SAR and RAR'!I29 -> 28.21983166 | H35: -0.02211913344 | I35: =$G35/E35-1 -> -0.02211913344 | J35: =$G35/F35-1 -> 0.009347315161 | L35: Total System (SAR) | N35: =IF(J3="Y",'SAR and RAR'!Z29,'SAR and RAR'!AA29) -> 25.19445183 | O35: ='SAR and RAR'!O29 -> 25.19445183 | P35: ='SAR and RAR'!P29 -> 24.54159563 | Q35: ='SAR and RAR'!Q29 -> 24.79893334 | R35: -0.01569863465 | S35: -0.01569863465 | T35: 0.01048577754
B38: Bundled Residential Monthly Average Bills
D39: =$D$32 -> 2026-01-01 | E39: =$E$32 -> 2026-01-01 | F39: =$D$3&" Authorized" -> 2026 Authorized | G39: =$D$3&" w/Pending" -> 2026 w/Pending | H39: =$H$32 -> % Change over 1/1/2026 | I39: =$I$32 -> % Change over 1/1/2026 | J39: % Change over Authorized
B40: Non-CARE | D40: =((D46*4)+(D52*8))/12 -> 187.2622187 | E40: =((E46*4)+(E52*8))/12 -> 187.2622187 | F40: 180.3293542 | G40: 182.097755 | H40: =$G40/D40-1 -> -0.02757878071 | I40: -0.02757878071 | J40: =$G40/F40-1 -> 0.009806505738
B41: CARE | D41: 105.1805199 | E41: =((E47*4)+(E53*8))/12 -> 105.1805199 | F41: 100.8693965 | G41: 101.9690566 | H41: -0.03053287152 | I41: -0.03053287152 | J41: 0.01090182054
B42: Total | D42: 158.5336241 | E42: =((E48*4)+(E54*8))/12 -> 158.5336241 | F42: 152.518369 | G42: 154.0527106 | H42: -0.02826475179 | I42: -0.02826475179 | J42: =$G42/F42-1 -> 0.01006004445
B44: Bundled Residential Monthly Average Bills - Summer
D45: =$D$32 -> 2026-01-01 | E45: =$E$32 -> 2026-01-01 | F45: =$D$3&" Authorized" -> 2026 Authorized | G45: =$D$3&" w/Pending" -> 2026 w/Pending | H45: =$H$32 -> % Change over 1/1/2026 | I45: =$I$32 -> % Change over 1/1/2026 | J45: % Change over Authorized
B46: Non-CARE | D46: =VLOOKUP($D$4,'Res Bill Impact'!$B$37:$J$46,2,FALSE)+O19 -> 237.7042714 | E46: =VLOOKUP($D$4,'Res Bill Impact'!$B$37:$J$46,4,FALSE) -> 237.7042714 | F46: =VLOOKUP($D$4,'Res Bill Impact'!$B$37:$J$46,6,FALSE) -> 228.7035024 | G46: =VLOOKUP($D$4,'Res Bill Impact'!$B$37:$J$46,8,FALSE) -> 230.9993741 | H46: =$G46/D46-1 -> -0.02820688602 | I46: -0.02820688602 | J46: =$G46/F46-1 -> 0.01003863819
B47: CARE | D47: =VLOOKUP($D$4,'Res Bill Impact'!$B$52:$J$61,2,FALSE) -> 137.6730359 | E47: =VLOOKUP($D$4,'Res Bill Impact'!$B$52:$J$61,4,FALSE) -> 137.6730359 | F47: =VLOOKUP($D$4,'Res Bill Impact'!$B$52:$J$61,6,FALSE) -> 132.0298609 | G47: =VLOOKUP($D$4,'Res Bill Impact'!$B$52:$J$61,8,FALSE) -> 133.4692941 | H47: -0.03053424202 | I47: -0.03053424202 | J47: 0.0109023308
B48: Total | D48: =D46*0.65+D47*0.35 -> 202.693339 | E48: =E46*0.65+E47*0.35 -> 202.693339 | F48: =F46*0.65+F47*0.35 -> 194.8677279 | G48: =G46*0.65+G47*0.35 -> 196.8638461 | H48: -0.02876016004 | I48: -0.02876016004 | J48: =$G48/F48-1 -> 0.01024345212
B50: Bundled Residential Monthly Average Bills - Winter
D51: =$D$32 -> 2026-01-01 | E51: =$E$32 -> 2026-01-01 | F51: =$D$3&" Authorized" -> 2026 Authorized | G51: =$D$3&" w/Pending" -> 2026 w/Pending | H51: =$H$32 -> % Change over 1/1/2026 | I51: =$I$32 -> % Change over 1/1/2026 | J51: % Change over Authorized
B52: Non-CARE | D52: =VLOOKUP($D$4,'Res Bill Impact'!$B$37:$J$46,3,FALSE) -> 162.0411923 | E52: =VLOOKUP($D$4,'Res Bill Impact'!$B$37:$J$46,5,FALSE) -> 162.0411923 | F52: =VLOOKUP($D$4,'Res Bill Impact'!$B$37:$J$46,7,FALSE) -> 156.1422801 | G52: =VLOOKUP($D$4,'Res Bill Impact'!$B$37:$J$46,9,FALSE) -> 157.6469455 | H52: =$G52/D52-1 -> -0.02711808514 | I52: -0.02711808514 | J52: =$G52/F52-1 -> 0.009636502118
B53: CARE | D53: =VLOOKUP($D$4,'Res Bill Impact'!$B$52:$J$61,3,FALSE) -> 88.93426186 | E53: =VLOOKUP($D$4,'Res Bill Impact'!$B$52:$J$61,5,FALSE) -> 88.93426186 | F53: =VLOOKUP($D$4,'Res Bill Impact'!$B$52:$J$61,7,FALSE) -> 85.28916433 | G53: =VLOOKUP($D$4,'Res Bill Impact'!$B$52:$J$61,9,FALSE) -> 86.21893781 | H53: -0.03053181073 | I53: -0.03053181073 | J53: 0.0109014256
B54: Total | D54: =D52*0.65+D53*0.35 -> 136.4537667 | E54: =E52*0.65+E53*0.35 -> 136.4537667 | F54: =F52*0.65+F53*0.35 -> 131.3436896 | G54: =G52*0.65+G53*0.35 -> 132.6471428 | H54: -0.02789680317 | I54: -0.02789680317 | J54: 0.00992398828
B57: Bundled Residential Monthly Average Bills
D58: =$D$32 -> 2026-01-01 | E58: =$E$32 -> 2026-01-01 | F58: =$D$3&" Authorized" -> 2026 Authorized | G58: =$D$3&" w/Pending" -> 2026 w/Pending | H58: =$H$32 -> % Change over 1/1/2026 | I58: =$I$32 -> % Change over 1/1/2026 | J58: % Change over Authorized
B59: Essential Use (Basic) - Non-CARE | D59: =((D66*4)+(D73*8))/12 -> 146.1301156 | E59: 146.1301156 | F59: 140.8834882 | G59: 142.221772 | H59: =$G59/D59-1 -> -0.02674564089 | I59: -0.02674564089 | J59: =$G59/F59-1 -> 0.009499224001
B60: Essential Use (Basic) - CARE | D60: 83.15606885 | E60: 83.15606885 | F60: 79.74785207 | G60: 80.61720318 | H60: -0.03053133352 | I60: -0.03053133352 | J60: =$G60/F60-1 -> 0.01090124793
B61: Essential Use (All-Electric) - Non-CARE | D61: 144.2526567 | E61: 144.2526567 | F61: 139.0829969 | G61: 140.4016482 | H61: -0.02669627423 | I61: -0.02669627423 | J61: 0.009481038777
B62: Essential Use (All-Electric) - CARE | D62: 81.93646882 | E62: 81.93646882 | F62: 78.57825033 | G62: 79.43484812 | H62: -0.03053122419 | I62: -0.03053122419 | J62: 0.01090120722
B64: Bundled Residential Monthly Average Bills - Summer
D65: =$D$32 -> 2026-01-01 | E65: =$E$32 -> 2026-01-01 | F65: =$D$3&" Authorized" -> 2026 Authorized | G65: =$D$3&" w/Pending" -> 2026 w/Pending | H65: =$H$32 -> % Change over 1/1/2026 | I65: =$I$32 -> % Change over 1/1/2026 | J65: % Change over Authorized
B66: Essential Use (Basic) - Non-CARE | D66: =VLOOKUP($D$4,'Res Bill Impact'!$L$37:$T$46,2,FALSE) -> 176.7952777 | E66: =VLOOKUP($D$4,'Res Bill Impact'!$L$37:$T$46,4,FALSE) -> 176.7952777 | F66: =VLOOKUP($D$4,'Res Bill Impact'!$L$37:$T$46,6,FALSE) -> 170.2915122 | G66: =VLOOKUP($D$4,'Res Bill Impact'!$L$37:$T$46,8,FALSE) -> 171.9504606 | H66: =$G66/D66-1 -> -0.0274035437 | I66: -0.0274035437 | J66: =$G66/F66-1 -> 0.009741814911
B67: Essential Use (Basic) - CARE | D67: =VLOOKUP($D$4,'Res Bill Impact'!$V$37:$AD$46,2,FALSE) -> 103.0762027 | E67: =VLOOKUP($D$4,'Res Bill Impact'!$V$37:$AD$46,4,FALSE) -> 103.0762027 | F67: =VLOOKUP($D$4,'Res Bill Impact'!$V$37:$AD$46,6,FALSE) -> 98.85134719 | G67: =VLOOKUP($D$4,'Res Bill Impact'!$V$37:$AD$46,8,FALSE) -> 99.92900247 | H67: -0.03053275297 | I67: -0.03053275297 | J67: =$G67/F67-1 -> 0.0109017764
B68: Essential Use (All-Electric) - Non-CARE | D68: =VLOOKUP($D$4,'Res Bill Impact'!$L$52:$T$61,2,FALSE) -> 135.4911818 | E68: =VLOOKUP($D$4,'Res Bill Impact'!$L$52:$T$61,4,FALSE) -> 135.4911818 | F68: =VLOOKUP($D$4,'Res Bill Impact'!$L$52:$T$61,6,FALSE) -> 130.6807043 | G68: =VLOOKUP($D$4,'Res Bill Impact'!$L$52:$T$61,8,FALSE) -> 131.9077371 | H68: -0.02644780693 | I68: -0.02644780693 | J68: 0.009389548683
B69: Essential Use (All-Electric) - CARE | D69: =VLOOKUP($D$4,'Res Bill Impact'!$V$52:$AD$61,2,FALSE) -> 76.245002 | E69: =VLOOKUP($D$4,'Res Bill Impact'!$V$52:$AD$61,4,FALSE) -> 76.245002 | F69: =VLOOKUP($D$4,'Res Bill Impact'!$V$46:$AD$61,6,FALSE) -> 73.12010887 | G69: =VLOOKUP($D$4,'Res Bill Impact'!$V$52:$AD$61,8,FALSE) -> 73.91719118 | H69: -0.03053066775 | I69: -0.03053066775 | J69: 0.01090100006
B71: Bundled Residential Monthly Average Bills - Winter
D72: =$D$32 -> 2026-01-01 | E72: =$E$32 -> 2026-01-01 | F72: =$D$3&" Authorized" -> 2026 Authorized | G72: =$D$3&" w/Pending" -> 2026 w/Pending | H72: =$H$32 -> % Change over 1/1/2026 | I72: =$I$32 -> % Change over 1/1/2026 | J72: % Change over Authorized
B73: Essential Use (Basic) - Non-CARE | D73: =VLOOKUP($D$4,'Res Bill Impact'!$L$37:$T$46,3,FALSE) -> 130.7975345 | E73: =VLOOKUP($D$4,'Res Bill Impact'!$L$37:$T$46,5,FALSE) -> 130.7975345 | F73: =VLOOKUP($D$4,'Res Bill Impact'!$L$37:$T$46,7,FALSE) -> 126.1794761 | G73: =VLOOKUP($D$4,'Res Bill Impact'!$L$37:$T$46,9,FALSE) -> 127.3574276 | H73: =$G73/D73-1 -> -0.0263010067 | I73: -0.0263010067 | J73: =$G73/F73-1 -> 0.009335523952
B74: Essential Use (Basic) - CARE | D74: =VLOOKUP($D$4,'Res Bill Impact'!$V$37:$AD$46,3,FALSE) -> 73.19600192 | E74: =VLOOKUP($D$4,'Res Bill Impact'!$V$37:$AD$46,5,FALSE) -> 73.19600192 | F74: =VLOOKUP($D$4,'Res Bill Impact'!$V$37:$AD$46,7,FALSE) -> 70.19610451 | G74: =VLOOKUP($D$4,'Res Bill Impact'!$V$37:$AD$46,9,FALSE) -> 70.96130353 | H74: -0.03053033407 | I74: -0.03053033407 | J74: 0.01090087582
B75: Essential Use (All-Electric) - Non-CARE | D75: =VLOOKUP($D$4,'Res Bill Impact'!$L$52:$T$61,3,FALSE) -> 148.6333941 | E75: =VLOOKUP($D$4,'Res Bill Impact'!$L$52:$T$61,5,FALSE) -> 148.6333941 | F75: =VLOOKUP($D$4,'Res Bill Impact'!$L$52:$T$61,7,FALSE) -> 143.2841432 | G75: =VLOOKUP($D$4,'Res Bill Impact'!$L$52:$T$61,9,FALSE) -> 144.6486037 | H75: -0.0268095231 | I75: -0.0268095231 | J75: 0.009522760036
B76: Essential Use (All-Electric) - CARE | D76: =VLOOKUP($D$4,'Res Bill Impact'!$V$52:$AD$61,3,FALSE) -> 84.78220222 | E76: =VLOOKUP($D$4,'Res Bill Impact'!$V$52:$AD$61,5,FALSE) -> 84.78220222 | F76: =VLOOKUP($D$4,'Res Bill Impact'!$V$46:$AD$61,7,FALSE) -> 81.30732106 | G76: =VLOOKUP($D$4,'Res Bill Impact'!$V$52:$AD$61,9,FALSE) -> 82.19367659 | H76: -0.03053147439 | I76: -0.03053147439 | J76: 0.01090130038
B79: Bundled Residential Monthly Average Bills
D80: =$D$32 -> 2026-01-01 | E80: =$E$32 -> 2026-01-01 | F80: =$D$3&" Authorized" -> 2026 Authorized | G80: =$D$3&" w/Pending" -> 2026 w/Pending | H80: =$H$32 -> % Change over 1/1/2026 | I80: =$I$32 -> % Change over 1/1/2026 | J80: % Change over Authorized
B81: =J4&"kWh Monthly Usage - Non-CARE" -> 500kWh Monthly Usage - Non-CARE | D81: =((D86*4)+(D91*8))/12 -> 181.5569305 | E81: 181.5569305 | F81: 174.8579579 | G81: 176.5666988 | H81: =$G81/D81-1 -> -0.02748576818 | I81: =$G81/E81-1 -> -0.02748576818 | J81: =$G81/F81-1 -> 0.009772165119
B82: =J4&"kWh Monthly Usage - CARE" -> 500kWh Monthly Usage - CARE | D82: 106.3996181 | E82: 106.3996181 | F82: 102.038517 | G82: 103.1509251 | H82: =$G82/D82-1 -> -0.03053293805 | I82: =$G82/E82-1 -> -0.03053293805 | J82: 0.01090184531
B84: Bundled Residential Monthly Average Bills - Summer
D85: =$D$32 -> 2026-01-01 | E85: =$E$32 -> 2026-01-01 | F85: =$D$3&" Authorized" -> 2026 Authorized | G85: =$D$3&" w/Pending" -> 2026 w/Pending | H85: =$H$32 -> % Change over 1/1/2026 | I85: =$I$32 -> % Change over 1/1/2026 | J85: % Change over Authorized
B86: =J4&"kWh Monthly Usage - Non-CARE" -> 500kWh Monthly Usage - Non-CARE | D86: =VLOOKUP($D$4,'Res Bill Impact'!$L$67:$T$76,2,FALSE) -> 172.46 | E86: =VLOOKUP($D$4,'Res Bill Impact'!$L$67:$T$76,4,FALSE) -> 172.46 | F86: =VLOOKUP($D$4,'Res Bill Impact'!$L$67:$T$76,6,FALSE) -> 166.133962 | G86: =VLOOKUP($D$4,'Res Bill Impact'!$L$67:$T$76,8,FALSE) -> 167.7475765 | H86: =$G86/D86-1 -> -0.02732473308 | I86: =$G86/E86-1 -> -0.02732473308 | J86: =$G86/F86-1 -> 0.009712731332
B87: =J4&"kWh Monthly Usage - CARE" -> 500kWh Monthly Usage - CARE | D87: =VLOOKUP($D$4,'Res Bill Impact'!$V$67:$AD$76,2,FALSE) -> 100.26 | E87: =VLOOKUP($D$4,'Res Bill Impact'!$V$67:$AD$76,4,FALSE) -> 100.26 | F87: =VLOOKUP($D$4,'Res Bill Impact'!$V$67:$AD$76,6,FALSE) -> 96.15059653 | G87: =VLOOKUP($D$4,'Res Bill Impact'!$V$67:$AD$76,8,FALSE) -> 97.19880287 | H87: =$G87/D87-1 -> -0.03053258653 | I87: =$G87/E87-1 -> -0.03053258653 | J87: 0.01090171444
B89: Bundled Residential Monthly Average Bills - Winter
D90: =$D$32 -> 2026-01-01 | E90: =$E$32 -> 2026-01-01 | F90: =$D$3&" Authorized" -> 2026 Authorized | G90: =$D$3&" w/Pending" -> 2026 w/Pending | H90: =$H$32 -> % Change over 1/1/2026 | I90: =$I$32 -> % Change over 1/1/2026 | J90: % Change over Authorized
B91: =J4&"kWh Monthly Usage - Non-CARE" -> 500kWh Monthly Usage - Non-CARE | D91: =VLOOKUP($D$4,'Res Bill Impact'!$L$67:$T$76,3,FALSE) -> 186.1053957 | E91: =VLOOKUP($D$4,'Res Bill Impact'!$L$67:$T$76,5,FALSE) -> 186.1053957 | F91: =VLOOKUP($D$4,'Res Bill Impact'!$L$67:$T$76,7,FALSE) -> 179.2199559 | G91: =VLOOKUP($D$4,'Res Bill Impact'!$L$67:$T$76,9,FALSE) -> 180.9762599 | H91: =$G91/D91-1 -> -0.02756038211 | I91: =$G91/E91-1 -> -0.02756038211 | J91: =$G91/F91-1 -> 0.009799712192
B92: =J4&"kWh Monthly Usage - CARE" -> 500kWh Monthly Usage - CARE | D92: =VLOOKUP($D$4,'Res Bill Impact'!$V$67:$AD$76,3,FALSE) -> 109.4694271 | E92: =VLOOKUP($D$4,'Res Bill Impact'!$V$67:$AD$76,5,FALSE) -> 109.4694271 | F92: =VLOOKUP($D$4,'Res Bill Impact'!$V$67:$AD$76,7,FALSE) -> 104.9824772 | G92: =VLOOKUP($D$4,'Res Bill Impact'!$V$67:$AD$76,9,FALSE) -> 106.1269863 | H92: =$G92/D92-1 -> -0.03053309902 | I92: =$G92/E92-1 -> -0.03053309902 | J92: 0.01090190525
B95: Bundled Residential Monthly Average Bills
D96: =$D$32 -> 2026-01-01 | E96: =$E$32 -> 2026-01-01 | F96: =$D$3&" Authorized" -> 2026 Authorized | G96: =$D$3&" w/Pending" -> 2026 w/Pending | H96: =$H$32 -> % Change over 1/1/2026 | I96: =$I$32 -> % Change over 1/1/2026 | J96: % Change over Authorized
B97: All-Electric - Non-CARE | D97: =((D103*4)+(D109*8))/12 -> 145.959233 | E97: =((E103*4)+(E109*8))/12 -> 145.959233 | F97: 140.719611 | G97: 142.0561079 | H97: =$G97/D97-1 -> -0.02674120017 | I97: -0.02674120017 | J97: =$G97/F97-1 -> 0.009497588068
B98: All-Electric - CARE | D98: =((D104*4)+(D110*8))/12 -> 84.53236916 | E98: 84.53236916 | F98: 81.06773006 | G98: 81.95147309 | H98: -0.0305314531 | I98: -0.0305314531 | J98: 0.01090129245
B99: All-Electric - Total | D99: =((D105*4)+(D111*8))/12 -> 124.4598306 | E99: 124.4598306 | F99: 119.8414527 | G99: 121.0194857 | H99: -0.02764221112 | I99: -0.02764221112 | J99: =$G99/F99-1 -> 0.009829929623
B101: Bundled Residential Monthly Average Bills - Summer
D102: =$D$32 -> 2026-01-01 | E102: =$E$32 -> 2026-01-01 | F102: =$D$3&" Authorized" -> 2026 Authorized | G102: =$D$3&" w/Pending" -> 2026 w/Pending | H102: =$H$32 -> % Change over 1/1/2026 | I102: =$I$32 -> % Change over 1/1/2026 | J102: % Change over Authorized
B103: All-Electric - Non-CARE | D103: =VLOOKUP($D$4,'Res Bill Impact'!$B$67:$J$76,2,FALSE) -> 177.5533598 | E103: =VLOOKUP($D$4,'Res Bill Impact'!$B$67:$J$76,4,FALSE) -> 177.5533598 | F103: =VLOOKUP($D$4,'Res Bill Impact'!$B$67:$J$76,6,FALSE) -> 171.0185162 | G103: =VLOOKUP($D$4,'Res Bill Impact'!$B$67:$J$76,8,FALSE) -> 172.6853918 | H103: =$G103/D103-1 -> -0.02741692948 | I103: =$G103/E103-1 -> -0.02741692948 | J103: =$G103/F103-1 -> 0.009746755315
B104: All-Electric - CARE | D104: =VLOOKUP($D$4,'Res Bill Impact'!$B$82:$J$91,2,FALSE) -> 104.6588713 | E104: =VLOOKUP($D$4,'Res Bill Impact'!$B$82:$J$91,4,FALSE) -> 104.6588713 | F104: =VLOOKUP($D$4,'Res Bill Impact'!$B$82:$J$91,6,FALSE) -> 100.3691332 | G104: =VLOOKUP($D$4,'Res Bill Impact'!$B$82:$J$91,8,FALSE) -> 101.4633384 | H104: =$G104/D104-1 -> -0.03053284257 | I104: =$G104/E104-1 -> -0.03053284257 | J104: =$G104/F104-1 -> 0.01090180976
B105: All-Electric - Total | D105: =D103*0.65+D104*0.35 -> 152.0402888 | E105: =E103*0.65+E104*0.35 -> 152.0402888 | F105: =F103*0.65+F104*0.35 -> 146.2912322 | G105: =G103*0.65+G104*0.35 -> 147.7576731 | H105: =$G105/D105-1 -> -0.02816763696 | I105: =$G105/E105-1 -> -0.02816763696 | J105: =$G105/F105-1 -> 0.01002412077
B107: Bundled Residential Monthly Average Bills - Winter
D108: =$D$32 -> 2026-01-01 | E108: =$E$32 -> 2026-01-01 | F108: =$D$3&" Authorized" -> 2026 Authorized | G108: =$D$3&" w/Pending" -> 2026 w/Pending | H108: =$H$32 -> % Change over 1/1/2026 | I108: =$I$32 -> % Change over 1/1/2026 | J108: % Change over Authorized
B109: All-Electric - Non-CARE | D109: =VLOOKUP($D$4,'Res Bill Impact'!$B$67:$J$76,3,FALSE) -> 130.1621696 | E109: =VLOOKUP($D$4,'Res Bill Impact'!$B$67:$J$76,5,FALSE) -> 130.1621696 | F109: =VLOOKUP($D$4,'Res Bill Impact'!$B$67:$J$76,7,FALSE) -> 125.5701584 | G109: =VLOOKUP($D$4,'Res Bill Impact'!$B$67:$J$76,9,FALSE) -> 126.741466 | H109: =$G109/D109-1 -> -0.02628032121 | I109: -0.02628032121 | J109: =$G109/F109-1 -> 0.00932791315
B110: All-Electric - CARE | D110: =VLOOKUP($D$4,'Res Bill Impact'!$B$82:$J$91,3,FALSE) -> 74.4691181 | E110: =VLOOKUP($D$4,'Res Bill Impact'!$B$82:$J$91,5,FALSE) -> 74.4691181 | F110: =VLOOKUP($D$4,'Res Bill Impact'!$B$82:$J$91,7,FALSE) -> 71.41702848 | G110: =VLOOKUP($D$4,'Res Bill Impact'!$B$82:$J$91,9,FALSE) -> 72.19554043 | H110: -0.03053047672 | I110: -0.03053047672 | J110: 0.01090092893
B111: All-Electric - Total | D111: =D109*0.65+D110*0.35 -> 110.6696016 | E111: =E109*0.65+E110*0.35 -> 110.6696016 | F111: =F109*0.65+F110*0.35 -> 106.6165629 | G111: =G109*0.65+G110*0.35 -> 107.650392 | H111: -0.02728129045 | I111: -0.02728129045 | J111: 0.009696702374
B113: Small Commercial Monthly Average Bills
D114: =$D$32 -> 2026-01-01 | E114: =$E$32 -> 2026-01-01 | F114: =$D$3&" Authorized" -> 2026 Authorized | G114: =$D$3&" w/Pending" -> 2026 w/Pending | H114: =$H$32 -> % Change over 1/1/2026 | I114: =$I$32 -> % Change over 1/1/2026 | J114: % Change over Authorized
B115: NAICS 531 | D115: =((D121*4)+(D127*8))/12 -> 218.2793393 | E115: =((E121*4)+(E127*8))/12 -> 218.2793393 | F115: 213.0257155 | G115: 214.9792184 | H115: =$G115/D115-1 -> -0.01511879636 | I115: -0.01511879636 | J115: =$G115/F115-1 -> 0.009170267943
B116: NAICS 621 | D116: =((D122*4)+(D128*8))/12 -> 289.9466581 | E116: 289.9466581 | F116: 282.8477828 | G116: 285.4874224 | H116: -0.01537950366 | I116: -0.01537950366 | J116: 0.009332368058
B117: NAICS 722 | D117: =((D123*4)+(D129*8))/12 -> 835.6676468 | E117: 835.6676468 | F117: 814.5178413 | G117: 822.3821666 | H117: -0.01589804302 | I117: -0.01589804302 | J117: =$G117/F117-1 -> 0.0096551909
B119: Small Commercial Monthly Average Bills - Summer
D120: =D114 -> 2026-01-01 | E120: =$E$32 -> 2026-01-01 | F120: =$D$3&" Authorized" -> 2026 Authorized | G120: =$D$3&" w/Pending" -> 2026 w/Pending | H120: =$H$32 -> % Change over 1/1/2026 | I120: =$I$32 -> % Change over 1/1/2026 | J120: % Change over Authorized
B121: NAICS 531 | D121: ='Bill Impact (GS1)'!C37 -> 247.8943711 | E121: ='Bill Impact (GS1)'!E37 -> 247.8943711 | F121: ='Bill Impact (GS1)'!G37 -> 241.8782355 | G121: ='Bill Impact (GS1)'!I37 -> 244.1152701 | H121: =$G121/D121-1 -> -0.01524480365 | I121: =$G121/E121-1 -> -0.01524480365 | J121: =$G121/F121-1 -> 0.009248598345
B122: NAICS 621 | D122: ='Bill Impact (GS1)'!C38 -> 395.5458909 | E122: ='Bill Impact (GS1)'!E38 -> 395.5458909 | F122: ='Bill Impact (GS1)'!G38 -> 385.7281034 | G122: ='Bill Impact (GS1)'!I38 -> 389.378741 | H122: =$G122/D122-1 -> -0.01559149033 | I122: =$G122/E122-1 -> -0.01559149033 | J122: =$G122/F122-1 -> 0.009464276831
B123: NAICS 722 | D123: ='Bill Impact (GS1)'!C39 -> 1102.634088 | E123: ='Bill Impact (GS1)'!E39 -> 1102.634088 | F123: ='Bill Impact (GS1)'!G39 -> 1074.610574 | G123: ='Bill Impact (GS1)'!I39 -> 1085.030813 | H123: =$G123/D123-1 -> -0.01596474741 | I123: =$G123/E123-1 -> -0.01596474741 | J123: =$G123/F123-1 -> 0.009696758211
B125: Small Commercial Monthly Average Bills - Winter
D126: =D114 -> 2026-01-01 | E126: =$E$32 -> 2026-01-01 | F126: =$D$3&" Authorized" -> 2026 Authorized | G126: =$D$3&" w/Pending" -> 2026 w/Pending | H126: =$H$32 -> % Change over 1/1/2026 | I126: =$I$32 -> % Change over 1/1/2026 | J126: % Change over Authorized
B127: NAICS 531 | D127: ='Bill Impact (GS1)'!D37 -> 203.4718233 | E127: ='Bill Impact (GS1)'!F37 -> 203.4718233 | F127: ='Bill Impact (GS1)'!H37 -> 198.5994555 | G127: ='Bill Impact (GS1)'!J37 -> 200.4111925 | H127: =$G127/D127-1 -> -0.01504203758 | I127: -0.01504203758 | J127: =$G127/F127-1 -> 0.009122567863
B128: NAICS 621 | D128: ='Bill Impact (GS1)'!D38 -> 237.1470416 | E128: ='Bill Impact (GS1)'!F38 -> 237.1470416 | F128: ='Bill Impact (GS1)'!H38 -> 231.4076224 | G128: ='Bill Impact (GS1)'!J38 -> 233.5417631 | H128: -0.01520271365 | I128: -0.01520271365 | J128: 0.009222430191
B129: NAICS 722 | D129: ='Bill Impact (GS1)'!D39 -> 702.1844262 | E129: ='Bill Impact (GS1)'!F39 -> 702.1844262 | F129: ='Bill Impact (GS1)'!H39 -> 684.4714748 | G129: ='Bill Impact (GS1)'!J39 -> 691.0578432 | H129: -0.01584567036 | I129: -0.01584567036 | J129: 0.009622560853

Sheet Selected Data
A1: Summary of Selected Data
N2: 2026 Revenue
N3: Requirement
N4: $000
A5: 1 | B5: Current total system-level revenue requirement that is used for defining the reporting threshold: | N5: ='Authorized Rev Req'!J99 -> 19339861.88
B7: A | C7: One-percent reporting threshold | N7: =N5*0.01 -> 193398.6188
A9: 2 | B9: List of currently open proceedings for which affordability metrics have been filed1: | N9: Annual Revenue
B11: A | C11: A.25-03-009 | D11: NextGen | N11: 145266 | O11: Average annual revenue requirement from 2025-2032
A14: 3 | B14: Total system-level revenue requirement if all pending revenue were granted in full
B15: A | C15: YE 2026 | N15: ='Incremental Rev Req'!$T$83 -> 19512977.33
B16: B | C16: YE 2027 | N16: ='Incremental Rev Req'!$U$83 -> 18714413.06
B17: C | C17: YE 2028 | N17: ='Incremental Rev Req'!$V$83 -> 18785303.52
B18: D | C18: YE 2029 | N18: ='Incremental Rev Req'!$W$83 -> 18900223.52
B19: E | C19: YE 2030 | N19: ='Incremental Rev Req'!$X$83 -> 18850301.52
A21: 4 | B21: Bundled residential average rate (RAR) if all pending revenue were granted in full (from Cost and Rate Tracker (CRT) as submitted by utility):
N22: cents/kWh
B23: A | C23: YE 2026 | N23: 33.64302916 | R23: =Summary!G33 -> 33.64302916 | S23: =Summary!G33 -> 33.64302916
B24: B | C24: YE 2027 | N24: 31.98493275
B25: C | C25: YE 2028 | N25: 31.66076704
B26: D | C26: YE 2029 | N26: 31.84526052
B27: E | C27: YE 2030 | N27: 31.76522795
A29: 5 | B29: Bundled residential average monthly bill corresponding to RAR above for typical customer in climate zone 9 using 500 kWh (from CRT as submitted by utility):
M30: Non-CARE | N30: CARE
B31: A | C31: YE 2026 | M31: 182.097755 | N31: 101.9690566 | Q31: =Summary!G81 -> 176.5666988 | R31: =Summary!G82 -> 103.1509251 | S31: =Summary!G81 -> 176.5666988 | T31: =Summary!G82 -> 103.1509251
B32: B | C32: YE 2027 | M32: 172.9914903 | N32: 96.30642885
B33: C | C33: YE 2028 | M33: 170.8115228 | N33: 94.95084073
B34: D | C34: YE 2029 | M34: 170.968866 | N34: 95.04868283
B35: E | C35: YE 2030 | M35: 170.5293272 | N35: 94.77536058
A37: 6 | B37: Bundled small commercial average rate (TOU-GS-1) if all pending revenue were granted in full (from Cost and Rate Tracker (CRT) as submitted by utility):
N38: cents/kWh
B39: A | C39: YE 2026 | N39: 30.03716636 | R39: =Summary!G34 -> 30.03716636 | S39: =Summary!G34 -> 30.03716636
B40: B | C40: YE 2027 | N40: 28.49484612
B41: C | C41: YE 2028 | N41: 28.13206573
B42: D | C42: YE 2029 | N42: 28.27427027
B43: E | C43: YE 2030 | N43: 28.21252281
A45: 7 | B45: Bundled small commercial average monthly bill corresponding to TOU-GS-1 rate above for typical customer by NAICS (from CRT as submitted by utility):
L46: NAICS 531 | M46: NAICS 621 | N46: NAICS 722
B47: A | C47: YE 2026 | L47: 214.9792184 | M47: 285.4874224 | N47: 822.3821666 | P47: =Summary!G115 -> 214.9792184 | Q47: =Summary!G116 -> 285.4874224 | R47: =Summary!G117 -> 822.3821666 | S47: =Summary!G115 -> 214.9792184 | T47: =Summary!G116 -> 285.4874224 | U47: =Summary!G117 -> 822.3821666
B48: B | C48: YE 2027 | L48: 204.4770003 | M48: 271.2964677 | N48: 780.1028029 | P48: =M48/M47-1 -> -0.04970781043 | Q48: -0.0514108469 | S48: -1.000231221 | T48: -1.000180081
B49: C | C49: YE 2028 | L49: 202.0772158 | M49: 268.0537971 | N49: 770.4418568 | P49: -0.01195249827 | Q49: -0.01238419608 | S49: -0.7595448649 | T49: -0.7591131671
B50: D | C50: YE 2029 | L50: 203.0789433 | M50: 269.4073656 | N50: 774.4745673 | P50: 0.005049614808 | Q50: 0.005234282695 | S50: -1.422473586 | T50: -1.422658254
B51: E | C51: YE 2030 | L51: 202.6439773 | M51: 268.8196247 | N51: 772.7235004 | P51: -0.002181606596 | Q51: -0.002260974018 | S51: -1.43203426 | T51: -1.431954892
B55: 1 Persuant to D.25-12-044, Ordering Paragraph 1, affordability metrics are only required in General Rate Case filings where the revenue is estimated to exceed one-percent of currently authorized revenues system-wide for a single fuel

Sheet Authorized Rev Req
B2: Annual Period 2026
B3: Reporting Date: Quarter Ended March 31
C4: January 1, 2024 | D4: March 1, 2024 | E4: June 1, 2024 | F4: October 1, 2024 | G4: January 1, 2025 | H4: March 1, 2025 | I4: June 1, 2025 | J4: October 1, 2025 | K4: January 1, 2026
C5: 5178-E | D5: 5235-E | E5: 5307-E | F5: 5379-E / E-A | G5: 5449-E | H5: 5484-E | I5: 5555-E | J5: 5643-E | K5: 5725-E
B6: Filing Description | L6: Revenue Recovery Mechanism | M6: Authority for Revenue Requirement | N6: Balancing Account
A7: Safety Affordability Reliability Proceedings | B7: Safety Affordability Reliability Proceedings
A8: 2018 GRC (Attrition Years) | B8: General Rate Case (GRC-G) | C8: 754977 | D8: 766648.8347 | E8: 766648.8347 | F8: 766648.8347 | G8: 760627.5753 | H8: 760627.5753 | I8: 760627.5753 | J8: 891445.0485 | K8: 919033.3586 | L8: Generation | M8: D.25-09-030; Advice 5677-E; D.25-12-043 | N8: N
A9: 2018 GRC (Attrition Years) | B9: General Rate Case (GRC-N) | C9: 61347 | D9: 62607.60614 | E9: 62607.60614 | F9: 62607.60614 | G9: 61952.34378 | H9: 61952.34378 | I9: 61952.34378 | J9: 65975.9059 | K9: 65288.74454 | L9: New System Gen | M9: D.25-09-030; Advice 5677-E; D.25-12-043 | N9: N
A10: 2018 GRC (Attrition Years) | B10: General Rate Case (GRC-D) | C10: 7565233 | D10: 7752988.246 | E10: 7752988.246 | F10: 7752988.246 | G10: 7655298.489 | H10: 7655298.489 | I10: 7655298.489 | J10: 8702553.289 | K10: 9151560.657 | L10: Distribution | M10: D.25-09-030; Advice 5677-E; D.25-12-043 | N10: N
A11: 2018 GRC Memo Account/One-Time/FF&U | B11: 2025 GRCRRMA (24-month amortization) | C11: 0 | D11: 0 | E11: 0 | F11: 0 | G11: 0 | H11: 0 | I11: 0 | J11: 51458.93457 | K11: 51504.78069 | L11: Generation | M11: D.25-09-030; Advice 5642-E/E-A; Uncollectibles Factor Update only | N11: Y
A12: 2018 GRC Memo Account/One-Time/FF&U | B12: 2025 GRCRRMA (24-month amortization) | C12: 0 | D12: 0 | E12: 0 | F12: 0 | G12: 0 | H12: 0 | I12: 0 | J12: 1530.662547 | K12: 1532.026254 | L12: New System Gen | M12: D.25-09-030; Advice 5642-E/E-A; Uncollectibles Factor Update only | N12: Y
A13: Non-utility Affiliate Credits | B13: 2025 GRCRRMA (24-month amortization) | C13: 0 | D13: 0 | E13: 0 | F13: 0 | G13: 0 | H13: 0 | I13: 0 | J13: 398114.1493 | K13: 398468.8397 | L13: Distribution | M13: D.25-09-030; Advice 5642-E/E-A; Uncollectibles Factor Update only | N13: Y
B14: 2025 GRC One-Time Recovery of Accounts | C14: 0 | D14: 0 | E14: 0 | F14: 0 | G14: 0 | H14: 0 | I14: 0 | J14: 52205.497 | K14: 52252.00826 | L14: Distribution | M14: D.25-09-030; Advice 5642-E/E-A; Uncollectibles Factor Update only | N14: N
B15: 2025 GRC - FF&U Impact on Non-GRC Items | C15: 0 | D15: 0 | E15: 0 | F15: 0 | G15: 0 | H15: 0 | I15: 0 | J15: 1496.849164 | K15: 0 | L15: Generation | M15: Now Incorporated in individual Line Items | N15: N
B16: 2025 GRC - FF&U Impact on Non-GRC Items | C16: 0 | D16: 0 | E16: 0 | F16: 0 | G16: 0 | H16: 0 | I16: 0 | J16: 174.9551849 | K16: 0 | L16: New System Gen | M16: Now Incorporated in individual Line Items | N16: N
B17: 2025 GRC - FF&U Impact on Non-GRC Items | C17: 0 | D17: 0 | E17: 0 | F17: 0 | G17: 0 | H17: 0 | I17: 0 | J17: 1.538584803 | K17: 0 | L17: MCAM | M17: Now Incorporated in individual Line Items | N17: N
B18: 2025 GRC - FF&U Impact on Non-GRC Items | C18: 0 | D18: 0 | E18: 0 | F18: 0 | G18: 0 | H18: 0 | I18: 0 | J18: 122.3012492 | K18: 0 | L18: Distribution | M18: Now Incorporated in individual Line Items | N18: N
B19: 2025 GRC - FF&U Impact on Non-GRC Items | C19: 0 | D19: 0 | E19: 0 | F19: 0 | G19: 0 | H19: 0 | I19: 0 | J19: 416.7023248 | K19: 0 | L19: Public Purpose | M19: Now Incorporated in individual Line Items | N19: N
B20: 2025 GRC - FF&U Impact on Non-GRC Items | C20: 0 | D20: 0 | E20: 0 | F20: 0 | G20: 0 | H20: 0 | I20: 0 | J20: -0.2990957868 | K20: 0 | L20: Nuclear | M20: Now Incorporated in individual Line Items | N20: N
A21: Pole Loading & Deteriorated Poles Balancing Account | B21: Non-utility Affiliate Credits | C21: -4485.891476 | D21: -4485.891476 | E21: -4485.891476 | F21: -4485.891476 | G21: -4572.580314 | H21: -4572.580314 | I21: -4572.580314 | J21: -4572.580314 | K21: -4302.503379 | L21: Distribution | M21: D.15-10-037 | N21: N
A22: Tax Accounting Memorandum Account (TAMA) | B22: Pole Loading & Deteriorated Pole Programs Balancing Account | C22: -51916.65043 | D22: -51916.65043 | E22: -51916.65043 | F22: -51916.65043 | G22: -14072.56849 | H22: -14072.56849 | I22: -14072.56849 | J22: -14072.56849 | K22: 4694.932148 | L22: Distribution | M22: D.21-08-036 | N22: Y
B23: 2023/2024 TAMA Balance | C23: 19974.10359 | D23: 19974.10359 | E23: 19974.10359 | F23: 19974.10359 | G23: 14976.03009 | H23: 14976.03009 | I23: 14976.03009 | J23: 14976.03009 | K23: -5713.761947 | L23: Generation | M23: Advice 5515-E | N23: Y
B24: 2023/2024 TAMA Balance | C24: 129422.3922 | D24: 129422.3922 | E24: 129422.3922 | F24: 97197.38039 | G24: 97197.38039 | H24: 97197.38039 | I24: 97197.38039 | J24: -37050.25578 | K24: -37083.26483 | L24: Distribution | M24: Advice 5515-E | N24: Y
A25: Pension/PBOP/Medical Balancing Accounts | B25: Pension/PBOP/Medical Balancing Accounts | C25: -12071.66001 | D25: -12071.66001 | E25: -12071.66001 | F25: -12071.66001 | G25: -10009.34302 | H25: -10009.34302 | I25: -10009.34302 | J25: -10009.34302 | K25: -1737.474588 | L25: Generation | M25: D.21-08-036; D.25-09-030 | N25: Y
A26: 2019 ERRA Forecast | B26: Pension/PBOP/Medical Balancing Accounts | C26: -78219.42906 | D26: -78219.42906 | E26: -78219.42906 | F26: -78219.42906 | G26: -64990.5188 | H26: -64990.5188 | I26: -64990.5188 | J26: -64990.5188 | K26: -12404.64745 | L26: Distribution | M26: D.21-08-036; D.25-09-030 | N26: Y
A27: 2019 ERRA Forecast | B27: ERRA Forecast | C27: 4703703 | D27: 4703703 | E27: 4703703 | F27: 4703703 | G27: 4088354.669 | H27: 4088354.669 | I27: 4088354.669 | J27: 4088354.669 | K27: 4215455.435 | L27: Generation | M27: D.25-12-028 | N27: N
A28: 2020 ERRA Forecast | B28: ERRA Forecast | C28: 402997 | D28: 402997 | E28: 402997 | F28: 402997 | G28: 457466.7391 | H28: 457466.7391 | I28: 457466.7391 | J28: 457466.7391 | K28: 473468.5074 | L28: New System Gen | M28: D.25-12-028 | N28: N
A29: 2019 ERRA Forecast | B29: ERRA Forecast (BA) | C29: 222439.7825 | D29: 222439.7825 | E29: 222439.7825 | F29: 222439.7825 | G29: 78023.95761 | H29: 78023.95761 | I29: 78023.95761 | J29: 78023.95761 | K29: -25816.0917 | L29: New System Gen | M29: D.25-12-028 | N29: Y
A30: 2019 ERRA Forecast | B30: ERRA Forecast | C30: -955105 | D30: -955105 | E30: -955105 | F30: -955105 | G30: -641623.9439 | H30: -641623.9439 | I30: -641623.9439 | J30: -641623.9439 | K30: -443279 | L30: GHG Revenue | M30: D.25-12-028 | N30: N
A31: 2019 ERRA Forecast | B31: ERRA Forecast | C31: 4958 | D31: 4958 | E31: 4958 | F31: 4958 | G31: 5157.179022 | H31: 5157.179022 | I31: 5157.179022 | J31: 5157.179022 | K31: 5336.996734 | L31: Nuclear | M31: D.25-12-028 | N31: N
A32: 2019 ERRA Forecast | B32: ERRA Forecast | C32: -3582 | D32: -3582 | E32: -3582 | F32: -3582 | G32: -19169.38659 | H32: -19169.38659 | I32: -19169.38659 | J32: -19169.38659 | K32: -2686.156696 | L32: Distribution | M32: D.25-12-028 | N32: N
B33: ERRA Forecast | C33: 6584.546087 | D33: 6584.546087 | E33: 6584.546087 | F33: 6584.546087 | G33: 2344.499701 | H33: 2344.499701 | I33: 2344.499701 | J33: 2344.499701 | K33: 28843.04446 | L33: Public Purpose | M33: D.25-12-028 | N33: N
B34: Modified CAM (MCAM) Rate Component: | C34: 2362.884396 | D34: 2362.884396 | E34: 2362.884396 | F34: 2362.884396 | G34: 4709.193664 | H34: 4709.193664 | I34: 4709.193664 | J34: 4709.193664 | K34: 6677.031595 | L34: MCAM | M34: D.25-12-028 | N34: A portion is in the Balancing Account
A35: 2018 ERRA Balancing Account Trigger | B35: TMNBA/BMNBC BA | C35: 8772.952 | D35: 8772.952 | E35: 8772.952 | F35: 8772.952 | G35: 18400.88905 | H35: 18400.88905 | I35: 18400.88905 | J35: 18400.88905 | K35: 9995.819153 | L35: Public Purpose | M35: D.25-12-028 | N35: Y
B36: ERRA/PABA/ESMA/LCTA Balancing Account | C36: 676260.1571 | D36: 676260.1571 | E36: 676260.1571 | F36: 676260.1571 | G36: 459053.5617 | H36: 459053.5617 | I36: 459053.5617 | J36: 459053.5617 | K36: 445222.2628 | L36: Generation | M36: D.25-12-028 | N36: Y
B37: 2023 ERRA Trigger | C37: 459077.8602 | D37: 459077.8602 | E37: 0 | F37: =E37 -> 0 | G37: 0 | H37: 0 | I37: 0 | J37: 0 | K37: 0 | L37: Generation | M37: D.23-04-012; Advice 5036-E | N37: Y
B38: 2024 ERRA Trigger | C38: 0 | D38: 0 | E38: 0 | F38: -750729.8226 | G38: -750729.8226 | H38: -750729.8226 | I38: -750729.8226 | J38: 0 | K38: 0 | L38: Generation | M38: D.24-08-015 | N38: Y
B39: DAC-GT/CSGT Clean Energy Programs (BA) | C39: 2572.453913 | D39: 2572.453913 | E39: 2572.453913 | F39: 2572.453913 | G39: 2996.690392 | H39: 2996.690392 | I39: 2996.690392 | J39: 2996.690392 | K39: 3280.128496 | L39: Public Purpose | M39: D.25-12-028 | N39: N
B40: 2021 ERRA Review | C40: 0 | D40: 0 | E40: 0 | F40: 0 | G40: 0 | H40: 0 | I40: 0 | J40: 0 | K40: 2037.674034 | L40: Generation | M40: D.25-06-006; Advice 5604-E | N40: N
B41: 2021 ERRA Review | C41: 0 | D41: 0 | E41: 0 | F41: 0 | G41: 0 | H41: 0 | I41: 0 | J41: 0 | K41: 26947.02926 | L41: Distribution | M41: D.25-06-006; Advice 5604-E | N41: N
A42: BRRBA | B42: BRRBA Balancing Account | C42: 4756.555825 | D42: 4756.555825 | E42: 4756.555825 | F42: 4756.555825 | G42: -484.3566812 | H42: -484.3566812 | I42: -484.3566812 | J42: -484.3566812 | K42: 709.3469366 | L42: Generation | M42: D.15-10-037 | N42: Y
A43: NDAM Balancing Account | B43: BRRBA (Inc. FRC FF) | C43: 695357.185 | D43: 695357.185 | E43: 695357.185 | F43: 695357.185 | G43: 676672.1218 | H43: 676672.1218 | I43: 676672.1218 | J43: 676675.8195 | K43: 477020.0572 | L43: Distribution | M43: D.15-10-037; D.25-08-033; Advice 5691-E | N43: Y
A44: CARE Balancing Account | B44: NDAM Balancing Account | C44: 1927 | D44: 1927 | E44: 1927 | F44: 1927 | G44: -6072.630664 | H44: -6072.630664 | I44: -6072.630664 | J44: -6072.630664 | K44: -3199 | L44: Nuclear | M44: D.15-10-037 | N44: Y
A45: PPPAM Balancing Account | B45: CARE Balancing Account | C45: 55214.93072 | D45: 55214.93072 | E45: 55214.93072 | F45: 55214.93072 | G45: 107382.1747 | H45: 107382.1747 | I45: 107382.1747 | J45: 107382.1747 | K45: -92235.96706 | L45: Public Purpose | M45: D.15-10-037 | N45: Y
B46: PPPAM Balancing Account | C46: 57989.27786 | D46: 57989.27786 | E46: 57989.27786 | F46: 57989.27786 | G46: 191863.3206 | H46: 191863.3206 | I46: 191863.3206 | J46: 191863.3206 | K46: 222996 | L46: Public Purpose | M46: D.15-10-037 | N46: Y
B47: Intentionally Left Blank
B48: Intentionally Left Blank
B49: Emergency Reliability UOS | C49: 17006 | D49: 17591 | E49: 17591 | F49: 17591 | G49: 29550.51254 | H49: 29550.51254 | I49: 29550.51254 | J49: 29550.51254 | K49: 30050.91439 | L49: Generation | M49: Advice 4894-E; Advice 5142-E; Advice 5408-E; Advice 5674-E | N49: N
B50: Emergency Reliability UOS | C50: 62428 | D50: 64611 | E50: 64611 | F50: 64611 | G50: 79159.14371 | H50: 79159.14371 | I50: 79159.14371 | J50: 79159.14371 | K50: 81023.40548 | L50: Distribution | M50: Advice 4894-E; Advice 5142-E; Advice 5408-E; Advice 5674-E | N50: N
B51: 2021 GRC Track 2 O&M (36-Month Amortization) | C51: 135161.6901 | D51: 135161.6901 | E51: 135161.6901 | F51: 135161.6901 | G51: 135161.6901 | H51: 0 | I51: 0 | J51: 0 | K51: 0 | L51: Distribution | M51: D.21-01-012; Advice 4658-E/E-A | N51: N
B52: 2021 GRC Track 3 O&M (36-Month Amortization) | C52: 135415.5795 | D52: 135415.5795 | E52: 135415.5795 | F52: 135415.5795 | G52: 135415.5795 | H52: 135415.5795 | I52: 135415.5795 | J52: 0 | K52: 0 | L52: Distribution | M52: D.22-06-032 | N52: N
B53: VMBA Undercollection Threshold | C53: 29215.51344 | D53: 29215.51344 | E53: 29215.51344 | F53: 34738.53028 | G53: 34738.53028 | H53: 34738.53028 | I53: 34738.53028 | J53: 39014.12745 | K53: 39048.88616 | L53: Distribution | M53: Advice 5534-E; Uncollectibles Factor Update only | N53: Y
B54: WRMBA Undercollection | C54: 0 | D54: 0 | E54: 0 | F54: 129014.0578 | G54: 129014.0578 | H54: 129014.0578 | I54: 129014.0578 | J54: 0 | K54: 0 | L54: Distribution | M54: Advice 5267-E | N54: Y
B55: 2020 Vegetation Management Z-Factor | C55: 37644.69531 | D55: 37644.69531 | E55: 37644.69531 | F55: 0 | G55: 0 | H55: 0 | I55: 0 | J55: 0 | K55: 0 | L55: Distribution | M55: Resolution E-5287 | N55: N
B56: 2021 Wildfire Mitigation/Vegetation Management | C56: 0 | D56: 0 | E56: 378956.9667 | F56: 378956.9667 | G56: 378956.9667 | H56: 378956.9667 | I56: 0 | J56: 0 | K56: 0 | L56: Distribution | M56: D.24-03-008 | N56: N
B57: 2022 WM/VM (non-IRR portion) | C57: 0 | D57: 0 | E57: 0 | F57: 0 | G57: 0 | H57: 0 | I57: 0 | J57: 137017.1377 | K57: 137139.2098 | L57: Distribution | M57: D.25-06-051; Advice 5601-E; Uncollectibles Factor Update only | N57: N
B58: 2022 WM/VM (55% Interm Rate Recovery) | C58: 0 | D58: 0 | E58: 0 | F58: 149902.8146 | G58: 149902.8146 | H58: 149902.8146 | I58: 149902.8146 | J58: 149902.8146 | K58: 0 | L58: Distribution | M58: D.24-07-012 | N58: N
B59: 2023 WMCE | C59: 0 | D59: 0 | E59: 0 | F59: 0 | G59: 0 | H59: 0 | I59: 0 | J59: 416027.0088 | K59: 416397.6582 | L59: Distribution | M59: D.25-06-017; Uncollectibles Factor Update only | N59: N
B60: Mobilehome Master Meter Balancing Account | C60: 18034.35236 | D60: 18034.35236 | E60: 18034.35236 | F60: 18034.35236 | G60: 23332.92938 | H60: 23332.92938 | I60: 23332.92938 | J60: 23332.92938 | K60: 17523.28453 | L60: Distribution | M60: D.15-10-037 | N60: Y
B61: WEMA 2 | C61: 214140.3257 | D61: 214140.3257 | E61: 0 | F61: 0 | G61: 0 | H61: 0 | I61: 0 | J61: 0 | K61: 0 | L61: Distribution | M61: D.23-05-033 | N61: N
B62: CEMA - 2020 Storms | C62: 0 | D62: 0 | E62: 0 | F62: 288149.1807 | G62: 288149.1807 | H62: 288149.1807 | I62: 288149.1807 | J62: 0 | K62: 0 | L62: Distribution | M62: D.24-05-037 | N62: N
B63: CEMA Reimbursement - 2020 Creek | C63: 137221.3298 | D63: 137221.3298 | E63: 137221.3298 | F63: 137221.3298 | G63: 0 | H63: 0 | I63: 0 | J63: -16761.22144 | K63: -16776.15445 | L63: Distribution | M63: Advice 5495-E; Uncollectibles Factor Update only | N63: N
B64: 2017 Thomas Fire - CEMA | C64: 0 | D64: 0 | E64: 0 | F64: 0 | G64: 0 | H64: 0 | I64: 34656.77936 | J64: 34656.77936 | K64: 34698.98913 | L64: Distribution | M64: D.25-01-042; Uncollectibles Factor Update only | N64: N
B65: Wildfire Self-Insurance Credit | C65: 0 | D65: 0 | E65: -24268.43314 | F65: -24268.43314 | G65: -24268.43314 | H65: -24268.43314 | I65: 0 | J65: 0 | K65: 0 | L65: Distribution | M65: D.23-05-013 | N65: N
B66: CSRP Track 2 | C66: 38155.501 | D66: 38155.501 | E66: 0 | F66: 0 | G66: 0 | H66: 0 | I66: 0 | J66: 0 | K66: 0 | L66: Distribution | M66: D.23-03-019 | N66: N
B67: Diablo Canyon Extended Operations NBC | C67: 0 | D67: 0 | E67: 0 | F67: 0 | G67: 282858.6909 | H67: 282858.6909 | I67: 282858.6909 | J67: 282858.6909 | K67: 131844.6163 | L67: DCPP | M67: D.25-12-007 | N67: N
A68: SJV DAC Pilots | B68: GSRP Recovery Bonds FRC #1 (AB 1054) | C68: 19256.772 | D68: 19256.772 | E68: 19256.772 | F68: 19256.772 | G68: 19256.772 | H68: 19256.772 | I68: 19256.772 | J68: 19256.772 | K68: 19256.772 | L68: Securitization | M68: D.20-11-007; Advice 4416-E | N68: N
A69: SJV DAC Pilots | B69: 2021 GRC Tracks 1 and 2 Recovery Bonds FRC #2 (AB 1054) | C69: 31732.126 | D69: 31732.126 | E69: 31732.126 | F69: 31732.126 | G69: 31732.126 | H69: 31732.126 | I69: 31732.126 | J69: 31732.126 | K69: 31732.126 | L69: Securitization | M69: D.21-10-025; Advice 4717-E-A | N69: N
A70: SJV DAC Pilots | B70: 2021 GRC Tracks 1 and 3 Recovery Bonds FRC #3 (AB 1054) | C70: 55255.382 | D70: 55255.382 | E70: 55255.382 | F70: 55255.382 | G70: 55255.382 | H70: 55255.382 | I70: 55255.382 | J70: 55255.382 | K70: 55255.382 | L70: Securitization | M70: D.23-02-023; Advice 5018-E | N70: N
B71: 2017 Thomas Fire - WEMA Recovery Bonds FRC #4 | C71: 0 | D71: 0 | E71: 0 | F71: 0 | G71: 0 | H71: 0 | I71: 0 | J71: 0 | K71: 121932.058 | L71: Securitization | M71: D.25-08-033; Advice 5691-E | N71: N
A73: Public Policy Proceedings | B73: Subtotal Safety Affordability Reliability | C73: =SUM(C8:C72) -> 15661213.72 | D73: 15864669.4 | E73: 15507984.25 | F73: 15259973.79 | G73: 14918967.61 | H73: 14783805.92 | I73: 14463774.16 | J73: 16755856.88 | K73: 17032993.96
A74: Demand Response | B74: Public Policy Proceedings
A75: Energy Efficiency | B75: Demand Response | C75: 10.11184714 | D75: 11.12303186 | E75: 11.12303186 | F75: 11.12303186 | G75: 11.04213708 | H75: 11.04213708 | I75: 11.04213708 | J75: 11.04213708 | K75: 12.14899528 | L75: Generation | M75: D.23-12-005; Uncollectibles Factor Update only | N75: N
B76: Demand Response (Inc. ELPBA 2023-2025) | C76: 40702.88087 | D76: 49287.83909 | E76: 49287.83909 | F76: 49287.83909 | G76: 52035.59468 | H76: 52035.59468 | I76: 52035.59468 | J76: 52035.59468 | K76: 58872.56378 | L76: Distribution | M76: D.23-12-005 | N76: N
B77: Energy Efficiency (Inc. IDSM) | C77: 288996.5913 | D77: 288996.5913 | E77: 288996.5913 | F77: 288996.5913 | G77: 482807.0296 | H77: 482807.0296 | I77: 482807.0296 | J77: 482807.0296 | K77: 483459.0356 | L77: Public Purpose | M77: D.23-08-005; Advice 5123-E; D.24-09-031 | N77: N
B78: New Home Energy Storage Pilot (NHESP) | C78: 5055.923571 | D78: 5055.923571 | E78: 0 | F78: 0 | G78: 0 | H78: 0 | I78: 0 | J78: 0 | K78: 0 | L78: Public Purpose | M78: D.22-04-044; Advice 4852-E | N78: N
B79: Energy Efficiency Market Transformation | C79: 6441 | D79: 6441 | E79: 6441 | F79: 6441 | G79: 6441 | H79: 6441 | I79: 6441 | J79: 6441 | K79: 8663.887921 | L79: Public Purpose | M79: D.19-12-021; D.25-11-023 | N79: N
B80: 2020 RUBA Uncollectibles (36-Month Amortization) | C80: 25700.14834 | D80: 25700.14834 | E80: 25700.14834 | F80: 25700.14834 | G80: 25700.14834 | H80: 0 | I80: 0 | J80: 0 | K80: 0 | L80: Public Purpose | M80: Advice 4658-E/E-A | N80: N
A81: CA Solar Initiatives/MASH/SASH | B81: Charge Ready Programs (Pilot, Bridge and Schools and Parks) | C81: 41775 | D81: 42322 | E81: 42322 | F81: 42322 | G81: 76686.14532 | H81: 76686.14532 | I81: 76686.14532 | J81: 76686.14532 | K81: 73221.93335 | L81: Distribution | M81: Advice 5676-E | N81: N
B82: Transportation Electrification | C82: 15804 | D82: 16033 | E82: 16033 | F82: 16033 | G82: 27307.65104 | H82: 27307.65104 | I82: 27307.65104 | J82: 27307.65104 | K82: 21330.39979 | L82: Distribution | M82: Advice 5676-E | N82: N
B83: Low Income Programs (ESAP) | C83: 92017.80899 | D83: 92017.80899 | E83: 92017.80899 | F83: 92017.80899 | G83: 92462.20343 | H83: 92462.20343 | I83: 92462.20343 | J83: 92462.20343 | K83: 75728.05588 | L83: Public Purpose | M83: D.21-06-015 | N83: N
A84: Statewide ME&O | B84: Low Income Programs (CARE/FERA Admin) | C84: 10571.12016 | D84: 10571.12016 | E84: 10571.12016 | F84: 10571.12016 | G84: 10971.64941 | H84: 10971.64941 | I84: 10971.64941 | J84: 10971.64941 | K84: 11089.1554 | L84: Public Purpose | M84: D.21-06-015; Advice 4638-E | N84: N
A85: Self-Generation Incentive Program (SGIP) | B85: EPIC - RD&D and Renewables | C85: 76885.42974 | D85: 76885.42974 | E85: 76885.42974 | F85: 76885.42974 | G85: 76885.42974 | H85: 76885.42974 | I85: 76885.42974 | J85: 76885.42974 | K85: 46349.74123 | L85: Public Purpose | M85: D.20-08-042; D.21-11-028 | N85: N
A86: Aliso Canyon Energy Storage | B86: Self-Generation Incentive Program (SGIP) | C86: 56626.34399 | D86: 56626.34399 | E86: 56626.34399 | F86: 56626.34399 | G86: 0 | H86: 0 | I86: 0 | J86: 0 | K86: 0 | L86: Public Purpose | M86: D.20-01-021; D.21-11-028; Advice 4169-E | N86: N
A87: Non-CPUC Jurisdictional Proceedings | B87: Subtotal Public Policy | C87: =SUM(C75:C86) -> 660586.3588 | D87: 669948.3282 | E87: 664892.4046 | F87: 664892.4046 | G87: 851307.8937 | H87: 825607.7453 | I87: 825607.7453 | J87: 825607.7453 | K87: 778726.922
A88: DWR Bond/Power | B88: Non-CPUC Jurisdictional Proceedings
A89: Wildfire Fund Charge | B89: DWR Bond/Power | C89: 0 | D89: 0 | E89: 0 | F89: 0 | G89: 0 | H89: 0 | I89: 0 | J89: 0 | K89: 0 | L89: DWR | N89: N
A90: Wildfire Fund Charge | B90: DWR Bond Refund | C90: 0 | D90: 0 | E90: 0 | F90: 0 | G90: 0 | H90: 0 | I90: 0 | J90: 0 | K90: 0 | L90: DWR | N90: N
A91: FERC Base Transmission | B91: Wildfire Fund Charge (AB1054) | C91: 408912 | D91: 408912 | E91: 408912 | F91: 408912 | G91: 416803 | H91: 416803 | I91: 416803 | J91: 416803 | K91: 426374.1479 | L91: DWR | M91: D.25-12-006 | N91: N
A92: TRBAA | B92: FERC Base Transmission | C92: 1124500.46 | D92: 1124500.46 | E92: 1124500.46 | F92: 1124500.46 | G92: 1344347 | H92: 1344347 | I92: 1344347 | J92: 1344347 | K92: 1500981.985 | L92: FERC | M92: ER26-602 | N92: N
A93: RSBAA | B93: TRBAA (BA) | C93: -283956 | D93: -283956 | E93: -283956 | F93: -283956 | G93: -214482 | H93: -214482 | I93: -214482 | J93: =I93 -> -214482 | K93: -178588.593 | L93: TOTCA | M93: ER26-378 | N93: Y
A94: TACBAA | B94: RSBAA (BA) | C94: 4738 | D94: 4738 | E94: 4738 | F94: 4738 | G94: 8496 | H94: 8496 | I94: 8496 | J94: =I94 -> 8496 | K94: 9616.624 | L94: TOTCA | M94: ER26-318 | N94: Y
A95: Total Approved, Implemented Since Jan 1 or To Be Implemented | B95: TACBAA (BA) | C95: 98974 | D95: 98974 | E95: 270811 | F95: 270811 | G95: 270811 | H95: 270811 | I95: 203233.255 | J95: =I95 -> 203233.255 | K95: 213984.53 | L95: TOTCA | M95: ER25-1824-000 | N95: Y
B96: Subtotal Non-CPUC Jurisdictional | C96: =SUM(C90:C95) -> 1353168.46 | D96: =SUM(D90:D95) -> 1353168.46 | E96: 1525005.46 | F96: 1525005.46 | G96: 1825975 | H96: =SUM(H90:H95) -> 1825975 | I96: =SUM(I90:I95) -> 1758397.255 | J96: 1758397.255 | K96: =SUM(K90:K95) -> 1972368.694
B97: PUCRF | C97: 80194.53144 | D97: =C97 -> 80194.53144 | E97: =D97 -> 80194.53144 | F97: =E97 -> 80194.53144 | G97: 63307.71418 | H97: 63307.71418 | I97: 63307.71418 | J97: 63307.71418 | K97: 80445.31203 | L97: PUCRF | N97: N
B98: Total Authorized Revenue | C98: =C73+C87+C96+C97 -> 17755163.07 | D98: 17967980.72 | E98: 17778076.65 | F98: 17530066.19 | G98: 17659558.21 | H98: 17498696.38 | I98: 17111086.88 | J98: 19403169.59 | K98: 19864534.89
B99: w/o PUCRF | C99: =C98-C97 -> 17674968.54 | D99: 17887786.19 | E99: =E98-E97 -> 17697882.12 | F99: 17449871.66 | G99: 17596250.5 | H99: =H98-H97 -> 17435388.66 | I99: =I98-I97 -> 17047779.16 | J99: 19339861.88 | K99: =K98-K97 -> 19784089.58
C100: 0 | D100: 0 | E100: 0 | F100: 0 | G100: 0 | H100: 0 | I100: 0 | J100: 0 | K100: -0.0007109567523

Sheet Incremental Rev Req
A2: Annual Period 2026
A3: Reporting Date: Quarter Ended March 31
A5: Current Revenue Requirement ($000): | B5: ='Authorized Rev Req'!J98 -> 19403169.59 | C5: Inc. PUCRF
A6: Current Revenue Requirement Effective: | B6: January 1, 2026
A7: Approved Application(s), Implemented Since Jan 1 or To Be Implemented
A8: Filing Description | B8: Proceeding | C8: Authority for Revenue Requirement | D8: Authorized Revenue Requirement ($000) | E8: Revenue Recovery Mechanism | F8: 2026 | G8: =F8+1 -> 2027 | H8: =G8+1 -> 2028 | I8: 2029 | J8: 2030 | K8: Existing or New Item (if existing, use delta from prior for rate impact) | S8: Total Authorized
A9: Safety Affordability Reliability Proceedings | T9: =F8 -> 2026 | U9: =G8 -> 2027 | V9: 2028 | W9: 2029 | X9: 2030
A10: General Rate Case (GRC-G) | C10: D.25-09-030; Advice 5677-E; D.25-12-043 | D10: ='Authorized Rev Req'!K8 -> 919033.3586 | E10: Generation | F10: =D10 -> 919033.3586 | G10: 947290.2187 | H10: 974611.7681 | I10: 974611.7681 | J10: =I10 -> 974611.7681 | K10: Existing | S10: Generation | T10: =SUMIF($E$10:$E$85,$S10,F$10:F$85) -> 5656574.685 | U10: =SUMIF($E$10:$E$85,$S10,G$10:G$85) -> 5256894.888 | V10: =SUMIF($E$10:$E$85,$S10,H$10:H$85) -> 5214416.438 | W10: =SUMIF($E$10:$E$85,$S10,I$10:I$85) -> 5214416.438 | X10: =SUMIF($E$10:$E$85,$S10,J$10:J$85) -> 5214416.438
A11: General Rate Case (GRC-N) | C11: D.25-09-030; Advice 5677-E; D.25-12-043 | D11: ='Authorized Rev Req'!K9 -> 65288.74454 | E11: New System Gen | F11: =D11 -> 65288.74454 | G11: 65415.1867 | H11: 65140.9996 | I11: 65140.9996 | J11: =I11 -> 65140.9996 | K11: Existing | S11: New System Gen | T11: 514473.1865 | U11: 538883.6941 | V11: 538609.507 | W11: 538609.507 | X11: 538609.507
A12: General Rate Case (GRC-D) | C12: D.25-09-030; Advice 5677-E; D.25-12-043 | D12: ='Authorized Rev Req'!K10 -> 9151560.657 | E12: Distribution | F12: 9151560.657 | G12: 9666107.083 | H12: 10084482.38 | I12: 10084482.38 | J12: =I12 -> 10084482.38 | K12: Existing | S12: Distribution | T12: 10354500.12 | U12: 10087790.01 | V12: 10278624.73 | W12: 10278624.73 | X12: 10278624.73
A13: 2025 GRCRRMA (24-month amortization) | C13: D.25-09-030; Advice 5642-E/E-A | D13: ='Authorized Rev Req'!K11 -> 51504.78069 | E13: Generation | F13: 51504.78069 | G13: 0 | H13: 0 | I13: 0 | J13: =I13 -> 0 | K13: Existing | S13: GHG Revenue | T13: -443279 | U13: -443279 | V13: -443279 | W13: -443279 | X13: -443279
A14: 2025 GRCRRMA (24-month amortization) | C14: D.25-09-030; Advice 5642-E/E-A | D14: ='Authorized Rev Req'!K12 -> 1532.026254 | E14: New System Gen | F14: 1532.026254 | G14: 0 | H14: 0 | I14: 0 | J14: 0 | K14: Existing | S14: MCAM | T14: 6677.031595 | U14: 3685.299997 | V14: 3685.299997 | W14: 3685.299997 | X14: 3685.299997
A15: 2025 GRCRRMA (24-month amortization) | C15: D.25-09-030; Advice 5642-E/E-A | D15: ='Authorized Rev Req'!K13 -> 398468.8397 | E15: Distribution | F15: 398468.8397 | G15: 0 | H15: 0 | I15: 0 | J15: 0 | K15: Existing | S15: Nuclear | T15: 2137.996734 | U15: 5336.996734 | V15: 5336.996734 | W15: 5336.996734 | X15: 5336.996734
A16: 2025 GRC One-Time Recovery of Accounts | C16: D.25-09-030; Advice 5642-E/E-A | D16: ='Authorized Rev Req'!K14 -> 52252.00826 | E16: Distribution | F16: 0 | G16: 0 | H16: 0 | I16: 0 | J16: 0 | K16: Existing | S16: Public Purpose | T16: 802042.5376 | U16: 861052.6855 | V16: 657413.049 | W16: 657413.049 | X16: 657413.049
A17: Non-utility Affiliate Credits | C17: D.15-10-037 | D17: ='Authorized Rev Req'!K21 -> -4302.503379 | E17: Distribution | F17: =D17 -> -4302.503379 | G17: 0 | H17: 0 | I17: 0 | J17: 0 | K17: Existing | S17: DCPP | T17: 131844.6163 | U17: 131844.6163 | V17: 131844.6163 | W17: 131844.6163 | X17: 131844.6163
A18: Pole Loading & Deteriorated Pole Programs Balancing Account | C18: D.21-08-036 | D18: ='Authorized Rev Req'!K22 -> 4694.932148 | E18: Distribution | F18: =D18 -> 4694.932148 | G18: 0 | H18: 0 | I18: 0 | J18: 0 | K18: Existing | S18: DWR | T18: 426374.1479 | U18: 426374.1479 | V18: 426374.1479 | W18: 426374.1479 | X18: 426374.1479
A19: 2023/2024 TAMA Balance | C19: Advice 5515-E | D19: ='Authorized Rev Req'!K23 -> -5713.761947 | E19: Generation | F19: -5713.761947 | G19: -5713.761947 | H19: =G19 -> -5713.761947 | I19: -5713.761947 | J19: -5713.761947 | K19: Existing | S19: FERC | T19: 1500981.985 | U19: 1500981.985 | V19: 1500981.985 | W19: 1500981.985 | X19: 1500981.985
A20: 2023/2024 TAMA Balance | C20: Advice 5515-E | D20: ='Authorized Rev Req'!K24 -> -37083.26483 | E20: Distribution | F20: -37083.26483 | G20: -37083.26483 | H20: =G20 -> -37083.26483 | I20: -37083.26483 | J20: -37083.26483 | K20: Existing | S20: TOTCA | T20: 45012.561 | U20: 45012.561 | V20: 45012.561 | W20: 45012.561 | X20: 45012.561
A21: Pension/PBOP/Medical Balancing Accounts | C21: D.21-08-036; D.25-09-030 | D21: ='Authorized Rev Req'!K25 -> -1737.474588 | E21: Generation | F21: -1737.474588 | G21: 0 | H21: 0 | I21: 0 | J21: 0 | K21: Existing | S21: Securitization | T21: 228176.338 | U21: 228176.338 | V21: 228176.338 | W21: 228176.338 | X21: 228176.338
A22: Pension/PBOP/Medical Balancing Accounts | C22: D.21-08-036; D.25-09-030 | D22: ='Authorized Rev Req'!K26 -> -12404.64745 | E22: Distribution | F22: -12404.64745 | G22: 0 | H22: 0 | I22: 0 | J22: 0 | K22: Existing | S22: PUCRF | T22: 80445 | U22: 80445 | V22: 80445 | W22: 80445 | X22: 80445
A23: 2026 ERRA Forecast F&PP | C23: D.25-12-028 | D23: ='Authorized Rev Req'!K27 -> 4215455.435 | E23: Generation | F23: 4215455.435 | G23: =F23 -> 4215455.435 | H23: =G23 -> 4215455.435 | I23: =H23 -> 4215455.435 | J23: 4215455.435 | K23: Existing | T23: =SUM(T10:T22) -> 19305961.21 | U23: =SUM(U10:U22) -> 18723199.22 | V23: =SUM(V10:V22) -> 18667641.67 | W23: =SUM(W10:W22) -> 18667641.67 | X23: =SUM(X10:X22) -> 18667641.67
A24: 2026 ERRA Forecast F&PP | C24: D.25-12-028 | D24: ='Authorized Rev Req'!K28 -> 473468.5074 | E24: New System Gen | F24: 473468.5074 | G24: 473468.5074 | H24: =G24 -> 473468.5074 | I24: =H24 -> 473468.5074 | J24: 473468.5074 | K24: Existing | S24: Check | T24: =T23=F85 -> TRUE | U24: =U23=G85 -> TRUE | V24: =V23=H85 -> TRUE | W24: =W23=I85 -> TRUE | X24: =X23=J85 -> TRUE
A25: 2026 ERRA Forecast (BA) | C25: D.25-12-028 | D25: ='Authorized Rev Req'!K29 -> -25816.0917 | E25: New System Gen | F25: -25816.0917 | G25: 0 | H25: =G25 -> 0 | I25: 0 | J25: 0 | K25: Existing
A26: 2026 ERRA Forecast | C26: D.25-12-028 | D26: ='Authorized Rev Req'!K30 -> -443279 | E26: GHG Revenue | F26: -443279 | G26: -443279 | H26: -443279 | I26: -443279 | J26: -443279 | K26: Existing
A27: 2026 ERRA Forecast | C27: D.25-12-028 | D27: ='Authorized Rev Req'!K31 -> 5336.996734 | E27: Nuclear | F27: 5336.996734 | G27: 5336.996734 | H27: 5336.996734 | I27: 5336.996734 | J27: 5336.996734 | K27: Existing
A28: 2026 ERRA Forecast | C28: D.25-12-028 | D28: ='Authorized Rev Req'!K32 -> -2686.156696 | E28: Distribution | F28: -2686.156696 | G28: -2686.156696 | H28: -2686.156696 | I28: -2686.156696 | J28: -2686.156696 | K28: Existing
A29: 2026 ERRA Forecast | C29: D.25-12-028 | D29: ='Authorized Rev Req'!K33 -> 28843.04446 | E29: Public Purpose | F29: =D29 -> 28843.04446 | G29: =F29 -> 28843.04446 | H29: 28843.04446 | I29: 28843.04446 | J29: 28843.04446 | K29: Existing
A30: 2026 ERRA Forecast | C30: D.25-12-028 | D30: ='Authorized Rev Req'!K34 -> 6677.031595 | E30: MCAM | F30: 6677.031595 | G30: 3685.299997 | H30: 3685.299997 | I30: 3685.299997 | J30: 3685.299997 | K30: Existing
A31: 2026 ERRA Forecast (BA) | C31: D.25-12-028 | D31: ='Authorized Rev Req'!K35 -> 9995.819153 | E31: Public Purpose | F31: 9995.819153 | G31: 0 | H31: 0 | I31: 0 | J31: 0 | K31: Existing
A32: 2026 ERRA/PABA/ESMA/LCTA (BA) | C32: D.25-12-028 | D32: ='Authorized Rev Req'!K36 -> 445222.2628 | E32: Generation | F32: 445222.2628 | G32: 0 | H32: 0 | I32: =H32 -> 0 | J32: 0 | K32: Existing
A33: DAC-GT/CSGT Clean Energy Programs (BA) | C33: D.25-12-028 | D33: ='Authorized Rev Req'!K39 -> 3280.128496 | E33: Public Purpose | F33: 3280.128496 | G33: =F33 -> 3280.128496 | H33: 3280.128496 | I33: =H33 -> 3280.128496 | J33: 3280.128496 | K33: Existing
A34: 2021 ERRA Review | C34: D.25-06-006; Advice 5604-E | D34: ='Authorized Rev Req'!K40 -> 2037.674034 | E34: Generation | F34: =D34 -> 2037.674034 | G34: 0 | H34: 0 | I34: 0 | J34: 0 | K34: Existing
A35: 2021 ERRA Review | C35: D.25-06-006; Advice 5604-E | D35: ='Authorized Rev Req'!K41 -> 26947.02926 | E35: Distribution | F35: =D35 -> 26947.02926 | G35: 0 | H35: 0 | I35: 0 | J35: 0 | K35: Existing
A36: 2022 ERRA Review | C36: D.26-01-033 | D36: 0 | E36: Distribution | F36: 50640 | G36: 0 | H36: 0 | I36: 0 | J36: 0 | K36: New
A37: 2022 ERRA Review | C37: D.26-01-033 | D37: 0 | E37: Public Purpose | F37: 234 | G37: 0 | H37: 0 | I37: 0 | J37: 0 | K37: New
A38: 2023 WMCE | C38: D.25-06-017 | D38: ='Authorized Rev Req'!K59 -> 416397.6582 | E38: Distribution | F38: 0 | G38: 0 | H38: 0 | I38: 0 | J38: 0 | K38: Existing
A39: BRRBA Balancing Account | C39: D.15-10-037 | D39: ='Authorized Rev Req'!K42 -> 709.3469366 | E39: Generation | F39: =D39 -> 709.3469366 | G39: 0 | H39: 0 | I39: 0 | J39: 0 | K39: Existing
A40: BRRBA Balancing Account | C40: D.15-10-037; D.25-08-033; Advice 5691-E | D40: ='Authorized Rev Req'!K43 -> 477020.0572 | E40: Distribution | F40: =D40 -> 477020.0572 | G40: 198140.5653 | K40: Existing
A41: NDAM Balancing Account | C41: D.15-10-037 | D41: ='Authorized Rev Req'!K44 -> -3199 | E41: Nuclear | F41: -3199 | G41: 0 | H41: 0 | I41: 0 | J41: 0 | K41: Existing
A42: CARE Balancing Account | C42: D.15-10-037 | D42: ='Authorized Rev Req'!K45 -> -92235.96706 | E42: Public Purpose | F42: -92235.96706 | G42: 0 | H42: 0 | I42: 0 | J42: 0 | K42: Existing
A43: PPPAM Balancing Account | C43: D.15-10-037 | D43: ='Authorized Rev Req'!K46 -> 222996 | E43: Public Purpose | F43: 222996 | G43: 200000 | K43: Existing
A44: Emergency Reliability UOS | C44: Advice 4894-E; Advice 5142-E; Advice 5408-E; Advice 5674-E | D44: ='Authorized Rev Req'!K49 -> 30050.91439 | E44: Generation | F44: 30050.91439 | G44: 30050.91439 | H44: =G44 -> 30050.91439 | I44: 30050.91439 | J44: 30050.91439 | K44: Existing
A45: Emergency Reliability UOS | C45: Advice 4894-E; Advice 5142-E; Advice 5408-E; Advice 5674-E | D45: ='Authorized Rev Req'!K50 -> 81023.40548 | E45: Distribution | F45: 81023.40548 | G45: 81023.40548 | H45: 81023.40548 | I45: 81023.40548 | J45: 81023.40548 | K45: Existing
A46: CEMA Reimbursement - 2020 Creek | C46: Advice 5495-E | D46: ='Authorized Rev Req'!K63 -> -16776.15445 | E46: Distribution | F46: 0 | G46: 0 | H46: 0 | I46: 0 | J46: 0 | K46: Existing
A47: VMBA Undercollection Threshold | C47: Advice 5534-E | D47: ='Authorized Rev Req'!K53 -> 39048.88616 | E47: Distribution | F47: 0 | G47: 0 | H47: 0 | I47: 0 | J47: 0 | K47: Existing
A48: 2022 WM/VM (Non-IRR Portion) | C48: D.25-06-051; Advice 5601-E | D48: ='Authorized Rev Req'!K57 -> 137139.2098 | E48: Distribution | F48: 0 | G48: 0 | H48: 0 | I48: 0 | J48: 0 | K48: Existing
A49: Mobilehome Master Meter Balancing Account | C49: D.15-10-037 | D49: ='Authorized Rev Req'!K60 -> 17523.28453 | E49: Distribution | F49: =D49 -> 17523.28453 | G49: 0 | H49: 0 | I49: =H49 -> 0 | J49: 0 | K49: Existing
A50: 2017 Thomas Fire - CEMA | C50: D.25-01-042 | D50: ='Authorized Rev Req'!K64 -> 34698.98913 | E50: Distribution | F50: 0 | G50: 0 | H50: 0 | I50: 0 | J50: 0 | K50: Existing
A51: Woolsey Fire - CEMA | C51: D.25-12-023 | D51: 0 | E51: Distribution | F51: 49673.59289 | G51: 0 | H51: 0 | I51: 0 | J51: 0 | K51: New
A52: Diablo Canyon Extended Operations NBC | C52: D.25-12-007 | D52: ='Authorized Rev Req'!K67 -> 131844.6163 | E52: DCPP | F52: =D52 -> 131844.6163 | G52: =F52 -> 131844.6163 | H52: =G52 -> 131844.6163 | I52: =H52 -> 131844.6163 | J52: 131844.6163 | K52: Existing
A53: GSRP Recovery Bonds FRC #1 (AB 1054) | C53: D.20-11-007; Advice 4416-E | D53: ='Authorized Rev Req'!K68 -> 19256.772 | E53: Securitization | F53: =D53 -> 19256.772 | G53: 19256.772 | H53: =G53 -> 19256.772 | I53: 19256.772 | J53: 19256.772 | K53: Existing
A54: 2021 GRC Tracks 1 and 2 Recovery Bonds FRC #2 (AB 1054) | C54: D.21-10-025; Advice 4717-E-A | D54: ='Authorized Rev Req'!K69 -> 31732.126 | E54: Securitization | F54: 31732.126 | G54: 31732.126 | H54: =G54 -> 31732.126 | I54: 31732.126 | J54: 31732.126 | K54: Existing
A55: ='Authorized Rev Req'!$B$70 -> 2021 GRC Tracks 1 and 3 Recovery Bonds FRC #3 (AB 1054) | C55: D.23-02-023; Advice 5018-E | D55: ='Authorized Rev Req'!K70 -> 55255.382 | E55: Securitization | F55: 55255.382 | G55: 55255.382 | H55: =G55 -> 55255.382 | I55: 55255.382 | J55: 55255.382 | K55: Existing
A56: 2017 Thomas Fire - WEMA Recovery Bonds FRC #4 | C56: D.25-08-033; Advice 5691-E | D56: ='Authorized Rev Req'!K71 -> 121932.058 | E56: Securitization | F56: 121932.058 | G56: 121932.058 | H56: =G56 -> 121932.058 | I56: 121932.058 | J56: 121932.058 | K56: Existing
A57: Section 851 - Sale of GO 5 Property | C57: D.25-07-011 | D57: 0 | E57: Distribution | F57: 0 | G57: 29400 | H57: 0 | I57: 0 | J57: 0 | K57: New
A58: Section 851 - Sale of Hydroelectric San Bernardino | C58: D.25-09-012 | D58: 0 | E58: Generation | F58: 0 | G58: 60300 | H58: 0 | I58: 0 | J58: 0 | K58: New
A59: Section 851 - Sale of Hydroelectric Fontana Union Water | C59: D.26-01-006 | D59: 0 | E59: Generation | F59: 0 | G59: 9500 | H59: 0 | I59: 0 | J59: 0 | K59: New
D60: 0 | E60: Distribution | H60: 0 | I60: 0 | J60: 0 | K60: New
A62: Public Policy Proceedings
A63: Demand Response | C63: D.23-12-005; Advice 5421-E | D63: ='Authorized Rev Req'!K75 -> 12.14899528 | E63: Generation | F63: =D63 -> 12.14899528 | G63: 12.08180526 | H63: =G63 -> 12.08180526 | I63: 12.08180526 | J63: =I63 -> 12.08180526 | K63: Existing
A64: Demand Response | C64: D.23-12-005; Advice 5421-E | D64: ='Authorized Rev Req'!K76 -> 58872.56378 | E64: Distribution | F64: =D64 -> 58872.56378 | G64: 58336.04044 | H64: 58336.04044 | I64: =H64 -> 58336.04044 | J64: 58336.04044 | K64: Existing
A65: Energy Efficiency (Inc. IDSM) | C65: D.23-08-005; Advice 5123-E; D.24-09-031 | D65: ='Authorized Rev Req'!K77 -> 483459.0356 | E65: Public Purpose | F65: =D65 -> 483459.0356 | G65: =F65 -> 483459.0356 | H65: 483459.0356 | I65: 483459.0356 | J65: 483459.0356 | K65: Existing
A66: Energy Efficiency Market Transformation | C66: D.19-12-021; D.25-11-023 | D66: ='Authorized Rev Req'!$K79 -> 8663.887921 | E66: Public Purpose | F66: 8663.887921 | G66: 8663.887921 | H66: 8663.887921 | I66: 8663.887921 | J66: 8663.887921 | K66: Existing
A67: Charge Ready Programs (Pilot, Bridge and Schools and Parks) | C67: Advice 5141-E; Advice 5407-E; Advice 5676-E | D67: ='Authorized Rev Req'!$K81 -> 73221.93335 | E67: Distribution | F67: 73221.93335 | G67: 73221.93335 | H67: 73221.93335 | I67: 73221.93335 | J67: 73221.93335 | K67: Existing | S67: Total w/Authorized and Pending
A68: Transportation Electrification | C68: Advice 5141-E; Advice 5407-E; Advice 5676-E | D68: ='Authorized Rev Req'!$K82 -> 21330.39979 | E68: Distribution | F68: 21330.39979 | G68: 21330.39979 | H68: 21330.39979 | I68: 21330.39979 | J68: 21330.39979 | K68: Existing | T68: =T9 -> 2026 | U68: =U9 -> 2027 | V68: =V9 -> 2028 | W68: =W9 -> 2029 | X68: =X9 -> 2030
A69: TE Funding Cycle 1 | C69: D.22-11-040; Advice 4954-E | D69: 0 | E69: Distribution | F69: =D69 -> 0 | G69: 0 | H69: 0 | I69: 0 | J69: 0 | K69: On hold | S69: Generation | T69: =T10+SUMIFS(L$93:L$111,$Q$93:$Q$111,"Y",$E$93:$E$111,$S69) -> 5656574.685 | U69: =U10+SUMIFS(M$93:M$127,$Q$93:$Q$127,"Y",$E$93:$E$127,$S69) -> 5287994.888 | V69: =V10+SUMIFS(N$93:N$127,$Q$93:$Q$127,"Y",$E$93:$E$127,$S69) -> 5214416.438 | W69: =W10+SUMIFS(O$93:O$127,$Q$93:$Q$127,"Y",$E$93:$E$127,$S69) -> 5214416.438 | X69: =X10+SUMIFS(P$93:P$127,$Q$93:$Q$127,"Y",$E$93:$E$127,$S69) -> 5214416.438
A70: Low Income Programs (ESAP) | C70: D.21-06-015 | D70: ='Authorized Rev Req'!$K83 -> 75728.05588 | E70: Public Purpose | F70: =D70 -> 75728.05588 | G70: =F70 -> 75728.05588 | H70: =G70 -> 75728.05588 | I70: 75728.05588 | J70: 75728.05588 | K70: Existing | S70: New System Gen | T70: 514473.1865 | U70: 538883.6941 | V70: 538609.507 | W70: 538609.507 | X70: 538609.507
A71: Low Income Programs (CARE/FERA Admin) | C71: D.21-06-015; Advice 4638-E | D71: ='Authorized Rev Req'!$K84 -> 11089.1554 | E71: Public Purpose | F71: =D71 -> 11089.1554 | G71: =F71 -> 11089.1554 | H71: =G71 -> 11089.1554 | I71: 11089.1554 | J71: 11089.1554 | K71: Existing | S71: Distribution | T71: 10660878.12 | U71: 10154848.01 | V71: 10452622.73 | W71: 10560353.73 | X71: 10514147.73
A72: EPIC - RD&D and Renewables | C72: D.20-08-042; D.21-11-028 | D72: ='Authorized Rev Req'!$K85 -> 46349.74123 | E72: Public Purpose | F72: =D72 -> 46349.74123 | G72: 46349.74123 | H72: =G72 -> 46349.74123 | I72: 46349.74123 | J72: 46349.74123 | K72: Existing | S72: GHG Revenue | T72: -443279 | U72: -443279 | V72: -443279 | W72: -443279 | X72: -443279
A73: Tariff On-Bill Pilot Program | C73: D.25-12-021 | D73: 0 | E73: Public Purpose | F73: 3639.636502 | G73: 3639.636502 | H73: 0 | I73: 0 | J73: 0 | K73: New | S73: MCAM | T73: 6677.031595 | U73: 3685.299997 | V73: 3685.299997 | W73: 3685.299997 | X73: 3685.299997
S74: Nuclear | T74: 2137.996734 | U74: 5336.996734 | V74: 5336.996734 | W74: 5336.996734 | X74: 5336.996734
S75: Public Purpose | T75: 572380.6631 | U75: 623808.5296 | V75: 470776.8931 | W75: 477965.8931 | X75: 474249.8931
A76: Non-CPUC Jurisdictional Proceedings | S76: DCPP | T76: 131844.6163 | U76: 131844.6163 | V76: 131844.6163 | W76: 131844.6163 | X76: 131844.6163
A77: Wildfire Fund Charge (AB1054) | C77: D.25-12-006 | D77: ='Authorized Rev Req'!$K91 -> 426374.1479 | E77: DWR | F77: =D77 -> 426374.1479 | G77: 426374.1479 | H77: =G77 -> 426374.1479 | I77: =H77 -> 426374.1479 | J77: =I77 -> 426374.1479 | K77: Existing | S77: DWR | T77: 426374.1479 | U77: 426374.1479 | V77: 426374.1479 | W77: 426374.1479 | X77: 426374.1479
A78: FERC Base Transmission | C78: ER26-602 | D78: ='Authorized Rev Req'!$K92 -> 1500981.985 | E78: FERC | F78: =D78 -> 1500981.985 | G78: 1500981.985 | H78: =G78 -> 1500981.985 | I78: 1500981.985 | J78: 1500981.985 | K78: Existing | S78: FERC | T78: 1500981.985 | U78: 1500981.985 | V78: 1500981.985 | W78: 1500981.985 | X78: 1500981.985
A79: TRBAA (BA) | C79: ER25-267 | D79: ='Authorized Rev Req'!$K93 -> -178588.593 | E79: TOTCA | F79: -178588.593 | G79: -178588.593 | H79: =G79 -> -178588.593 | I79: -178588.593 | J79: -178588.593 | K79: Existing | S79: TOTCA | T79: 45012.561 | U79: 45012.561 | V79: 45012.561 | W79: 45012.561 | X79: 45012.561
A80: RSBAA (BA) | C80: ER25-305 | D80: ='Authorized Rev Req'!$K94 -> 9616.624 | E80: TOTCA | F80: 9616.624 | G80: 9616.624 | H80: =G80 -> 9616.624 | I80: 9616.624 | J80: 9616.624 | K80: Existing | S80: Securitization | T80: 358476.338 | U80: 358476.338 | V80: 358476.338 | W80: 358476.338 | X80: 358476.338
A81: TACBAA (BA) | C81: ER25-1824-000 | D81: ='Authorized Rev Req'!$K95 -> 213984.53 | E81: TOTCA | F81: 213984.53 | G81: =F81 -> 213984.53 | H81: =G81 -> 213984.53 | I81: 213984.53 | J81: 213984.53 | K81: Existing | S81: PUCRF | T81: 80445 | U81: 80445 | V81: 80445 | W81: 80445 | X81: 80445
A83: Total Approved, Implemented Since Jan 1 or To Be Implemented | D83: =SUM(D10:D81) -> 19784089.58 | F83: =SUM(F10:F81) -> 19225516.21 | G83: =SUM(G10:G81) -> 18642754.22 | H83: =SUM(H10:H81) -> 18587196.67 | I83: =SUM(I10:I81) -> 18587196.67 | J83: =SUM(J10:J81) -> 18587196.67 | S83: Total | T83: =SUM(T69:T81) -> 19512977.33 | U83: =SUM(U69:U81) -> 18714413.06 | V83: =SUM(V69:V81) -> 18785303.52 | W83: =SUM(W69:W81) -> 18900223.52 | X83: =SUM(X69:X81) -> 18850301.52
A84: PUCRF | D84: ='Authorized Rev Req'!K97 -> 80445.31203 | E84: PUCRF | F84: 80445 | G84: 80445 | H84: =G84 -> 80445 | I84: 80445 | J84: =I84 -> 80445 | S84: Increase over current | T84: =T83-T23 -> 207016.1255 | U84: =U83-U23 -> -8786.155892 | V84: =V83-V23 -> 117661.8441 | W84: =W83-W23 -> 232581.8441 | X84: =X83-X23 -> 182659.8441
D85: =SUM(D83:D84) -> 19864534.89 | E85: w/PUCRF | F85: =SUM(F83:F84) -> 19305961.21 | G85: =SUM(G83:G84) -> 18723199.22 | H85: =SUM(H83:H84) -> 18667641.67 | I85: =SUM(I83:I84) -> 18667641.67 | J85: =SUM(J83:J84) -> 18667641.67
D86: =-'Authorized Rev Req'!K98+D85 -> 0 | S86: Check | T86: =T84-L115 -> 2.270098776e-09 | U86: =U84-M115 -> 1.658918336e-09 | V86: =V84-N115 -> 1.658918336e-09 | W86: =W84-O115 -> 1.629814506e-09 | X86: =X84-P115 -> 1.629814506e-09
A90: Pending Application(s), Not Yet Approved
A91: Filing Description | B91: Proceeding | C91: Basis for Revenue Requirement | D91: Proposed Revenue Requirement ($000) | E91: Proposed Revenue Recovery Mechanism | F91: =F8 -> 2026 | G91: =F91+1 -> 2027 | H91: =G91+1 -> 2028 | I91: 2029 | J91: 2030 | K91: Existing or New Item (if existing, use delta from prior for rate impact) | L91: =F91 -> 2026 | M91: =G91 -> 2027 | N91: 2028 | O91: 2029 | P91: 2030
A92: Safety Affordability Reliability Proceedings | Q92: Include in Impact
A93: 2023 ERRA Review | B93: A.24-04-001 | C93: Filed Application | D93: =F93 -> -73859 | E93: Distribution | F93: -73859 | G93: 0 | H93: 0 | I93: 0 | J93: 0 | K93: New | L93: =F93 -> -73859 | M93: =G93 -> 0 | N93: =H93 -> 0 | O93: =I93 -> 0 | P93: =J93 -> 0 | Q93: =VLOOKUP('Incremental Rev Req'!A93,Summary!$B$8:$D$24,3,FALSE) -> Y
A94: 2023 ERRA Review | B94: A.24-04-001 | C94: Filed Application | D94: =F94 -> 10664 | E94: Public Purpose | F94: 10664 | G94: 0 | H94: 0 | I94: 0 | J94: 0 | K94: New | L94: 10664 | M94: 0 | N94: 0 | O94: 0 | P94: 0 | Q94: =Q93 -> Y
A95: 2024 ERRA Review | B95: A.25-04-004 | C95: Filed Application | D95: =G95 -> 3793 | E95: Distribution | F95: 0 | G95: 3793 | H95: 0 | I95: 0 | J95: 0 | K95: New | L95: 0 | M95: 3793 | N95: 0 | O95: 0 | P95: 0 | Q95: =VLOOKUP('Incremental Rev Req'!A95,Summary!$B$8:$D$24,3,FALSE) -> Y
A96: 2024 ERRA Review | B96: A.25-04-004 | C96: Filed Application | D96: =G96 -> 199 | E96: Public Purpose | F96: 0 | G96: 199 | H96: 0 | I96: 0 | J96: 0 | K96: New | L96: 0 | M96: 199 | N96: 0 | O96: 0 | P96: 0 | Q96: =Q95 -> Y
A97: Woolsey WEMA FRC | B97: A.24-10-002 | C97: Filed Application | D97: =I97 -> 130300 | E97: Securitization | F97: 130300 | G97: 130300 | H97: =G97 -> 130300 | I97: =H97 -> 130300 | J97: =I97 -> 130300 | K97: New | L97: 130300 | M97: 130300 | N97: 130300 | O97: =I97 -> 130300 | P97: =J97 -> 130300 | Q97: =VLOOKUP('Incremental Rev Req'!A97,Summary!$B$8:$D$24,3,FALSE) -> Y
A98: Section 851 - Sale of Hydroelectric TULE | B98: A.25-03-001 | C98: Filed Application | D98: =G98 -> 31100 | E98: Generation | F98: 0 | G98: 31100 | H98: 0 | I98: 0 | J98: 0 | K98: New | L98: 0 | M98: 31100 | N98: 0 | O98: =I98 -> 0 | P98: =J98 -> 0 | Q98: =VLOOKUP('Incremental Rev Req'!A98,Summary!$B$8:$D$24,3,FALSE) -> Y
A99: NextGen | B99: A.25-03-009 | C99: Filed Application | D99: =F99 -> 4237 | E99: Distribution | F99: 4237 | G99: 20695 | H99: 173998 | I99: 281729 | J99: 235523 | K99: New | L99: 4237 | M99: 20695 | N99: 173998 | O99: =I99 -> 281729 | P99: 235523 | Q99: =VLOOKUP('Incremental Rev Req'!A99,Summary!$B$8:$D$24,3,FALSE) -> Y
A100: Section 851 - Sale of North Coast Property | B100: A.25-12-015 | C100: Filed Application | D100: =G100 -> 1490 | E100: Distribution | F100: 0 | G100: 1490 | H100: 0 | I100: 0 | J100: 0 | K100: New | L100: 0 | M100: 1490 | N100: 0 | O100: 0 | P100: 0 | Q100: =VLOOKUP('Incremental Rev Req'!A100,Summary!$B$8:$D$24,3,FALSE) -> Y
A101: 2024 WMCE | B101: A.25-12-002 | C101: Filed Application | D101: =G101 -> 47707 | E101: Distribution | F101: 0 | G101: 47707 | H101: 0 | I101: 0 | J101: 0 | K101: New | L101: 0 | M101: 47707 | N101: =H101 -> 0 | O101: 0 | P101: 0 | Q101: =VLOOKUP('Incremental Rev Req'!A101,Summary!$B$8:$D$24,3,FALSE) -> Y
A102: Section 851 - Ontario Easements | B102: A.26-01-002 | C102: Filed Application | D102: =G102 -> -6627 | E102: Distribution | F102: 0 | G102: -6627 | H102: 0 | I102: 0 | J102: 0 | K102: New | L102: 0 | M102: -6627 | N102: 0 | O102: 0 | P102: 0 | Q102: =VLOOKUP('Incremental Rev Req'!A102,Summary!$B$8:$D$24,3,FALSE) -> Y
A103: Wildfire Self-Insurance | B103: Advice XXXX-E | C103: Advice Letter to be Filed in March | D103: =F103 -> 376000 | E103: Distribution | F103: 376000 | G103: 0 | H103: 0 | I103: 0 | J103: 0 | K103: New | L103: =F103 -> 376000 | M103: 0 | N103: 0 | O103: 0 | P103: 0 | Q103: =VLOOKUP('Incremental Rev Req'!A103,Summary!$B$8:$D$24,3,FALSE) -> Y
A105: Public Policy Proceedings
A106: IQP 2027 Bridge Funding | B106: A.25-06-022 | C106: Filed Application | D106: =G106 -> 60834 | E106: Public Purpose | F106: 0 | G106: 60834 | H106: 0 | I106: =H106 -> 0 | J106: =I106 -> 0 | K106: Existing | L106: =F105 -> 0 | M106: =G106-G70 -> -14894.05588 | N106: 0 | O106: 0 | P106: 0 | Q106: =VLOOKUP('Incremental Rev Req'!A106,Summary!$B$8:$D$24,3,FALSE) -> Y
A107: IQP 2027 Bridge Funding | B107: A.25-06-022 | C107: Filed Application | D107: =G107 -> 11342 | E107: Public Purpose | F107: 0 | G107: 11342 | H107: 0 | I107: 0 | J107: 0 | K107: Existing | L107: 0 | M107: =G107-G71 -> 252.8445982 | N107: 0 | O107: 0 | P107: 0 | Q107: =Q106 -> Y
A108: Energy Efficiency Program and Portfolio | B108: Advice 5670-E | C108: Filed Advice Letter | D108: =F108 -> 243133.1611 | E108: Public Purpose | F108: 243133.1611 | G108: 260657.091 | H108: =G108 -> 260657.091 | I108: =H108 -> 260657.091 | J108: =I108 -> 260657.091 | K108: Existing | L108: =F108-F65 -> -240325.8745 | M108: =G108-G65 -> -222801.9446 | N108: =H108-H65 -> -222801.9446 | O108: -222801.9446 | P108: -222801.9446 | Q108: =VLOOKUP('Incremental Rev Req'!A107,Summary!$B$8:$D$25,3,FALSE) -> Y
A109: IQP 2028-2033 Application | B109: A.26-01-005 | C109: Filed Application | D109: =H109 -> 104794 | E109: Public Purpose | F109: 0 | G109: 0 | H109: 104794 | I109: 107699 | J109: 110868 | K109: Existing | L109: 0 | M109: =G109 -> 0 | N109: =H109-H70 -> 29065.94412 | O109: 31970.94412 | P109: 35139.94412 | Q109: =VLOOKUP('Incremental Rev Req'!A108,Summary!$B$8:$D$25,3,FALSE) -> Y
A110: IQP 2028-2033 Application | B110: A.26-01-006 | C110: Filed Application | D110: =H110 -> 18189 | E110: Public Purpose | F110: 0 | G110: 0 | H110: 18189 | I110: 22473 | J110: 15588 | K110: Existing | M110: =G110 -> 0 | N110: 7099.844598 | O110: 11383.8446 | P110: 4498.844598 | Q110: =VLOOKUP('Incremental Rev Req'!A109,Summary!$B$8:$D$25,3,FALSE) -> Y
A112: Non-CPUC Jurisdictional Proceedings
A115: Total Pending, Filed but not Approved | D115: =SUM(D93:D114) -> 963296.1611 | F115: =SUM(F93:F114) -> 690475.1611 | G115: =SUM(G93:G114) -> 561490.091 | H115: =SUM(H93:H114) -> 687938.091 | I115: =SUM(I93:I114) -> 802858.091 | J115: =SUM(J93:J114) -> 752936.091 | L115: =SUM(L93:L114) -> 207016.1255 | M115: =SUM(M93:M114) -> -8786.155892 | N115: =SUM(N93:N114) -> 117661.8441 | O115: =SUM(O93:O114) -> 232581.8441 | P115: =SUM(P93:P114) -> 182659.8441
A119: Applications Projected to be Filed, Next 12 Months*
A120: Filing Description | B120: Estimated Filing Date | C120: Filing Basis | D120: Proposed Revenue Requirement ($000) | E120: Proposed Revenue Recovery Mechanism | F120: =F91 -> 2026 | G120: =F120+1 -> 2027 | H120: =G120+1 -> 2028 | I120: =H120+1 -> 2029 | J120: =I120+1 -> 2030 | K120: Existing or New Item (if existing, use delta from prior for rate impact)
A121: Safety Affordability Reliability Proceedings
A123: Public Policy Proceedings
A126: Non-CPUC Jurisdictional Proceedings | F126: =SUM(F121:F125) -> 0 | G126: =SUM(G121:G125) -> 0 | H126: =SUM(H121:H125) -> 0 | I126: =SUM(I121:I125) -> 0 | J126: =SUM(J121:J125) -> 0 | L126: =SUM(L121:L125) -> 0 | M126: 0 | N126: =SUM(N121:N125) -> 0 | O126: 0 | P126: 0
A128: * All amounts in this Projected section are estimates and subject to change. SCE provides this data in an effort to be as helpful and transparent as possible to further the Commission's efforts to understand the impact all pending rate increases.

Sheet SAR and RAR (hidden)
B1: CONFIDENTIAL This Excel Sheet Is Marked Confidential In Accordance With Applicable Law and Regulation. Basis for Confidentiality In Accompanying Confidentiality Declaration. Public Disclosure Restricted.
C2: Total Revenue ($000)
C3: Authorized | D3: w/ Pending
B4: Generation | C4: =INDEX('Incremental Rev Req'!$S$9:$X$22,MATCH(B4,'Incremental Rev Req'!$S$9:$S$22,0),MATCH(Summary!$D$3,'Incremental Rev Req'!$S$9:$X$9,0)) -> 5656574.685 | D4: =INDEX('Incremental Rev Req'!$S$68:$X$81,MATCH(B4,'Incremental Rev Req'!$S$68:$S$81,0),MATCH(Summary!$D$3,'Incremental Rev Req'!$S$68:$X$68,0)) -> 5656574.685 | G4: Allocation
B5: Distribution | C5: =INDEX('Incremental Rev Req'!$S$9:$X$22,MATCH(B5,'Incremental Rev Req'!$S$9:$S$22,0),MATCH(Summary!$D$3,'Incremental Rev Req'!$S$9:$X$9,0)) -> 10354500.12 | D5: =INDEX('Incremental Rev Req'!$S$68:$X$81,MATCH(B5,'Incremental Rev Req'!$S$68:$S$81,0),MATCH(Summary!$D$3,'Incremental Rev Req'!$S$68:$X$68,0)) -> 10660878.12 | G5: Generation | H5: Distribution | I5: NDC | J5: PPPC | K5: DCPP | L5: NSGC | M5: Transmission | N5: TOTCA | O5: GHG Rev | P5: DWRBC | Q5: PUCRF | R5: SECURITIZATION
B6: Nuclear | C6: =INDEX('Incremental Rev Req'!$S$9:$X$22,MATCH(B6,'Incremental Rev Req'!$S$9:$S$22,0),MATCH(Summary!$D$3,'Incremental Rev Req'!$S$9:$X$9,0)) -> 2137.996734 | D6: =INDEX('Incremental Rev Req'!$S$68:$X$81,MATCH(B6,'Incremental Rev Req'!$S$68:$S$81,0),MATCH(Summary!$D$3,'Incremental Rev Req'!$S$68:$X$68,0)) -> 2137.996734 | F6: Residential | G6: =VLOOKUP(Summary!$D$3,'SAR and RAR'!$F$37:$R$42,'SAR and RAR'!G$35,TRUE) -> 0.4392186652 | H6: =VLOOKUP(Summary!$D$3,'SAR and RAR'!$F$37:$R$42,'SAR and RAR'!H$35,TRUE) -> 0.4944767072 | I6: =VLOOKUP(Summary!$D$3,'SAR and RAR'!$F$37:$R$42,'SAR and RAR'!I$35,TRUE) -> 0.3398582131 | J6: =VLOOKUP(Summary!$D$3,'SAR and RAR'!$F$37:$R$42,'SAR and RAR'!J$35,TRUE) -> 0.4570425683 | K6: =VLOOKUP(Summary!$D$3,'SAR and RAR'!$F$37:$R$42,'SAR and RAR'!K$35,TRUE) -> 0.4603675528 | L6: =VLOOKUP(Summary!$D$3,'SAR and RAR'!$F$37:$R$42,'SAR and RAR'!L$35,TRUE) -> 0.4405950608 | M6: =VLOOKUP(Summary!$D$3,'SAR and RAR'!$F$37:$R$42,'SAR and RAR'!M$35,TRUE) -> 0.4701305758 | N6: =VLOOKUP(Summary!$D$3,'SAR and RAR'!$F$37:$R$42,'SAR and RAR'!N$35,TRUE) -> 0.3644316024 | O6: =VLOOKUP(Summary!$D$3,'SAR and RAR'!$F$37:$R$42,'SAR and RAR'!O$35,TRUE) -> 0.7897450217 | P6: =VLOOKUP(Summary!$D$3,'SAR and RAR'!$F$37:$R$42,'SAR and RAR'!P$35,TRUE) -> 0.2639037907 | Q6: =VLOOKUP(Summary!$D$3,'SAR and RAR'!$F$37:$R$42,'SAR and RAR'!Q$35,TRUE) -> 0.3398582131 | R6: =VLOOKUP(Summary!$D$3,'SAR and RAR'!$F$37:$R$42,'SAR and RAR'!R$35,TRUE) -> 0.3677970814
B7: Public Purpose | C7: =INDEX('Incremental Rev Req'!$S$9:$X$22,MATCH(B7,'Incremental Rev Req'!$S$9:$S$22,0),MATCH(Summary!$D$3,'Incremental Rev Req'!$S$9:$X$9,0)) -> 802042.5376 | D7: =INDEX('Incremental Rev Req'!$S$68:$X$81,MATCH(B7,'Incremental Rev Req'!$S$68:$S$81,0),MATCH(Summary!$D$3,'Incremental Rev Req'!$S$68:$X$68,0)) -> 572380.6631
B8: DCPP | C8: =INDEX('Incremental Rev Req'!$S$9:$X$22,MATCH(B8,'Incremental Rev Req'!$S$9:$S$22,0),MATCH(Summary!$D$3,'Incremental Rev Req'!$S$9:$X$9,0)) -> 131844.6163 | D8: =INDEX('Incremental Rev Req'!$S$68:$X$81,MATCH(B8,'Incremental Rev Req'!$S$68:$S$81,0),MATCH(Summary!$D$3,'Incremental Rev Req'!$S$68:$X$68,0)) -> 131844.6163 | G8: Revenue ($000) - System | X8: Authorized | Y8: w/Pending
B9: New System Gen | C9: =INDEX('Incremental Rev Req'!$S$9:$X$22,MATCH(B9,'Incremental Rev Req'!$S$9:$S$22,0),MATCH(Summary!$D$3,'Incremental Rev Req'!$S$9:$X$9,0)) -> 514473.1865 | D9: =INDEX('Incremental Rev Req'!$S$68:$X$81,MATCH(B9,'Incremental Rev Req'!$S$68:$S$81,0),MATCH(Summary!$D$3,'Incremental Rev Req'!$S$68:$X$68,0)) -> 514473.1865 | F9: Authorized | G9: Generation | H9: Distribution | I9: NDC | J9: PPPC | K9: DCPP | L9: NSGC | M9: Transmission | N9: TOTCA | O9: GHG Rev | P9: DWRBC | Q9: PUCRF | R9: SECURITIZATION | S9: Total | T9: CARE Adj. | W9: % of CARE Sales | X9: =VLOOKUP(Summary!$D$3,$F$58:$Q$63,$Q$35,TRUE) -> 0.3036132459 | Y9: =X9 -> 0.3036132459
B10: FERC | C10: =INDEX('Incremental Rev Req'!$S$9:$X$22,MATCH(B10,'Incremental Rev Req'!$S$9:$S$22,0),MATCH(Summary!$D$3,'Incremental Rev Req'!$S$9:$X$9,0)) -> 1500981.985 | D10: =INDEX('Incremental Rev Req'!$S$68:$X$81,MATCH(B10,'Incremental Rev Req'!$S$68:$S$81,0),MATCH(Summary!$D$3,'Incremental Rev Req'!$S$68:$X$68,0)) -> 1500981.985 | F10: Residential | G10: =G6*G11 -> 2484473.183 | H10: =H6*H11 -> 5120059.125 | I10: =I6*I11 -> 726.6157497 | J10: =J6*J11 -> 366567.5812 | K10: =K6*K11 -> 60696.98336 | L10: 226674.3449 | M10: 705657.5249 | N10: 16403.99973 | O10: -350077.3835 | P10: 112521.7539 | Q10: 27339.89396 | R10: =R6*R11 -> 83922.59116 | S10: =SUM(G10:R10) -> 8854966.213 | T10: =-X11+X14 -> -706774.8287 | W10: CARE Line Item Discount % | X10: 0.325 | Y10: =X10 -> 0.325
B11: TOTCA | C11: =INDEX('Incremental Rev Req'!$S$9:$X$22,MATCH(B11,'Incremental Rev Req'!$S$9:$S$22,0),MATCH(Summary!$D$3,'Incremental Rev Req'!$S$9:$X$9,0)) -> 45012.561 | D11: =INDEX('Incremental Rev Req'!$S$68:$X$81,MATCH(B11,'Incremental Rev Req'!$S$68:$S$81,0),MATCH(Summary!$D$3,'Incremental Rev Req'!$S$68:$X$68,0)) -> 45012.561 | F11: Total System | G11: =C4 -> 5656574.685 | H11: =C5 -> 10354500.12 | I11: =C6 -> 2137.996734 | J11: =C7 -> 802042.5376 | K11: =C8 -> 131844.6163 | L11: =C9 -> 514473.1865 | M11: =C10 -> 1500981.985 | N11: =C11 -> 45012.561 | O11: =C12 -> -443279 | P11: =C14 -> 426374.1479 | Q11: =C15 -> 80445 | R11: =C16 -> 228176.338 | S11: =SUM(G11:R11) -> 19299284.18 | T11: 0 | W11: CARE Discounst | X11: =SUM(G10*G19/K71*O71,H10:N10,Q10)*X9*X10 -> 962207.2097 | Y11: =SUM(G13*G19/K71*O71,H13:N13,Q13)*Y9*Y10 -> 966798.6762
B12: GHG Revenue | C12: =INDEX('Incremental Rev Req'!$S$9:$X$22,MATCH(B12,'Incremental Rev Req'!$S$9:$S$22,0),MATCH(Summary!$D$3,'Incremental Rev Req'!$S$9:$X$9,0)) -> -443279 | D12: =INDEX('Incremental Rev Req'!$S$68:$X$81,MATCH(B12,'Incremental Rev Req'!$S$68:$S$81,0),MATCH(Summary!$D$3,'Incremental Rev Req'!$S$68:$X$68,0)) -> -443279 | F12: w/Pending | W12: non-CARE Residential Sales | X12: =VLOOKUP(Summary!$D$3,'SAR and RAR'!$F$58:$G$63,2,TRUE) -> 19039213.86 | Y12: =X12 -> 19039213.86
B13: MCAM | C13: =INDEX('Incremental Rev Req'!$S$9:$X$22,MATCH(B13,'Incremental Rev Req'!$S$9:$S$22,0),MATCH(Summary!$D$3,'Incremental Rev Req'!$S$9:$X$9,0)) -> 6677.031595 | D13: =INDEX('Incremental Rev Req'!$S$68:$X$81,MATCH(B13,'Incremental Rev Req'!$S$68:$S$81,0),MATCH(Summary!$D$3,'Incremental Rev Req'!$S$68:$X$68,0)) -> 6677.031595 | F13: Residential | G13: =G6*G14 -> 2484473.183 | H13: =H6*H14 -> 5271555.91 | I13: =I6*I14 -> 726.6157497 | J13: =J6*J14 -> 261602.3283 | K13: =K6*K14 -> 60696.98336 | L13: 226674.3449 | M13: 705657.5249 | N13: 16403.99973 | O13: -350077.3835 | P13: 112521.7539 | Q13: =Q6*Q14 -> 27339.89396 | R13: =R6*R14 -> 131846.5509 | S13: =SUM(G13:R13) -> 8949421.704 | T13: =-Y11+Y14 -> -710147.4214 | W13: Total Sales (excl. CARE&SL) | X13: =VLOOKUP(Summary!$D$3,'SAR and RAR'!$F$64:$G$69,2,TRUE) -> 71720228.92 | Y13: =X13 -> 71720228.92
B14: DWR | C14: =INDEX('Incremental Rev Req'!$S$9:$X$22,MATCH(B14,'Incremental Rev Req'!$S$9:$S$22,0),MATCH(Summary!$D$3,'Incremental Rev Req'!$S$9:$X$9,0)) -> 426374.1479 | D14: =INDEX('Incremental Rev Req'!$S$68:$X$81,MATCH(B14,'Incremental Rev Req'!$S$68:$S$81,0),MATCH(Summary!$D$3,'Incremental Rev Req'!$S$68:$X$68,0)) -> 426374.1479 | F14: Total System | G14: =D4 -> 5656574.685 | H14: =D5 -> 10660878.12 | I14: =D6 -> 2137.996734 | J14: =D7 -> 572380.6631 | K14: =D8 -> 131844.6163 | L14: =D9 -> 514473.1865 | M14: =D10 -> 1500981.985 | N14: =D11 -> 45012.561 | O14: =D12 -> -443279 | P14: =D14 -> 426374.1479 | Q14: =D15 -> 80445 | R14: =D16 -> 358476.338 | S14: =SUM(G14:R14) -> 19506300.3 | T14: 0 | W14: Res CARE Surcharge | X14: =X11*X12/X13 -> 255432.381 | Y14: =Y11*Y12/Y13 -> 256651.2549
B15: PUCRF | C15: =INDEX('Incremental Rev Req'!$S$9:$X$22,MATCH(B15,'Incremental Rev Req'!$S$9:$S$22,0),MATCH(Summary!$D$3,'Incremental Rev Req'!$S$9:$X$9,0)) -> 80445 | D15: =INDEX('Incremental Rev Req'!$S$68:$X$81,MATCH(B15,'Incremental Rev Req'!$S$68:$S$81,0),MATCH(Summary!$D$3,'Incremental Rev Req'!$S$68:$X$68,0)) -> 80445 | W15: RES CARE Discount Specific Split | X15: 0.7560613149 | Y15: =X15 -> 0.7560613149
B16: SECURITIZATION | C16: =INDEX('Incremental Rev Req'!$S$9:$X$22,MATCH(B16,'Incremental Rev Req'!$S$9:$S$22,0),MATCH(Summary!$D$3,'Incremental Rev Req'!$S$9:$X$9,0)) -> 228176.338 | D16: =INDEX('Incremental Rev Req'!$S$68:$X$81,MATCH(B16,'Incremental Rev Req'!$S$68:$S$81,0),MATCH(Summary!$D$3,'Incremental Rev Req'!$S$68:$X$68,0)) -> 358476.338 | S16: Authorized | T16: w/Pending | W16: CARE Surcharge Allocator | X16: 0.6245331637 | Y16: =X16 -> 0.6245331637
B17: Total | C17: =SUM(C4:C16) -> 19305961.21 | D17: =SUM(D4:D16) -> 19512977.33 | G17: Revenue Split - Bundled | S17: Bundled Revenue | W17: System CARE Discount | X17: =SUM(-X11*X15)+SUM(X11*X16) -> -126557.3353 | Y17: =SUM(-Y11*Y15)+SUM(Y11*Y16) -> -127161.2424
G18: Generation | H18: Distribution | I18: NDC | J18: PPPC | K18: DCPP | L18: NSGC | M18: Transmission | N18: TOTCA | O18: GHG Rev | P18: DWRBC | Q18: PUCRF | R18: SECURITIZATION | S18: Total | T18: Total
F19: Residential | G19: =VLOOKUP(Summary!$D$3,'SAR and RAR'!$F$44:$R$49,'SAR and RAR'!G$35,TRUE) -> 0.9293135105 | H19: =VLOOKUP(Summary!$D$3,'SAR and RAR'!$F$44:$R$49,'SAR and RAR'!H$35,TRUE) -> 0.7038417465 | I19: =VLOOKUP(Summary!$D$3,'SAR and RAR'!$F$44:$R$49,'SAR and RAR'!I$35,TRUE) -> 0.7154315841 | J19: =VLOOKUP(Summary!$D$3,'SAR and RAR'!$F$44:$R$49,'SAR and RAR'!J$35,TRUE) -> 0.7097677222 | K19: =VLOOKUP(Summary!$D$3,'SAR and RAR'!$F$44:$R$49,'SAR and RAR'!K$35,TRUE) -> 0.7154315841 | L19: =VLOOKUP(Summary!$D$3,'SAR and RAR'!$F$44:$R$49,'SAR and RAR'!L$35,TRUE) -> 0.7154315841 | M19: =VLOOKUP(Summary!$D$3,'SAR and RAR'!$F$44:$R$49,'SAR and RAR'!M$35,TRUE) -> 0.7154315841 | N19: =VLOOKUP(Summary!$D$3,'SAR and RAR'!$F$44:$R$49,'SAR and RAR'!N$35,TRUE) -> 0.7154315841 | O19: =VLOOKUP(Summary!$D$3,'SAR and RAR'!$F$44:$R$49,'SAR and RAR'!O$35,TRUE) -> 0.7043649742 | P19: =VLOOKUP(Summary!$D$3,'SAR and RAR'!$F$44:$R$49,'SAR and RAR'!P$35,TRUE) -> 0.6970027268 | Q19: =VLOOKUP(Summary!$D$3,'SAR and RAR'!$F$44:$R$49,'SAR and RAR'!Q$35,TRUE) -> 0.7154315841 | R19: =VLOOKUP(Summary!$D$3,'SAR and RAR'!$F$44:$R$49,'SAR and RAR'!R$35,TRUE) -> 0.6970027268 | S19: =SUMPRODUCT(G10:R10,G19:R19)+T10*X15 -> 6270978.392 | T19: =SUMPRODUCT(G13:R13,G19:R19)+T13*Y15 -> 6333960.449
F20: Total System | G20: =VLOOKUP(Summary!$D$3,'SAR and RAR'!$F$50:$R$55,'SAR and RAR'!G$35,TRUE) -> 0.9257771519 | H20: =VLOOKUP(Summary!$D$3,'SAR and RAR'!$F$50:$R$55,'SAR and RAR'!H$35,TRUE) -> 0.6583209223 | I20: =VLOOKUP(Summary!$D$3,'SAR and RAR'!$F$50:$R$55,'SAR and RAR'!I$35,TRUE) -> 0.6388478176 | J20: =VLOOKUP(Summary!$D$3,'SAR and RAR'!$F$50:$R$55,'SAR and RAR'!J$35,TRUE) -> 0.6512777238 | K20: =VLOOKUP(Summary!$D$3,'SAR and RAR'!$F$50:$R$55,'SAR and RAR'!K$35,TRUE) -> 0.6520237334 | L20: =VLOOKUP(Summary!$D$3,'SAR and RAR'!$F$50:$R$55,'SAR and RAR'!L$35,TRUE) -> 0.6485268401 | M20: =VLOOKUP(Summary!$D$3,'SAR and RAR'!$F$50:$R$55,'SAR and RAR'!M$35,TRUE) -> 0.6706488897 | N20: =VLOOKUP(Summary!$D$3,'SAR and RAR'!$F$50:$R$55,'SAR and RAR'!N$35,TRUE) -> 0.6413610128 | O20: =VLOOKUP(Summary!$D$3,'SAR and RAR'!$F$50:$R$55,'SAR and RAR'!O$35,TRUE) -> 0.6806631536 | P20: =VLOOKUP(Summary!$D$3,'SAR and RAR'!$F$50:$R$55,'SAR and RAR'!P$35,TRUE) -> 0.6251728172 | Q20: =VLOOKUP(Summary!$D$3,'SAR and RAR'!$F$50:$R$55,'SAR and RAR'!Q$35,TRUE) -> 0.6388478176 | R20: =VLOOKUP(Summary!$D$3,'SAR and RAR'!$F$50:$R$55,'SAR and RAR'!R$35,TRUE) -> 0.6353766549 | S20: =SUMPRODUCT(G11:R11,G20:R20)+X17 -> 14066793.2 | T20: =SUMPRODUCT(G14:R14,G20:R20)+Y17 -> 14201100.25
Q22: Res GHG | S22: =O10*O19 -> -246582.2472 | T22: =O13*O19 -> -246582.2472
Q23: Res GHG System | S23: =O11*O20 -> -301723.6821 | T23: =O14*O20 -> -301723.6821
F26: Bundled | N26: System (Bundled and Unbundled) | V26: Janaury of each year
F27: =Summary!D3&" Sales" -> 2026 Sales | G27: ='SAR and AR (GS1)'!$G$27 -> 1/1/2026 Avg Rates | H27: Proposed Avg Rates (Authorized) | I27: Proposed Avg Rates (w/Pending) | J27: % Change (Authorized) | K27: % Change (w/Pending) | N27: =Summary!N4&" Sales" -> 2026 Sales | O27: =G27 -> 1/1/2026 Avg Rates | P27: Proposed Avg Rates (Authorized) | Q27: Proposed Avg Rates (w/Pending) | R27: % Change (Authorized) | S27: % Change (w/Pending) | W27: 1/1/26 Bundled w/Credit | X27: 1/1/26 Bundled w/out Credit | Z27: 1/1/26 System w/Credit | AA27: 1/1/26 System w/out Credit
E28: Residential | F28: =VLOOKUP(Summary!$D$3,'SAR and RAR'!$J$58:$K$63,2,TRUE) -> 19559899.51 | G28: =IF(Summary!$J$3="Y",W32,X32) -> 34.45079839 | H28: =IF(Summary!$J$3="Y",S19/$F$28*100,SUM(S19-'SAR and RAR'!S22)/$F$28*100) -> 33.32103335 | I28: =IF(Summary!$J$3="Y",T19/$F$28*100,SUM(T19-'SAR and RAR'!T22)/$F$28*100) -> 33.64302916 | J28: =H28/G28-1 -> -0.03279358067 | K28: =I28/G28-1 -> -0.02344703939 | M28: Residential | N28: =VLOOKUP(Summary!$D$3,'SAR and RAR'!$N$58:$O$63,2,TRUE) -> 27340000 | O28: =IF(Summary!$J$3="Y",Z32,AA32) -> 32.05610311 | P28: =IF(Summary!$J$3="Y",SUM(S10:T10)/N28*100,SUM(S10,T10,-O10)/N28*100) -> 31.08364582 | Q28: =IF(Summary!$J$3="Y",SUM(S13:T13)/N28*100,SUM(S13,T13,-O13)/N28*100) -> 31.41679468 | R28: =P28/O28-1 -> -0.03033610442 | S28: =Q28/O28-1 -> -0.01994342319 | V28: Residential | W28: 33.19014673 | X28: 34.45079839 | Y28: Residential System | Z28: 30.77564476 | AA28: 32.05610311
E29: Total Bundled | F29: =VLOOKUP(Summary!$D$3,'SAR and RAR'!$J$64:$K$69,2,TRUE) -> 51392312.02 | G29: =IF(Summary!$J$3="Y",W33,X33) -> 28.8581489 | H29: =IF(Summary!$J$3="Y",S20/$F$29*100,SUM(S20-S23)/$F$29*100) -> 27.95849479 | I29: =IF(Summary!$J$3="Y",T20/$F$29*100,SUM(T20-T23)/$F$29*100) -> 28.21983166 | J29: =H29/G29-1 -> -0.03117504562 | K29: =I29/G29-1 -> -0.02211913344 | M29: Total System | N29: =VLOOKUP(Summary!$D$3,'SAR and RAR'!$N$64:$O$69,2,TRUE) -> 80445312.02 | O29: =IF(Summary!$J$3="Y",Z33,AA33) -> 25.19445183 | P29: =IF(Summary!$J$3="Y",SUM(S11:T11)/N29*100,SUM(S11,T11,-O11)/N29*100) -> 24.54159563 | Q29: =IF(Summary!$J$3="Y",SUM(S14:T14)/N29*100,SUM(S14,T14,-O14)/N29*100) -> 24.79893334 | R29: =P29/O29-1 -> -0.02591269741 | S29: =Q29/O29-1 -> -0.01569863465 | V29: Bundled | W29: 28.27105015 | X29: 28.8581489 | Y29: Total System | Z29: 24.64342045 | AA29: 25.19445183
E30: =M29 -> Total System | F30: =N29 -> 80445312.02 | V30: Current Effective
W31: 1/1/26 Bundled w/Credit | X31: 1/1/26 Bundled w/out Credit | Z31: 1/1/26 System w/Credit | AA31: 1/1/26 System w/out Credit
V32: Residential | W32: 33.19014673 | X32: 34.45079839 | Y32: Residential System | Z32: 30.77564476 | AA32: 32.05610311
V33: Bundled | W33: 28.27105015 | X33: 28.8581489 | Y33: Total System | Z33: 24.64342045 | AA33: 25.19445183
G35: 2 | H35: =G35+1 -> 3 | I35: =H35+1 -> 4 | J35: 5 | K35: 6 | L35: 7 | M35: 8 | N35: 9 | O35: 10 | P35: 11 | Q35: 12 | R35: 13
F36: Residential Allocator | G36: Generation | H36: Distribution | I36: NDC | J36: PPPC | K36: DCPP | L36: NSGC | M36: Transmission | N36: TOTCA | O36: GHG Rev | P36: DWRBC | Q36: PUCRF | R36: SECURITIZATION
F37: 2026 | G37: 0.4392186652 | H37: 0.4944767072 | I37: 0.3398582131 | J37: 0.4570425683 | K37: 0.4603675528 | L37: 0.4405950608 | M37: 0.4701305758 | N37: 0.3644316024 | O37: 0.7897450217 | P37: 0.2639037907 | Q37: 0.3398582131 | R37: 0.3677970814
F38: =F37+1 -> 2027 | G38: 0.4498503996 | H38: 0.5098439023 | I38: 0.3501930398 | J38: 0.4710732536 | K38: 0.4745525603 | L38: 0.454123679 | M38: 0.484888301 | N38: 0.3755417 | O38: 0.8146317667 | P38: 0.2717407858 | Q38: 0.3501930398 | R38: 0.3788340209
F39: =F38+1 -> 2028 | G39: 0.4518551639 | H39: 0.5143217267 | I39: 0.4278850233 | J39: 0.44989073 | K39: 0.4095989841 | L39: 0.4409987983 | M39: 0.4897500949 | N39: 0.3436308976 | O39: 0.8023563346 | P39: 0.2704645022 | Q39: 0.3584182639 | R39: 0.423729342
F40: 2029 | G40: =G39 -> 0.4518551639 | H40: 0.5143217267 | I40: 0.4278850233 | J40: 0.44989073 | K40: 0.4095989841 | L40: 0.4409987983 | M40: 0.4897500949 | N40: 0.3436308976 | O40: 0.8023563346 | P40: 0.2704645022 | Q40: 0.3584182639 | R40: 0.423729342
F43: Revenue Split - Bundled
E44: Residential | F44: =F37 -> 2026 | G44: 0.9293135105 | H44: 0.7038417465 | I44: 0.7154315841 | J44: 0.7097677222 | K44: 0.7154315841 | L44: 0.7154315841 | M44: 0.7154315841 | N44: 0.7154315841 | O44: 0.7043649742 | P44: 0.6970027268 | Q44: 0.7154315841 | R44: 0.6970027268 | U44: =G44 -> 0.9293135105
E45: Residential | F45: =F38 -> 2027 | G45: 0.9303302215 | H45: 0.7070792921 | I45: 0.7185930877 | J45: 0.7129669048 | K45: 0.7185930877 | L45: 0.7185930877 | M45: 0.7185930877 | N45: 0.7185930877 | O45: 0.7075991763 | P45: 0.700283199 | Q45: 0.7185930877 | R45: 0.700283199 | T45: =K59/K58-1 -> 0.04033549567 | U45: =G45 -> 0.9303302215
E46: Residential | F46: 2028 | G46: 0.9305997394 | H46: 0.7079413326 | I46: 0.7194346891 | J46: 0.7138186313 | K46: 0.7194346891 | L46: 0.7194346891 | M46: 0.7194346891 | N46: 0.7194346891 | O46: 0.7084603176 | P46: 0.7011567868 | Q46: 0.7194346891 | R46: 0.7011567868 | T46: =K60/K59-1 -> 0.02074164806 | U46: 0.9305997394
E47: Residential | F47: 2029 | G47: =G46 -> 0.9305997394 | H47: =H46 -> 0.7079413326 | I47: 0.7194346891 | J47: 0.7138186313 | K47: 0.7194346891 | L47: 0.7194346891 | M47: 0.7194346891 | N47: 0.7194346891 | O47: 0.7084603176 | P47: 0.7011567868 | Q47: 0.7194346891 | R47: 0.7011567868 | T47: 0 | U47: 0.9305997394
T48: -1 | U48: 0
U49: 0
E50: Total System | F50: =F44 -> 2026 | G50: 0.9257771519 | H50: 0.6583209223 | I50: 0.6388478176 | J50: 0.6512777238 | K50: 0.6520237334 | L50: 0.6485268401 | M50: 0.6706488897 | N50: 0.6413610128 | O50: 0.6806631536 | P50: 0.6251728172 | Q50: 0.6388478176 | R50: 0.6353766549 | U50: 0.9257771519
E51: Total System | F51: =F45 -> 2027 | G51: 0.9252022876 | H51: 0.6535380469 | I51: 0.5561128833 | J51: 0.6655111543 | K51: 0.6985257695 | L51: 0.6571865457 | M51: 0.6657228206 | N51: 0.6705437658 | O51: 0.6839295572 | P51: 0.6253128844 | Q51: 0.6286595684 | R51: 0.590011221 | T51: =K65/K64-1 -> 0.04033549567 | U51: 0.9252022876
E52: Total System | F52: 2028 | G52: 0.925182843 | H52: 0.6533233848 | I52: 0.5576954088 | J52: 0.6652092979 | K52: 0.6978097782 | L52: 0.6569732479 | M52: 0.6657104099 | N52: 0.6699780066 | O52: 0.6848081914 | P52: 0.6250011275 | Q52: 0.62869726 | R52: 0.5905125655 | T52: =K66/K65-1 -> 0.02074164806 | U52: 0.925182843
E53: Total System | F53: 2029 | G53: =G52 -> 0.925182843 | H53: =H52 -> 0.6533233848 | I53: 0.5576954088 | J53: 0.6652092979 | K53: 0.6978097782 | L53: 0.6569732479 | M53: 0.6657104099 | N53: 0.6699780066 | O53: 0.6848081914 | P53: 0.6250011275 | Q53: 0.62869726 | R53: 0.5905125655 | T53: 0 | U53: 0.925182843
T54: -1 | U54: 0
U55: 0
F57: System Sales | J57: Bundled Sales | L57: % of Bdl | N57: System Sales | Q57: CARE%
E58: Non-CARE Residential | F58: =$F$37 -> 2026 | G58: 19039213.86 | I58: Residential | J58: =$F$37 -> 2026 | K58: 19559899.51 | L58: =K58/O58 -> 0.7154315841 | M58: Residential | N58: =$F$37 -> 2026 | O58: 27340000 | P58: =O58/O64 -> 0.3398582131 | Q58: =1-G58/O58 -> 0.3036132459
E59: Non-CARE Residential | F59: =$F$38 -> 2027 | G59: =O59*(1-Q58) -> 19807169.98 | I59: Residential | J59: =$F$38 -> 2027 | K59: =L58*O59 -> 20348857.75 | L59: 0.7154315841 | M59: Residential | N59: =$F$38 -> 2027 | O59: =P58*O65 -> 28442772.45 | P59: =O59/O65 -> 0.3398582131 | Q59: =1-G59/O59 -> 0.3036132459 | R59: =K59/K58-1 -> 0.04033549567
E60: Non-CARE Residential | F60: =$F$39 -> 2028 | G60: =($G$59/$O$59)*O60 -> 20218003.33 | I60: Residential | J60: =$F$39 -> 2028 | K60: =($K$59/$O$59)*O60 -> 20770926.6 | L60: 0.7154315841 | M60: Residential | N60: =$F$39 -> 2028 | O60: =($O$59/$O$65)*O66 -> 29032722.43 | P60: 0.3398582131 | Q60: =1-G60/O60 -> 0.3036132459 | R60: =K60/K59-1 -> 0.02074164806
E61: Non-CARE Residential | F61: =$F$40 -> 2029 | G61: =($G$59/$O$59)*O61 -> 20218003.33 | I61: Residential | J61: =$F$40 -> 2029 | K61: =($K$59/$O$59)*O61 -> 20770926.6 | L61: 0.7154315841 | M61: Residential | N61: =$F$40 -> 2029 | O61: =($O$59/$O$65)*O67 -> 29032722.43 | P61: 0.3398582131 | Q61: =1-G61/O61 -> 0.3036132459 | R61: 0
E63: Non-CARE Residential
E64: Non-Exempt Sales | F64: =$F$37 -> 2026 | G64: 71720228.92 | H64: =G64/O64 -> 0.8915401919 | I64: Total System | J64: =F37 -> 2026 | K64: 51392312.02 | L64: =K64/O64 -> 0.6388478176 | M64: Total System | N64: =F37 -> 2026 | O64: 80445312.02
E65: Non-Exempt Sales | F65: =$F$38 -> 2027 | G65: =H64*O65 -> 74613099.9 | H65: =G65/O65 -> 0.8915401919 | I65: Total System | J65: =$F$38 -> 2027 | K65: =L64*O65 -> 53465246.4 | L65: 0.6388478176 | M65: Total System | N65: =$F$38 -> 2027 | O65: 83690113.56 | P65: =O65/O64-1 -> 0.04033549567
E66: Non-Exempt Sales | F66: =$F$39 -> 2028 | G66: =($G$65/$O$65)*O66 -> 76160698.56 | H66: 0.8915401919 | I66: Total System | J66: =$F$39 -> 2028 | K66: =($K$65/$O$65)*O66 -> 54574203.73 | L66: 0.6388478176 | M66: Total System | N66: =$F$39 -> 2028 | O66: 85425984.44 | P66: =O66/O65-1 -> 0.02074164806
E67: Non-Exempt Sales | F67: =$F$40 -> 2029 | G67: =($G$65/$O$65)*O67 -> 76160698.56 | H67: 0.8915401919 | I67: Total System | J67: =$F$40 -> 2029 | K67: =($K$65/$O$65)*O67 -> 54574203.73 | L67: 0.6388478176 | M67: Total System | N67: =$F$40 -> 2029 | O67: 85425984.44 | P67: =O67/O66-1 -> 0
J71: =Summary!D3 -> 2026 | K71: =VLOOKUP(Summary!D3,'SAR and RAR'!J58:K63,2,TRUE) -> 19559899.51 | N71: =Summary!D3 -> 2026 | O71: =VLOOKUP(Summary!D3,'SAR and RAR'!N58:O63,2,TRUE) -> 27340000
J72: % of Resl Sales (Bdl) | N72: % of Resl Sales (Sys)
J73: =$F$37 -> 2026 | K73: =K58/K64 -> 0.3805997189 | N73: =$F$37 -> 2026 | O73: =O58/O64 -> 0.3398582131 | U73: 2025 | V73: 79134642.73
J74: =$F$38 -> 2027 | K74: 0.3805997189 | N74: =$F$38 -> 2027 | O74: 0.3398582131 | U74: 2026 | V74: 80445312.02
J75: =$F$39 -> 2028 | K75: 0.3805997189 | N75: =$F$39 -> 2028 | O75: 0.3398582131 | U75: 2027 | V75: 83690113.56
J76: =$F$40 -> 2029 | K76: 0.3805997189 | N76: =$F$40 -> 2029 | O76: 0.3398582131 | U76: 2028 | V76: 85425984.44

Sheet Res Bill Impact (hidden)
A1: CONFIDENTIAL The Attachment(s) Are Marked Confidential In Accordance With D. 16-08-024 and D. 17-09-023. Basis for Confidentiality In Accompanying Confidentiality Declaration.
E3: Schedule D | O3: Schedule D-CARE
E4: =Summary!N4 -> 2026 | F4: =Summary!N3 -> 2026-01-01 | G4: Proposed | H4: Proposed | I4: Proposed | J4: Proposed | O4: =Summary!N4 -> 2026 | P4: =Summary!N3 -> 2026-01-01 | Q4: Proposed | R4: Proposed | S4: Proposed | T4: Proposed
E5: Sales Forecast | F5: Rates | G5: Authorized Rates | H5: Authorized Revenue | I5: w/Pending Rates | J5: w/Pending Revenue | O5: Sales Forecast | P5: Rates | Q5: Authorized Rates | R5: Authorized Revenue | S5: w/Pending Rates | T5: w/Pending Revenue
F6: w/ BSC | P6: w/ BSC
D7: Baseline - Summer | E7: =HLOOKUP(E$4,$F$95:$K$105,$A97,TRUE) -> 3341.092086 | F7: 0.30862 | G7: =(W8-SUM(R14:R15,H14:H15))/SUM(SUM(E7:E8),F9/F7*SUM(E9:E10),F11/F7*SUM(E11:E12),SUM(O7:O8)*(1+(P7/F7-1)),SUM(O9:O10)*(1+(P9/F9-1))*F9/F7,SUM(O11:O12)*(1+(P11/F11-1))*F11/F7) -> 0.295967924 | H7: =E7*G7 -> 988.8560884 | I7: =(W9-SUM(T14:T15,J14:J15))/SUM(SUM(E7:E8),F9/F7*SUM(E9:E10),F11/F7*SUM(E11:E12),SUM(O7:O8)*(1+(P7/F7-1)),SUM(O9:O10)*(1+(P9/F9-1))*F9/F7,SUM(O11:O12)*(1+(P11/F11-1))*F11/F7) -> 0.2991951531 | J7: =E7*I7 -> 999.6385579 | N7: Baseline - Summer | O7: =HLOOKUP(O$4,$M$95:$R$105,$A97,TRUE) -> 1853.485707 | P7: 0.20048 | Q7: =G7*(1+(P7/F7-1)) -> 0.1922611931 | R7: =O7*Q7 -> 356.3533733 | S7: =I7*(1+(P7/F7-1)) -> 0.1943576057 | T7: =O7*S7 -> 360.2390442 | V7: Bundled Residential Rev Req
D8: - Winter | E8: 4595.046326 | F8: 0.30862 | G8: =G7 -> 0.295967924 | H8: 1359.986322 | I8: =I7 -> 0.2991951531 | J8: 1374.815589 | N8: - Winter | O8: 2569.096495 | P8: 0.20048 | Q8: =G8*(1+(P8/F8-1)) -> 0.1922611931 | R8: 493.9375572 | S8: 0.1943576057 | T8: 499.3234437 | V8: Proposed (Authorized) | W8: ='SAR and RAR'!S19/1000-'SAR and RAR'!S22/1000+$W$6 -> 6517.560639
D9: 101% - 400% of Baseline - Summer | E9: 2086.626226 | F9: 0.4097 | G9: =F9/F$7*G$7 -> 0.3929040842 | H9: 819.8439663 | I9: =F9/F$7*I$7 -> 0.3971883035 | J9: 828.7835306 | N9: 101% - 400% of Baseline - Summer | O9: 788.5488199 | P9: 0.2687 | Q9: 0.2576844701 | R9: 203.1967848 | S9: 0.2604942571 | T9: 205.412439 | V9: Proposed (w/Pending) | W9: ='SAR and RAR'!T19/1000-'SAR and RAR'!T22/1000+$W$6 -> 6580.542696
D10: - Winter | E10: 2800.745323 | F10: 0.4097 | G10: =G9 -> 0.3929040842 | H10: 1100.424276 | I10: =I9 -> 0.3971883035 | J10: 1112.423283 | N10: - Winter | O10: 1049.208786 | P10: 0.2687 | Q10: 0.2576844701 | R10: 270.3648102 | S10: 0.2604942571 | T10: 273.3128633
D11: 401% of Baseline - Summer | E11: 165.8479243 | F11: =F9 -> 0.4097 | G11: =F11/F$7*G$7 -> 0.3929040842 | H11: 65.16232681 | I11: =F11/F$7*I$7 -> 0.3971883035 | J11: 65.87285569 | N11: 401% of Baseline - Summer | O11: 9.043378596 | P11: =P9 -> 0.2687 | Q11: 0.2576844701 | R11: 2.330338222 | S11: 0.2604942571 | T11: 2.355748189
D12: - Winter | E12: 281.0260881 | F12: =F10 -> 0.4097 | G12: =G11 -> 0.3929040842 | H12: 110.4162978 | I12: =I11 -> 0.3971883035 | J12: 111.6202752 | N12: - Winter | O12: 20.13235039 | P12: =P10 -> 0.2687 | Q12: 0.2576844701 | R12: 5.187794043 | S12: 0.2604942571 | T12: 5.244361658
D14: Basic Charge - Single-Family Residence | E14: =HLOOKUP(E$4,$F$95:$K$106,$A104,TRUE) -> 19072895.18 | F14: 0.794 | G14: =F14 -> 0.794 | H14: =G14*E14*365/12/10^6 -> 460.6263127 | I14: =G14 -> 0.794 | J14: =I14*E14*365/12/10^6 -> 460.6263127 | N14: Basic Charge - Single-Family Residence | O14: =HLOOKUP(O$4,$M$95:$R$105,$A104,TRUE) -> 6438624.757 | P14: 0.198 | Q14: =P14 -> 0.198 | R14: =Q14*O14*365/12/10^6 -> 38.7766176 | S14: =Q14 -> 0.198 | T14: =S14*O14*365/12/10^6 -> 38.7766176
D15: Basic Charge - Multi-Family Residence | E15: =HLOOKUP(E$4,$F$95:$K$106,$A105,TRUE) -> 8676304.22 | F15: =F14 -> 0.794 | G15: =F15 -> 0.794 | H15: =G15*E15*365/12/10^6 -> 209.5399772 | I15: =G15 -> 0.794 | J15: =I15*E15*365/12/10^6 -> 209.5399772 | N15: Basic Charge - Multi-Family Residence | O15: =HLOOKUP(O$4,$M$95:$R$105,$A105,TRUE) -> 5406026.843 | P15: =P14 -> 0.198 | Q15: =P15 -> 0.198 | R15: =Q15*O15*365/12/10^6 -> 32.55779666 | S15: =Q15 -> 0.198 | T15: =S15*O15*365/12/10^6 -> 32.55779666
O19: 2025 Recorded Data - Average Monthly Usage - kWh (Bundled / Basic Service Only) | W19: 2025 Recorded Data - Average Monthly Usage - kWh (Bundled / All Electric Only)
B20: SCHEDULE D RATES ($/kWh) | E20: Proposed | F20: Proposed | H20: MONTHLY BASELINE QUANTITIES | I20: BASIC | K20: ALL-ELECTRIC | O20: Climate Zone | P20: Summer | Q20: Winter | R20: Summer | S20: Winter | T20: Sample Population Weight | W20: Climate Zone | X20: Summer | Y20: Winter | Z20: Summer | AA20: Winter | AB20: Sample Population Weight
B21: Rates | C21: Jan 2026 | D21: =Summary!N3 -> 2026-01-01 | E21: Authorized | F21: w/Pending | H21: Climate Zone | I21: Summer | J21: Winter | K21: Summer | L21: Winter | P21: Non-CARE | R21: CARE | T21: Non-CARE | U21: CARE | X21: Non-CARE | Z21: CARE | AB21: Non-CARE | AC21: CARE
B22: Tier 1 | C22: 0.30862 | D22: =F7 -> 0.30862 | E22: =G7 -> 0.295967924 | F22: =I7 -> 0.2991951531 | H22: 5 warm | I22: =17*$O$32 -> 517.089 | J22: =18.4*$O$32 -> 559.6728 | K22: =16.8*$O$32 -> 511.0056 | L22: =27*$O$32 -> 821.259 | O22: 5 warm | P22: 392.8180856 | Q22: 420.1466662 | R22: 306.7764341 | S22: 335.333846 | T22: 0.0003805654938 | U22: 5.832094013e-05 | W22: 5 warm | X22: 401.9191552 | Y22: 466.9704971 | Z22: 348.8324974 | AA22: 431.3141607 | AB22: 0.000285685566 | AC22: 0.0001634218353
B23: Tier 2 | C23: 0.4097 | D23: =F9 -> 0.4097 | E23: =G9 -> 0.3929040842 | F23: =I9 -> 0.3971883035 | H23: 6 cool | I23: =11.4*$O$32 -> 346.7538 | J23: =11*$O$32 -> 334.587 | K23: =8.7*$O$32 -> 264.6279 | L23: =12.6*$O$32 -> 383.2542 | O23: 6 cool | P23: 428.1439387 | Q23: 379.4971467 | R23: 396.1779794 | S23: 349.3506735 | T23: 0.1665870134 | U23: 0.05961177694 | W23: 6 cool | X23: 327.4946929 | Y23: 327.8519746 | Z23: 361.2313708 | AA23: 369.2885802 | AB23: 0.2603971029 | AC23: 0.1259219715
B24: Tier 2 | C24: =C23 -> 0.4097 | D24: =F11 -> 0.4097 | E24: =G11 -> 0.3929040842 | F24: =I11 -> 0.3971883035 | H24: 8 cool | I24: =12.8*$O$32 -> 389.3376 | J24: =10.3*$O$32 -> 313.2951 | K24: =9.9*$O$32 -> 301.1283 | L24: =12.3*$O$32 -> 374.1291 | O24: 8 cool | P24: 535.3568139 | Q24: 398.6913352 | R24: 486.4008228 | S24: 376.6316799 | T24: 0.2280925925 | U24: 0.1581100127 | W24: 8 cool | X24: 378.9108386 | Y24: 341.0081901 | Z24: 403.9378759 | AA24: 368.0942404 | AB24: 0.236976177 | AC24: 0.2059333021
B25: cust $ / Day | C25: 0.794 | H25: 9 warm | I25: =16.9*$O$32 -> 514.0473 | J25: =12*$O$32 -> 365.004 | K25: =12.5*$O$32 -> 380.2125 | L25: =13.9*$O$32 -> 422.7963 | O25: 9 warm | P25: 662.7146021 | Q25: 441.2638435 | R25: 642.8036573 | S25: 423.5758643 | T25: 0.1265413456 | U25: 0.1015756374 | W25: 9 warm | X25: 482.8782994 | Y25: 362.9452712 | Z25: 485.9581988 | AA25: 371.3543401 | AB25: 0.08303398071 | AC25: 0.08865089828
B26: SCHEDULE D-CARE RATES ($/kWh) | E26: Proposed | F26: Proposed | H26: 10 hot (Sec 745) | I26: =19.3*$O$32 -> 587.0481 | J26: =12.1*$O$32 -> 368.0457 | K26: =15.9*$O$32 -> 483.6303 | L26: =16.4*$O$32 -> 498.8388 | O26: 10 hot (Sec 745) | P26: 762.4939433 | Q26: 465.2157645 | R26: 836.4764649 | S26: 488.3632947 | T26: 0.3039324363 | U26: 0.402916047 | W26: 10 hot (Sec 745) | X26: 571.4352251 | Y26: 406.1255385 | Z26: 615.2053451 | AA26: 415.1421461 | AB26: 0.2636137108 | AC26: 0.3583187162
B27: Rates | C27: =C21 -> Jan 2026 | D27: =D21 -> 2026-01-01 | E27: Authorized | F27: w/Pending | H27: 13 hot | I27: =22.2*$O$32 -> 675.2574 | J27: =12.2*$O$32 -> 371.0874 | K27: =24.2*$O$32 -> 736.0914 | L27: =23*$O$32 -> 699.591 | O27: 13 hot | P27: 909.9939748 | Q27: 472.0882088 | R27: 945.4029535 | S27: 473.3238809 | T27: 0.04964498992 | U27: 0.1105181816 | W27: 13 hot | X27: 861.9663688 | Y27: 542.7406184 | Z27: 895.1489115 | AA27: 536.4721623 | AB27: 0.03445685354 | AC27: 0.06674147755
B28: Tier 1 | C28: 0.20048 | D28: =P7 -> 0.20048 | E28: =Q7 -> 0.1922611931 | F28: =S7 -> 0.1943576057 | H28: 14 hot | I28: =19.2*$O$32 -> 584.0064 | J28: =11.9*$O$32 -> 361.9623 | K28: =18.5*$O$32 -> 562.7145 | L28: =21.1*$O$32 -> 641.7987 | O28: 14 hot | P28: 736.4638175 | Q28: 439.8131014 | R28: 846.776143 | S28: 501.2769208 | T28: 0.06190827044 | U28: 0.1068400743 | W28: 14 hot | X28: 672.5853002 | Y28: 501.1123856 | Z28: 820.3139555 | AA28: 614.9004159 | AB28: 0.04579962861 | AC28: 0.07337640407
B29: Tier 2 | C29: 0.2687 | D29: =P9 -> 0.2687 | E29: =Q9 -> 0.2576844701 | F29: =S9 -> 0.2604942571 | H29: 15 hot | I29: =45*$O$32 -> 1368.765 | J29: =9.7*$O$32 -> 295.0449 | K29: =24*$O$32 -> 730.008 | L29: =17.4*$O$32 -> 529.2558 | O29: 15 hot | P29: 1068.875545 | Q29: 514.1791158 | R29: 1217.193748 | S29: 509.5978566 | T29: 0.03250958605 | U29: 0.03454349284 | W29: 15 hot | X29: 812.9639032 | Y29: 430.627853 | Z29: 1006.011932 | AA29: 491.1893218 | AB29: 0.03529274835 | AC29: 0.04983276499
B30: Tier 2 | C30: =C29 -> 0.2687 | D30: =P11 -> 0.2687 | E30: =Q12 -> 0.2576844701 | F30: =S12 -> 0.2604942571 | H30: 16 cool | I30: =14.7*$O$32 -> 447.1299 | J30: =12.4*$O$32 -> 377.1708 | K30: =13.5*$O$32 -> 410.6295 | L30: =23.2*$O$32 -> 705.6744 | O30: 16 cool | P30: 492.2823695 | Q30: 390.2262556 | R30: 719.3741429 | S30: 479.6485674 | T30: 0.03040320029 | U30: 0.02582645632 | W30: 16 cool | X30: 402.4281356 | Y30: 502.6609855 | Z30: 651.0967816 | AA30: 548.3187375 | AB30: 0.0401441125 | AC30: 0.0310610435
B31: cust $ / Day | C31: 0.198
N32: Daily to Monthly Conversion Factor | O32: 30.417
C34: NON-CARE | M34: Essential Use (Basic) - Non-CARE | W34: Essential Use (Basic) - CARE
C35: =C27 -> Jan 2026 | E35: =D27 -> 2026-01-01 | G35: =E21 -> Authorized | I35: =F21 -> w/Pending | M35: =C35 -> Jan 2026 | O35: =E35 -> 2026-01-01 | Q35: =G35 -> Authorized | S35: =I35 -> w/Pending | W35: =M35 -> Jan 2026 | Y35: =O35 -> 2026-01-01 | AA35: =Q35 -> Authorized | AC35: =S35 -> w/Pending
C36: Summer | D36: Winter | E36: Summer | F36: Winter | G36: Summer | H36: Winter | I36: Summer | J36: Winter | M36: Summer | N36: Winter | O36: Summer | P36: Winter | Q36: Summer | R36: Winter | S36: Summer | T36: Winter | W36: Summer | X36: Winter | Y36: Summer | Z36: Winter | AA36: Summer | AB36: Winter | AC36: Summer | AD36: Winter
B37: 5 warm | C37: =C$22*MIN(I22,P22)+IF(P22-I22>0,C$23*(P22-I22))+ROUND($C$25*365/12,2)+(Summary!N19/12)*2 -> 139.3815176 | D37: =C$22*MIN(J22,Q22)+IF(Q22-J22>0,C$23*(Q22-J22))+ROUND($C$25*365/12,2)+(Summary!N19/12)*2 -> 147.8156641 | E37: =D$22*MIN(I22,P22)+IF(P22-I22>0,D$23*(P22-I22))+ROUND($F$14*365/12,2)+(Summary!N19/12)*2 -> 139.3815176 | F37: =D$22*MIN(J22,Q22)+IF(Q22-J22>0,D$23*(Q22-J22))+ROUND($F$14*365/12,2)+(Summary!N19/12)*2 -> 147.8156641 | G37: =E$22*MIN(I22,P22)+IF(P22-I22>0,E$23*(P22-I22))+ROUND($F$14*365/12,2)+(Summary!N19/12)*2 -> 134.4115533 | H37: =E$22*MIN(J22,Q22)+IF(Q22-J22>0,E$23*(Q22-J22))+ROUND($F$14*365/12,2)+(Summary!N19/12)*2 -> 142.4999366 | I37: =F$22*MIN(I22,P22)+IF(P22-I22>0,F$23*(P22-I22))+ROUND($F$14*365/12,2)+(Summary!N19/12)*2 -> 135.6792672 | J37: =F$22*MIN(J22,Q22)+IF(Q22-J22>0,F$23*(Q22-J22))+ROUND($F$14*365/12,2)+(Summary!N19/12)*2 -> 143.8558461 | L37: 5 warm | M37: =C$22*I22+ROUND($C$25*365/12,2)+(Summary!N19/12)*2 -> 177.7340072 | N37: =C$22*J22+ROUND($C$25*365/12,2)+(Summary!N19/12)*2 -> 190.8762195 | O37: =D$22*I22+ROUND($F$14*365/12,2)+(Summary!N19/12)*2 -> 177.7340072 | P37: =D$22*J22+ROUND($F$14*365/12,2)+(Summary!N19/12)*2 -> 190.8762195 | Q37: =E$22*I22+ROUND($F$14*365/12,2)+(Summary!N19/12)*2 -> 171.1917578 | R37: =E$22*J22+ROUND($F$14*365/12,2)+(Summary!N19/12)*2 -> 183.7951967 | S37: =F$22*I22+ROUND($F$14*365/12,2)+(Summary!N19/12)*2 -> 172.8605225 | T37: =F$22*J22+ROUND($F$14*365/12,2)+(Summary!N19/12)*2 -> 185.6013891 | V37: 5 warm | W37: =C$28*I22+ROUND($C$31*365/12,2)+(Summary!N19/12)*2 -> 103.6860027 | X37: =C$28*J22+ROUND($C$31*365/12,2)+(Summary!N19/12)*2 -> 112.2232029 | Y37: =D$28*I22+ROUND($P$14*365/12,2)+(Summary!N19/12)*2 -> 103.6860027 | Z37: =D$28*J22+ROUND($P$14*365/12,2)+(Summary!N19/12)*2 -> 112.2232029 | AA37: =E$28*I22+ROUND($P$14*365/12,2)+(Summary!N19/12)*2 -> 99.43614806 | AB37: =E$28*J22+ROUND($P$14*365/12,2)+(Summary!N19/12)*2 -> 107.6233602 | AC37: =F$28*I22+ROUND($P$14*365/12,2)+(Summary!N19/12)*2 -> 100.52018 | AD37: =F$28*J22+ROUND($P$14*365/12,2)+(Summary!N19/12)*2 -> 108.7966654
B38: 6 cool | C38: =C$22*MIN(I23,P23)+IF(P23-I23>0,C$23*(P23-I23))+ROUND($C$25*365/12,2)+(Summary!N19/12)*2 -> 158.5106976 | D38: =C$22*MIN(J23,Q23)+IF(Q23-J23>0,C$23*(Q23-J23))+ROUND($C$25*365/12,2)+(Summary!N19/12)*2 -> 139.809927 | E38: =D$22*MIN(I23,P23)+IF(P23-I23>0,D$23*(P23-I23))+ROUND($F$14*365/12,2)+(Summary!N19/12)*2 -> 158.5106976 | F38: =D$22*MIN(J23,Q23)+IF(Q23-J23>0,D$23*(Q23-J23))+ROUND($F$14*365/12,2)+(Summary!N19/12)*2 -> 139.809927 | G38: =E$22*MIN(I23,P23)+IF(P23-I23>0,E$23*(P23-I23))+ROUND($F$14*365/12,2)+(Summary!N19/12)*2 -> 152.7565202 | H38: =E$22*MIN(J23,Q23)+IF(Q23-J23>0,E$23*(Q23-J23))+ROUND($F$14*365/12,2)+(Summary!N19/12)*2 -> 134.8223998 | I38: =F$22*MIN(I23,P23)+IF(P23-I23>0,F$23*(P23-I23))+ROUND($F$14*365/12,2)+(Summary!N19/12)*2 -> 154.2242674 | J38: =F$22*MIN(J23,Q23)+IF(Q23-J23>0,F$23*(Q23-J23))+ROUND($F$14*365/12,2)+(Summary!N19/12)*2 -> 136.0945937 | L38: 6 cool | M38: =C$22*I23+ROUND($C$25*365/12,2)+(Summary!N19/12)*2 -> 125.1651578 | N38: =C$22*J23+ROUND($C$25*365/12,2)+(Summary!N19/12)*2 -> 121.4102399 | O38: =D$22*I23+ROUND($F$14*365/12,2)+(Summary!N19/12)*2 -> 125.1651578 | P38: =D$22*J23+ROUND($F$14*365/12,2)+(Summary!N19/12)*2 -> 121.4102399 | Q38: =E$22*I23+ROUND($F$14*365/12,2)+(Summary!N19/12)*2 -> 120.7780023 | R38: =E$22*J23+ROUND($F$14*365/12,2)+(Summary!N19/12)*2 -> 117.1770198 | S38: =F$22*I23+ROUND($F$14*365/12,2)+(Summary!N19/12)*2 -> 121.8970563 | T38: =F$22*J23+ROUND($F$14*365/12,2)+(Summary!N19/12)*2 -> 118.2568087 | V38: 6 cool | W38: =C$28*I23+ROUND($C$31*365/12,2)+(Summary!N19/12)*2 -> 69.53720182 | X38: =C$28*J23+ROUND($C$31*365/12,2)+(Summary!N19/12)*2 -> 67.09800176 | Y38: =D$28*I23+ROUND($P$14*365/12,2)+(Summary!N19/12)*2 -> 69.53720182 | Z38: =D$28*J23+ROUND($P$14*365/12,2)+(Summary!N19/12)*2 -> 67.09800176 | AA38: =E$28*I23+ROUND($P$14*365/12,2)+(Summary!N19/12)*2 -> 66.68729929 | AB38: =E$28*J23+ROUND($P$14*365/12,2)+(Summary!N19/12)*2 -> 64.3480958 | AC38: =F$28*I23+ROUND($P$14*365/12,2)+(Summary!N19/12)*2 -> 67.41423835 | AD38: =F$28*J23+ROUND($P$14*365/12,2)+(Summary!N19/12)*2 -> 65.04952823
B39: 8 cool | C39: =C$22*MIN(I24,P24)+IF(P24-I24>0,C$23*(P24-I24))+ROUND($C$25*365/12,2)+(Summary!N19/12)*2 -> 198.131442 | D39: =C$22*MIN(J24,Q24)+IF(Q24-J24>0,C$23*(Q24-J24))+ROUND($C$25*365/12,2)+(Summary!N19/12)*2 -> 149.8259713 | E39: =D$22*MIN(I24,P24)+IF(P24-I24>0,D$23*(P24-I24))+ROUND($F$14*365/12,2)+(Summary!N19/12)*2 -> 198.131442 | F39: =D$22*MIN(J24,Q24)+IF(Q24-J24>0,D$23*(Q24-J24))+ROUND($F$14*365/12,2)+(Summary!N19/12)*2 -> 149.8259713 | G39: =E$22*MIN(I24,P24)+IF(P24-I24>0,E$23*(P24-I24))+ROUND($F$14*365/12,2)+(Summary!N19/12)*2 -> 190.7529867 | H39: =E$22*MIN(J24,Q24)+IF(Q24-J24>0,E$23*(Q24-J24))+ROUND($F$14*365/12,2)+(Summary!N19/12)*2 -> 144.4278299 | I39: =F$22*MIN(I24,P24)+IF(P24-I24>0,F$23*(P24-I24))+ROUND($F$14*365/12,2)+(Summary!N19/12)*2 -> 192.6350467 | J39: =F$22*MIN(J24,Q24)+IF(Q24-J24>0,F$23*(Q24-J24))+ROUND($F$14*365/12,2)+(Summary!N19/12)*2 -> 145.8047612 | L39: 8 cool | M39: =C$22*I24+ROUND($C$25*365/12,2)+(Summary!N19/12)*2 -> 138.3073701 | N39: =C$22*J24+ROUND($C$25*365/12,2)+(Summary!N19/12)*2 -> 114.8391338 | O39: =D$22*I24+ROUND($F$14*365/12,2)+(Summary!N19/12)*2 -> 138.3073701 | P39: =D$22*J24+ROUND($F$14*365/12,2)+(Summary!N19/12)*2 -> 114.8391338 | Q39: =E$22*I24+ROUND($F$14*365/12,2)+(Summary!N19/12)*2 -> 133.3814412 | R39: =E$22*J24+ROUND($F$14*365/12,2)+(Summary!N19/12)*2 -> 110.8753003 | S39: =F$22*I24+ROUND($F$14*365/12,2)+(Summary!N19/12)*2 -> 134.6379228 | T39: =F$22*J24+ROUND($F$14*365/12,2)+(Summary!N19/12)*2 -> 111.8863754 | V39: 8 cool | W39: =C$28*I24+ROUND($C$31*365/12,2)+(Summary!N19/12)*2 -> 78.07440205 | X39: =C$28*J24+ROUND($C$31*365/12,2)+(Summary!N19/12)*2 -> 62.82940165 | Y39: =D$28*I24+ROUND($P$14*365/12,2)+(Summary!N19/12)*2 -> 78.07440205 | Z39: =D$28*J24+ROUND($P$14*365/12,2)+(Summary!N19/12)*2 -> 62.82940165 | AA39: =E$28*I24+ROUND($P$14*365/12,2)+(Summary!N19/12)*2 -> 74.87451148 | AB39: =E$28*J24+ROUND($P$14*365/12,2)+(Summary!N19/12)*2 -> 60.25448971 | AC39: =F$28*I24+ROUND($P$14*365/12,2)+(Summary!N19/12)*2 -> 75.69072376 | AD39: =F$28*J24+ROUND($P$14*365/12,2)+(Summary!N19/12)*2 -> 60.91128553
B40: 9 warm | C40: =C$22*MIN(I25,P25)+IF(P25-I25>0,C$23*(P25-I25))+ROUND($C$25*365/12,2)+(Summary!N19/12)*2 -> 237.7042714 | D40: =C$22*MIN(J25,Q25)+IF(Q25-J25>0,C$23*(Q25-J25))+ROUND($C$25*365/12,2)+(Summary!N19/12)*2 -> 162.0411923 | E40: =D$22*MIN(I25,P25)+IF(P25-I25>0,D$23*(P25-I25))+ROUND($F$14*365/12,2)+(Summary!N19/12)*2 -> 237.7042714 | F40: =D$22*MIN(J25,Q25)+IF(Q25-J25>0,D$23*(Q25-J25))+ROUND($F$14*365/12,2)+(Summary!N19/12)*2 -> 162.0411923 | G40: =E$22*MIN(I25,P25)+IF(P25-I25>0,E$23*(P25-I25))+ROUND($F$14*365/12,2)+(Summary!N19/12)*2 -> 228.7035024 | H40: =E$22*MIN(J25,Q25)+IF(Q25-J25>0,E$23*(Q25-J25))+ROUND($F$14*365/12,2)+(Summary!N19/12)*2 -> 156.1422801 | I40: =F$22*MIN(I25,P25)+IF(P25-I25>0,F$23*(P25-I25))+ROUND($F$14*365/12,2)+(Summary!N19/12)*2 -> 230.9993741 | J40: =F$22*MIN(J25,Q25)+IF(Q25-J25>0,F$23*(Q25-J25))+ROUND($F$14*365/12,2)+(Summary!N19/12)*2 -> 157.6469455 | L40: 9 warm | M40: =C$22*I25+ROUND($C$25*365/12,2)+(Summary!N19/12)*2 -> 176.7952777 | N40: =C$22*J25+ROUND($C$25*365/12,2)+(Summary!N19/12)*2 -> 130.7975345 | O40: =D$22*I25+ROUND($F$14*365/12,2)+(Summary!N19/12)*2 -> 176.7952777 | P40: =D$22*J25+ROUND($F$14*365/12,2)+(Summary!N19/12)*2 -> 130.7975345 | Q40: =E$22*I25+ROUND($F$14*365/12,2)+(Summary!N19/12)*2 -> 170.2915122 | R40: =E$22*J25+ROUND($F$14*365/12,2)+(Summary!N19/12)*2 -> 126.1794761 | S40: =F$22*I25+ROUND($F$14*365/12,2)+(Summary!N19/12)*2 -> 171.9504606 | T40: =F$22*J25+ROUND($F$14*365/12,2)+(Summary!N19/12)*2 -> 127.3574276 | V40: 9 warm | W40: =C$28*I25+ROUND($C$31*365/12,2)+(Summary!N19/12)*2 -> 103.0762027 | X40: =C$28*J25+ROUND($C$31*365/12,2)+(Summary!N19/12)*2 -> 73.19600192 | Y40: =D$28*I25+ROUND($P$14*365/12,2)+(Summary!N19/12)*2 -> 103.0762027 | Z40: =D$28*J25+ROUND($P$14*365/12,2)+(Summary!N19/12)*2 -> 73.19600192 | AA40: =E$28*I25+ROUND($P$14*365/12,2)+(Summary!N19/12)*2 -> 98.85134719 | AB40: =E$28*J25+ROUND($P$14*365/12,2)+(Summary!N19/12)*2 -> 70.19610451 | AC40: =F$28*I25+ROUND($P$14*365/12,2)+(Summary!N19/12)*2 -> 99.92900247 | AD40: =F$28*J25+ROUND($P$14*365/12,2)+(Summary!N19/12)*2 -> 70.96130353
B41: 10 hot (Sec 745) | C41: =C$22*MIN(I26,P26)+IF(P26-I26>0,C$23*(P26-I26))+ROUND($C$25*365/12,2)+(Summary!N19/12)*2 -> 271.2049466 | D41: =C$22*MIN(J26,Q26)+IF(Q26-J26>0,C$23*(Q26-J26))+ROUND($C$25*365/12,2)+(Summary!N19/12)*2 -> 171.5468394 | E41: =D$22*MIN(I26,P26)+IF(P26-I26>0,D$23*(P26-I26))+ROUND($F$14*365/12,2)+(Summary!N19/12)*2 -> 271.2049466 | F41: =D$22*MIN(J26,Q26)+IF(Q26-J26>0,D$23*(Q26-J26))+ROUND($F$14*365/12,2)+(Summary!N19/12)*2 -> 171.5468394 | G41: =E$22*MIN(I26,P26)+IF(P26-I26>0,E$23*(P26-I26))+ROUND($F$14*365/12,2)+(Summary!N19/12)*2 -> 260.8307958 | H41: =E$22*MIN(J26,Q26)+IF(Q26-J26>0,E$23*(Q26-J26))+ROUND($F$14*365/12,2)+(Summary!N19/12)*2 -> 165.258237 | I41: =F$22*MIN(I26,P26)+IF(P26-I26>0,F$23*(P26-I26))+ROUND($F$14*365/12,2)+(Summary!N19/12)*2 -> 263.476983 | J41: =F$22*MIN(J26,Q26)+IF(Q26-J26>0,F$23*(Q26-J26))+ROUND($F$14*365/12,2)+(Summary!N19/12)*2 -> 166.8623026 | L41: 10 hot (Sec 745) | M41: =C$22*I26+ROUND($C$25*365/12,2)+(Summary!N19/12)*2 -> 199.3247846 | N41: =C$22*J26+ROUND($C$25*365/12,2)+(Summary!N19/12)*2 -> 131.7362639 | O41: =D$22*I26+ROUND($F$14*365/12,2)+(Summary!N19/12)*2 -> 199.3247846 | P41: =D$22*J26+ROUND($F$14*365/12,2)+(Summary!N19/12)*2 -> 131.7362639 | Q41: =E$22*I26+ROUND($F$14*365/12,2)+(Summary!N19/12)*2 -> 191.8974074 | R41: =E$22*J26+ROUND($F$14*365/12,2)+(Summary!N19/12)*2 -> 127.0797218 | S41: =F$22*I26+ROUND($F$14*365/12,2)+(Summary!N19/12)*2 -> 193.7919461 | T41: =F$22*J26+ROUND($F$14*365/12,2)+(Summary!N19/12)*2 -> 128.2674895 | V41: 10 hot (Sec 745) | W41: =C$28*I26+ROUND($C$31*365/12,2)+(Summary!N19/12)*2 -> 117.7114031 | X41: =C$28*J26+ROUND($C$31*365/12,2)+(Summary!N19/12)*2 -> 73.80580194 | Y41: =D$28*I26+ROUND($P$14*365/12,2)+(Summary!N19/12)*2 -> 117.7114031 | Z41: =D$28*J26+ROUND($P$14*365/12,2)+(Summary!N19/12)*2 -> 73.80580194 | AA41: =E$28*I26+ROUND($P$14*365/12,2)+(Summary!N19/12)*2 -> 112.8865681 | AB41: =E$28*J26+ROUND($P$14*365/12,2)+(Summary!N19/12)*2 -> 70.78090538 | AC41: =F$28*I26+ROUND($P$14*365/12,2)+(Summary!N19/12)*2 -> 114.1172632 | AD41: =F$28*J26+ROUND($P$14*365/12,2)+(Summary!N19/12)*2 -> 71.55248106
B42: 13 hot | C42: =C$22*MIN(I27,P27)+IF(P27-I27>0,C$23*(P27-I27))+ROUND($C$25*365/12,2)+(Summary!N19/12)*2 -> 322.7195135 | D42: =C$22*MIN(J27,Q27)+IF(Q27-J27>0,C$23*(Q27-J27))+ROUND($C$25*365/12,2)+(Summary!N19/12)*2 -> 174.0550247 | E42: =D$22*MIN(I27,P27)+IF(P27-I27>0,D$23*(P27-I27))+ROUND($F$14*365/12,2)+(Summary!N19/12)*2 -> 322.7195135 | F42: =D$22*MIN(J27,Q27)+IF(Q27-J27>0,D$23*(Q27-J27))+ROUND($F$14*365/12,2)+(Summary!N19/12)*2 -> 174.0550247 | G42: =E$22*MIN(I27,P27)+IF(P27-I27>0,E$23*(P27-I27))+ROUND($F$14*365/12,2)+(Summary!N19/12)*2 -> 310.2334898 | H42: =E$22*MIN(J27,Q27)+IF(Q27-J27>0,E$23*(Q27-J27))+ROUND($F$14*365/12,2)+(Summary!N19/12)*2 -> 167.6635977 | I42: =F$22*MIN(I27,P27)+IF(P27-I27>0,F$23*(P27-I27))+ROUND($F$14*365/12,2)+(Summary!N19/12)*2 -> 313.4183631 | J42: =F$22*MIN(J27,Q27)+IF(Q27-J27>0,F$23*(Q27-J27))+ROUND($F$14*365/12,2)+(Summary!N19/12)*2 -> 169.2938913 | L42: 13 hot | M42: =C$22*I27+ROUND($C$25*365/12,2)+(Summary!N19/12)*2 -> 226.5479388 | N42: =C$22*J27+ROUND($C$25*365/12,2)+(Summary!N19/12)*2 -> 132.6749934 | O42: =D$22*I27+ROUND($F$14*365/12,2)+(Summary!N19/12)*2 -> 226.5479388 | P42: =D$22*J27+ROUND($F$14*365/12,2)+(Summary!N19/12)*2 -> 132.6749934 | Q42: =E$22*I27+ROUND($F$14*365/12,2)+(Summary!N19/12)*2 -> 218.0045308 | R42: =E$22*J27+ROUND($F$14*365/12,2)+(Summary!N19/12)*2 -> 127.9799674 | S42: =F$22*I27+ROUND($F$14*365/12,2)+(Summary!N19/12)*2 -> 220.1837412 | T42: =F$22*J27+ROUND($F$14*365/12,2)+(Summary!N19/12)*2 -> 129.1775514 | V42: 13 hot | W42: =C$28*I27+ROUND($C$31*365/12,2)+(Summary!N19/12)*2 -> 135.3956036 | X42: =C$28*J27+ROUND($C$31*365/12,2)+(Summary!N19/12)*2 -> 74.41560195 | Y42: =D$28*I27+ROUND($P$14*365/12,2)+(Summary!N19/12)*2 -> 135.3956036 | Z42: =D$28*J27+ROUND($P$14*365/12,2)+(Summary!N19/12)*2 -> 74.41560195 | AA42: =E$28*I27+ROUND($P$14*365/12,2)+(Summary!N19/12)*2 -> 129.8457933 | AB42: =E$28*J27+ROUND($P$14*365/12,2)+(Summary!N19/12)*2 -> 71.36570625 | AC42: =F$28*I27+ROUND($P$14*365/12,2)+(Summary!N19/12)*2 -> 131.2614115 | AD42: =F$28*J27+ROUND($P$14*365/12,2)+(Summary!N19/12)*2 -> 72.14365859
B43: 14 hot | C43: =C$22*MIN(I28,P28)+IF(P28-I28>0,C$23*(P28-I28))+ROUND($C$25*365/12,2)+(Summary!N19/12)*2 -> 260.8478591 | D43: =C$22*MIN(J28,Q28)+IF(Q28-J28>0,C$23*(Q28-J28))+ROUND($C$25*365/12,2)+(Summary!N19/12)*2 -> 161.7542784 | E43: =D$22*MIN(I28,P28)+IF(P28-I28>0,D$23*(P28-I28))+ROUND($F$14*365/12,2)+(Summary!N19/12)*2 -> 260.8478591 | F43: =D$22*MIN(J28,Q28)+IF(Q28-J28>0,D$23*(Q28-J28))+ROUND($F$14*365/12,2)+(Summary!N19/12)*2 -> 161.7542784 | G43: =E$22*MIN(I28,P28)+IF(P28-I28>0,E$23*(P28-I28))+ROUND($F$14*365/12,2)+(Summary!N19/12)*2 -> 250.8983038 | H43: =E$22*MIN(J28,Q28)+IF(Q28-J28>0,E$23*(Q28-J28))+ROUND($F$14*365/12,2)+(Summary!N19/12)*2 -> 155.8671283 | I43: =F$22*MIN(I28,P28)+IF(P28-I28>0,F$23*(P28-I28))+ROUND($F$14*365/12,2)+(Summary!N19/12)*2 -> 253.4361872 | J43: =F$22*MIN(J28,Q28)+IF(Q28-J28>0,F$23*(Q28-J28))+ROUND($F$14*365/12,2)+(Summary!N19/12)*2 -> 157.3687935 | L43: 14 hot | M43: =C$22*I28+ROUND($C$25*365/12,2)+(Summary!N19/12)*2 -> 198.3860552 | N43: =C$22*J28+ROUND($C$25*365/12,2)+(Summary!N19/12)*2 -> 129.858805 | O43: =D$22*I28+ROUND($F$14*365/12,2)+(Summary!N19/12)*2 -> 198.3860552 | P43: =D$22*J28+ROUND($F$14*365/12,2)+(Summary!N19/12)*2 -> 129.858805 | Q43: =E$22*I28+ROUND($F$14*365/12,2)+(Summary!N19/12)*2 -> 190.9971618 | R43: =E$22*J28+ROUND($F$14*365/12,2)+(Summary!N19/12)*2 -> 125.2792305 | S43: =F$22*I28+ROUND($F$14*365/12,2)+(Summary!N19/12)*2 -> 192.8818842 | T43: =F$22*J28+ROUND($F$14*365/12,2)+(Summary!N19/12)*2 -> 126.4473658 | V43: 14 hot | W43: =C$28*I28+ROUND($C$31*365/12,2)+(Summary!N19/12)*2 -> 117.1016031 | X43: =C$28*J28+ROUND($C$31*365/12,2)+(Summary!N19/12)*2 -> 72.5862019 | Y43: =D$28*I28+ROUND($P$14*365/12,2)+(Summary!N19/12)*2 -> 117.1016031 | Z43: =D$28*J28+ROUND($P$14*365/12,2)+(Summary!N19/12)*2 -> 72.5862019 | AA43: =E$28*I28+ROUND($P$14*365/12,2)+(Summary!N19/12)*2 -> 112.3017672 | AB43: =E$28*J28+ROUND($P$14*365/12,2)+(Summary!N19/12)*2 -> 69.61130364 | AC43: =F$28*I28+ROUND($P$14*365/12,2)+(Summary!N19/12)*2 -> 113.5260856 | AD43: =F$28*J28+ROUND($P$14*365/12,2)+(Summary!N19/12)*2 -> 70.370126
B44: 15 hot | C44: =C$22*MIN(I29,P29)+IF(P29-I29>0,C$23*(P29-I29))+ROUND($C$25*365/12,2)+(Summary!N19/12)*2 -> 348.0263706 | D44: =C$22*MIN(J29,Q29)+IF(Q29-J29>0,C$23*(Q29-J29))+ROUND($C$25*365/12,2)+(Summary!N19/12)*2 -> 198.9860452 | E44: =D$22*MIN(I29,P29)+IF(P29-I29>0,D$23*(P29-I29))+ROUND($F$14*365/12,2)+(Summary!N19/12)*2 -> 348.0263706 | F44: =D$22*MIN(J29,Q29)+IF(Q29-J29>0,D$23*(Q29-J29))+ROUND($F$14*365/12,2)+(Summary!N19/12)*2 -> 198.9860452 | G44: =E$22*MIN(I29,P29)+IF(P29-I29>0,E$23*(P29-I29))+ROUND($F$14*365/12,2)+(Summary!N19/12)*2 -> 334.502876 | H44: =E$22*MIN(J29,Q29)+IF(Q29-J29>0,E$23*(Q29-J29))+ROUND($F$14*365/12,2)+(Summary!N19/12)*2 -> 191.5725549 | I44: =F$22*MIN(I29,P29)+IF(P29-I29>0,F$23*(P29-I29))+ROUND($F$14*365/12,2)+(Summary!N19/12)*2 -> 337.9523822 | J44: =F$22*MIN(J29,Q29)+IF(Q29-J29>0,F$23*(Q29-J29))+ROUND($F$14*365/12,2)+(Summary!N19/12)*2 -> 193.4635514 | L44: 15 hot | M44: =C$22*I29+ROUND($C$25*365/12,2)+(Summary!N19/12)*2 -> 440.5782543 | N44: =C$22*J29+ROUND($C$25*365/12,2)+(Summary!N19/12)*2 -> 109.206757 | O44: =D$22*I29+ROUND($F$14*365/12,2)+(Summary!N19/12)*2 -> 440.5782543 | P44: =D$22*J29+ROUND($F$14*365/12,2)+(Summary!N19/12)*2 -> 109.206757 | Q44: =E$22*I29+ROUND($F$14*365/12,2)+(Summary!N19/12)*2 -> 423.2605355 | R44: =E$22*J29+ROUND($F$14*365/12,2)+(Summary!N19/12)*2 -> 105.4738265 | S44: =F$22*I29+ROUND($F$14*365/12,2)+(Summary!N19/12)*2 -> 427.6778537 | T44: =F$22*J29+ROUND($F$14*365/12,2)+(Summary!N19/12)*2 -> 106.426004 | V44: 15 hot | W44: =C$28*I29+ROUND($C$31*365/12,2)+(Summary!N19/12)*2 -> 274.4300072 | X44: =C$28*J29+ROUND($C$31*365/12,2)+(Summary!N19/12)*2 -> 59.17060155 | Y44: =D$28*I29+ROUND($P$14*365/12,2)+(Summary!N19/12)*2 -> 274.4300072 | Z44: =D$28*J29+ROUND($P$14*365/12,2)+(Summary!N19/12)*2 -> 59.17060155 | AA44: =E$28*I29+ROUND($P$14*365/12,2)+(Summary!N19/12)*2 -> 263.1803919 | AB44: =E$28*J29+ROUND($P$14*365/12,2)+(Summary!N19/12)*2 -> 56.74568448 | AC44: =F$28*I29+ROUND($P$14*365/12,2)+(Summary!N19/12)*2 -> 266.0498882 | AD44: =F$28*J29+ROUND($P$14*365/12,2)+(Summary!N19/12)*2 -> 57.36422035
B45: 16 cool | C45: =C$22*MIN(I30,P30)+IF(P30-I30>0,C$23*(P30-I30))+ROUND($C$25*365/12,2)+(Summary!N19/12)*2 -> 174.6421965 | D45: =C$22*MIN(J30,Q30)+IF(Q30-J30>0,C$23*(Q30-J30))+ROUND($C$25*365/12,2)+(Summary!N19/12)*2 -> 139.9012724 | E45: =D$22*MIN(I30,P30)+IF(P30-I30>0,D$23*(P30-I30))+ROUND($F$14*365/12,2)+(Summary!N19/12)*2 -> 174.6421965 | F45: =D$22*MIN(J30,Q30)+IF(Q30-J30>0,D$23*(Q30-J30))+ROUND($F$14*365/12,2)+(Summary!N19/12)*2 -> 139.9012724 | G45: =E$22*MIN(I30,P30)+IF(P30-I30>0,E$23*(P30-I30))+ROUND($F$14*365/12,2)+(Summary!N19/12)*2 -> 168.2266979 | H45: =E$22*MIN(J30,Q30)+IF(Q30-J30>0,E$23*(Q30-J30))+ROUND($F$14*365/12,2)+(Summary!N19/12)*2 -> 134.9100005 | I45: =F$22*MIN(I30,P30)+IF(P30-I30>0,F$23*(P30-I30))+ROUND($F$14*365/12,2)+(Summary!N19/12)*2 -> 169.8631316 | J45: =F$22*MIN(J30,Q30)+IF(Q30-J30>0,F$23*(Q30-J30))+ROUND($F$14*365/12,2)+(Summary!N19/12)*2 -> 136.1831495 | L45: 16 cool | M45: =C$22*I30+ROUND($C$25*365/12,2)+(Summary!N19/12)*2 -> 156.1432297 | N45: =C$22*J30+ROUND($C$25*365/12,2)+(Summary!N19/12)*2 -> 134.5524523 | O45: =D$22*I30+ROUND($F$14*365/12,2)+(Summary!N19/12)*2 -> 156.1432297 | P45: =D$22*J30+ROUND($F$14*365/12,2)+(Summary!N19/12)*2 -> 134.5524523 | Q45: =E$22*I30+ROUND($F$14*365/12,2)+(Summary!N19/12)*2 -> 150.4861083 | R45: =E$22*J30+ROUND($F$14*365/12,2)+(Summary!N19/12)*2 -> 129.7804587 | S45: =F$22*I30+ROUND($F$14*365/12,2)+(Summary!N19/12)*2 -> 151.9290989 | T45: =F$22*J30+ROUND($F$14*365/12,2)+(Summary!N19/12)*2 -> 130.9976752 | V45: 16 cool | W45: =C$28*I30+ROUND($C$31*365/12,2)+(Summary!N19/12)*2 -> 89.66060235 | X45: =C$28*J30+ROUND($C$31*365/12,2)+(Summary!N19/12)*2 -> 75.63520198 | Y45: =D$28*I30+ROUND($P$14*365/12,2)+(Summary!N19/12)*2 -> 89.66060235 | Z45: =D$28*J30+ROUND($P$14*365/12,2)+(Summary!N19/12)*2 -> 75.63520198 | AA45: =E$28*I30+ROUND($P$14*365/12,2)+(Summary!N19/12)*2 -> 85.98572803 | AB45: =E$28*J30+ROUND($P$14*365/12,2)+(Summary!N19/12)*2 -> 72.53530799 | AC45: =F$28*I30+ROUND($P$14*365/12,2)+(Summary!N19/12)*2 -> 86.92309682 | AD45: =F$28*J30+ROUND($P$14*365/12,2)+(Summary!N19/12)*2 -> 73.32601365
B46: ALL | C46: =SUMPRODUCT(C37:C45,$T$22:$T$30) -> 232.952502 | D46: 159.5418132 | E46: 232.952502 | F46: 159.5418132 | G46: 224.1465349 | H46: 153.7453646 | I46: 226.3927175 | J46: 155.2238941 | L46: ALL | M46: =SUMPRODUCT(M37:M45,$T$22:$T$30) -> 178.0175738 | N46: 125.3492599 | O46: 178.0175738 | P46: 125.3492599 | Q46: 171.4636995 | R46: 120.9545571 | S46: 173.1354294 | T46: 122.0755362 | V46: ALL | W46: =SUMPRODUCT(W37:W45,$U$22:$U$30) -> 113.6636786 | X46: =SUMPRODUCT(X37:X45,$U$22:$U$30) -> 71.08954678 | Y46: 113.6636786 | Z46: 71.08954678 | AA46: 109.0047827 | AB46: 68.17600486 | AC46: 110.1931509 | AD46: 68.91917675
C49: CARE | M49: Essential Use (All-Electric) - Non-CARE | W49: Essential Use (All-Electric) - CARE
C50: =C27 -> Jan 2026 | E50: =D27 -> 2026-01-01 | G50: =E27 -> Authorized | I50: =F27 -> w/Pending | M50: =C50 -> Jan 2026 | O50: =E50 -> 2026-01-01 | Q50: =G50 -> Authorized | S50: =I50 -> w/Pending | W50: =M50 -> Jan 2026 | Y50: =O50 -> 2026-01-01 | AA50: =Q50 -> Authorized | AC50: =S50 -> w/Pending
C51: Summer | D51: Winter | E51: Summer | F51: Winter | G51: Summer | H51: Winter | I51: Summer | J51: Winter | M51: Summer | N51: Winter | O51: Summer | P51: Winter | Q51: Summer | R51: Winter | S51: Summer | T51: Winter | W51: Summer | X51: Winter | Y51: Summer | Z51: Winter | AA51: Summer | AB51: Winter | AC51: Summer | AD51: Winter
B52: 5 warm | C52: =C$28*MIN(I22,R22)+IF(R22-I22>0,C$29*(R22-I22))+ROUND($C$31*365/12,2)+(Summary!N19/12)*2 -> 61.52253951 | D52: =C$28*MIN(J22,S22)+IF(S22-J22>0,C$29*(S22-J22))+ROUND($C$31*365/12,2)+(Summary!N19/12)*2 -> 67.24772944 | E52: =D$28*MIN(I22,R22)+IF(R22-I22>0,D$29*(R22-I22))+ROUND($P$14*365/12,2)+(Summary!N19/12)*2 -> 61.52253951 | F52: =D$28*MIN(J22,S22)+IF(S22-J22>0,D$29*(S22-J22))+ROUND($P$14*365/12,2)+(Summary!N19/12)*2 -> 67.24772944 | G52: =E$28*MIN(I22,R22)+IF(R22-I22>0,E$29*(R22-I22))+ROUND($P$14*365/12,2)+(Summary!N19/12)*2 -> 59.00120322 | H52: =E$28*MIN(J22,S22)+IF(S22-J22>0,E$29*(S22-J22))+ROUND($P$14*365/12,2)+(Summary!N19/12)*2 -> 64.4916853 | I52: =F$28*MIN(I22,R22)+IF(R22-I22>0,F$29*(R22-I22))+ROUND($P$14*365/12,2)+(Summary!N19/12)*2 -> 59.64433323 | J52: =F$28*MIN(J22,S22)+IF(S22-J22>0,F$29*(S22-J22))+ROUND($P$14*365/12,2)+(Summary!N19/12)*2 -> 65.19468343 | L52: 5 warm | M52: =C$22*K22+ROUND($C$25*365/12,2)+(Summary!N19/12)*2 -> 175.8565483 | N52: =C$22*L22+ROUND($C$25*365/12,2)+(Summary!N19/12)*2 -> 271.6069526 | O52: =D$22*K22+ROUND($F$14*365/12,2)+(Summary!N19/12)*2 -> 175.8565483 | P52: =D$22*L22+ROUND($F$14*365/12,2)+(Summary!N19/12)*2 -> 271.6069526 | Q52: =E$22*K22+ROUND($F$14*365/12,2)+(Summary!N19/12)*2 -> 169.3912666 | R52: =E$22*L22+ROUND($F$14*365/12,2)+(Summary!N19/12)*2 -> 261.2163213 | S52: =F$22*K22+ROUND($F$14*365/12,2)+(Summary!N19/12)*2 -> 171.0403987 | T52: =F$22*L22+ROUND($F$14*365/12,2)+(Summary!N19/12)*2 -> 263.8667122 | V52: 5 warm | W52: =C$28*K22+ROUND($C$31*365/12,2)+(Summary!N19/12)*2 -> 102.4664027 | X52: =C$28*L22+ROUND($C$31*365/12,2)+(Summary!N19/12)*2 -> 164.6660043 | Y52: =D$28*K22+ROUND($P$14*365/12,2)+(Summary!N19/12)*2 -> 102.4664027 | Z52: =D$28*L22+ROUND($P$14*365/12,2)+(Summary!N19/12)*2 -> 164.6660043 | AA52: =E$28*K22+ROUND($P$14*365/12,2)+(Summary!N19/12)*2 -> 98.26654631 | AB52: =E$28*L22+ROUND($P$14*365/12,2)+(Summary!N19/12)*2 -> 157.9162351 | AC52: =F$28*K22+ROUND($P$14*365/12,2)+(Summary!N19/12)*2 -> 99.33782494 | AD52: =F$28*L22+ROUND($P$14*365/12,2)+(Summary!N19/12)*2 -> 159.6379329
B53: 6 cool | C53: =C$28*MIN(I23,R23)+IF(R23-I23>0,C$29*(R23-I23))+ROUND($C$31*365/12,2)+(Summary!N19/12)*2 -> 82.81747882 | D53: =C$28*MIN(J23,S23)+IF(S23-J23>0,C$29*(S23-J23))+ROUND($C$31*365/12,2)+(Summary!N19/12)*2 -> 71.06500083 | E53: =D$28*MIN(I23,R23)+IF(R23-I23>0,D$29*(R23-I23))+ROUND($P$14*365/12,2)+(Summary!N19/12)*2 -> 82.81747882 | F53: =D$28*MIN(J23,S23)+IF(S23-J23>0,D$29*(S23-J23))+ROUND($P$14*365/12,2)+(Summary!N19/12)*2 -> 71.06500083 | G53: =E$28*MIN(I23,R23)+IF(R23-I23>0,E$29*(R23-I23))+ROUND($P$14*365/12,2)+(Summary!N19/12)*2 -> 79.42314275 | H53: =E$28*MIN(J23,S23)+IF(S23-J23>0,E$29*(S23-J23))+ROUND($P$14*365/12,2)+(Summary!N19/12)*2 -> 68.15246519 | I53: =F$28*MIN(I23,R23)+IF(R23-I23>0,F$29*(R23-I23))+ROUND($P$14*365/12,2)+(Summary!N19/12)*2 -> 80.28895324 | J53: =F$28*MIN(J23,S23)+IF(S23-J23>0,F$29*(S23-J23))+ROUND($P$14*365/12,2)+(Summary!N19/12)*2 -> 68.8953804 | L53: 6 cool | M53: =C$22*K23+ROUND($C$25*365/12,2)+(Summary!N19/12)*2 -> 99.8194625 | N53: =C$22*L23+ROUND($C$25*365/12,2)+(Summary!N19/12)*2 -> 136.4299112 | O53: =D$22*K23+ROUND($F$14*365/12,2)+(Summary!N19/12)*2 -> 99.8194625 | P53: =D$22*L23+ROUND($F$14*365/12,2)+(Summary!N19/12)*2 -> 136.4299112 | Q53: =E$22*K23+ROUND($F$14*365/12,2)+(Summary!N19/12)*2 -> 96.47137019 | R53: =E$22*L23+ROUND($F$14*365/12,2)+(Summary!N19/12)*2 -> 131.5809499 | S53: =F$22*K23+ROUND($F$14*365/12,2)+(Summary!N19/12)*2 -> 97.32538505 | T53: =F$22*L23+ROUND($F$14*365/12,2)+(Summary!N19/12)*2 -> 132.817799 | V53: 6 cool | W53: =C$28*K23+ROUND($C$31*365/12,2)+(Summary!N19/12)*2 -> 53.07260139 | X53: =C$28*L23+ROUND($C$31*365/12,2)+(Summary!N19/12)*2 -> 76.85480202 | Y53: =D$28*K23+ROUND($P$14*365/12,2)+(Summary!N19/12)*2 -> 53.07260139 | Z53: =D$28*L23+ROUND($P$14*365/12,2)+(Summary!N19/12)*2 -> 76.85480202 | AA53: =E$28*K23+ROUND($P$14*365/12,2)+(Summary!N19/12)*2 -> 50.89767577 | AB53: =E$28*L23+ROUND($P$14*365/12,2)+(Summary!N19/12)*2 -> 73.70490974 | AC53: =F$28*K23+ROUND($P$14*365/12,2)+(Summary!N19/12)*2 -> 51.45244506 | AD53: =F$28*L23+ROUND($P$14*365/12,2)+(Summary!N19/12)*2 -> 74.50836871
B54: 8 cool | C54: =C$28*MIN(I24,R24)+IF(R24-I24>0,C$29*(R24-I24))+ROUND($C$31*365/12,2)+(Summary!N19/12)*2 -> 104.15529 | D54: =C$28*MIN(J24,S24)+IF(S24-J24>0,C$29*(S24-J24))+ROUND($C$31*365/12,2)+(Summary!N19/12)*2 -> 79.84794065 | E54: =D$28*MIN(I24,R24)+IF(R24-I24>0,D$29*(R24-I24))+ROUND($P$14*365/12,2)+(Summary!N19/12)*2 -> 104.15529 | F54: =D$28*MIN(J24,S24)+IF(S24-J24>0,D$29*(S24-J24))+ROUND($P$14*365/12,2)+(Summary!N19/12)*2 -> 79.84794065 | G54: =E$28*MIN(I24,R24)+IF(R24-I24>0,E$29*(R24-I24))+ROUND($P$14*365/12,2)+(Summary!N19/12)*2 -> 99.88619662 | H54: =E$28*MIN(J24,S24)+IF(S24-J24>0,E$29*(S24-J24))+ROUND($P$14*365/12,2)+(Summary!N19/12)*2 -> 76.57534273 | I54: =F$28*MIN(I24,R24)+IF(R24-I24>0,F$29*(R24-I24))+ROUND($P$14*365/12,2)+(Summary!N19/12)*2 -> 100.9751359 | J54: =F$28*MIN(J24,S24)+IF(S24-J24>0,F$29*(S24-J24))+ROUND($P$14*365/12,2)+(Summary!N19/12)*2 -> 77.41010085 | L54: 8 cool | M54: =C$22*K24+ROUND($C$25*365/12,2)+(Summary!N19/12)*2 -> 111.0842159 | N54: =C$22*L24+ROUND($C$25*365/12,2)+(Summary!N19/12)*2 -> 133.6137228 | O54: =D$22*K24+ROUND($F$14*365/12,2)+(Summary!N19/12)*2 -> 111.0842159 | P54: =D$22*L24+ROUND($F$14*365/12,2)+(Summary!N19/12)*2 -> 133.6137228 | Q54: =E$22*K24+ROUND($F$14*365/12,2)+(Summary!N19/12)*2 -> 107.2743178 | R54: =E$22*L24+ROUND($F$14*365/12,2)+(Summary!N19/12)*2 -> 128.880213 | S54: =F$22*K24+ROUND($F$14*365/12,2)+(Summary!N19/12)*2 -> 108.2461278 | T54: =F$22*L24+ROUND($F$14*365/12,2)+(Summary!N19/12)*2 -> 130.0876133 | V54: 8 cool | W54: =C$28*K24+ROUND($C$31*365/12,2)+(Summary!N19/12)*2 -> 60.39020158 | X54: =C$28*L24+ROUND($C$31*365/12,2)+(Summary!N19/12)*2 -> 75.02540197 | Y54: =D$28*K24+ROUND($P$14*365/12,2)+(Summary!N19/12)*2 -> 60.39020158 | Z54: =D$28*L24+ROUND($P$14*365/12,2)+(Summary!N19/12)*2 -> 75.02540197 | AA54: =E$28*K24+ROUND($P$14*365/12,2)+(Summary!N19/12)*2 -> 57.91528622 | AB54: =E$28*L24+ROUND($P$14*365/12,2)+(Summary!N19/12)*2 -> 71.95050712 | AC54: =F$28*K24+ROUND($P$14*365/12,2)+(Summary!N19/12)*2 -> 58.54657541 | AD54: =F$28*L24+ROUND($P$14*365/12,2)+(Summary!N19/12)*2 -> 72.73483612
B55: 9 warm | C55: =C$28*MIN(I25,R25)+IF(R25-I25>0,C$29*(R25-I25))+ROUND($C$31*365/12,2)+(Summary!N19/12)*2 -> 137.6730359 | D55: =C$28*MIN(J25,S25)+IF(S25-J25>0,C$29*(S25-J25))+ROUND($C$31*365/12,2)+(Summary!N19/12)*2 -> 88.93426186 | E55: =D$28*MIN(I25,R25)+IF(R25-I25>0,D$29*(R25-I25))+ROUND($P$14*365/12,2)+(Summary!N19/12)*2 -> 137.6730359 | F55: =D$28*MIN(J25,S25)+IF(S25-J25>0,D$29*(S25-J25))+ROUND($P$14*365/12,2)+(Summary!N19/12)*2 -> 88.93426186 | G55: =E$28*MIN(I25,R25)+IF(R25-I25>0,E$29*(R25-I25))+ROUND($P$14*365/12,2)+(Summary!N19/12)*2 -> 132.0298609 | H55: =E$28*MIN(J25,S25)+IF(S25-J25>0,E$29*(S25-J25))+ROUND($P$14*365/12,2)+(Summary!N19/12)*2 -> 85.28916433 | I55: =F$28*MIN(I25,R25)+IF(R25-I25>0,F$29*(R25-I25))+ROUND($P$14*365/12,2)+(Summary!N19/12)*2 -> 133.4692941 | J55: =F$28*MIN(J25,S25)+IF(S25-J25>0,F$29*(S25-J25))+ROUND($P$14*365/12,2)+(Summary!N19/12)*2 -> 86.21893781 | L55: 9 warm | M55: =C$22*K25+ROUND($C$25*365/12,2)+(Summary!N19/12)*2 -> 135.4911818 | N55: =C$22*L25+ROUND($C$25*365/12,2)+(Summary!N19/12)*2 -> 148.6333941 | O55: =D$22*K25+ROUND($F$14*365/12,2)+(Summary!N19/12)*2 -> 135.4911818 | P55: =D$22*L25+ROUND($F$14*365/12,2)+(Summary!N19/12)*2 -> 148.6333941 | Q55: =E$22*K25+ROUND($F$14*365/12,2)+(Summary!N19/12)*2 -> 130.6807043 | R55: =E$22*L25+ROUND($F$14*365/12,2)+(Summary!N19/12)*2 -> 143.2841432 | S55: =F$22*K25+ROUND($F$14*365/12,2)+(Summary!N19/12)*2 -> 131.9077371 | T55: =F$22*L25+ROUND($F$14*365/12,2)+(Summary!N19/12)*2 -> 144.6486037 | V55: 9 warm | W55: =C$28*K25+ROUND($C$31*365/12,2)+(Summary!N19/12)*2 -> 76.245002 | X55: =C$28*L25+ROUND($C$31*365/12,2)+(Summary!N19/12)*2 -> 84.78220222 | Y55: =D$28*K25+ROUND($P$14*365/12,2)+(Summary!N19/12)*2 -> 76.245002 | Z55: =D$28*L25+ROUND($P$14*365/12,2)+(Summary!N19/12)*2 -> 84.78220222 | AA55: =E$28*K25+ROUND($P$14*365/12,2)+(Summary!N19/12)*2 -> 73.12010887 | AB55: =E$28*L25+ROUND($P$14*365/12,2)+(Summary!N19/12)*2 -> 81.30732106 | AC55: =F$28*K25+ROUND($P$14*365/12,2)+(Summary!N19/12)*2 -> 73.91719118 | AD55: =F$28*L25+ROUND($P$14*365/12,2)+(Summary!N19/12)*2 -> 82.19367659
B56: 10 hot (Sec 745) | C56: =C$28*MIN(I26,R26)+IF(R26-I26>0,C$29*(R26-I26))+ROUND($C$31*365/12,2)+(Summary!N19/12)*2 -> 184.7328047 | D56: =C$28*MIN(J26,S26)+IF(S26-J26>0,C$29*(S26-J26))+ROUND($C$31*365/12,2)+(Summary!N19/12)*2 -> 106.1351396 | E56: =D$28*MIN(I26,R26)+IF(R26-I26>0,D$29*(R26-I26))+ROUND($P$14*365/12,2)+(Summary!N19/12)*2 -> 184.7328047 | F56: =D$28*MIN(J26,S26)+IF(S26-J26>0,D$29*(S26-J26))+ROUND($P$14*365/12,2)+(Summary!N19/12)*2 -> 106.1351396 | G56: =E$28*MIN(I26,R26)+IF(R26-I26>0,E$29*(R26-I26))+ROUND($P$14*365/12,2)+(Summary!N19/12)*2 -> 177.1603841 | H56: =E$28*MIN(J26,S26)+IF(S26-J26>0,E$29*(S26-J26))+ROUND($P$14*365/12,2)+(Summary!N19/12)*2 -> 101.784881 | I56: =F$28*MIN(I26,R26)+IF(R26-I26>0,F$29*(R26-I26))+ROUND($P$14*365/12,2)+(Summary!N19/12)*2 -> 179.0919198 | J56: =F$28*MIN(J26,S26)+IF(S26-J26>0,F$29*(S26-J26))+ROUND($P$14*365/12,2)+(Summary!N19/12)*2 -> 102.8945235 | L56: 10 hot (Sec 745) | M56: =C$22*K26+ROUND($C$25*365/12,2)+(Summary!N19/12)*2 -> 167.4079832 | N56: =C$22*L26+ROUND($C$25*365/12,2)+(Summary!N19/12)*2 -> 172.1016305 | O56: =D$22*K26+ROUND($F$14*365/12,2)+(Summary!N19/12)*2 -> 167.4079832 | P56: =D$22*L26+ROUND($F$14*365/12,2)+(Summary!N19/12)*2 -> 172.1016305 | Q56: =E$22*K26+ROUND($F$14*365/12,2)+(Summary!N19/12)*2 -> 161.2890559 | R56: =E$22*L26+ROUND($F$14*365/12,2)+(Summary!N19/12)*2 -> 165.790284 | S56: =F$22*K26+ROUND($F$14*365/12,2)+(Summary!N19/12)*2 -> 162.8498416 | T56: =F$22*L26+ROUND($F$14*365/12,2)+(Summary!N19/12)*2 -> 167.4001511 | V56: 10 hot (Sec 745) | W56: =C$28*K26+ROUND($C$31*365/12,2)+(Summary!N19/12)*2 -> 96.97820254 | X56: =C$28*L26+ROUND($C$31*365/12,2)+(Summary!N19/12)*2 -> 100.0272026 | Y56: =D$28*K26+ROUND($P$14*365/12,2)+(Summary!N19/12)*2 -> 96.97820254 | Z56: =D$28*L26+ROUND($P$14*365/12,2)+(Summary!N19/12)*2 -> 100.0272026 | AA56: =E$28*K26+ROUND($P$14*365/12,2)+(Summary!N19/12)*2 -> 93.00333848 | AB56: =E$28*L26+ROUND($P$14*365/12,2)+(Summary!N19/12)*2 -> 95.92734283 | AC56: =F$28*K26+ROUND($P$14*365/12,2)+(Summary!N19/12)*2 -> 94.01722718 | AD56: =F$28*L26+ROUND($P$14*365/12,2)+(Summary!N19/12)*2 -> 96.97311482
B57: 13 hot | C57: =C$28*MIN(I27,R27)+IF(R27-I27>0,C$29*(R27-I27))+ROUND($C$31*365/12,2)+(Summary!N19/12)*2 -> 207.9837138 | D57: =C$28*MIN(J27,S27)+IF(S27-J27>0,C$29*(S27-J27))+ROUND($C$31*365/12,2)+(Summary!N19/12)*2 -> 101.8865444 | E57: =D$28*MIN(I27,R27)+IF(R27-I27>0,D$29*(R27-I27))+ROUND($P$14*365/12,2)+(Summary!N19/12)*2 -> 207.9837138 | F57: =D$28*MIN(J27,S27)+IF(S27-J27>0,D$29*(S27-J27))+ROUND($P$14*365/12,2)+(Summary!N19/12)*2 -> 101.8865444 | G57: =E$28*MIN(I27,R27)+IF(R27-I27>0,E$29*(R27-I27))+ROUND($P$14*365/12,2)+(Summary!N19/12)*2 -> 199.4581072 | H57: =E$28*MIN(J27,S27)+IF(S27-J27>0,E$29*(S27-J27))+ROUND($P$14*365/12,2)+(Summary!N19/12)*2 -> 97.71045966 | I57: =F$28*MIN(I27,R27)+IF(R27-I27>0,F$29*(R27-I27))+ROUND($P$14*365/12,2)+(Summary!N19/12)*2 -> 201.6327768 | J57: =F$28*MIN(J27,S27)+IF(S27-J27>0,F$29*(S27-J27))+ROUND($P$14*365/12,2)+(Summary!N19/12)*2 -> 98.77567472 | L57: 13 hot | M57: =C$22*K27+ROUND($C$25*365/12,2)+(Summary!N19/12)*2 -> 245.3225279 | N57: =C$22*L27+ROUND($C$25*365/12,2)+(Summary!N19/12)*2 -> 234.0577744 | O57: =D$22*K27+ROUND($F$14*365/12,2)+(Summary!N19/12)*2 -> 245.3225279 | P57: =D$22*L27+ROUND($F$14*365/12,2)+(Summary!N19/12)*2 -> 234.0577744 | Q57: =E$22*K27+ROUND($F$14*365/12,2)+(Summary!N19/12)*2 -> 236.0094435 | R57: =E$22*L27+ROUND($F$14*365/12,2)+(Summary!N19/12)*2 -> 225.2064959 | S57: =F$22*K27+ROUND($F$14*365/12,2)+(Summary!N19/12)*2 -> 238.3849791 | T57: =F$22*L27+ROUND($F$14*365/12,2)+(Summary!N19/12)*2 -> 227.4642363 | V57: 13 hot | W57: =C$28*K27+ROUND($C$31*365/12,2)+(Summary!N19/12)*2 -> 147.5916039 | X57: =C$28*L27+ROUND($C$31*365/12,2)+(Summary!N19/12)*2 -> 140.2740037 | Y57: =D$28*K27+ROUND($P$14*365/12,2)+(Summary!N19/12)*2 -> 147.5916039 | Z57: =D$28*L27+ROUND($P$14*365/12,2)+(Summary!N19/12)*2 -> 140.2740037 | AA57: =E$28*K27+ROUND($P$14*365/12,2)+(Summary!N19/12)*2 -> 141.5418108 | AB57: =E$28*L27+ROUND($P$14*365/12,2)+(Summary!N19/12)*2 -> 134.5242003 | AC57: =F$28*K27+ROUND($P$14*365/12,2)+(Summary!N19/12)*2 -> 143.0849621 | AD57: =F$28*L27+ROUND($P$14*365/12,2)+(Summary!N19/12)*2 -> 135.9908318
B58: 14 hot | C58: =C$28*MIN(I28,R28)+IF(R28-I28>0,C$29*(R28-I28))+ROUND($C$31*365/12,2)+(Summary!N19/12)*2 -> 187.707833 | D58: =C$28*MIN(J28,S28)+IF(S28-J28>0,C$29*(S28-J28))+ROUND($C$31*365/12,2)+(Summary!N19/12)*2 -> 110.0200405 | E58: =D$28*MIN(I28,R28)+IF(R28-I28>0,D$29*(R28-I28))+ROUND($P$14*365/12,2)+(Summary!N19/12)*2 -> 187.707833 | F58: =D$28*MIN(J28,S28)+IF(S28-J28>0,D$29*(S28-J28))+ROUND($P$14*365/12,2)+(Summary!N19/12)*2 -> 110.0200405 | G58: =E$28*MIN(I28,R28)+IF(R28-I28>0,E$29*(R28-I28))+ROUND($P$14*365/12,2)+(Summary!N19/12)*2 -> 180.0134492 | H58: =E$28*MIN(J28,S28)+IF(S28-J28>0,E$29*(S28-J28))+ROUND($P$14*365/12,2)+(Summary!N19/12)*2 -> 105.5105179 | I58: =F$28*MIN(I28,R28)+IF(R28-I28>0,F$29*(R28-I28))+ROUND($P$14*365/12,2)+(Summary!N19/12)*2 -> 181.9760946 | J58: =F$28*MIN(J28,S28)+IF(S28-J28>0,F$29*(S28-J28))+ROUND($P$14*365/12,2)+(Summary!N19/12)*2 -> 106.6607847 | L58: 14 hot | M58: =C$22*K28+ROUND($C$25*365/12,2)+(Summary!N19/12)*2 -> 191.814949 | N58: =C$22*L28+ROUND($C$25*365/12,2)+(Summary!N19/12)*2 -> 216.2219148 | O58: =D$22*K28+ROUND($F$14*365/12,2)+(Summary!N19/12)*2 -> 191.814949 | P58: =D$22*L28+ROUND($F$14*365/12,2)+(Summary!N19/12)*2 -> 216.2219148 | Q58: =E$22*K28+ROUND($F$14*365/12,2)+(Summary!N19/12)*2 -> 184.6954424 | R58: =E$22*L28+ROUND($F$14*365/12,2)+(Summary!N19/12)*2 -> 208.1018289 | S58: =F$22*K28+ROUND($F$14*365/12,2)+(Summary!N19/12)*2 -> 186.511451 | T58: =F$22*L28+ROUND($F$14*365/12,2)+(Summary!N19/12)*2 -> 210.1730603 | V58: 14 hot | W58: =C$28*K28+ROUND($C$31*365/12,2)+(Summary!N19/12)*2 -> 112.833003 | X58: =C$28*L28+ROUND($C$31*365/12,2)+(Summary!N19/12)*2 -> 128.6878034 | Y58: =D$28*K28+ROUND($P$14*365/12,2)+(Summary!N19/12)*2 -> 112.833003 | Z58: =D$28*L28+ROUND($P$14*365/12,2)+(Summary!N19/12)*2 -> 128.6878034 | AA58: =E$28*K28+ROUND($P$14*365/12,2)+(Summary!N19/12)*2 -> 108.2081611 | AB58: =E$28*L28+ROUND($P$14*365/12,2)+(Summary!N19/12)*2 -> 123.4129838 | AC58: =F$28*K28+ROUND($P$14*365/12,2)+(Summary!N19/12)*2 -> 109.3878429 | AD58: =F$28*L28+ROUND($P$14*365/12,2)+(Summary!N19/12)*2 -> 124.7584587
B59: 15 hot | C59: =C$28*MIN(I29,R29)+IF(R29-I29>0,C$29*(R29-I29))+ROUND($C$31*365/12,2)+(Summary!N19/12)*2 -> 244.0430027 | D59: =C$28*MIN(J29,S29)+IF(S29-J29>0,C$29*(S29-J29))+ROUND($C$31*365/12,2)+(Summary!N19/12)*2 -> 116.820981 | E59: =D$28*MIN(I29,R29)+IF(R29-I29>0,D$29*(R29-I29))+ROUND($P$14*365/12,2)+(Summary!N19/12)*2 -> 244.0430027 | F59: =D$28*MIN(J29,S29)+IF(S29-J29>0,D$29*(S29-J29))+ROUND($P$14*365/12,2)+(Summary!N19/12)*2 -> 116.820981 | G59: =E$28*MIN(I29,R29)+IF(R29-I29>0,E$29*(R29-I29))+ROUND($P$14*365/12,2)+(Summary!N19/12)*2 -> 234.0391222 | H59: =E$28*MIN(J29,S29)+IF(S29-J29>0,E$29*(S29-J29))+ROUND($P$14*365/12,2)+(Summary!N19/12)*2 -> 112.0326494 | I59: =F$28*MIN(I29,R29)+IF(R29-I29>0,F$29*(R29-I29))+ROUND($P$14*365/12,2)+(Summary!N19/12)*2 -> 236.5908627 | J59: =F$28*MIN(J29,S29)+IF(S29-J29>0,F$29*(S29-J29))+ROUND($P$14*365/12,2)+(Summary!N19/12)*2 -> 113.2540334 | L59: 15 hot | M59: =C$22*K29+ROUND($C$25*365/12,2)+(Summary!N19/12)*2 -> 243.445069 | N59: =C$22*L29+ROUND($C$25*365/12,2)+(Summary!N19/12)*2 -> 181.488925 | O59: =D$22*K29+ROUND($F$14*365/12,2)+(Summary!N19/12)*2 -> 243.445069 | P59: =D$22*L29+ROUND($F$14*365/12,2)+(Summary!N19/12)*2 -> 181.488925 | Q59: =E$22*K29+ROUND($F$14*365/12,2)+(Summary!N19/12)*2 -> 234.2089523 | R59: =E$22*L29+ROUND($F$14*365/12,2)+(Summary!N19/12)*2 -> 174.7927404 | S59: =F$22*K29+ROUND($F$14*365/12,2)+(Summary!N19/12)*2 -> 236.5648553 | T59: =F$22*L29+ROUND($F$14*365/12,2)+(Summary!N19/12)*2 -> 176.5007701 | V59: 15 hot | W59: =C$28*K29+ROUND($C$31*365/12,2)+(Summary!N19/12)*2 -> 146.3720038 | X59: =C$28*L29+ROUND($C$31*365/12,2)+(Summary!N19/12)*2 -> 106.1252028 | Y59: =D$28*K29+ROUND($P$14*365/12,2)+(Summary!N19/12)*2 -> 146.3720038 | Z59: =D$28*L29+ROUND($P$14*365/12,2)+(Summary!N19/12)*2 -> 106.1252028 | AA59: =E$28*K29+ROUND($P$14*365/12,2)+(Summary!N19/12)*2 -> 140.372209 | AB59: =E$28*L29+ROUND($P$14*365/12,2)+(Summary!N19/12)*2 -> 101.7753515 | AC59: =F$28*K29+ROUND($P$14*365/12,2)+(Summary!N19/12)*2 -> 141.9026071 | AD59: =F$28*L29+ROUND($P$14*365/12,2)+(Summary!N19/12)*2 -> 102.8848901
B60: 16 cool | C60: =C$28*MIN(I30,R30)+IF(R30-I30>0,C$29*(R30-I30))+ROUND($C$31*365/12,2)+(Summary!N19/12)*2 -> 162.8126304 | D60: =C$28*MIN(J30,S30)+IF(S30-J30>0,C$29*(S30-J30))+ROUND($C$31*365/12,2)+(Summary!N19/12)*2 -> 103.1709781 | E60: =D$28*MIN(I30,R30)+IF(R30-I30>0,D$29*(R30-I30))+ROUND($P$14*365/12,2)+(Summary!N19/12)*2 -> 162.8126304 | F60: =D$28*MIN(J30,S30)+IF(S30-J30>0,D$29*(S30-J30))+ROUND($P$14*365/12,2)+(Summary!N19/12)*2 -> 103.1709781 | G60: =E$28*MIN(I30,R30)+IF(R30-I30>0,E$29*(R30-I30))+ROUND($P$14*365/12,2)+(Summary!N19/12)*2 -> 156.1388415 | H60: =E$28*MIN(J30,S30)+IF(S30-J30>0,E$29*(S30-J30))+ROUND($P$14*365/12,2)+(Summary!N19/12)*2 -> 98.94223719 | I60: =F$28*MIN(I30,R30)+IF(R30-I30>0,F$29*(R30-I30))+ROUND($P$14*365/12,2)+(Summary!N19/12)*2 -> 157.8411586 | J60: =F$28*MIN(J30,S30)+IF(S30-J30>0,F$29*(S30-J30))+ROUND($P$14*365/12,2)+(Summary!N19/12)*2 -> 100.0208835 | L60: 16 cool | M60: =C$22*K30+ROUND($C$25*365/12,2)+(Summary!N19/12)*2 -> 144.8784763 | N60: =C$22*L30+ROUND($C$25*365/12,2)+(Summary!N19/12)*2 -> 235.9352333 | O60: =D$22*K30+ROUND($F$14*365/12,2)+(Summary!N19/12)*2 -> 144.8784763 | P60: =D$22*L30+ROUND($F$14*365/12,2)+(Summary!N19/12)*2 -> 235.9352333 | Q60: =E$22*K30+ROUND($F$14*365/12,2)+(Summary!N19/12)*2 -> 139.6831606 | R60: =E$22*L30+ROUND($F$14*365/12,2)+(Summary!N19/12)*2 -> 227.0069872 | S60: =F$22*K30+ROUND($F$14*365/12,2)+(Summary!N19/12)*2 -> 141.0083561 | T60: =F$22*L30+ROUND($F$14*365/12,2)+(Summary!N19/12)*2 -> 229.2843601 | V60: 16 cool | W60: =C$28*K30+ROUND($C$31*365/12,2)+(Summary!N19/12)*2 -> 82.34300216 | X60: =C$28*L30+ROUND($C$31*365/12,2)+(Summary!N19/12)*2 -> 141.4936037 | Y60: =D$28*K30+ROUND($P$14*365/12,2)+(Summary!N19/12)*2 -> 82.34300216 | Z60: =D$28*L30+ROUND($P$14*365/12,2)+(Summary!N19/12)*2 -> 141.4936037 | AA60: =E$28*K30+ROUND($P$14*365/12,2)+(Summary!N19/12)*2 -> 78.96811757 | AB60: =E$28*L30+ROUND($P$14*365/12,2)+(Summary!N19/12)*2 -> 135.6938021 | AC60: =F$28*K30+ROUND($P$14*365/12,2)+(Summary!N19/12)*2 -> 79.82896647 | AD60: =F$28*L30+ROUND($P$14*365/12,2)+(Summary!N19/12)*2 -> 137.1731868
B61: ALL | C61: =SUMPRODUCT(C52:C60,$U$22:$U$30) -> 165.5001888 | D61: 98.37690747 | E61: 165.5001888 | F61: 98.37690747 | G61: 158.7162217 | H61: 94.34470259 | I61: 160.4466426 | J61: 95.37321751 | L61: ALL | M61: =SUMPRODUCT(M52:M60,$T$22:$T$30) -> 146.4320244 | N61: =SUMPRODUCT(N52:N60,$T$22:$T$30) -> 162.5016903 | O61: 146.4320244 | P61: 162.5016903 | Q61: 141.1730201 | R61: 156.5838996 | S61: 142.5144609 | T61: 158.0933804 | V61: ALL | W61: =SUMPRODUCT(W52:W60,$U$22:$U$30) -> 95.08620255 | X61: =SUMPRODUCT(X52:X60,$U$22:$U$30) -> 101.9397492 | Y61: 95.08620255 | Z61: 101.9397492 | AA61: 91.18890224 | AB61: 97.76148332 | AC61: 92.18300636 | AD61: 98.82725475
C64: All-Electric - Non-CARE | L64: =Summary!J4 -> 500 | M64: =L64&" kWh Monthly - Non-CARE" -> 500 kWh Monthly - Non-CARE | W64: =L64&" kWh Monthly - CARE" -> 500 kWh Monthly - CARE
C65: =C35 -> Jan 2026 | E65: 2026-01-01 | G65: Authorized | I65: w/Pending | M65: =M50 -> Jan 2026 | O65: =O50 -> 2026-01-01 | Q65: =Q50 -> Authorized | S65: =S50 -> w/Pending | W65: =M65 -> Jan 2026 | Y65: =O65 -> 2026-01-01 | AA65: =Q65 -> Authorized | AC65: =S65 -> w/Pending
C66: Summer | D66: Winter | E66: Summer | F66: Winter | G66: Summer | H66: Winter | I66: Summer | J66: Winter | M66: Summer | N66: Winter | O66: Summer | P66: Winter | Q66: Summer | R66: Winter | S66: Summer | T66: Winter | W66: Summer | X66: Winter | Y66: Summer | Z66: Winter | AA66: Summer | AB66: Winter | AC66: Summer | AD66: Winter
B67: =B37 -> 5 warm | C67: =C$22*MIN(K22,X22)+IF(X22-K22>0,C$23*(X22-K22))+ROUND($C$25*365/12,2)+(Summary!N19/12)*2 -> 142.1902897 | D67: =C$22*MIN(L22,Y22)+IF(Y22-L22>0,C$23*(Y22-L22))+ROUND($C$25*365/12,2)+(Summary!N19/12)*2 -> 162.2664348 | E67: =D$22*MIN(K22,X22)+IF(X22-K22>0,D$23*(X22-K22))+ROUND($F$14*365/12,2)+(Summary!N19/12)*2 -> 142.1902897 | F67: =D$22*MIN(L22,Y22)+IF(Y22-L22>0,D$23*(Y22-L22))+ROUND($F$14*365/12,2)+(Summary!N19/12)*2 -> 162.2664348 | G67: =E$22*MIN(K22,X22)+IF(X22-K22>0,E$23*(X22-K22))+ROUND($F$14*365/12,2)+(Summary!N19/12)*2 -> 137.105178 | H67: =E$22*MIN(L22,Y22)+IF(Y22-L22>0,E$23*(Y22-L22))+ROUND($F$14*365/12,2)+(Summary!N19/12)*2 -> 156.3582886 | I67: =F$22*MIN(K22,X22)+IF(X22-K22>0,F$23*(X22-K22))+ROUND($F$14*365/12,2)+(Summary!N19/12)*2 -> 138.4022632 | J67: =F$22*MIN(L22,Y22)+IF(Y22-L22>0,F$23*(Y22-L22))+ROUND($F$14*365/12,2)+(Summary!N19/12)*2 -> 157.8653093 | L67: 5 warm | M67: =C$22*MIN(I22,$L$64)+IF($L$64-I22>0,C$23*($L$64-I22))+ROUND($C$25*365/12,2)+(Summary!$N$19/12)*2 -> 172.46 | N67: =C$22*MIN(J22,$L$64)+IF($L$64-J22>0,C$23*($L$64-J22))+ROUND($C$25*365/12,2)+(Summary!$N$19/12)*2 -> 172.46 | O67: =D$22*MIN(I22,$L$64)+IF($L$64-I22>0,D$23*($L$64-I22))+ROUND($F$14*365/12,2)+(Summary!$N$19/12)*2 -> 172.46 | P67: =D$22*MIN(J22,$L$64)+IF($L$64-J22>0,D$23*($L$64-J22))+ROUND($F$14*365/12,2)+(Summary!$N$19/12)*2 -> 172.46 | Q67: =E$22*MIN(I22,$L$64)+IF($L$64-I22>0,E$23*($L$64-I22))+ROUND($F$14*365/12,2)+(Summary!$N$19/12)*2 -> 166.133962 | R67: =E$22*MIN(J22,$L$64)+IF($L$64-J22>0,E$23*($L$64-J22))+ROUND($F$14*365/12,2)+(Summary!$N$19/12)*2 -> 166.133962 | S67: =F$22*MIN(I22,$L$64)+IF($L$64-I22>0,F$23*($L$64-I22))+ROUND($F$14*365/12,2)+(Summary!$N$19/12)*2 -> 167.7475765 | T67: =F$22*MIN(J22,$L$64)+IF($L$64-J22>0,F$23*($L$64-J22))+ROUND($F$14*365/12,2)+(Summary!$N$19/12)*2 -> 167.7475765 | V67: 5 warm | W67: =C$28*MIN(I22,$L$64)+IF($L$64-I22>0,C$29*($L$64-I22))+ROUND($C$31*365/12,2)+(Summary!N19/12)*2 -> 100.26 | X67: =C$28*MIN(J22,$L$64)+IF($L$64-J22>0,C$29*($L$64-J22))+ROUND($C$31*365/12,2)+(Summary!N19/12)*2 -> 100.26 | Y67: =D$28*MIN(I22,$L$64)+IF($L$64-I22>0,D$29*($L$64-I22))+ROUND($P$14*365/12,2)+(Summary!N19/12)*2 -> 100.26 | Z67: =D$28*MIN(J22,$L$64)+IF($L$64-J22>0,D$29*($L$64-J22))+ROUND($P$14*365/12,2)+(Summary!N19/12)*2 -> 100.26 | AA67: =E$28*MIN(I22,$L$64)+IF($L$64-I22>0,E$29*($L$64-I22))+ROUND($P$14*365/12,2)+(Summary!N19/12)*2 -> 96.15059653 | AB67: =E$28*MIN(J22,$L$64)+IF($L$64-J22>0,E$29*($L$64-J22))+ROUND($P$14*365/12,2)+(Summary!N19/12)*2 -> 96.15059653 | AC67: =F$28*MIN(I22,$L$64)+IF($L$64-I22>0,F$29*($L$64-I22))+ROUND($P$14*365/12,2)+(Summary!N19/12)*2 -> 97.19880287 | AD67: =F$28*MIN(J22,$L$64)+IF($L$64-J22>0,F$29*($L$64-J22))+ROUND($P$14*365/12,2)+(Summary!N19/12)*2 -> 97.19880287
B68: 6 cool | C68: =C$22*MIN(K23,X23)+IF(X23-K23>0,C$23*(X23-K23))+ROUND($C$25*365/12,2)+(Summary!N19/12)*2 -> 125.5759875 | D68: =C$22*MIN(L23,Y23)+IF(Y23-L23>0,C$23*(Y23-L23))+ROUND($C$25*365/12,2)+(Summary!N19/12)*2 -> 119.3316764 | E68: =D$22*MIN(K23,X23)+IF(X23-K23>0,D$23*(X23-K23))+ROUND($F$14*365/12,2)+(Summary!N19/12)*2 -> 125.5759875 | F68: =D$22*MIN(L23,Y23)+IF(Y23-L23>0,D$23*(Y23-L23))+ROUND($F$14*365/12,2)+(Summary!N19/12)*2 -> 119.3316764 | G68: =E$22*MIN(K23,X23)+IF(X23-K23>0,E$23*(X23-K23))+ROUND($F$14*365/12,2)+(Summary!N19/12)*2 -> 121.1719899 | H68: =E$22*MIN(L23,Y23)+IF(Y23-L23>0,E$23*(Y23-L23))+ROUND($F$14*365/12,2)+(Summary!N19/12)*2 -> 115.1836683 | I68: =F$22*MIN(K23,X23)+IF(X23-K23>0,F$23*(X23-K23))+ROUND($F$14*365/12,2)+(Summary!N19/12)*2 -> 122.2953399 | J68: =F$22*MIN(L23,Y23)+IF(Y23-L23>0,F$23*(Y23-L23))+ROUND($F$14*365/12,2)+(Summary!N19/12)*2 -> 116.2417217 | L68: 6 cool | M68: =C$22*MIN(I23,$L$64)+IF($L$64-I23>0,C$23*($L$64-I23))+ROUND($C$25*365/12,2)+(Summary!$N$19/12)*2 -> 187.9501259 | N68: =C$22*MIN(J23,$L$64)+IF($L$64-J23>0,C$23*($L$64-J23))+ROUND($C$25*365/12,2)+(Summary!$N$19/12)*2 -> 189.179946 | O68: =D$22*MIN(I23,$L$64)+IF($L$64-I23>0,D$23*($L$64-I23))+ROUND($F$14*365/12,2)+(Summary!$N$19/12)*2 -> 187.9501259 | P68: =D$22*MIN(J23,$L$64)+IF($L$64-J23>0,D$23*($L$64-J23))+ROUND($F$14*365/12,2)+(Summary!$N$19/12)*2 -> 189.179946 | Q68: =E$22*MIN(I23,$L$64)+IF($L$64-I23>0,E$23*($L$64-I23))+ROUND($F$14*365/12,2)+(Summary!$N$19/12)*2 -> 180.9890602 | R68: =E$22*MIN(J23,$L$64)+IF($L$64-J23>0,E$23*($L$64-J23))+ROUND($F$14*365/12,2)+(Summary!$N$19/12)*2 -> 182.1684631 | S68: =F$22*MIN(I23,$L$64)+IF($L$64-I23>0,F$23*($L$64-I23))+ROUND($F$14*365/12,2)+(Summary!$N$19/12)*2 -> 182.7646545 | T68: =F$22*MIN(J23,$L$64)+IF($L$64-J23>0,F$23*($L$64-J23))+ROUND($F$14*365/12,2)+(Summary!$N$19/12)*2 -> 183.9569175 | V68: 6 cool | W68: =C$28*MIN(I23,$L$64)+IF($L$64-I23>0,C$29*($L$64-I23))+ROUND($C$31*365/12,2)+(Summary!N19/12)*2 -> 110.7144558 | X68: =C$28*MIN(J23,$L$64)+IF($L$64-J23>0,C$29*($L$64-J23))+ROUND($C$31*365/12,2)+(Summary!N19/12)*2 -> 111.5444749 | Y68: =D$28*MIN(I23,$L$64)+IF($L$64-I23>0,D$29*($L$64-I23))+ROUND($P$14*365/12,2)+(Summary!N19/12)*2 -> 110.7144558 | Z68: =D$28*MIN(J23,$L$64)+IF($L$64-J23>0,D$29*($L$64-J23))+ROUND($P$14*365/12,2)+(Summary!N19/12)*2 -> 111.5444749 | AA68: =E$28*MIN(I23,$L$64)+IF($L$64-I23>0,E$29*($L$64-I23))+ROUND($P$14*365/12,2)+(Summary!N19/12)*2 -> 106.1764651 | AB68: =E$28*MIN(J23,$L$64)+IF($L$64-J23>0,E$29*($L$64-J23))+ROUND($P$14*365/12,2)+(Summary!N19/12)*2 -> 106.9724571 | AC68: =F$28*MIN(I23,$L$64)+IF($L$64-I23>0,F$29*($L$64-I23))+ROUND($P$14*365/12,2)+(Summary!N19/12)*2 -> 107.3339934 | AD68: =F$28*MIN(J23,$L$64)+IF($L$64-J23>0,F$29*($L$64-J23))+ROUND($P$14*365/12,2)+(Summary!N19/12)*2 -> 108.1386648
B69: 8 cool | C69: =C$22*MIN(K24,X24)+IF(X24-K24>0,C$23*(X24-K24))+ROUND($C$25*365/12,2)+(Summary!N19/12)*2 -> 142.951722 | D69: =C$22*MIN(L24,Y24)+IF(Y24-L24>0,C$23*(Y24-L24))+ROUND($C$25*365/12,2)+(Summary!N19/12)*2 -> 123.3919476 | E69: =D$22*MIN(K24,X24)+IF(X24-K24>0,D$23*(X24-K24))+ROUND($F$14*365/12,2)+(Summary!N19/12)*2 -> 142.951722 | F69: =D$22*MIN(L24,Y24)+IF(Y24-L24>0,D$23*(Y24-L24))+ROUND($F$14*365/12,2)+(Summary!N19/12)*2 -> 123.3919476 | G69: =E$22*MIN(K24,X24)+IF(X24-K24>0,E$23*(X24-K24))+ROUND($F$14*365/12,2)+(Summary!N19/12)*2 -> 137.8353949 | H69: =E$22*MIN(L24,Y24)+IF(Y24-L24>0,E$23*(Y24-L24))+ROUND($F$14*365/12,2)+(Summary!N19/12)*2 -> 119.0774861 | I69: =F$22*MIN(K24,X24)+IF(X24-K24>0,F$23*(X24-K24))+ROUND($F$14*365/12,2)+(Summary!N19/12)*2 -> 139.1404424 | J69: =F$22*MIN(L24,Y24)+IF(Y24-L24>0,F$23*(Y24-L24))+ROUND($F$14*365/12,2)+(Summary!N19/12)*2 -> 120.1779976 | L69: 8 cool | M69: =C$22*MIN(I24,$L$64)+IF($L$64-I24>0,C$23*($L$64-I24))+ROUND($C$25*365/12,2)+(Summary!$N$19/12)*2 -> 183.6457554 | N69: =C$22*MIN(J24,$L$64)+IF($L$64-J24>0,C$23*($L$64-J24))+ROUND($C$25*365/12,2)+(Summary!$N$19/12)*2 -> 191.3321313 | O69: =D$22*MIN(I24,$L$64)+IF($L$64-I24>0,D$23*($L$64-I24))+ROUND($F$14*365/12,2)+(Summary!$N$19/12)*2 -> 183.6457554 | P69: =D$22*MIN(J24,$L$64)+IF($L$64-J24>0,D$23*($L$64-J24))+ROUND($F$14*365/12,2)+(Summary!$N$19/12)*2 -> 191.3321313 | Q69: =E$22*MIN(I24,$L$64)+IF($L$64-I24>0,E$23*($L$64-I24))+ROUND($F$14*365/12,2)+(Summary!$N$19/12)*2 -> 176.8611501 | R69: =E$22*MIN(J24,$L$64)+IF($L$64-J24>0,E$23*($L$64-J24))+ROUND($F$14*365/12,2)+(Summary!$N$19/12)*2 -> 184.2324181 | S69: =F$22*MIN(I24,$L$64)+IF($L$64-I24>0,F$23*($L$64-I24))+ROUND($F$14*365/12,2)+(Summary!$N$19/12)*2 -> 178.5917337 | T69: =F$22*MIN(J24,$L$64)+IF($L$64-J24>0,F$23*($L$64-J24))+ROUND($F$14*365/12,2)+(Summary!$N$19/12)*2 -> 186.0433779 | V69: 8 cool | W69: =C$28*MIN(I24,$L$64)+IF($L$64-I24>0,C$29*($L$64-I24))+ROUND($C$31*365/12,2)+(Summary!N19/12)*2 -> 107.8093889 | X69: =C$28*MIN(J24,$L$64)+IF($L$64-J24>0,C$29*($L$64-J24))+ROUND($C$31*365/12,2)+(Summary!N19/12)*2 -> 112.9970083 | Y69: =D$28*MIN(I24,$L$64)+IF($L$64-I24>0,D$29*($L$64-I24))+ROUND($P$14*365/12,2)+(Summary!N19/12)*2 -> 107.8093889 | Z69: =D$28*MIN(J24,$L$64)+IF($L$64-J24>0,D$29*($L$64-J24))+ROUND($P$14*365/12,2)+(Summary!N19/12)*2 -> 112.9970083 | AA69: =E$28*MIN(I24,$L$64)+IF($L$64-I24>0,E$29*($L$64-I24))+ROUND($P$14*365/12,2)+(Summary!N19/12)*2 -> 103.3904934 | AB69: =E$28*MIN(J24,$L$64)+IF($L$64-J24>0,E$29*($L$64-J24))+ROUND($P$14*365/12,2)+(Summary!N19/12)*2 -> 108.3654429 | AC69: =F$28*MIN(I24,$L$64)+IF($L$64-I24>0,F$29*($L$64-I24))+ROUND($P$14*365/12,2)+(Summary!N19/12)*2 -> 104.5176434 | AD69: =F$28*MIN(J24,$L$64)+IF($L$64-J24>0,F$29*($L$64-J24))+ROUND($P$14*365/12,2)+(Summary!N19/12)*2 -> 109.5468398
B70: 9 warm | C70: =C$22*MIN(K25,X25)+IF(X25-K25>0,C$23*(X25-K25))+ROUND($C$25*365/12,2)+(Summary!N19/12)*2 -> 177.5533598 | D70: =C$22*MIN(L25,Y25)+IF(Y25-L25>0,C$23*(Y25-L25))+ROUND($C$25*365/12,2)+(Summary!N19/12)*2 -> 130.1621696 | E70: =D$22*MIN(K25,X25)+IF(X25-K25>0,D$23*(X25-K25))+ROUND($F$14*365/12,2)+(Summary!N19/12)*2 -> 177.5533598 | F70: =D$22*MIN(L25,Y25)+IF(Y25-L25>0,D$23*(Y25-L25))+ROUND($F$14*365/12,2)+(Summary!N19/12)*2 -> 130.1621696 | G70: =E$22*MIN(K25,X25)+IF(X25-K25>0,E$23*(X25-K25))+ROUND($F$14*365/12,2)+(Summary!N19/12)*2 -> 171.0185162 | H70: =E$22*MIN(L25,Y25)+IF(Y25-L25>0,E$23*(Y25-L25))+ROUND($F$14*365/12,2)+(Summary!N19/12)*2 -> 125.5701584 | I70: =F$22*MIN(K25,X25)+IF(X25-K25>0,F$23*(X25-K25))+ROUND($F$14*365/12,2)+(Summary!N19/12)*2 -> 172.6853918 | J70: =F$22*MIN(L25,Y25)+IF(Y25-L25>0,F$23*(Y25-L25))+ROUND($F$14*365/12,2)+(Summary!N19/12)*2 -> 126.741466 | L70: 9 warm | M70: =C$22*MIN(I25,$L$64)+IF($L$64-I25>0,C$23*($L$64-I25))+ROUND($C$25*365/12,2)+(Summary!$N$19/12)*2 -> 172.46 | N70: =C$22*MIN(J25,$L$64)+IF($L$64-J25>0,C$23*($L$64-J25))+ROUND($C$25*365/12,2)+(Summary!$N$19/12)*2 -> 186.1053957 | O70: =D$22*MIN(I25,$L$64)+IF($L$64-I25>0,D$23*($L$64-I25))+ROUND($F$14*365/12,2)+(Summary!$N$19/12)*2 -> 172.46 | P70: =D$22*MIN(J25,$L$64)+IF($L$64-J25>0,D$23*($L$64-J25))+ROUND($F$14*365/12,2)+(Summary!$N$19/12)*2 -> 186.1053957 | Q70: =E$22*MIN(I25,$L$64)+IF($L$64-I25>0,E$23*($L$64-I25))+ROUND($F$14*365/12,2)+(Summary!$N$19/12)*2 -> 166.133962 | R70: =E$22*MIN(J25,$L$64)+IF($L$64-J25>0,E$23*($L$64-J25))+ROUND($F$14*365/12,2)+(Summary!$N$19/12)*2 -> 179.2199559 | S70: =F$22*MIN(I25,$L$64)+IF($L$64-I25>0,F$23*($L$64-I25))+ROUND($F$14*365/12,2)+(Summary!$N$19/12)*2 -> 167.7475765 | T70: =F$22*MIN(J25,$L$64)+IF($L$64-J25>0,F$23*($L$64-J25))+ROUND($F$14*365/12,2)+(Summary!$N$19/12)*2 -> 180.9762599 | V70: 9 warm | W70: =C$28*MIN(I25,$L$64)+IF($L$64-I25>0,C$29*($L$64-I25))+ROUND($C$31*365/12,2)+(Summary!N19/12)*2 -> 100.26 | X70: =C$28*MIN(J25,$L$64)+IF($L$64-J25>0,C$29*($L$64-J25))+ROUND($C$31*365/12,2)+(Summary!N19/12)*2 -> 109.4694271 | Y70: =D$28*MIN(I25,$L$64)+IF($L$64-I25>0,D$29*($L$64-I25))+ROUND($P$14*365/12,2)+(Summary!N19/12)*2 -> 100.26 | Z70: =D$28*MIN(J25,$L$64)+IF($L$64-J25>0,D$29*($L$64-J25))+ROUND($P$14*365/12,2)+(Summary!N19/12)*2 -> 109.4694271 | AA70: =E$28*MIN(I25,$L$64)+IF($L$64-I25>0,E$29*($L$64-I25))+ROUND($P$14*365/12,2)+(Summary!N19/12)*2 -> 96.15059653 | AB70: =E$28*MIN(J25,$L$64)+IF($L$64-J25>0,E$29*($L$64-J25))+ROUND($P$14*365/12,2)+(Summary!N19/12)*2 -> 104.9824772 | AC70: =F$28*MIN(I25,$L$64)+IF($L$64-I25>0,F$29*($L$64-I25))+ROUND($P$14*365/12,2)+(Summary!N19/12)*2 -> 97.19880287 | AD70: =F$28*MIN(J25,$L$64)+IF($L$64-J25>0,F$29*($L$64-J25))+ROUND($P$14*365/12,2)+(Summary!N19/12)*2 -> 106.1269863
B71: 10 hot (Sec 745) | C71: =C$22*MIN(K26,X26)+IF(X26-K26>0,C$23*(X26-K26))+ROUND($C$25*365/12,2)+(Summary!N19/12)*2 -> 203.381661 | D71: =C$22*MIN(L26,Y26)+IF(Y26-L26>0,C$23*(Y26-L26))+ROUND($C$25*365/12,2)+(Summary!N19/12)*2 -> 143.4884637 | E71: =D$22*MIN(K26,X26)+IF(X26-K26>0,D$23*(X26-K26))+ROUND($F$14*365/12,2)+(Summary!N19/12)*2 -> 203.381661 | F71: =D$22*MIN(L26,Y26)+IF(Y26-L26>0,D$23*(Y26-L26))+ROUND($F$14*365/12,2)+(Summary!N19/12)*2 -> 143.4884637 | G71: =E$22*MIN(K26,X26)+IF(X26-K26>0,E$23*(X26-K26))+ROUND($F$14*365/12,2)+(Summary!N19/12)*2 -> 195.7879696 | H71: =E$22*MIN(L26,Y26)+IF(Y26-L26>0,E$23*(Y26-L26))+ROUND($F$14*365/12,2)+(Summary!N19/12)*2 -> 138.3501325 | I71: =F$22*MIN(K26,X26)+IF(X26-K26>0,F$23*(X26-K26))+ROUND($F$14*365/12,2)+(Summary!N19/12)*2 -> 197.7249309 | J71: =F$22*MIN(L26,Y26)+IF(Y26-L26>0,F$23*(Y26-L26))+ROUND($F$14*365/12,2)+(Summary!N19/12)*2 -> 139.6607927 | L71: 10 hot (Sec 745) | M71: =C$22*MIN(I26,$L$64)+IF($L$64-I26>0,C$23*($L$64-I26))+ROUND($C$25*365/12,2)+(Summary!$N$19/12)*2 -> 172.46 | N71: =C$22*MIN(J26,$L$64)+IF($L$64-J26>0,C$23*($L$64-J26))+ROUND($C$25*365/12,2)+(Summary!$N$19/12)*2 -> 185.7979406 | O71: =D$22*MIN(I26,$L$64)+IF($L$64-I26>0,D$23*($L$64-I26))+ROUND($F$14*365/12,2)+(Summary!$N$19/12)*2 -> 172.46 | P71: =D$22*MIN(J26,$L$64)+IF($L$64-J26>0,D$23*($L$64-J26))+ROUND($F$14*365/12,2)+(Summary!$N$19/12)*2 -> 185.7979406 | Q71: =E$22*MIN(I26,$L$64)+IF($L$64-I26>0,E$23*($L$64-I26))+ROUND($F$14*365/12,2)+(Summary!$N$19/12)*2 -> 166.133962 | R71: =E$22*MIN(J26,$L$64)+IF($L$64-J26>0,E$23*($L$64-J26))+ROUND($F$14*365/12,2)+(Summary!$N$19/12)*2 -> 178.9251052 | S71: =F$22*MIN(I26,$L$64)+IF($L$64-I26>0,F$23*($L$64-I26))+ROUND($F$14*365/12,2)+(Summary!$N$19/12)*2 -> 167.7475765 | T71: =F$22*MIN(J26,$L$64)+IF($L$64-J26>0,F$23*($L$64-J26))+ROUND($F$14*365/12,2)+(Summary!$N$19/12)*2 -> 180.6781941 | V71: 10 hot (Sec 745) | W71: =C$28*MIN(I26,$L$64)+IF($L$64-I26>0,C$29*($L$64-I26))+ROUND($C$31*365/12,2)+(Summary!N19/12)*2 -> 100.26 | X71: =C$28*MIN(J26,$L$64)+IF($L$64-J26>0,C$29*($L$64-J26))+ROUND($C$31*365/12,2)+(Summary!N19/12)*2 -> 109.2619223 | Y71: =D$28*MIN(I26,$L$64)+IF($L$64-I26>0,D$29*($L$64-I26))+ROUND($P$14*365/12,2)+(Summary!N19/12)*2 -> 100.26 | Z71: =D$28*MIN(J26,$L$64)+IF($L$64-J26>0,D$29*($L$64-J26))+ROUND($P$14*365/12,2)+(Summary!N19/12)*2 -> 109.2619223 | AA71: =E$28*MIN(I26,$L$64)+IF($L$64-I26>0,E$29*($L$64-I26))+ROUND($P$14*365/12,2)+(Summary!N19/12)*2 -> 96.15059653 | AB71: =E$28*MIN(J26,$L$64)+IF($L$64-J26>0,E$29*($L$64-J26))+ROUND($P$14*365/12,2)+(Summary!N19/12)*2 -> 104.7834793 | AC71: =F$28*MIN(I26,$L$64)+IF($L$64-I26>0,F$29*($L$64-I26))+ROUND($P$14*365/12,2)+(Summary!N19/12)*2 -> 97.19880287 | AD71: =F$28*MIN(J26,$L$64)+IF($L$64-J26>0,F$29*($L$64-J26))+ROUND($P$14*365/12,2)+(Summary!N19/12)*2 -> 105.9258184
B72: 13 hot | C72: =C$22*MIN(K27,X27)+IF(X27-K27>0,C$23*(X27-K27))+ROUND($C$25*365/12,2)+(Summary!N19/12)*2 -> 296.8935026 | D72: =C$22*MIN(L27,Y27)+IF(Y27-L27>0,C$23*(Y27-L27))+ROUND($C$25*365/12,2)+(Summary!N19/12)*2 -> 185.6506096 | E72: =D$22*MIN(K27,X27)+IF(X27-K27>0,D$23*(X27-K27))+ROUND($F$14*365/12,2)+(Summary!N19/12)*2 -> 296.8935026 | F72: =D$22*MIN(L27,Y27)+IF(Y27-L27>0,D$23*(Y27-L27))+ROUND($F$14*365/12,2)+(Summary!N19/12)*2 -> 185.6506096 | G72: =E$22*MIN(K27,X27)+IF(X27-K27>0,E$23*(X27-K27))+ROUND($F$14*365/12,2)+(Summary!N19/12)*2 -> 285.4662329 | H72: =E$22*MIN(L27,Y27)+IF(Y27-L27>0,E$23*(Y27-L27))+ROUND($F$14*365/12,2)+(Summary!N19/12)*2 -> 178.7838141 | I72: =F$22*MIN(K27,X27)+IF(X27-K27>0,F$23*(X27-K27))+ROUND($F$14*365/12,2)+(Summary!N19/12)*2 -> 288.3810444 | J72: =F$22*MIN(L27,Y27)+IF(Y27-L27>0,F$23*(Y27-L27))+ROUND($F$14*365/12,2)+(Summary!N19/12)*2 -> 180.5353624 | L72: 13 hot | M72: =C$22*MIN(I27,$L$64)+IF($L$64-I27>0,C$23*($L$64-I27))+ROUND($C$25*365/12,2)+(Summary!$N$19/12)*2 -> 172.46 | N72: =C$22*MIN(J27,$L$64)+IF($L$64-J27>0,C$23*($L$64-J27))+ROUND($C$25*365/12,2)+(Summary!$N$19/12)*2 -> 185.4904856 | O72: =D$22*MIN(I27,$L$64)+IF($L$64-I27>0,D$23*($L$64-I27))+ROUND($F$14*365/12,2)+(Summary!$N$19/12)*2 -> 172.46 | P72: =D$22*MIN(J27,$L$64)+IF($L$64-J27>0,D$23*($L$64-J27))+ROUND($F$14*365/12,2)+(Summary!$N$19/12)*2 -> 185.4904856 | Q72: =E$22*MIN(I27,$L$64)+IF($L$64-I27>0,E$23*($L$64-I27))+ROUND($F$14*365/12,2)+(Summary!$N$19/12)*2 -> 166.133962 | R72: =E$22*MIN(J27,$L$64)+IF($L$64-J27>0,E$23*($L$64-J27))+ROUND($F$14*365/12,2)+(Summary!$N$19/12)*2 -> 178.6302544 | S72: =F$22*MIN(I27,$L$64)+IF($L$64-I27>0,F$23*($L$64-I27))+ROUND($F$14*365/12,2)+(Summary!$N$19/12)*2 -> 167.7475765 | T72: =F$22*MIN(J27,$L$64)+IF($L$64-J27>0,F$23*($L$64-J27))+ROUND($F$14*365/12,2)+(Summary!$N$19/12)*2 -> 180.3801283 | V72: 13 hot | W72: =C$28*MIN(I27,$L$64)+IF($L$64-I27>0,C$29*($L$64-I27))+ROUND($C$31*365/12,2)+(Summary!N19/12)*2 -> 100.26 | X72: =C$28*MIN(J27,$L$64)+IF($L$64-J27>0,C$29*($L$64-J27))+ROUND($C$31*365/12,2)+(Summary!N19/12)*2 -> 109.0544176 | Y72: =D$28*MIN(I27,$L$64)+IF($L$64-I27>0,D$29*($L$64-I27))+ROUND($P$14*365/12,2)+(Summary!N19/12)*2 -> 100.26 | Z72: =D$28*MIN(J27,$L$64)+IF($L$64-J27>0,D$29*($L$64-J27))+ROUND($P$14*365/12,2)+(Summary!N19/12)*2 -> 109.0544176 | AA72: =E$28*MIN(I27,$L$64)+IF($L$64-I27>0,E$29*($L$64-I27))+ROUND($P$14*365/12,2)+(Summary!N19/12)*2 -> 96.15059653 | AB72: =E$28*MIN(J27,$L$64)+IF($L$64-J27>0,E$29*($L$64-J27))+ROUND($P$14*365/12,2)+(Summary!N19/12)*2 -> 104.5844813 | AC72: =F$28*MIN(I27,$L$64)+IF($L$64-I27>0,F$29*($L$64-I27))+ROUND($P$14*365/12,2)+(Summary!N19/12)*2 -> 97.19880287 | AD72: =F$28*MIN(J27,$L$64)+IF($L$64-J27>0,F$29*($L$64-J27))+ROUND($P$14*365/12,2)+(Summary!N19/12)*2 -> 105.7246506
B73: 14 hot | C73: =C$22*MIN(K28,X28)+IF(X28-K28>0,C$23*(X28-K28))+ROUND($C$25*365/12,2)+(Summary!N19/12)*2 -> 236.8290158 | D73: =C$22*MIN(L28,Y28)+IF(Y28-L28>0,C$23*(Y28-L28))+ROUND($C$25*365/12,2)+(Summary!N19/12)*2 -> 172.8033044 | E73: =D$22*MIN(K28,X28)+IF(X28-K28>0,D$23*(X28-K28))+ROUND($F$14*365/12,2)+(Summary!N19/12)*2 -> 236.8290158 | F73: =D$22*MIN(L28,Y28)+IF(Y28-L28>0,D$23*(Y28-L28))+ROUND($F$14*365/12,2)+(Summary!N19/12)*2 -> 172.8033044 | G73: =E$22*MIN(K28,X28)+IF(X28-K28>0,E$23*(X28-K28))+ROUND($F$14*365/12,2)+(Summary!N19/12)*2 -> 227.8641285 | H73: =E$22*MIN(L28,Y28)+IF(Y28-L28>0,E$23*(Y28-L28))+ROUND($F$14*365/12,2)+(Summary!N19/12)*2 -> 166.4631925 | I73: =F$22*MIN(K28,X28)+IF(X28-K28>0,F$23*(X28-K28))+ROUND($F$14*365/12,2)+(Summary!N19/12)*2 -> 230.1508477 | J73: =F$22*MIN(L28,Y28)+IF(Y28-L28>0,F$23*(Y28-L28))+ROUND($F$14*365/12,2)+(Summary!N19/12)*2 -> 168.0803969 | L73: 14 hot | M73: =C$22*MIN(I28,$L$64)+IF($L$64-I28>0,C$23*($L$64-I28))+ROUND($C$25*365/12,2)+(Summary!$N$19/12)*2 -> 172.46 | N73: =C$22*MIN(J28,$L$64)+IF($L$64-J28>0,C$23*($L$64-J28))+ROUND($C$25*365/12,2)+(Summary!$N$19/12)*2 -> 186.4128507 | O73: =D$22*MIN(I28,$L$64)+IF($L$64-I28>0,D$23*($L$64-I28))+ROUND($F$14*365/12,2)+(Summary!$N$19/12)*2 -> 172.46 | P73: =D$22*MIN(J28,$L$64)+IF($L$64-J28>0,D$23*($L$64-J28))+ROUND($F$14*365/12,2)+(Summary!$N$19/12)*2 -> 186.4128507 | Q73: =E$22*MIN(I28,$L$64)+IF($L$64-I28>0,E$23*($L$64-I28))+ROUND($F$14*365/12,2)+(Summary!$N$19/12)*2 -> 166.133962 | R73: =E$22*MIN(J28,$L$64)+IF($L$64-J28>0,E$23*($L$64-J28))+ROUND($F$14*365/12,2)+(Summary!$N$19/12)*2 -> 179.5148066 | S73: =F$22*MIN(I28,$L$64)+IF($L$64-I28>0,F$23*($L$64-I28))+ROUND($F$14*365/12,2)+(Summary!$N$19/12)*2 -> 167.7475765 | T73: =F$22*MIN(J28,$L$64)+IF($L$64-J28>0,F$23*($L$64-J28))+ROUND($F$14*365/12,2)+(Summary!$N$19/12)*2 -> 181.2743256 | V73: 14 hot | W73: =C$28*MIN(I28,$L$64)+IF($L$64-I28>0,C$29*($L$64-I28))+ROUND($C$31*365/12,2)+(Summary!N19/12)*2 -> 100.26 | X73: =C$28*MIN(J28,$L$64)+IF($L$64-J28>0,C$29*($L$64-J28))+ROUND($C$31*365/12,2)+(Summary!N19/12)*2 -> 109.6769319 | Y73: =D$28*MIN(I28,$L$64)+IF($L$64-I28>0,D$29*($L$64-I28))+ROUND($P$14*365/12,2)+(Summary!N19/12)*2 -> 100.26 | Z73: =D$28*MIN(J28,$L$64)+IF($L$64-J28>0,D$29*($L$64-J28))+ROUND($P$14*365/12,2)+(Summary!N19/12)*2 -> 109.6769319 | AA73: =E$28*MIN(I28,$L$64)+IF($L$64-I28>0,E$29*($L$64-I28))+ROUND($P$14*365/12,2)+(Summary!N19/12)*2 -> 96.15059653 | AB73: =E$28*MIN(J28,$L$64)+IF($L$64-J28>0,E$29*($L$64-J28))+ROUND($P$14*365/12,2)+(Summary!N19/12)*2 -> 105.1814752 | AC73: =F$28*MIN(I28,$L$64)+IF($L$64-I28>0,F$29*($L$64-I28))+ROUND($P$14*365/12,2)+(Summary!N19/12)*2 -> 97.19880287 | AD73: =F$28*MIN(J28,$L$64)+IF($L$64-J28>0,F$29*($L$64-J28))+ROUND($P$14*365/12,2)+(Summary!N19/12)*2 -> 106.3281541
B74: 15 hot | C74: =C$22*MIN(K29,X29)+IF(X29-K29>0,C$23*(X29-K29))+ROUND($C$25*365/12,2)+(Summary!N19/12)*2 -> 277.4321025 | D74: =C$22*MIN(L29,Y29)+IF(Y29-L29>0,C$23*(Y29-L29))+ROUND($C$25*365/12,2)+(Summary!N19/12)*2 -> 151.050368 | E74: =D$22*MIN(K29,X29)+IF(X29-K29>0,D$23*(X29-K29))+ROUND($F$14*365/12,2)+(Summary!N19/12)*2 -> 277.4321025 | F74: =D$22*MIN(L29,Y29)+IF(Y29-L29>0,D$23*(Y29-L29))+ROUND($F$14*365/12,2)+(Summary!N19/12)*2 -> 151.050368 | G74: =E$22*MIN(K29,X29)+IF(X29-K29>0,E$23*(X29-K29))+ROUND($F$14*365/12,2)+(Summary!N19/12)*2 -> 266.8026654 | H74: =E$22*MIN(L29,Y29)+IF(Y29-L29>0,E$23*(Y29-L29))+ROUND($F$14*365/12,2)+(Summary!N19/12)*2 -> 145.6020317 | I74: =F$22*MIN(K29,X29)+IF(X29-K29>0,F$23*(X29-K29))+ROUND($F$14*365/12,2)+(Summary!N19/12)*2 -> 269.5139697 | J74: =F$22*MIN(L29,Y29)+IF(Y29-L29>0,F$23*(Y29-L29))+ROUND($F$14*365/12,2)+(Summary!N19/12)*2 -> 146.9917664 | L74: 15 hot | M74: =C$22*MIN(I29,$L$64)+IF($L$64-I29>0,C$23*($L$64-I29))+ROUND($C$25*365/12,2)+(Summary!$N$19/12)*2 -> 172.46 | N74: =C$22*MIN(J29,$L$64)+IF($L$64-J29>0,C$23*($L$64-J29))+ROUND($C$25*365/12,2)+(Summary!$N$19/12)*2 -> 193.1768615 | O74: =D$22*MIN(I29,$L$64)+IF($L$64-I29>0,D$23*($L$64-I29))+ROUND($F$14*365/12,2)+(Summary!$N$19/12)*2 -> 172.46 | P74: =D$22*MIN(J29,$L$64)+IF($L$64-J29>0,D$23*($L$64-J29))+ROUND($F$14*365/12,2)+(Summary!$N$19/12)*2 -> 193.1768615 | Q74: =E$22*MIN(I29,$L$64)+IF($L$64-I29>0,E$23*($L$64-I29))+ROUND($F$14*365/12,2)+(Summary!$N$19/12)*2 -> 166.133962 | R74: =E$22*MIN(J29,$L$64)+IF($L$64-J29>0,E$23*($L$64-J29))+ROUND($F$14*365/12,2)+(Summary!$N$19/12)*2 -> 186.0015224 | S74: =F$22*MIN(I29,$L$64)+IF($L$64-I29>0,F$23*($L$64-I29))+ROUND($F$14*365/12,2)+(Summary!$N$19/12)*2 -> 167.7475765 | T74: =F$22*MIN(J29,$L$64)+IF($L$64-J29>0,F$23*($L$64-J29))+ROUND($F$14*365/12,2)+(Summary!$N$19/12)*2 -> 187.8317725 | V74: 15 hot | W74: =C$28*MIN(I29,$L$64)+IF($L$64-I29>0,C$29*($L$64-I29))+ROUND($C$31*365/12,2)+(Summary!N19/12)*2 -> 100.26 | X74: =C$28*MIN(J29,$L$64)+IF($L$64-J29>0,C$29*($L$64-J29))+ROUND($C$31*365/12,2)+(Summary!N19/12)*2 -> 114.2420369 | Y74: =D$28*MIN(I29,$L$64)+IF($L$64-I29>0,D$29*($L$64-I29))+ROUND($P$14*365/12,2)+(Summary!N19/12)*2 -> 100.26 | Z74: =D$28*MIN(J29,$L$64)+IF($L$64-J29>0,D$29*($L$64-J29))+ROUND($P$14*365/12,2)+(Summary!N19/12)*2 -> 114.2420369 | AA74: =E$28*MIN(I29,$L$64)+IF($L$64-I29>0,E$29*($L$64-I29))+ROUND($P$14*365/12,2)+(Summary!N19/12)*2 -> 96.15059653 | AB74: =E$28*MIN(J29,$L$64)+IF($L$64-J29>0,E$29*($L$64-J29))+ROUND($P$14*365/12,2)+(Summary!N19/12)*2 -> 109.5594308 | AC74: =F$28*MIN(I29,$L$64)+IF($L$64-I29>0,F$29*($L$64-I29))+ROUND($P$14*365/12,2)+(Summary!N19/12)*2 -> 97.19880287 | AD74: =F$28*MIN(J29,$L$64)+IF($L$64-J29>0,F$29*($L$64-J29))+ROUND($P$14*365/12,2)+(Summary!N19/12)*2 -> 110.7538469
B75: 16 cool | C75: =C$22*MIN(K30,X30)+IF(X30-K30>0,C$23*(X30-K30))+ROUND($C$25*365/12,2)+(Summary!N19/12)*2 -> 142.3473712 | D75: =C$22*MIN(L30,Y30)+IF(Y30-L30>0,C$23*(Y30-L30))+ROUND($C$25*365/12,2)+(Summary!N19/12)*2 -> 173.2812334 | E75: =D$22*MIN(K30,X30)+IF(X30-K30>0,D$23*(X30-K30))+ROUND($F$14*365/12,2)+(Summary!N19/12)*2 -> 142.3473712 | F75: =D$22*MIN(L30,Y30)+IF(Y30-L30>0,D$23*(Y30-L30))+ROUND($F$14*365/12,2)+(Summary!N19/12)*2 -> 173.2812334 | G75: =E$22*MIN(K30,X30)+IF(X30-K30>0,E$23*(X30-K30))+ROUND($F$14*365/12,2)+(Summary!N19/12)*2 -> 137.2558199 | H75: =E$22*MIN(L30,Y30)+IF(Y30-L30>0,E$23*(Y30-L30))+ROUND($F$14*365/12,2)+(Summary!N19/12)*2 -> 166.9215284 | I75: =F$22*MIN(K30,X30)+IF(X30-K30>0,F$23*(X30-K30))+ROUND($F$14*365/12,2)+(Summary!N19/12)*2 -> 138.5545476 | J75: =F$22*MIN(L30,Y30)+IF(Y30-L30>0,F$23*(Y30-L30))+ROUND($F$14*365/12,2)+(Summary!N19/12)*2 -> 168.5437305 | L75: 16 cool | M75: =C$22*MIN(I30,$L$64)+IF($L$64-I30>0,C$23*($L$64-I30))+ROUND($C$25*365/12,2)+(Summary!$N$19/12)*2 -> 177.8041097 | N75: =C$22*MIN(J30,$L$64)+IF($L$64-J30>0,C$23*($L$64-J30))+ROUND($C$25*365/12,2)+(Summary!$N$19/12)*2 -> 184.8755755 | O75: =D$22*MIN(I30,$L$64)+IF($L$64-I30>0,D$23*($L$64-I30))+ROUND($F$14*365/12,2)+(Summary!$N$19/12)*2 -> 177.8041097 | P75: =D$22*MIN(J30,$L$64)+IF($L$64-J30>0,D$23*($L$64-J30))+ROUND($F$14*365/12,2)+(Summary!$N$19/12)*2 -> 184.8755755 | Q75: =E$22*MIN(I30,$L$64)+IF($L$64-I30>0,E$23*($L$64-I30))+ROUND($F$14*365/12,2)+(Summary!$N$19/12)*2 -> 171.2589865 | R75: =E$22*MIN(J30,$L$64)+IF($L$64-J30>0,E$23*($L$64-J30))+ROUND($F$14*365/12,2)+(Summary!$N$19/12)*2 -> 178.040553 | S75: =F$22*MIN(I30,$L$64)+IF($L$64-I30>0,F$23*($L$64-I30))+ROUND($F$14*365/12,2)+(Summary!$N$19/12)*2 -> 172.9284842 | T75: =F$22*MIN(J30,$L$64)+IF($L$64-J30>0,F$23*($L$64-J30))+ROUND($F$14*365/12,2)+(Summary!$N$19/12)*2 -> 179.7839968 | V75: 16 cool | W75: =C$28*MIN(I30,$L$64)+IF($L$64-I30>0,C$29*($L$64-I30))+ROUND($C$31*365/12,2)+(Summary!N19/12)*2 -> 103.8667982 | X75: =C$28*MIN(J30,$L$64)+IF($L$64-J30>0,C$29*($L$64-J30))+ROUND($C$31*365/12,2)+(Summary!N19/12)*2 -> 108.639408 | Y75: =D$28*MIN(I30,$L$64)+IF($L$64-I30>0,D$29*($L$64-I30))+ROUND($P$14*365/12,2)+(Summary!N19/12)*2 -> 103.8667982 | Z75: =D$28*MIN(J30,$L$64)+IF($L$64-J30>0,D$29*($L$64-J30))+ROUND($P$14*365/12,2)+(Summary!N19/12)*2 -> 108.639408 | AA75: =E$28*MIN(I30,$L$64)+IF($L$64-I30>0,E$29*($L$64-I30))+ROUND($P$14*365/12,2)+(Summary!N19/12)*2 -> 99.60953173 | AB75: =E$28*MIN(J30,$L$64)+IF($L$64-J30>0,E$29*($L$64-J30))+ROUND($P$14*365/12,2)+(Summary!N19/12)*2 -> 104.1864853 | AC75: =F$28*MIN(I30,$L$64)+IF($L$64-I30>0,F$29*($L$64-I30))+ROUND($P$14*365/12,2)+(Summary!N19/12)*2 -> 100.6954542 | AD75: =F$28*MIN(J30,$L$64)+IF($L$64-J30>0,F$29*($L$64-J30))+ROUND($P$14*365/12,2)+(Summary!N19/12)*2 -> 105.3223149
B76: ALL | C76: =SUMPRODUCT(C67:C75,$AB$22:$AB$30) -> 171.5560014 | D76: =SUMPRODUCT(D67:D75,$AB$22:$AB$30) -> 135.5928085 | E76: =SUMPRODUCT(E67:E75,$AB$22:$AB$30) -> 171.5560014 | F76: 135.5928085 | G76: =SUMPRODUCT(G67:G75,$AB$22:$AB$30) -> 165.2670234 | H76: 130.7781648 | I76: =SUMPRODUCT(I67:I75,$AB$22:$AB$30) -> 166.8711849 | J76: 132.0062603 | L76: ALL | M76: =SUMPRODUCT(M67:M75,$T$22:$T$30) -> 177.7543198 | N76: 187.8921238 | O76: 177.7543198 | P76: 187.8921238 | Q76: 171.2112377 | R76: 180.9334359 | S76: 172.8802148 | T76: =SUMPRODUCT(T67:T75,$T$22:$T$30) -> 182.7084236 | V76: ALL | W76: =SUMPRODUCT(W67:W75,$U$22:$U$30) -> 102.1699935 | X76: =SUMPRODUCT(X67:X75,$U$22:$U$30) -> 110.1864561 | Y76: 102.1699935 | Z76: 110.1864561 | AA76: 97.98228859 | AB76: 105.6701111 | AC76: 99.05046768 | AD76: 106.8221181
C79: All-Electric - CARE
C80: =C50 -> Jan 2026 | E80: 2026-01-01 | G80: Authorized | I80: w/Pending
C81: Summer | D81: Winter | E81: Summer | F81: Winter | G81: Summer | H81: Winter | I81: Summer | J81: Winter
B82: =B52 -> 5 warm | C82: =C$28*MIN(K22,Z22)+IF(Z22-K22>0,C$29*(Z22-K22))+ROUND($C$31*365/12,2)+(Summary!N19/12)*2 -> 69.95393909 | D82: =C$28*MIN(L22,AA22)+IF(AA22-L22>0,C$29*(AA22-L22))+ROUND($C$31*365/12,2)+(Summary!N19/12)*2 -> 86.48986294 | E82: =D$28*MIN(K22,Z22)+IF(Z22-K22>0,D$29*(Z22-K22))+ROUND($P$14*365/12,2)+(Summary!N19/12)*2 -> 69.95393909 | F82: =D$28*MIN(L22,AA22)+IF(AA22-L22>0,D$29*(AA22-L22))+ROUND($P$14*365/12,2)+(Summary!N19/12)*2 -> 86.48986294 | G82: =E$28*MIN(K22,Z22)+IF(Z22-K22>0,E$29*(Z22-K22))+ROUND($P$14*365/12,2)+(Summary!N19/12)*2 -> 67.08695213 | H82: =E$28*MIN(L22,AA22)+IF(AA22-L22>0,E$29*(AA22-L22))+ROUND($P$14*365/12,2)+(Summary!N19/12)*2 -> 82.94497513 | I82: =F$28*MIN(K22,Z22)+IF(Z22-K22>0,F$29*(Z22-K22))+ROUND($P$14*365/12,2)+(Summary!N19/12)*2 -> 67.81824901 | J82: =F$28*MIN(L22,AA22)+IF(AA22-L22>0,F$29*(AA22-L22))+ROUND($P$14*365/12,2)+(Summary!N19/12)*2 -> 83.84918761
B83: 6 cool | C83: =C$28*MIN(K23,Z23)+IF(Z23-K23>0,C$29*(Z23-K23))+ROUND($C$31*365/12,2)+(Summary!N19/12)*2 -> 79.029954 | D83: =C$28*MIN(L23,AA23)+IF(AA23-L23>0,C$29*(AA23-L23))+ROUND($C$31*365/12,2)+(Summary!N19/12)*2 -> 74.05497455 | E83: =D$28*MIN(K23,Z23)+IF(Z23-K23>0,D$29*(Z23-K23))+ROUND($P$14*365/12,2)+(Summary!N19/12)*2 -> 79.029954 | F83: =D$28*MIN(L23,AA23)+IF(AA23-L23>0,D$29*(AA23-L23))+ROUND($P$14*365/12,2)+(Summary!N19/12)*2 -> 74.05497455 | G83: =E$28*MIN(K23,Z23)+IF(Z23-K23>0,E$29*(Z23-K23))+ROUND($P$14*365/12,2)+(Summary!N19/12)*2 -> 75.79088996 | H83: =E$28*MIN(L23,AA23)+IF(AA23-L23>0,E$29*(AA23-L23))+ROUND($P$14*365/12,2)+(Summary!N19/12)*2 -> 71.019863 | I83: =F$28*MIN(K23,Z23)+IF(Z23-K23>0,F$29*(Z23-K23))+ROUND($P$14*365/12,2)+(Summary!N19/12)*2 -> 76.61709442 | J83: =F$28*MIN(L23,AA23)+IF(AA23-L23>0,F$29*(AA23-L23))+ROUND($P$14*365/12,2)+(Summary!N19/12)*2 -> 71.79404427
B84: 8 cool | C84: =C$28*MIN(K24,Z24)+IF(Z24-K24>0,C$29*(Z24-K24))+ROUND($C$31*365/12,2)+(Summary!N19/12)*2 -> 88.01513463 | D84: =C$28*MIN(L24,AA24)+IF(AA24-L24>0,C$29*(AA24-L24))+ROUND($C$31*365/12,2)+(Summary!N19/12)*2 -> 73.81553331 | E84: =D$28*MIN(K24,Z24)+IF(Z24-K24>0,D$29*(Z24-K24))+ROUND($P$14*365/12,2)+(Summary!N19/12)*2 -> 88.01513463 | F84: =D$28*MIN(L24,AA24)+IF(AA24-L24>0,D$29*(AA24-L24))+ROUND($P$14*365/12,2)+(Summary!N19/12)*2 -> 73.81553331 | G84: =E$28*MIN(K24,Z24)+IF(Z24-K24>0,E$29*(Z24-K24))+ROUND($P$14*365/12,2)+(Summary!N19/12)*2 -> 84.40771732 | H84: =E$28*MIN(L24,AA24)+IF(AA24-L24>0,E$29*(AA24-L24))+ROUND($P$14*365/12,2)+(Summary!N19/12)*2 -> 70.79023781 | I84: =F$28*MIN(K24,Z24)+IF(Z24-K24>0,F$29*(Z24-K24))+ROUND($P$14*365/12,2)+(Summary!N19/12)*2 -> 85.32787951 | J84: =F$28*MIN(L24,AA24)+IF(AA24-L24>0,F$29*(AA24-L24))+ROUND($P$14*365/12,2)+(Summary!N19/12)*2 -> 71.56191525
B85: 9 warm | C85: =C$28*MIN(K25,Z25)+IF(Z25-K25>0,C$29*(Z25-K25))+ROUND($C$31*365/12,2)+(Summary!N19/12)*2 -> 104.6588713 | D85: =C$28*MIN(L25,AA25)+IF(AA25-L25>0,C$29*(AA25-L25))+ROUND($C$31*365/12,2)+(Summary!N19/12)*2 -> 74.4691181 | E85: =D$28*MIN(K25,Z25)+IF(Z25-K25>0,D$29*(Z25-K25))+ROUND($P$14*365/12,2)+(Summary!N19/12)*2 -> 104.6588713 | F85: =D$28*MIN(L25,AA25)+IF(AA25-L25>0,D$29*(AA25-L25))+ROUND($P$14*365/12,2)+(Summary!N19/12)*2 -> 74.4691181 | G85: =E$28*MIN(K25,Z25)+IF(Z25-K25>0,E$29*(Z25-K25))+ROUND($P$14*365/12,2)+(Summary!N19/12)*2 -> 100.3691332 | H85: =E$28*MIN(L25,AA25)+IF(AA25-L25>0,E$29*(AA25-L25))+ROUND($P$14*365/12,2)+(Summary!N19/12)*2 -> 71.41702848 | I85: =F$28*MIN(K25,Z25)+IF(Z25-K25>0,F$29*(Z25-K25))+ROUND($P$14*365/12,2)+(Summary!N19/12)*2 -> 101.4633384 | J85: =F$28*MIN(L25,AA25)+IF(AA25-L25>0,F$29*(AA25-L25))+ROUND($P$14*365/12,2)+(Summary!N19/12)*2 -> 72.19554043
B86: 10 hot (Sec 745) | C86: =C$28*MIN(K26,Z26)+IF(Z26-K26>0,C$29*(Z26-K26))+ROUND($C$31*365/12,2)+(Summary!N19/12)*2 -> 132.3324172 | D86: =C$28*MIN(L26,AA26)+IF(AA26-L26>0,C$29*(AA26-L26))+ROUND($C$31*365/12,2)+(Summary!N19/12)*2 -> 83.24769745 | E86: =D$28*MIN(K26,Z26)+IF(Z26-K26>0,D$29*(Z26-K26))+ROUND($P$14*365/12,2)+(Summary!N19/12)*2 -> 132.3324172 | F86: =D$28*MIN(L26,AA26)+IF(AA26-L26>0,D$29*(AA26-L26))+ROUND($P$14*365/12,2)+(Summary!N19/12)*2 -> 83.24769745 | G86: =E$28*MIN(K26,Z26)+IF(Z26-K26>0,E$29*(Z26-K26))+ROUND($P$14*365/12,2)+(Summary!N19/12)*2 -> 126.9081843 | H86: =E$28*MIN(L26,AA26)+IF(AA26-L26>0,E$29*(AA26-L26))+ROUND($P$14*365/12,2)+(Summary!N19/12)*2 -> 79.8357243 | I86: =F$28*MIN(K26,Z26)+IF(Z26-K26>0,F$29*(Z26-K26))+ROUND($P$14*365/12,2)+(Summary!N19/12)*2 -> 128.2917708 | J86: =F$28*MIN(L26,AA26)+IF(AA26-L26>0,F$29*(AA26-L26))+ROUND($P$14*365/12,2)+(Summary!N19/12)*2 -> 80.70603356
B87: 13 hot | C87: =C$28*MIN(K27,Z27)+IF(Z27-K27>0,C$29*(Z27-K27))+ROUND($C$31*365/12,2)+(Summary!N19/12)*2 -> 190.3303572 | D87: =C$28*MIN(L27,AA27)+IF(AA27-L27>0,C$29*(AA27-L27))+ROUND($C$31*365/12,2)+(Summary!N19/12)*2 -> 107.5719391 | E87: =D$28*MIN(K27,Z27)+IF(Z27-K27>0,D$29*(Z27-K27))+ROUND($P$14*365/12,2)+(Summary!N19/12)*2 -> 190.3303572 | F87: =D$28*MIN(L27,AA27)+IF(AA27-L27>0,D$29*(AA27-L27))+ROUND($P$14*365/12,2)+(Summary!N19/12)*2 -> 107.5719391 | G87: =E$28*MIN(K27,Z27)+IF(Z27-K27>0,E$29*(Z27-K27))+ROUND($P$14*365/12,2)+(Summary!N19/12)*2 -> 182.5284613 | H87: =E$28*MIN(L27,AA27)+IF(AA27-L27>0,E$29*(AA27-L27))+ROUND($P$14*365/12,2)+(Summary!N19/12)*2 -> 103.162778 | I87: =F$28*MIN(K27,Z27)+IF(Z27-K27>0,F$29*(Z27-K27))+ROUND($P$14*365/12,2)+(Summary!N19/12)*2 -> 184.5185304 | J87: =F$28*MIN(L27,AA27)+IF(AA27-L27>0,F$29*(AA27-L27))+ROUND($P$14*365/12,2)+(Summary!N19/12)*2 -> 104.287445
B88: 14 hot | C88: =C$28*MIN(K28,Z28)+IF(Z28-K28>0,C$29*(Z28-K28))+ROUND($C$31*365/12,2)+(Summary!N19/12)*2 -> 182.0499767 | D88: =C$28*MIN(L28,AA28)+IF(AA28-L28>0,C$29*(AA28-L28))+ROUND($C$31*365/12,2)+(Summary!N19/12)*2 -> 123.2952354 | E88: =D$28*MIN(K28,Z28)+IF(Z28-K28>0,D$29*(Z28-K28))+ROUND($P$14*365/12,2)+(Summary!N19/12)*2 -> 182.0499767 | F88: =D$28*MIN(L28,AA28)+IF(AA28-L28>0,D$29*(AA28-L28))+ROUND($P$14*365/12,2)+(Summary!N19/12)*2 -> 123.2952354 | G88: =E$28*MIN(K28,Z28)+IF(Z28-K28>0,E$29*(Z28-K28))+ROUND($P$14*365/12,2)+(Summary!N19/12)*2 -> 174.5875403 | H88: =E$28*MIN(L28,AA28)+IF(AA28-L28>0,E$29*(AA28-L28))+ROUND($P$14*365/12,2)+(Summary!N19/12)*2 -> 118.2414876 | I88: =F$28*MIN(K28,Z28)+IF(Z28-K28>0,F$29*(Z28-K28))+ROUND($P$14*365/12,2)+(Summary!N19/12)*2 -> 176.4910217 | J88: =F$28*MIN(L28,AA28)+IF(AA28-L28>0,F$29*(AA28-L28))+ROUND($P$14*365/12,2)+(Summary!N19/12)*2 -> 119.5305726
B89: 15 hot | C89: =C$28*MIN(K29,Z29)+IF(Z29-K29>0,C$29*(Z29-K29))+ROUND($C$31*365/12,2)+(Summary!N19/12)*2 -> 220.5342603 | D89: =C$28*MIN(L29,AA29)+IF(AA29-L29>0,C$29*(AA29-L29))+ROUND($C$31*365/12,2)+(Summary!N19/12)*2 -> 98.49363524 | E89: =D$28*MIN(K29,Z29)+IF(Z29-K29>0,D$29*(Z29-K29))+ROUND($P$14*365/12,2)+(Summary!N19/12)*2 -> 220.5342603 | F89: =D$28*MIN(L29,AA29)+IF(AA29-L29>0,D$29*(AA29-L29))+ROUND($P$14*365/12,2)+(Summary!N19/12)*2 -> 98.49363524 | G89: =E$28*MIN(K29,Z29)+IF(Z29-K29>0,E$29*(Z29-K29))+ROUND($P$14*365/12,2)+(Summary!N19/12)*2 -> 211.4941359 | H89: =E$28*MIN(L29,AA29)+IF(AA29-L29>0,E$29*(AA29-L29))+ROUND($P$14*365/12,2)+(Summary!N19/12)*2 -> 94.45664503 | I89: =F$28*MIN(K29,Z29)+IF(Z29-K29>0,F$29*(Z29-K29))+ROUND($P$14*365/12,2)+(Summary!N19/12)*2 -> 213.8000462 | J89: =F$28*MIN(L29,AA29)+IF(AA29-L29>0,F$29*(AA29-L29))+ROUND($P$14*365/12,2)+(Summary!N19/12)*2 -> 95.48638056
B90: 16 cool | C90: =C$28*MIN(K30,Z30)+IF(Z30-K30>0,C$29*(Z30-K30))+ROUND($C$31*365/12,2)+(Summary!N19/12)*2 -> 146.9565607 | D90: =C$28*MIN(L30,AA30)+IF(AA30-L30>0,C$29*(AA30-L30))+ROUND($C$31*365/12,2)+(Summary!N19/12)*2 -> 109.9469405 | E90: =D$28*MIN(K30,Z30)+IF(Z30-K30>0,D$29*(Z30-K30))+ROUND($P$14*365/12,2)+(Summary!N19/12)*2 -> 146.9565607 | F90: =D$28*MIN(L30,AA30)+IF(AA30-L30>0,D$29*(AA30-L30))+ROUND($P$14*365/12,2)+(Summary!N19/12)*2 -> 109.9469405 | G90: =E$28*MIN(K30,Z30)+IF(Z30-K30>0,E$29*(Z30-K30))+ROUND($P$14*365/12,2)+(Summary!N19/12)*2 -> 140.9328016 | H90: =E$28*MIN(L30,AA30)+IF(AA30-L30>0,E$29*(AA30-L30))+ROUND($P$14*365/12,2)+(Summary!N19/12)*2 -> 105.4404146 | I90: =F$28*MIN(K30,Z30)+IF(Z30-K30>0,F$29*(Z30-K30))+ROUND($P$14*365/12,2)+(Summary!N19/12)*2 -> 142.4693123 | J90: =F$28*MIN(L30,AA30)+IF(AA30-L30>0,F$29*(AA30-L30))+ROUND($P$14*365/12,2)+(Summary!N19/12)*2 -> 106.589917
B91: ALL | C91: =SUMPRODUCT(C82:C90,$AC$22:$AC$30) -> 126.3991297 | D91: =SUMPRODUCT(D82:D90,$AC$22:$AC$30) -> 85.52106958 | E91: 126.3991297 | F91: 85.52106958 | G91: 121.2181358 | H91: 82.01589807 | I91: 122.5396781 | J91: =SUMPRODUCT(J82:J90,$AC$22:$AC$30) -> 82.90997992
F95: 2026 | G95: =F95+1 -> 2027 | H95: =G95+1 -> 2028 | I95: 2029 | M95: =F95 -> 2026 | N95: =G95 -> 2027 | O95: 2028 | P95: 2029
F96: Non-CARE | G96: Non-CARE | H96: Non-CARE | I96: Non-CARE | M96: CARE | N96: CARE | O96: CARE | P96: CARE
A97: 3 | D97: Baseline - Summer | F97: 3341.092086 | G97: =G$107*(F97/SUM(F$97:F$102)) -> 3475.856691 | H97: =H$107*(G97/SUM(G$97:G$102)) -> 3547.951687 | I97: =I$107*(H97/SUM(H$97:H$102)) -> 3547.951687 | M97: 1853.485707 | N97: =N$107*(M97/SUM(M$97:M$102)) -> 1928.246971 | O97: =O$107*(N97/SUM(N$97:N$102)) -> 1968.241991 | P97: =P$107*(O97/SUM(O$97:O$102)) -> 1968.241991
A98: =A97+1 -> 4 | D98: - Winter | F98: 4595.046326 | G98: =G$107*(F98/SUM(F$97:F$102)) -> 4780.389798 | H98: =H$107*(G98/SUM(G$97:G$102)) -> 4879.54296 | I98: 4879.54296 | M98: 2569.096495 | N98: =N$107*(M98/SUM(M$97:M$102)) -> 2672.722275 | O98: =O$107*(N98/SUM(N$97:N$102)) -> 2728.15894 | P98: 2728.15894
A99: =A98+1 -> 5 | D99: 101% - 400% of Baseline - Summer | F99: 2086.626226 | G99: 2170.791329 | H99: =H$107*(G99/SUM(G$97:G$102)) -> 2215.817119 | I99: 2215.817119 | M99: 788.5488199 | N99: 820.3553274 | O99: =O$107*(N99/SUM(N$97:N$102)) -> 837.3708489 | P99: 837.3708489
A100: 6 | D100: - Winter | F100: 2800.745323 | G100: 2913.714774 | H100: =H$107*(G100/SUM(G$97:G$102)) -> 2974.15002 | I100: 2974.15002 | M100: 1049.208786 | N100: 1091.529143 | O100: =O$107*(N100/SUM(N$97:N$102)) -> 1114.169256 | P100: 1114.169256
A101: 7 | D101: 401% of Baseline - Summer | F101: 165.8479243 | G101: 172.5374825 | H101: =H$107*(G101/SUM(G$97:G$102)) -> 176.1161943 | I101: 176.1161943 | M101: 9.043378596 | N101: 9.408147754 | O101: =O$107*(N101/SUM(N$97:N$102)) -> 9.603288244 | P101: 9.603288244
A102: 8 | D102: - Winter | F102: 281.0260881 | G102: 292.3614147 | H102: =H$107*(G102/SUM(G$97:G$102)) -> 298.4254722 | I102: 298.4254722 | M102: 20.13235039 | N102: 20.94439872 | O102: =O$107*(N102/SUM(N$97:N$102)) -> 21.37882007 | P102: 21.37882007
A103: 9
A104: 10 | D104: Basic Charge - Single-Family Residence | F104: 19072895.18 | G104: =$F107/SUM($F$107:$F$108)*G$108 -> 19842209.86 | H104: 20642555.23 | I104: =$F107/SUM($F$107:$F$108)*I$108 -> 21475182.93 | M104: 6438624.757 | N104: =$M107*N$108 -> 6698329.879 | O104: 6968510.334 | P104: 7249588.653
A105: 11 | D105: Basic Charge - Multi-Family Residence | F105: 8676304.22 | G105: =$F108/SUM($F$107:$F$108)*G$108 -> 9026267.251 | H105: 9390346.214 | I105: 9769110.484 | M105: 5406026.843 | N105: 5624081.615 | O105: 5850931.734 | P105: 6086931.966
F107: =1-F108 -> 0.6873313679 | G107: =SUM(F97:F102)/'SAR and RAR'!$K$58*'SAR and RAR'!$K$59 -> 13805.65149 | H107: =G107/'SAR and RAR'!$K$59*'SAR and RAR'!$K$60 -> 14092.00345 | I107: =H107/'SAR and RAR'!$K$60*'SAR and RAR'!$K$61 -> 14092.00345 | M107: =1-M108 -> 0.5435892059 | N107: =SUM(M97:M102)/'SAR and RAR'!$K$58*'SAR and RAR'!$K$59 -> 6543.206264 | O107: =N107/'SAR and RAR'!$K$59*'SAR and RAR'!$K$60 -> 6678.923145 | P107: =O107/'SAR and RAR'!$K$60*'SAR and RAR'!$K$61 -> 6678.923145
E108: Customers | F108: 0.3126686321 | G108: =SUM(F104:F105)/'SAR and RAR'!O58*'SAR and RAR'!O59 -> 28868477.11 | H108: =(SUM(G104:G105)/SUM(F104:F105))*SUM(G104:G105) -> 30032901.45 | I108: =(SUM(G104:G105)/SUM(F104:F105))*H108 -> 31244293.41 | M108: 0.4564107941 | N108: =SUM(M104:M105)/'SAR and RAR'!O58*'SAR and RAR'!O59 -> 12322411.49 | O108: =(SUM(N104:N105)/SUM(M104:M105))*SUM(N104:N105) -> 12819442.07 | P108: =(SUM(O104:O105)/SUM(N104:N105))*SUM(O104:O105) -> 13336520.62
F110: 11844651.6

Sheet SAR and AR (GS1) (hidden)
B1: CONFIDENTIAL This Excel Sheet Is Marked Confidential In Accordance With Applicable Law and Regulation. Basis for Confidentiality In Accompanying Confidentiality Declaration. Public Disclosure Restricted.
C2: Total Revenue ($000)
C3: Authorized | D3: w/ Pending
B4: Generation | C4: =INDEX('Incremental Rev Req'!$S$9:$X$22,MATCH(B4,'Incremental Rev Req'!$S$9:$S$22,0),MATCH(Summary!$D$3,'Incremental Rev Req'!$S$9:$X$9,0)) -> 5656574.685 | D4: =INDEX('Incremental Rev Req'!$S$68:$X$81,MATCH(B4,'Incremental Rev Req'!$S$68:$S$81,0),MATCH(Summary!$D$3,'Incremental Rev Req'!$S$68:$X$68,0)) -> 5656574.685 | G4: Allocation
B5: Distribution | C5: =INDEX('Incremental Rev Req'!$S$9:$X$22,MATCH(B5,'Incremental Rev Req'!$S$9:$S$22,0),MATCH(Summary!$D$3,'Incremental Rev Req'!$S$9:$X$9,0)) -> 10354500.12 | D5: =INDEX('Incremental Rev Req'!$S$68:$X$81,MATCH(B5,'Incremental Rev Req'!$S$68:$S$81,0),MATCH(Summary!$D$3,'Incremental Rev Req'!$S$68:$X$68,0)) -> 10660878.12 | G5: Generation | H5: Distribution | I5: NDC | J5: PPPC | K5: DCPP | L5: NSGC | M5: Transmission | N5: TOTCA | O5: GHG Rev | P5: DWRBC | Q5: PUCRF | R5: SECURITIZATION
B6: Nuclear | C6: =INDEX('Incremental Rev Req'!$S$9:$X$22,MATCH(B6,'Incremental Rev Req'!$S$9:$S$22,0),MATCH(Summary!$D$3,'Incremental Rev Req'!$S$9:$X$9,0)) -> 2137.996734 | D6: =INDEX('Incremental Rev Req'!$S$68:$X$81,MATCH(B6,'Incremental Rev Req'!$S$68:$S$81,0),MATCH(Summary!$D$3,'Incremental Rev Req'!$S$68:$X$68,0)) -> 2137.996734 | F6: GS-1 | G6: =VLOOKUP(Summary!$D$3,'SAR and AR (GS1)'!$F$37:$R$42,'SAR and AR (GS1)'!G$35,TRUE) -> 0.08270847492 | H6: =VLOOKUP(Summary!$D$3,'SAR and AR (GS1)'!$F$37:$R$42,'SAR and AR (GS1)'!H$35,TRUE) -> 0.06936736423 | I6: =VLOOKUP(Summary!$D$3,'SAR and AR (GS1)'!$F$37:$R$42,'SAR and AR (GS1)'!I$35,TRUE) -> 0.07266341324 | J6: =VLOOKUP(Summary!$D$3,'SAR and AR (GS1)'!$F$37:$R$42,'SAR and AR (GS1)'!J$35,TRUE) -> 0.07120972107 | K6: =VLOOKUP(Summary!$D$3,'SAR and AR (GS1)'!$F$37:$R$42,'SAR and AR (GS1)'!K$35,TRUE) -> 0.06872289635 | L6: =VLOOKUP(Summary!$D$3,'SAR and AR (GS1)'!$F$37:$R$42,'SAR and AR (GS1)'!L$35,TRUE) -> 0.07306579115 | M6: =VLOOKUP(Summary!$D$3,'SAR and AR (GS1)'!$F$37:$R$42,'SAR and AR (GS1)'!M$35,TRUE) -> 0.07266143136 | N6: =VLOOKUP(Summary!$D$3,'SAR and AR (GS1)'!$F$37:$R$42,'SAR and AR (GS1)'!N$35,TRUE) -> 0.07272284017 | O6: =VLOOKUP(Summary!$D$3,'SAR and AR (GS1)'!$F$37:$R$42,'SAR and AR (GS1)'!O$35,TRUE) -> 0.07524386219 | P6: =VLOOKUP(Summary!$D$3,'SAR and AR (GS1)'!$F$37:$R$42,'SAR and AR (GS1)'!P$35,TRUE) -> 0.08102390139 | Q6: =VLOOKUP(Summary!$D$3,'SAR and AR (GS1)'!$F$37:$R$42,'SAR and AR (GS1)'!Q$35,TRUE) -> 0.07266341324 | R6: =VLOOKUP(Summary!$D$3,'SAR and AR (GS1)'!$F$37:$R$42,'SAR and AR (GS1)'!R$35,TRUE) -> 0.08336837807
B7: Public Purpose | C7: =INDEX('Incremental Rev Req'!$S$9:$X$22,MATCH(B7,'Incremental Rev Req'!$S$9:$S$22,0),MATCH(Summary!$D$3,'Incremental Rev Req'!$S$9:$X$9,0)) -> 802042.5376 | D7: =INDEX('Incremental Rev Req'!$S$68:$X$81,MATCH(B7,'Incremental Rev Req'!$S$68:$S$81,0),MATCH(Summary!$D$3,'Incremental Rev Req'!$S$68:$X$68,0)) -> 572380.6631
B8: DCPP | C8: =INDEX('Incremental Rev Req'!$S$9:$X$22,MATCH(B8,'Incremental Rev Req'!$S$9:$S$22,0),MATCH(Summary!$D$3,'Incremental Rev Req'!$S$9:$X$9,0)) -> 131844.6163 | D8: =INDEX('Incremental Rev Req'!$S$68:$X$81,MATCH(B8,'Incremental Rev Req'!$S$68:$S$81,0),MATCH(Summary!$D$3,'Incremental Rev Req'!$S$68:$X$68,0)) -> 131844.6163 | G8: Revenue ($000) - System | X8: Authorized | Y8: w/Pending
B9: New System Gen | C9: =INDEX('Incremental Rev Req'!$S$9:$X$22,MATCH(B9,'Incremental Rev Req'!$S$9:$S$22,0),MATCH(Summary!$D$3,'Incremental Rev Req'!$S$9:$X$9,0)) -> 514473.1865 | D9: =INDEX('Incremental Rev Req'!$S$68:$X$81,MATCH(B9,'Incremental Rev Req'!$S$68:$S$81,0),MATCH(Summary!$D$3,'Incremental Rev Req'!$S$68:$X$68,0)) -> 514473.1865 | F9: Authorized | G9: Generation | H9: Distribution | I9: NDC | J9: PPPC | K9: DCPP | L9: NSGC | M9: Transmission | N9: TOTCA | O9: GHG Rev | P9: DWRBC | Q9: PUCRF | R9: SECURITIZATION | S9: Total | T9: CARE Adj. | W9: % of CARE Sales | X9: =VLOOKUP(Summary!$D$3,$F$58:$Q$63,$Q$35,TRUE) -> 0 | Y9: =X9 -> 0
B10: FERC | C10: =INDEX('Incremental Rev Req'!$S$9:$X$22,MATCH(B10,'Incremental Rev Req'!$S$9:$S$22,0),MATCH(Summary!$D$3,'Incremental Rev Req'!$S$9:$X$9,0)) -> 1500981.985 | D10: =INDEX('Incremental Rev Req'!$S$68:$X$81,MATCH(B10,'Incremental Rev Req'!$S$68:$S$81,0),MATCH(Summary!$D$3,'Incremental Rev Req'!$S$68:$X$68,0)) -> 1500981.985 | F10: GS-1 | G10: =G6*G11 -> 467846.6655 | H10: =H6*H11 -> 718264.3814 | I10: =I6*I11 -> 155.3541402 | J10: =J6*J11 -> 57113.22539 | K10: =K6*K11 -> 9060.743901 | L10: 37590.3904 | M10: 109063.4995 | N10: 3273.441279 | O10: -33354.02399 | P10: 34546.49692 | Q10: 5845.408278 | R10: =R6*R11 -> 19022.69121 | S10: =SUM(G10:R10) -> 1428428.274 | T10: =X14 -> 78423.00407 | W10: CARE Effective Discount | X10: ='SAR and RAR'!X10 -> 0.325 | Y10: =X10 -> 0.325
B11: TOTCA | C11: =INDEX('Incremental Rev Req'!$S$9:$X$22,MATCH(B11,'Incremental Rev Req'!$S$9:$S$22,0),MATCH(Summary!$D$3,'Incremental Rev Req'!$S$9:$X$9,0)) -> 45012.561 | D11: =INDEX('Incremental Rev Req'!$S$68:$X$81,MATCH(B11,'Incremental Rev Req'!$S$68:$S$81,0),MATCH(Summary!$D$3,'Incremental Rev Req'!$S$68:$X$68,0)) -> 45012.561 | F11: Total System | G11: =C4 -> 5656574.685 | H11: =C5 -> 10354500.12 | I11: =C6 -> 2137.996734 | J11: =C7 -> 802042.5376 | K11: =C8 -> 131844.6163 | L11: =C9 -> 514473.1865 | M11: =C10 -> 1500981.985 | N11: =C11 -> 45012.561 | O11: =C12 -> -443279 | P11: =C14 -> 426374.1479 | Q11: =C15 -> 80445 | R11: =C16 -> 228176.338 | S11: =SUM(G11:R11) -> 19299284.18 | T11: 0 | W11: CARE Discounst | X11: ='SAR and RAR'!X11 -> 962207.2097 | Y11: ='SAR and RAR'!Y11 -> 966798.6762
B12: GHG Revenue | C12: =INDEX('Incremental Rev Req'!$S$9:$X$22,MATCH(B12,'Incremental Rev Req'!$S$9:$S$22,0),MATCH(Summary!$D$3,'Incremental Rev Req'!$S$9:$X$9,0)) -> -443279 | D12: =INDEX('Incremental Rev Req'!$S$68:$X$81,MATCH(B12,'Incremental Rev Req'!$S$68:$S$81,0),MATCH(Summary!$D$3,'Incremental Rev Req'!$S$68:$X$68,0)) -> -443279 | F12: w/Pending | W12: GS-1 Sales | X12: =VLOOKUP(Summary!$D$3,'SAR and AR (GS1)'!$F$58:$O$63,10,TRUE) -> 5845430.951 | Y12: =X12 -> 5845430.951
B13: MCAM | C13: =INDEX('Incremental Rev Req'!$S$9:$X$22,MATCH(B13,'Incremental Rev Req'!$S$9:$S$22,0),MATCH(Summary!$D$3,'Incremental Rev Req'!$S$9:$X$9,0)) -> 6677.031595 | D13: =INDEX('Incremental Rev Req'!$S$68:$X$81,MATCH(B13,'Incremental Rev Req'!$S$68:$S$81,0),MATCH(Summary!$D$3,'Incremental Rev Req'!$S$68:$X$68,0)) -> 6677.031595 | F13: GS-1 | G13: =G6*G14 -> 467846.6655 | H13: =H6*H14 -> 739517.0157 | I13: =I6*I14 -> 155.3541402 | J13: =J6*J14 -> 40759.06737 | K13: =K6*K14 -> 9060.743901 | L13: 37590.3904 | M13: 109063.4995 | N13: 3273.441279 | O13: -33354.02399 | P13: 34546.49692 | Q13: 5845.408278 | R13: =R6*R14 -> 29885.59088 | S13: =SUM(G13:R13) -> 1444189.65 | T13: =Y14 -> 78797.22346 | W13: Total Sales (excl. CARE&SL) | X13: =VLOOKUP(Summary!$D$3,'SAR and AR (GS1)'!$F$64:$O$69,2,TRUE) -> 71720228.92 | Y13: =X13 -> 71720228.92
B14: DWR | C14: =INDEX('Incremental Rev Req'!$S$9:$X$22,MATCH(B14,'Incremental Rev Req'!$S$9:$S$22,0),MATCH(Summary!$D$3,'Incremental Rev Req'!$S$9:$X$9,0)) -> 426374.1479 | D14: =INDEX('Incremental Rev Req'!$S$68:$X$81,MATCH(B14,'Incremental Rev Req'!$S$68:$S$81,0),MATCH(Summary!$D$3,'Incremental Rev Req'!$S$68:$X$68,0)) -> 426374.1479 | F14: Total System | G14: =D4 -> 5656574.685 | H14: =D5 -> 10660878.12 | I14: =D6 -> 2137.996734 | J14: =D7 -> 572380.6631 | K14: =D8 -> 131844.6163 | L14: =D9 -> 514473.1865 | M14: =D10 -> 1500981.985 | N14: =D11 -> 45012.561 | O14: =D12 -> -443279 | P14: =D14 -> 426374.1479 | Q14: =D15 -> 80445 | R14: =D16 -> 358476.338 | S14: =SUM(G14:R14) -> 19506300.3 | T14: 0 | W14: GS-1 CARE Surcharge | X14: =X11*X12/X13 -> 78423.00407 | Y14: =Y11*Y12/Y13 -> 78797.22346
B15: PUCRF | C15: =INDEX('Incremental Rev Req'!$S$9:$X$22,MATCH(B15,'Incremental Rev Req'!$S$9:$S$22,0),MATCH(Summary!$D$3,'Incremental Rev Req'!$S$9:$X$9,0)) -> 80445 | D15: =INDEX('Incremental Rev Req'!$S$68:$X$81,MATCH(B15,'Incremental Rev Req'!$S$68:$S$81,0),MATCH(Summary!$D$3,'Incremental Rev Req'!$S$68:$X$68,0)) -> 80445 | W15: RES CARE Discount Specific Split | X15: ='SAR and RAR'!X15 -> 0.7560613149 | Y15: ='SAR and RAR'!Y15 -> 0.7560613149
B16: SECURITIZATION | C16: =INDEX('Incremental Rev Req'!$S$9:$X$22,MATCH(B16,'Incremental Rev Req'!$S$9:$S$22,0),MATCH(Summary!$D$3,'Incremental Rev Req'!$S$9:$X$9,0)) -> 228176.338 | D16: =INDEX('Incremental Rev Req'!$S$68:$X$81,MATCH(B16,'Incremental Rev Req'!$S$68:$S$81,0),MATCH(Summary!$D$3,'Incremental Rev Req'!$S$68:$X$68,0)) -> 358476.338 | S16: Authorized | T16: w/Pending | W16: CARE Surcharge Allocator | X16: ='SAR and RAR'!X16 -> 0.6245331637 | Y16: ='SAR and RAR'!Y16 -> 0.6245331637
B17: Total | C17: =SUM(C4:C16) -> 19305961.21 | D17: =SUM(D4:D16) -> 19512977.33 | G17: Revenue Split - Bundled | S17: Bundled Revenue | W17: System CARE Discount | X17: =SUM(-X11*X15)+SUM(X11*X16) -> -126557.3353 | Y17: =SUM(-Y11*Y15)+SUM(Y11*Y16) -> -127161.2424
G18: Generation | H18: Distribution | I18: NDC | J18: PPPC | K18: DCPP | L18: NSGC | M18: Transmission | N18: TOTCA | O18: GHG Rev | P18: DWRBC | Q18: PUCRF | R18: SECURITIZATION | S18: Total | T18: Total
F19: GS-1 | G19: =VLOOKUP(Summary!$D$3,'SAR and AR (GS1)'!$F$44:$R$49,'SAR and AR (GS1)'!G$35,TRUE) -> 0.9333278793 | H19: =VLOOKUP(Summary!$D$3,'SAR and AR (GS1)'!$F$44:$R$49,'SAR and AR (GS1)'!H$35,TRUE) -> 0.6594144603 | I19: =VLOOKUP(Summary!$D$3,'SAR and AR (GS1)'!$F$44:$R$49,'SAR and AR (GS1)'!I$35,TRUE) -> 0.6571407077 | J19: =VLOOKUP(Summary!$D$3,'SAR and AR (GS1)'!$F$44:$R$49,'SAR and AR (GS1)'!J$35,TRUE) -> 0.6571407077 | K19: =VLOOKUP(Summary!$D$3,'SAR and AR (GS1)'!$F$44:$R$49,'SAR and AR (GS1)'!K$35,TRUE) -> 0.6571407077 | L19: =VLOOKUP(Summary!$D$3,'SAR and AR (GS1)'!$F$44:$R$49,'SAR and AR (GS1)'!L$35,TRUE) -> 0.6571407077 | M19: =VLOOKUP(Summary!$D$3,'SAR and AR (GS1)'!$F$44:$R$49,'SAR and AR (GS1)'!M$35,TRUE) -> 0.6571407077 | N19: =VLOOKUP(Summary!$D$3,'SAR and AR (GS1)'!$F$44:$R$49,'SAR and AR (GS1)'!N$35,TRUE) -> 0.6571407077 | O19: =VLOOKUP(Summary!$D$3,'SAR and AR (GS1)'!$F$44:$R$49,'SAR and AR (GS1)'!O$35,TRUE) -> 0.6804708518 | P19: =VLOOKUP(Summary!$D$3,'SAR and AR (GS1)'!$F$44:$R$49,'SAR and AR (GS1)'!P$35,TRUE) -> 0.6571407077 | Q19: =VLOOKUP(Summary!$D$3,'SAR and AR (GS1)'!$F$44:$R$49,'SAR and AR (GS1)'!Q$35,TRUE) -> 0.6571407077 | R19: =VLOOKUP(Summary!$D$3,'SAR and AR (GS1)'!$F$44:$R$49,'SAR and AR (GS1)'!R$35,TRUE) -> 0.6571407077 | S19: =SUMPRODUCT(G10:R10,G19:R19)+T10*H19 -> 1120459.878 | T19: =SUMPRODUCT(G13:R13,G19:R19)+T13*H19 -> 1131112.409
F20: Total System | G20: =VLOOKUP(Summary!$D$3,'SAR and AR (GS1)'!$F$50:$R$55,'SAR and AR (GS1)'!G$35,TRUE) -> 0.9257771519 | H20: =VLOOKUP(Summary!$D$3,'SAR and AR (GS1)'!$F$50:$R$55,'SAR and AR (GS1)'!H$35,TRUE) -> 0.6583209223 | I20: =VLOOKUP(Summary!$D$3,'SAR and AR (GS1)'!$F$50:$R$55,'SAR and AR (GS1)'!I$35,TRUE) -> 0.6388478176 | J20: =VLOOKUP(Summary!$D$3,'SAR and AR (GS1)'!$F$50:$R$55,'SAR and AR (GS1)'!J$35,TRUE) -> 0.6512777238 | K20: =VLOOKUP(Summary!$D$3,'SAR and AR (GS1)'!$F$50:$R$55,'SAR and AR (GS1)'!K$35,TRUE) -> 0.6520237334 | L20: =VLOOKUP(Summary!$D$3,'SAR and AR (GS1)'!$F$50:$R$55,'SAR and AR (GS1)'!L$35,TRUE) -> 0.6485268401 | M20: =VLOOKUP(Summary!$D$3,'SAR and AR (GS1)'!$F$50:$R$55,'SAR and AR (GS1)'!M$35,TRUE) -> 0.6706488897 | N20: =VLOOKUP(Summary!$D$3,'SAR and AR (GS1)'!$F$50:$R$55,'SAR and AR (GS1)'!N$35,TRUE) -> 0.6413610128 | O20: =VLOOKUP(Summary!$D$3,'SAR and AR (GS1)'!$F$50:$R$55,'SAR and AR (GS1)'!O$35,TRUE) -> 0.6806631536 | P20: =VLOOKUP(Summary!$D$3,'SAR and AR (GS1)'!$F$50:$R$55,'SAR and AR (GS1)'!P$35,TRUE) -> 0.6251728172 | Q20: =VLOOKUP(Summary!$D$3,'SAR and AR (GS1)'!$F$50:$R$55,'SAR and AR (GS1)'!Q$35,TRUE) -> 0.6388478176 | R20: =VLOOKUP(Summary!$D$3,'SAR and AR (GS1)'!$F$50:$R$55,'SAR and AR (GS1)'!R$35,TRUE) -> 0.6353766549 | S20: =SUMPRODUCT(G11:R11,G20:R20)+X17 -> 14066793.2 | T20: =SUMPRODUCT(G14:R14,G20:R20)+Y17 -> 14201100.25
R22: GS-1 GHG | S22: =O10*O19 -> -22696.44111 | T22: =O13*O19 -> -22696.44111
R23: GS-1 GHG System | S23: =O11*O20 -> -301723.6821 | T23: =O14*O20 -> -301723.6821
F26: Bundled | N26: System (Bundled and Unbundled) | V26: Janaury of each year
F27: =Summary!N4&" Sales" -> 2026 Sales | G27: =MONTH(Summary!$N$3)&"/"&DAY(Summary!$N$3)&"/"&YEAR(Summary!$N$3)&" Avg Rates" -> 1/1/2026 Avg Rates | H27: Proposed Avg Rates (Authorized) | I27: Proposed Avg Rates (w/Pending) | J27: % Change (Authorized) | K27: % Change (w/Pending) | N27: =Summary!N4&" Sales" -> 2026 Sales | O27: =G27 -> 1/1/2026 Avg Rates | P27: Proposed Avg Rates (Authorized) | Q27: Proposed Avg Rates (w/Pending) | R27: % Change (Authorized) | S27: % Change (w/Pending) | W27: 1/1/26 Bundled w/Credit | X27: 1/1/26 Bundled w/out Credit | Z27: 1/1/26 System w/Credit | AA27: 1/1/26 System w/out Credit
E28: GS-1 | F28: =VLOOKUP(Summary!$D$3,'SAR and AR (GS1)'!$J$58:$K$63,2,TRUE) -> 3841270.632 | G28: =IF(Summary!$J$3="Y",W31,X31) -> 30.53542358 | H28: =IF(Summary!$J$3="Y",S19/$F$28*100,SUM(S19-S22)/$F$28*100) -> 29.75984847 | I28: =IF(Summary!$J$3="Y",T19/$F$28*100,SUM(T19-T22)/$F$28*100) -> 30.03716636 | J28: =H28/G28-1 -> -0.02539919253 | K28: =I28/G28-1 -> -0.01631735061 | M28: GS-1 | N28: =VLOOKUP(Summary!$D$3,'SAR and AR (GS1)'!$N$58:$O$63,2,TRUE) -> 5845430.951 | O28: =IF(Summary!$J$3="Y",Z31,AA31) -> 27.15054885 | P28: =IF(Summary!$J$3="Y",SUM(S10:T10)/N28*100,SUM(S10:T10,-O10)/N28*100) -> 26.34887513 | Q28: =IF(Summary!$J$3="Y",SUM(S13:T13)/N28*100,SUM(S13:T13,-O13)/N28*100) -> 26.62491287 | R28: =P28/O28-1 -> -0.02952698048 | S28: =Q28/O28-1 -> -0.01936005019 | V28: GS-1 Bundled | W28: 29.94456605 | X28: 30.53542358 | Y28: GS-1 System | Z28: 26.57994905 | AA28: 27.15054885
E29: Total Bundled | F29: =VLOOKUP(Summary!$D$3,'SAR and AR (GS1)'!$J$64:$K$69,2,TRUE) -> 51392312.02 | G29: ='SAR and RAR'!G29 -> 28.8581489 | H29: =IF(Summary!$J$3="Y",S20/$F$29*100,SUM(S20-S23)/$F$29*100) -> 27.95849479 | I29: =IF(Summary!$J$3="Y",T20/$F$29*100,SUM(T20-T23)/$F$29*100) -> 28.21983166 | J29: =H29/G29-1 -> -0.03117504562 | K29: =I29/G29-1 -> -0.02211913344 | M29: Total System | N29: =VLOOKUP(Summary!$D$3,'SAR and AR (GS1)'!$N$64:$O$69,2,TRUE) -> 80445312.02 | O29: ='SAR and RAR'!O29 -> 25.19445183 | P29: =IF(Summary!$J$3="Y",SUM(S11:T11)/N29*100,SUM(S11:T11,-O11)/N29*100) -> 24.54159563 | Q29: =IF(Summary!$J$3="Y",SUM(S14:T14)/N29*100,SUM(S14:T14,-O14)/N29*100) -> 24.79893334 | R29: =P29/O29-1 -> -0.02591269741 | S29: =Q29/O29-1 -> -0.01569863465 | V29: Current Effective
E30: =M29 -> Total System | F30: =N29 -> 80445312.02 | W30: 1/1/26 Bundled w/Credit | X30: 1/1/26 Bundled w/out Credit | Z30: 1/1/26 System w/Credit | AA30: 1/1/26 System w/out Credit
V31: GS-1 Bundled | W31: 29.94456605 | X31: 30.53542358 | Y31: GS-1 System | Z31: 26.57994905 | AA31: 27.15054885
G35: 2 | H35: =G35+1 -> 3 | I35: =H35+1 -> 4 | J35: 5 | K35: 6 | L35: 7 | M35: 8 | N35: 9 | O35: 10 | P35: 11 | Q35: 12 | R35: 13
F36: GS-1 Allocator | G36: Generation | H36: Distribution | I36: NDC | J36: PPPC | K36: DCPP | L36: NSGC | M36: Transmission | N36: TOTCA | O36: GHG Rev | P36: DWRBC | Q36: PUCRF | R36: SECURITIZATION
F37: 2026 | G37: 0.08270847492 | H37: 0.06936736423 | I37: 0.07266341324 | J37: 0.07120972107 | K37: 0.06872289635 | L37: 0.07306579115 | M37: 0.07266143136 | N37: 0.07272284017 | O37: 0.07524386219 | P37: 0.08102390139 | Q37: 0.07266341324 | R37: 0.08336837807
F38: 2027 | G38: 0.08471051766 | H38: 0.07146406753 | I38: 0.07480527742 | J38: 0.07333579129 | K38: 0.07077628651 | L38: 0.07524113144 | M38: 0.07487448714 | N38: 0.07487204104 | O38: 0.07758617152 | P38: 0.0833783615 | Q38: 0.07480527742 | R38: 0.08581694582
F39: 2028 | G39: 0.08508803122 | H39: 0.07207585289 | I39: 0.09137913795 | J39: 0.07002288382 | K39: 0.06107416886 | L39: 0.07304892336 | M39: 0.07560698619 | N39: 0.06849343613 | O39: 0.07640949593 | P39: 0.08297306665 | Q39: 0.0765438148 | R39: 0.09597120735
F40: 2029 | G40: =G39 -> 0.08508803122 | H40: =H39 -> 0.07207585289 | I40: 0.09137913795 | J40: 0.07002288382 | K40: 0.06107416886 | L40: 0.07304892336 | M40: 0.07560698619 | N40: 0.06849343613 | O40: 0.07640949593 | P40: 0.08297306665 | Q40: 0.0765438148 | R40: 0.09597120735
F43: Revenue Split - Bundled
E44: GS-1 | F44: =F37 -> 2026 | G44: 0.9333278793 | H44: 0.6594144603 | I44: 0.6571407077 | J44: 0.6571407077 | K44: 0.6571407077 | L44: 0.6571407077 | M44: 0.6571407077 | N44: 0.6571407077 | O44: 0.6804708518 | P44: 0.6571407077 | Q44: 0.6571407077 | R44: 0.6571407077 | U44: =G44 -> 0.9333278793
E45: GS-1 | F45: =F38 -> 2027 | G45: 0.9342909326 | H45: 0.6629050716 | I45: 0.6606426296 | J45: 0.6606426296 | K45: 0.6606426296 | L45: 0.6606426296 | M45: 0.6606426296 | N45: 0.6606426296 | O45: 0.6838491246 | P45: 0.6606426296 | Q45: 0.6606426296 | R45: 0.6606426296 | T45: =K59/K58-1 -> 0.04033549567 | U45: =G45 -> 0.9342909326
E46: GS-1 | F46: 2028 | G46: 0.9345462065 | H46: 0.6638353071 | I46: 0.6615759211 | J46: 0.6615759211 | K46: 0.6615759211 | L46: 0.6615759211 | M46: 0.6615759211 | N46: 0.6615759211 | O46: 0.6847490493 | P46: 0.6615759211 | Q46: 0.6615759211 | R46: 0.6615759211 | T46: =K60/K59-1 -> 0.02074164806 | U46: 0.9345462065
E47: GS-1 | F47: 2029 | G47: =G46 -> 0.9345462065 | H47: =H46 -> 0.6638353071 | I47: =I46 -> 0.6615759211 | J47: =J46 -> 0.6615759211 | K47: =K46 -> 0.6615759211 | L47: =L46 -> 0.6615759211 | M47: =M46 -> 0.6615759211 | N47: =N46 -> 0.6615759211 | O47: =O46 -> 0.6847490493 | P47: =P46 -> 0.6615759211 | Q47: =Q46 -> 0.6615759211 | R47: =R46 -> 0.6615759211 | T47: =K61/K60-1 -> 0 | U47: 0.9345462065
T48: =K61/K61-1 -> 0 | U48: 0
E50: Total System | F50: =F37 -> 2026 | G50: 0.9257771519 | H50: 0.6583209223 | I50: 0.6388478176 | J50: 0.6512777238 | K50: 0.6520237334 | L50: 0.6485268401 | M50: 0.6706488897 | N50: 0.6413610128 | O50: 0.6806631536 | P50: 0.6251728172 | Q50: 0.6388478176 | R50: 0.6353766549 | U50: 0.9257771519
E51: Total System | F51: =F38 -> 2027 | G51: 0.9252022876 | H51: 0.6535380469 | I51: 0.5561128833 | J51: 0.6655111543 | K51: 0.6985257695 | L51: 0.6571865457 | M51: 0.6657228206 | N51: 0.6705437658 | O51: 0.6839295572 | P51: 0.6253128844 | Q51: 0.6286595684 | R51: 0.590011221 | T51: =K65/K64-1 -> 0.04033549567 | U51: 0.9252022876
E52: Total System | F52: 2028 | G52: 0.925182843 | H52: 0.6533233848 | I52: 0.5576954088 | J52: 0.6652092979 | K52: 0.6978097782 | L52: 0.6569732479 | M52: 0.6657104099 | N52: 0.6699780066 | O52: 0.6848081914 | P52: 0.6250011275 | Q52: 0.62869726 | R52: 0.5905125655 | T52: =K66/K65-1 -> 0.02074164806 | U52: 0.925182843
E53: Total System | F53: 2029 | G53: =G52 -> 0.925182843 | H53: =H52 -> 0.6533233848 | I53: =I52 -> 0.5576954088 | J53: =J52 -> 0.6652092979 | K53: =K52 -> 0.6978097782 | L53: =L52 -> 0.6569732479 | M53: =M52 -> 0.6657104099 | N53: =N52 -> 0.6699780066 | O53: =O52 -> 0.6848081914 | P53: =P52 -> 0.6250011275 | Q53: =Q52 -> 0.62869726 | R53: =R52 -> 0.5905125655 | T53: 0 | U53: 0.925182843
T54: =K67/K67-1 -> 0 | U54: 0
F57: System Sales | J57: Bundled Sales | L57: % of Bdl | N57: System Sales
E58: GS-1 | F58: ='SAR and RAR'!F58 -> 2026 | I58: GS-1 | J58: ='SAR and RAR'!J58 -> 2026 | K58: 3841270.632 | L58: =K58/O58 -> 0.6571407077 | M58: GS-1 | N58: ='SAR and RAR'!N58 -> 2026 | O58: 5845430.951 | P58: =O58/O64 -> 0.07266341324
E59: GS-1 | F59: ='SAR and RAR'!F59 -> 2027 | I59: GS-1 | J59: ='SAR and RAR'!J59 -> 2027 | K59: =L58*O59 -> 3996210.187 | L59: 0.6571407077 | M59: GS-1 | N59: ='SAR and RAR'!N59 -> 2027 | O59: =P58*O65 -> 6081209.306 | P59: =O59/O65 -> 0.07266341324
E60: GS-1 | F60: ='SAR and RAR'!F60 -> 2028 | I60: GS-1 | J60: ='SAR and RAR'!J60 -> 2028 | K60: =($K$59/$O$59)*O60 -> 4079098.172 | L60: 0.6571407077 | M60: GS-1 | N60: ='SAR and RAR'!N60 -> 2028 | O60: =($O$59/$O$65)*O66 -> 6207343.609 | P60: 0.07266341324
E61: GS-1 | F61: ='SAR and RAR'!F61 -> 2029 | I61: GS-1 | J61: ='SAR and RAR'!J61 -> 2029 | K61: =($K$59/$O$59)*O61 -> 4079098.172 | L61: 0.6571407077 | M61: GS-1 | N61: ='SAR and RAR'!N61 -> 2029 | O61: =($O$59/$O$65)*O67 -> 6207343.609 | P61: 0.07266341324
E63: GS-1 | I63: GS-1 | M63: GS-1
E64: Non-Exempt Sales | F64: ='SAR and RAR'!F64 -> 2026 | G64: ='SAR and RAR'!G64 -> 71720228.92 | I64: Total System | J64: ='SAR and RAR'!J64 -> 2026 | K64: ='SAR and RAR'!K64 -> 51392312.02 | L64: 0.6388478176 | M64: Total System | N64: ='SAR and RAR'!N64 -> 2026 | O64: ='SAR and RAR'!O64 -> 80445312.02
E65: Non-Exempt Sales | F65: ='SAR and RAR'!F65 -> 2027 | G65: ='SAR and RAR'!G65 -> 74613099.9 | I65: Total System | J65: ='SAR and RAR'!J65 -> 2027 | K65: ='SAR and RAR'!K65 -> 53465246.4 | L65: 0.6388478176 | M65: Total System | N65: ='SAR and RAR'!N65 -> 2027 | O65: ='SAR and RAR'!O65 -> 83690113.56
E66: Non-Exempt Sales | F66: ='SAR and RAR'!F66 -> 2028 | G66: ='SAR and RAR'!G66 -> 76160698.56 | I66: Total System | J66: ='SAR and RAR'!J66 -> 2028 | K66: ='SAR and RAR'!K66 -> 54574203.73 | L66: 0.6388478176 | M66: Total System | N66: ='SAR and RAR'!N66 -> 2028 | O66: ='SAR and RAR'!O66 -> 85425984.44
E67: Non-Exempt Sales | F67: ='SAR and RAR'!F67 -> 2029 | G67: ='SAR and RAR'!G67 -> 76160698.56 | I67: Total System | J67: ='SAR and RAR'!J67 -> 2029 | K67: ='SAR and RAR'!K67 -> 54574203.73 | L67: 0.6388478176 | M67: Total System | N67: ='SAR and RAR'!N67 -> 2029 | O67: ='SAR and RAR'!O67 -> 85425984.44
E69: Non-Exempt Sales | I69: Total System | M69: Total System
J71: =Summary!D3 -> 2026 | K71: =VLOOKUP(Summary!D3,'SAR and AR (GS1)'!J58:K63,2,TRUE) -> 3841270.632 | N71: =Summary!D3 -> 2026 | O71: =VLOOKUP(Summary!D3,'SAR and AR (GS1)'!N58:O63,2,TRUE) -> 5845430.951
J72: % of GS-1 Sales (Bdl) | N72: % of GS-1 Sales (Sys)
J73: =$F$37 -> 2026 | K73: =K58/K64 -> 0.07474407125 | N73: =$F$37 -> 2026 | O73: =O58/O64 -> 0.07266341324
J74: =$F$38 -> 2027 | K74: 0.07474407125 | N74: =$F$38 -> 2027 | O74: 0.07266341324
J75: =$F$39 -> 2028 | K75: 0.07474407125 | N75: =$F$39 -> 2028 | O75: 0.07266341324
J76: =$F$40 -> 2029 | K76: 0.07474407125 | N76: =$F$40 -> 2029 | O76: 0.07266341324

Sheet Bill Impact (GS1) (hidden)
B1: CONFIDENTIAL This Excel Sheet Is Marked Confidential In Accordance With Applicable Law and Regulation. Basis for Confidentiality In Accompanying Confidentiality Declaration. Public Disclosure Restricted.
E3: Schedule TOU-GS-1-E
E4: =Summary!N4 -> 2026 | F4: =Summary!N3 -> 2026-01-01 | G4: Proposed | H4: Proposed | I4: Proposed | J4: Proposed
E5: Sales Forecast | F5: Rates | G5: Authorized Rates | H5: Authorized Revenue | I5: w/Pending Rates | J5: w/Pending Revenue
D7: On Peak | E7: =HLOOKUP(E$4,$F$42:$K$52,$A44,TRUE) -> 247.5349112 | F7: 0.64775 | G7: =F7/$F$12*$G$12 -> 0.6310720818 | H7: =E7*G7 -> 156.2123717 | I7: =F7/$F$12*$I$12 -> 0.6372735844 | J7: =E7*I7 -> 157.7474601 | N7: Bundled GS-1 Rev Req
D8: Mid Peak | E8: 87.88773548 | F8: 0.3364 | G8: =F8/$F$12*$G$12 -> 0.327738554 | H8: 28.80419934 | I8: =F8/$F$12*$I$12 -> 0.3309592185 | J8: 29.08725625 | N8: Proposed (Authorized) | O8: ='SAR and AR (GS1)'!S19/1000-'SAR and AR (GS1)'!S22/1000 -> 1143.156319
D9: Off Peak | E9: 1098.877125 | F9: 0.2514 | G9: 0.2449270882 | H9: 269.1447744 | I9: 0.2473339701 | J9: 271.7896419 | N9: Proposed (w/Pending) | O9: ='SAR and AR (GS1)'!T19/1000-'SAR and AR (GS1)'!T22/1000 -> 1153.80885
D10: Mid Peak | E10: 551.5461694 | F10: 0.39488 | G10: 0.3847128424 | H10: 212.1868946 | I10: 0.3884933894 | J10: 214.2720408
D11: Off Peak | E11: 931.6695149 | F11: 0.26588 | G11: =F11/$F$12*$G$12 -> 0.2590342649 | H11: 241.334328 | I11: 0.2615797771 | J11: 243.705904
D12: SuperOff Peak | E12: 923.7551759 | F12: 0.19593 | G12: =(O8-G14*E14*365/12/10^6)/SUM(E12,F11/F12*E11,F10/F12*E10,F9/F12*E9,F8/F12*E8,F7/F12*E7) -> 0.1908852999 | H12: 176.3312838 | I12: =(O9-I14*E14*365/12/10^6)/SUM(E12,F11/F12*E11,F10/F12*E10,F9/F12*E9,F8/F12*E8,F7/F12*E7) -> 0.1927611168 | J12: 178.0640793
D14: Customers | E14: =HLOOKUP(E$4,$F$42:$K$53,$A51,TRUE) -> 4154722 | F14: 0.468 | G14: =F14 -> 0.468 | H14: =G14*E14*365/12/10^6 -> 59.14246767 | I14: =G14 -> 0.468 | J14: =I14*E14*365/12/10^6 -> 59.14246767
N19: 2025 Recorded Data
B20: SCHEDULE TOU-GS-1-E ($/kWh) | E20: Proposed | F20: Proposed | N20: NAICS | O20: Summer | R20: Winter
B21: Rates | C21: Jan 2026 | D21: =Summary!N3 -> 2026-01-01 | E21: Authorized | F21: w/Pending | O21: On Peak kWh | P21: Mid Peak kWh | Q21: Off Peak kWh | R21: Mid Peak kWh | S21: Off Peak kWh | T21: Super Off Peak kWh | U21: Total kWh
B22: On Peak | C22: 0.64775 | D22: =F7 -> 0.64775 | E22: =G7 -> 0.6310720818 | F22: =I7 -> 0.6372735844 | N22: NAICS 531 | O22: 463.2707878 | P22: 187.4461358 | Q22: 2273.257565 | R22: 1288.899331 | S22: 2637.839998 | T22: 1549.457053 | U22: =SUM(O22:T22) -> 8400.17087
B23: Mid Peak | C23: 0.3364 | D23: =F8 -> 0.3364 | E23: 0.327738554 | F23: =I8 -> 0.3309592185 | N23: NAICS 621 | O23: 815.5634145 | P23: 214.7436077 | Q23: 3678.292014 | R23: 1417.831046 | S23: 1998.9255 | T23: 3531.612809 | U23: =SUM(O23:T23) -> 11656.96839
B24: Off Peak | C24: 0.2514 | D24: 0.2514 | E24: 0.2449270882 | F24: 0.2473339701 | N24: NAICS 722 | O24: 2442.466378 | P24: 1069.081043 | Q24: 9593.67499 | R24: 5256.496427 | S24: 6812.064975 | T24: 8251.509543 | U24: 33425.29336
B25: Mid Peak | C25: 0.39488 | D25: 0.39488 | E25: 0.3847128424 | F25: 0.3884933894
B26: Off Peak | C26: 0.26588 | D26: 0.26588 | E26: 0.2590342649 | F26: 0.2615797771
B27: Super Off Peak | C27: 0.19593 | D27: 0.19593 | E27: 0.1908852999 | F27: 0.1927611168
C32: Daily to Monthly Conversion Factor | D32: 30.417
C34: TOU-GS-1-E
C35: =C21 -> Jan 2026 | E35: =D21 -> 2026-01-01 | G35: =E21 -> Authorized | I35: =F21 -> w/Pending
C36: Summer | D36: Winter | E36: Summer | F36: Winter | G36: Summer | H36: Winter | I36: Summer | J36: Winter
B37: NAICS 531 | C37: =SUM(SUM($O$22*$C$22,$P$22*$C$23,$Q$22*$C$24)+SUM($F$14*365/12*4))/4 -> 247.8943711 | D37: =SUM(SUM($R$22*$C$25,$S$22*$C$26,$T$22*$C$27)+SUM($F$14*365/12*8))/8 -> 203.4718233 | E37: =SUM(SUM($O$22*$D$22,$P$22*$D$23,$Q$22*$D$24)+SUM($F$14*365/12*4))/4 -> 247.8943711 | F37: =SUM(SUM($R$22*$D$25,$S$22*$D$26,$T$22*$D$27)+SUM($F$14*365/12*8))/8 -> 203.4718233 | G37: =SUM(SUM($O$22*$E$22,$P$22*$E$23,$Q$22*$E$24)+SUM($G$14*365/12*4))/4 -> 241.8782355 | H37: =SUM(SUM($R$22*$E$25,$S$22*$E$26,$T$22*$E$27)+SUM($G$14*365/12*8))/8 -> 198.5994555 | I37: =SUM(SUM($O$22*$F$22,$P$22*$F$23,$Q$22*$F$24)+SUM($I$14*365/12*4))/4 -> 244.1152701 | J37: =SUM(SUM($R$22*$F$25,$S$22*$F$26,$T$22*$F$27)+SUM($G$14*365/12*8))/8 -> 200.4111925
B38: NAICS 621 | C38: =SUM(SUM($O$23*$C$22,$P$23*$C$23,$Q$23*$C$24)+SUM($F$14*365/12*4))/4 -> 395.5458909 | D38: =SUM(SUM($R$23*$C$25,$S$23*$C$26,$T$23*$C$27)+SUM($F$14*365/12*8))/8 -> 237.1470416 | E38: =SUM(SUM($O$23*$D$22,$P$23*$D$23,$Q$23*$D$24)+SUM($F$14*365/12*4))/4 -> 395.5458909 | F38: =SUM(SUM($R$23*$D$25,$S$23*$D$26,$T$23*$D$27)+SUM($F$14*365/12*8))/8 -> 237.1470416 | G38: =SUM(SUM($O$23*$E$22,$P$23*$E$23,$Q$23*$E$24)+SUM($F$14*365/12*4))/4 -> 385.7281034 | H38: =SUM(SUM($R$23*$E$25,$S$23*$E$26,$T$23*$E$27)+SUM($F$14*365/12*8))/8 -> 231.4076224 | I38: =SUM(SUM($O$23*$F$22,$P$23*$F$23,$Q$23*$F$24)+SUM($I$14*365/12*4))/4 -> 389.378741 | J38: =SUM(SUM($R$23*$F$25,$S$23*$F$26,$T$23*$F$27)+SUM($G$14*365/12*8))/8 -> 233.5417631
B39: NAICS 722 | C39: =SUM(SUM($O$24*$C$22,$P$24*$C$23,$Q$24*$C$24)+SUM($F$14*365/12*4))/4 -> 1102.634088 | D39: =SUM(SUM($R$24*$C$25,$S$24*$C$26,$T$24*$C$27)+SUM($F$14*365/12*8))/8 -> 702.1844262 | E39: =SUM(SUM($O$24*$D$22,$P$24*$D$23,$Q$24*$D$24)+SUM($F$14*365/12*4))/4 -> 1102.634088 | F39: =SUM(SUM($R$24*$D$25,$S$24*$D$26,$T$24*$D$27)+SUM($F$14*365/12*8))/8 -> 702.1844262 | G39: =SUM(SUM($O$24*$E$22,$P$24*$E$23,$Q$24*$E$24)+SUM($F$14*365/12*4))/4 -> 1074.610574 | H39: =SUM(SUM($R$24*$E$25,$S$24*$E$26,$T$24*$E$27)+SUM($F$14*365/12*8))/8 -> 684.4714748 | I39: =SUM(SUM($O$24*$F$22,$P$24*$F$23,$Q$24*$F$24)+SUM($I$14*365/12*4))/4 -> 1085.030813 | J39: =SUM(SUM($R$24*$F$25,$S$24*$F$26,$T$24*$F$27)+SUM($G$14*365/12*8))/8 -> 691.0578432
F42: 2026 | G42: =F42+1 -> 2027 | H42: =G42+1 -> 2028 | I42: 2029
F43: Non-CARE | G43: Non-CARE | H43: Non-CARE | I43: Non-CARE
A44: 3 | D44: On Peak | F44: 247.5349112 | G44: =F44/F$54*G$54 -> 257.5193545 | H44: =G44/G$54*H$54 -> 262.8607304 | I44: =H44/H$54*I$54 -> 262.8607304
A45: =A44+1 -> 4 | D45: Mid Peak | F45: 87.88773548 | G45: =F45/F$54*G$54 -> 91.43273085 | H45: 93.32919638 | I45: 93.32919638
A46: =A45+1 -> 5 | D46: Off Peak | F46: 1098.877125 | G46: 1143.200878 | H46: 1166.912748 | I46: 1166.912748
A47: 6 | D47: Mid Peak | F47: 551.5461694 | G47: 573.7930576 | H47: 585.6944712 | I47: 585.6944712
A48: 7 | D48: Off Peak | F48: 931.6695149 | G48: 969.2488666 | H48: =G48/G$54*H$54 -> 989.3526855 | I48: 989.3526855
A49: 8 | D49: SuperOff Peak | F49: 923.7551759 | G49: 961.0152988 | H49: 980.9483399 | I49: 980.9483399
A50: 9
A51: 10 | D51: Customers | F51: 4154722 | G51: 4177916.847 | H51: 4201220.423 | I51: 4201220.423
A52: 11
D54: Total Sales | F54: =SUM(F44:F49) -> 3841.270632 | G54: ='SAR and AR (GS1)'!K59/1000 -> 3996.210187 | H54: ='SAR and AR (GS1)'!K60/1000 -> 4079.098172 | I54: ='SAR and AR (GS1)'!K61/1000 -> 4079.098172
E55: Customers | F55: =F51/SUM(F$51:F$52) -> 1 | G55: =G51 -> 4177916.847 | H55: =H51 -> 4201220.423 | I55: 4201220.423

Sheet Simple Bill Insert Calc (2)
B2: Inputs: | K2: Assumptions:
K3: Current Effective Rates | M3: =Summary!N3 -> 2026-01-01
C4: Baseline Region - (Residential bill) | D4: 9 warm | K4: Sales Forecast | M4: 2026
C5: Typical residential average usage kWh/month | D5: 500 | K5: Residential bill calculated using | M5: Schedule D, Basic, Single Family
C6: Include CA Climate Credit in Rates | D6: N | K6: Non-CARE bill impact calculated with average summer usage of | O6: =IF($D$4="All",SUMPRODUCT('Res Bill Impact (2)'!P$22:P$30,'Res Bill Impact (2)'!$T$22:$T$30),VLOOKUP(D$4,'Res Bill Impact (2)'!$O$22:$S$30,2,FALSE)) -> 662.7146021 | P6: kWh per month
D7: Revenue Change | K7: Non-CARE bill impact calculated with average winter usage of | O7: =IF($D$4="All",SUMPRODUCT('Res Bill Impact (2)'!Q$22:Q$30,'Res Bill Impact (2)'!$T$22:$T$30),VLOOKUP(D$4,'Res Bill Impact (2)'!$O$22:$S$30,3,FALSE)) -> 441.2638435 | P7: kWh per month
C8: Generation | K8: CARE bill impact calculated with average summer usage of | O8: =IF($D$4="All",SUMPRODUCT('Res Bill Impact (2)'!R$22:R$30,'Res Bill Impact (2)'!$U$22:$U$30),VLOOKUP(D$4,'Res Bill Impact (2)'!$O$22:$S$30,4,FALSE)) -> 642.8036573 | P8: kWh per month
C9: Distribution | K9: CARE bill impact calculated with average winter usage of | O9: =IF($D$4="All",SUMPRODUCT('Res Bill Impact (2)'!S$22:S$30,'Res Bill Impact (2)'!$U$22:$U$30),VLOOKUP(D$4,'Res Bill Impact (2)'!$O$22:$S$30,5,FALSE)) -> 423.5758643 | P9: kWh per month
C10: Nuclear | K10: Essential Use (Basic) bill impact calculated with average summer usage of | O10: =IF($D$4="All",SUMPRODUCT('Res Bill Impact (2)'!I$22:I$30,'Res Bill Impact (2)'!$T$22:$T$30),VLOOKUP($D$4,'Res Bill Impact (2)'!$H$22:$L$30,2,FALSE)) -> 514.0473 | P10: kWh per month
C11: Public Purpose | K11: Essential Use (Basic) bill impact calculated with average winter usage of | O11: =IF($D$4="All",SUMPRODUCT('Res Bill Impact (2)'!J$22:J$30,'Res Bill Impact (2)'!$T$22:$T$30),VLOOKUP($D$4,'Res Bill Impact (2)'!$H$22:$L$30,3,FALSE)) -> 365.004 | P11: kWh per month
C12: DCPP | K12: Essential Use (All-Electric) bill impact calculated with average summer usage of | O12: =IF($D$4="All",SUMPRODUCT('Res Bill Impact (2)'!K$22:K$30,'Res Bill Impact (2)'!$T$22:$T$30),VLOOKUP($D$4,'Res Bill Impact (2)'!$H$22:$L$30,4,FALSE)) -> 380.2125 | P12: kWh per month
C13: New System Gen | K13: Essential Use (All-Electric) bill impact calculated with average winter usage of | O13: =IF($D$4="All",SUMPRODUCT('Res Bill Impact (2)'!L$22:L$30,'Res Bill Impact (2)'!$T$22:$T$30),VLOOKUP($D$4,'Res Bill Impact (2)'!$H$22:$L$30,5,FALSE)) -> 422.7963 | P13: kWh per month
C14: FERC | K14: Average monthly usage is for all customers (Non-CARE and CARE) based on seasonal usage in | Q14: 2025
C15: TOTCA | K15: Summer season | M15: 4 | N15: months
C16: GHG Revenue | K16: Winter Season | M16: 8 | N16: months
C17: DWR | K17: Residential Bi-Annual Climate Credit | M17: =Summary!N19 -> -36
C18: PUCRF
C19: SECURITIZATION
C20: Total | D20: =SUM(D8:D19) -> 0
B21: Outputs:
D22: (A) | E22: (B) | F22: (C) | G22: (C)/(A) | H22: (C)/(B) | L22: (A) | M22: (B) | N22: (C) | O22: (C)/(A) | P22: (C)/(B)
B23: Bundled Average Rates - ¢/kWh | J23: Total System (Bundled and Unbundled) Average Rates - ¢/kWh
B24: Customer Group | D24: =Summary!D32 -> 2026-01-01 | E24: =M3 -> 2026-01-01 | F24: Proposed | G24: % Change over 1/1/2026 | H24: % Change over Current | J24: Customer Group | L24: =$D$24 -> 2026-01-01 | M24: =$E$24 -> 2026-01-01 | N24: Proposed | O24: =$G$24 -> % Change over 1/1/2026 | P24: % Change over Current
B25: Residential | D25: =IF(D6="Y",'SAR and RAR'!W28,'SAR and RAR'!X28) -> 34.45079839 | E25: ='SAR and RAR (2)'!F24 -> 34.45079839 | F25: ='SAR and RAR (2)'!G24 -> 34.45079839 | G25: =$F25/D25-1 -> 0 | H25: 0 | J25: Total Residential (RAR) | L25: =IF(D6="Y",'SAR and RAR'!Z28,'SAR and RAR'!AA28) -> 32.05610311 | M25: ='SAR and RAR (2)'!N24 -> 32.05610311 | N25: ='SAR and RAR (2)'!O24 -> 32.05610311 | O25: =$N25/L25-1 -> 0 | P25: 0
C26: Small Commercial | D26: =IF(D6="Y",'SAR and AR (GS1)'!W28,'SAR and AR (GS1)'!X28) -> 30.53542358 | E26: ='SAR and AR (GS1) (2)'!G24 -> 30.53542358 | F26: ='SAR and AR (GS1) (2)'!H24 -> 30.53542358 | G26: 0 | H26: 0 | K26: Small Commercial (AR) | L26: =IF(D6="Y",'SAR and AR (GS1)'!Z28,'SAR and AR (GS1)'!AA28) -> 27.15054885 | M26: ='SAR and AR (GS1) (2)'!O24 -> 27.15054885 | N26: ='SAR and AR (GS1) (2)'!P24 -> 27.15054885 | O26: 0 | P26: 0
B27: System | D27: =IF(D6="Y",'SAR and RAR'!W29,'SAR and RAR'!X29) -> 28.8581489 | E27: ='SAR and RAR (2)'!F25 -> 28.8581489 | F27: ='SAR and RAR (2)'!G25 -> 28.8581489 | G27: 0 | H27: 0 | J27: Total System (SAR) | L27: =IF(D6="Y",'SAR and RAR'!Z29,'SAR and RAR'!AA29) -> 25.19445183 | M27: ='SAR and RAR (2)'!N25 -> 25.19445183 | N27: ='SAR and RAR (2)'!O25 -> 25.19445183 | O27: 0 | P27: 0
B30: Bundled Residential Monthly Average Bills
D31: =$D$24 -> 2026-01-01 | E31: =$E$24 -> 2026-01-01 | F31: Proposed | G31: =$G$24 -> % Change over 1/1/2026 | H31: % Change over Current
B32: Non-CARE | D32: =((D39*4)+(D45*8))/12 -> 187.2622187 | E32: =((E39*4)+(E45*8))/12 -> 187.2622187 | F32: 187.2622187 | G32: =$F32/D32-1 -> 0 | H32: 0
B33: CARE | D33: 105.1805199 | E33: 105.1805199 | F33: 105.1805199 | G33: 0 | H33: 0
B34: Total | D34: 158.5336241 | E34: 158.5336241 | F34: 158.5336241 | G34: 0 | H34: 0
B36: Seasonality:
B37: Bundled Residential Monthly Average Bills - Summer
D38: =$D$24 -> 2026-01-01 | E38: =$E$24 -> 2026-01-01 | F38: Proposed | G38: =$G$24 -> % Change over 1/1/2026 | H38: % Change over Current
B39: Non-CARE | D39: =VLOOKUP($D$4,'Res Bill Impact (2)'!$B$37:$H$46,2,FALSE) -> 237.7042714 | E39: =VLOOKUP($D$4,'Res Bill Impact (2)'!$B$37:$H$46,4,FALSE) -> 237.7042714 | F39: =VLOOKUP($D$4,'Res Bill Impact (2)'!$B$37:$H$46,6,FALSE) -> 237.7042714 | G39: =$F39/D39-1 -> 0 | H39: 0
B40: CARE | D40: =VLOOKUP($D$4,'Res Bill Impact (2)'!$B$52:$H$61,2,FALSE) -> 137.6730359 | E40: =VLOOKUP($D$4,'Res Bill Impact (2)'!$B$52:$H$61,4,FALSE) -> 137.6730359 | F40: =VLOOKUP($D$4,'Res Bill Impact (2)'!$B$52:$H$61,6,FALSE) -> 137.6730359 | G40: 0 | H40: 0
B41: Total | D41: =D39*0.65+D40*0.35 -> 202.693339 | E41: =E39*0.65+E40*0.35 -> 202.693339 | F41: =F39*0.65+F40*0.35 -> 202.693339 | G41: 0 | H41: 0
B43: Bundled Residential Monthly Average Bills - Winter
D44: =$D$24 -> 2026-01-01 | E44: =$E$24 -> 2026-01-01 | F44: Proposed | G44: =$G$24 -> % Change over 1/1/2026 | H44: % Change over Current
B45: Non-CARE | D45: =VLOOKUP($D$4,'Res Bill Impact (2)'!$B$37:$H$46,3,FALSE) -> 162.0411923 | E45: =VLOOKUP($D$4,'Res Bill Impact (2)'!$B$37:$H$46,5,FALSE) -> 162.0411923 | F45: =VLOOKUP($D$4,'Res Bill Impact (2)'!$B$37:$H$46,7,FALSE) -> 162.0411923 | G45: =$F45/D45-1 -> 0 | H45: 0
B46: CARE | D46: =VLOOKUP($D$4,'Res Bill Impact (2)'!$B$52:$H$61,3,FALSE) -> 88.93426186 | E46: =VLOOKUP($D$4,'Res Bill Impact (2)'!$B$52:$H$61,5,FALSE) -> 88.93426186 | F46: =VLOOKUP($D$4,'Res Bill Impact (2)'!$B$52:$H$61,7,FALSE) -> 88.93426186 | G46: 0 | H46: 0
B47: Total | D47: =D45*0.65+D46*0.35 -> 136.4537667 | E47: =E45*0.65+E46*0.35 -> 136.4537667 | F47: =F45*0.65+F46*0.35 -> 136.4537667 | G47: 0 | H47: 0
B50: Bundled Residential Monthly Average Bills
D51: =$D$24 -> 2026-01-01 | E51: =$E$24 -> 2026-01-01 | F51: =$F$24 -> Proposed | G51: =$G$24 -> % Change over 1/1/2026 | H51: % Change over Current
B52: Essential Use (Basic) - Non-CARE | D52: =((D59*4)+(D66*8))/12 -> 146.1301156 | E52: 146.1301156 | F52: 146.1301156 | G52: =$F52/D52-1 -> 0 | H52: 0
B53: Essential Use (Basic) - CARE | D53: 83.15606885 | E53: 83.15606885 | F53: 83.15606885 | G53: 0 | H53: 0
B54: Essential Use (All-Electric) - Non-CARE | D54: 144.2526567 | E54: 144.2526567 | F54: 144.2526567 | G54: 0 | H54: 0
B55: Essential Use (All-Electric) - CARE | D55: =((D62*4)+(D69*8))/12 -> 81.93646882 | E55: =((E62*4)+(E69*8))/12 -> 81.93646882 | F55: =((F62*4)+(F69*8))/12 -> 81.93646882 | G55: 0 | H55: 0
B57: Bundled Residential Monthly Average Bills - Summer
D58: =$D$24 -> 2026-01-01 | E58: =$E$24 -> 2026-01-01 | F58: =$F$24 -> Proposed | G58: =$G$24 -> % Change over 1/1/2026 | H58: % Change over Current
B59: Essential Use (Basic) - Non-CARE | D59: =VLOOKUP($D$4,'Res Bill Impact (2)'!$J$37:$P$46,2,FALSE) -> 176.7952777 | E59: =VLOOKUP($D$4,'Res Bill Impact (2)'!$J$37:$P$46,4,FALSE) -> 176.7952777 | F59: =VLOOKUP($D$4,'Res Bill Impact (2)'!$J$37:$P$46,6,FALSE) -> 176.7952777 | G59: =$F59/D59-1 -> 0 | H59: 0
B60: Essential Use (Basic) - CARE | D60: =VLOOKUP($D$4,'Res Bill Impact (2)'!$R$37:$X$46,2,FALSE) -> 103.0762027 | E60: =VLOOKUP($D$4,'Res Bill Impact (2)'!$R$37:$X$46,4,FALSE) -> 103.0762027 | F60: =VLOOKUP($D$4,'Res Bill Impact (2)'!$R$37:$X$46,6,FALSE) -> 103.0762027 | G60: 0 | H60: 0
B61: Essential Use (All-Electric) - Non-CARE | D61: =VLOOKUP($D$4,'Res Bill Impact (2)'!$J$52:$P$61,2,FALSE) -> 135.4911818 | E61: =VLOOKUP($D$4,'Res Bill Impact (2)'!$J$52:$P$61,4,FALSE) -> 135.4911818 | F61: =VLOOKUP($D$4,'Res Bill Impact (2)'!$J$52:$P$61,6,FALSE) -> 135.4911818 | G61: 0 | H61: 0
B62: Essential Use (All-Electric) - CARE | D62: =VLOOKUP($D$4,'Res Bill Impact (2)'!$R$52:$X$61,2,FALSE) -> 76.245002 | E62: =VLOOKUP($D$4,'Res Bill Impact (2)'!$R$52:$X$61,4,FALSE) -> 76.245002 | F62: =VLOOKUP($D$4,'Res Bill Impact (2)'!$R$52:$X$61,6,FALSE) -> 76.245002 | G62: 0 | H62: 0
B64: Bundled Residential Monthly Average Bills - Winter
D65: =$D$24 -> 2026-01-01 | E65: =$E$24 -> 2026-01-01 | F65: =$F$24 -> Proposed | G65: =$G$24 -> % Change over 1/1/2026 | H65: % Change over Current
B66: Essential Use (Basic) - Non-CARE | D66: =VLOOKUP($D$4,'Res Bill Impact (2)'!$J$37:$P$46,3,FALSE) -> 130.7975345 | E66: =VLOOKUP($D$4,'Res Bill Impact (2)'!$J$37:$P$46,5,FALSE) -> 130.7975345 | F66: =VLOOKUP($D$4,'Res Bill Impact (2)'!$J$37:$P$46,7,FALSE) -> 130.7975345 | G66: =$F66/D66-1 -> 0 | H66: 0
B67: Essential Use (Basic) - CARE | D67: =VLOOKUP($D$4,'Res Bill Impact (2)'!$R$37:$X$46,3,FALSE) -> 73.19600192 | E67: =VLOOKUP($D$4,'Res Bill Impact (2)'!$R$37:$X$46,5,FALSE) -> 73.19600192 | F67: =VLOOKUP($D$4,'Res Bill Impact (2)'!$R$37:$X$46,7,FALSE) -> 73.19600192 | G67: 0 | H67: 0
B68: Essential Use (All-Electric) - Non-CARE | D68: =VLOOKUP($D$4,'Res Bill Impact (2)'!$J$52:$P$61,3,FALSE) -> 148.6333941 | E68: =VLOOKUP($D$4,'Res Bill Impact (2)'!$J$52:$P$61,5,FALSE) -> 148.6333941 | F68: =VLOOKUP($D$4,'Res Bill Impact (2)'!$J$52:$P$61,7,FALSE) -> 148.6333941 | G68: 0 | H68: 0
B69: Essential Use (All-Electric) - CARE | D69: =VLOOKUP($D$4,'Res Bill Impact (2)'!$R$52:$X$61,3,FALSE) -> 84.78220222 | E69: =VLOOKUP($D$4,'Res Bill Impact (2)'!$R$52:$X$61,5,FALSE) -> 84.78220222 | F69: =VLOOKUP($D$4,'Res Bill Impact (2)'!$R$52:$X$61,7,FALSE) -> 84.78220222 | G69: 0 | H69: 0
B72: Bundled Residential Monthly Average Bills
D73: =$D$24 -> 2026-01-01 | E73: =$E$24 -> 2026-01-01 | F73: =$F$24 -> Proposed | G73: =$G$24 -> % Change over 1/1/2026 | H73: % Change over Current
B74: =D5&"kWh Monthly Usage - Non-CARE" -> 500kWh Monthly Usage - Non-CARE | D74: =((D79*4)+(D84*8))/12 -> 181.5569305 | E74: 181.5569305 | F74: 181.5569305 | G74: =$F74/D74-1 -> 0 | H74: 0
B75: =D5&"kWh Monthly Usage - CARE" -> 500kWh Monthly Usage - CARE | D75: 106.3996181 | E75: 106.3996181 | F75: 106.3996181 | G75: 0 | H75: 0
B77: Bundled Residential Monthly Average Bills - Summer
D78: =$D$24 -> 2026-01-01 | E78: =$E$24 -> 2026-01-01 | F78: =$F$24 -> Proposed | G78: =$G$24 -> % Change over 1/1/2026 | H78: % Change over Current
B79: =D5&"kWh Monthly Usage - Non-CARE" -> 500kWh Monthly Usage - Non-CARE | D79: =VLOOKUP($D$4,'Res Bill Impact (2)'!$J$67:$P$76,2,FALSE) -> 172.46 | E79: =VLOOKUP($D$4,'Res Bill Impact (2)'!$J$67:$P$76,4,FALSE) -> 172.46 | F79: =VLOOKUP($D$4,'Res Bill Impact (2)'!$J$67:$P$76,6,FALSE) -> 172.46 | G79: =$F79/D79-1 -> 0 | H79: 0
B80: =D5&"kWh Monthly Usage - CARE" -> 500kWh Monthly Usage - CARE | D80: =VLOOKUP($D$4,'Res Bill Impact (2)'!$R$67:$X$76,2,FALSE) -> 100.26 | E80: =VLOOKUP($D$4,'Res Bill Impact (2)'!$R$67:$X$76,4,FALSE) -> 100.26 | F80: =VLOOKUP($D$4,'Res Bill Impact (2)'!$R$67:$X$76,6,FALSE) -> 100.26 | G80: 0 | H80: 0
B82: Bundled Residential Monthly Average Bills - Winter
D83: =$D$24 -> 2026-01-01 | E83: =$E$24 -> 2026-01-01 | F83: =$F$24 -> Proposed | G83: =$G$24 -> % Change over 1/1/2026 | H83: % Change over Current
B84: =D5&"kWh Monthly Usage - Non-CARE" -> 500kWh Monthly Usage - Non-CARE | D84: =VLOOKUP($D$4,'Res Bill Impact (2)'!$J$67:$P$76,3,FALSE) -> 186.1053957 | E84: =VLOOKUP($D$4,'Res Bill Impact (2)'!$J$67:$P$76,5,FALSE) -> 186.1053957 | F84: =VLOOKUP($D$4,'Res Bill Impact (2)'!$J$67:$P$76,7,FALSE) -> 186.1053957 | G84: =$F84/D84-1 -> 0 | H84: 0
B85: =D5&"kWh Monthly Usage - CARE" -> 500kWh Monthly Usage - CARE | D85: =VLOOKUP($D$4,'Res Bill Impact (2)'!$R$67:$X$76,3,FALSE) -> 109.4694271 | E85: =VLOOKUP($D$4,'Res Bill Impact (2)'!$R$67:$X$76,5,FALSE) -> 109.4694271 | F85: =VLOOKUP($D$4,'Res Bill Impact (2)'!$R$67:$X$76,7,FALSE) -> 109.4694271 | G85: 0 | H85: 0
B88: Bundled Residential Monthly Average Bills
D89: =$D$24 -> 2026-01-01 | E89: =$E$24 -> 2026-01-01 | F89: Proposed | G89: =$G$24 -> % Change over 1/1/2026 | H89: % Change over Current
B90: All-Electric - Non-CARE | D90: =((D96*4)+(D102*8))/12 -> 145.959233 | E90: 145.959233 | F90: 145.959233 | G90: =$F90/D90-1 -> 0 | H90: 0
B91: All-Electric - CARE | D91: 84.53236916 | E91: 84.53236916 | F91: 84.53236916 | G91: 0 | H91: 0
B92: All-Electric - Total | D92: 124.4598306 | E92: 124.4598306 | F92: 124.4598306 | G92: 0 | H92: 0
B94: Bundled Residential Monthly Average Bills - Summer
D95: =$D$24 -> 2026-01-01 | E95: =$E$24 -> 2026-01-01 | F95: Proposed | G95: =$G$24 -> % Change over 1/1/2026 | H95: % Change over Current
B96: All-Electric - Non-CARE | D96: =VLOOKUP($D$4,'Res Bill Impact (2)'!$B$67:$H$76,2,FALSE) -> 177.5533598 | E96: =VLOOKUP($D$4,'Res Bill Impact (2)'!$B$67:$H$76,4,FALSE) -> 177.5533598 | F96: =VLOOKUP($D$4,'Res Bill Impact (2)'!$B$67:$H$76,6,FALSE) -> 177.5533598 | G96: =$F96/D96-1 -> 0 | H96: 0
B97: All-Electric - CARE | D97: =VLOOKUP($D$4,'Res Bill Impact (2)'!$B$82:$H$91,2,FALSE) -> 104.6588713 | E97: =VLOOKUP($D$4,'Res Bill Impact (2)'!$B$82:$H$91,4,FALSE) -> 104.6588713 | F97: =VLOOKUP($D$4,'Res Bill Impact (2)'!$B$82:$H$91,6,FALSE) -> 104.6588713 | G97: 0 | H97: 0
B98: All-Electric - Total | D98: =D96*0.65+D97*0.35 -> 152.0402888 | E98: =E96*0.65+E97*0.35 -> 152.0402888 | F98: =F96*0.65+F97*0.35 -> 152.0402888 | G98: 0 | H98: 0
B100: Bundled Residential Monthly Average Bills - Winter
D101: =$D$24 -> 2026-01-01 | E101: =$E$24 -> 2026-01-01 | F101: Proposed | G101: =$G$24 -> % Change over 1/1/2026 | H101: % Change over Current
B102: All-Electric - Non-CARE | D102: =VLOOKUP($D$4,'Res Bill Impact (2)'!$B$67:$H$76,3,FALSE) -> 130.1621696 | E102: =VLOOKUP($D$4,'Res Bill Impact (2)'!$B$67:$H$76,5,FALSE) -> 130.1621696 | F102: =VLOOKUP($D$4,'Res Bill Impact (2)'!$B$67:$H$76,7,FALSE) -> 130.1621696 | G102: =$F102/D102-1 -> 0 | H102: 0
B103: All-Electric - CARE | D103: =VLOOKUP($D$4,'Res Bill Impact (2)'!$B$82:$H$91,3,FALSE) -> 74.4691181 | E103: =VLOOKUP($D$4,'Res Bill Impact (2)'!$B$82:$H$91,5,FALSE) -> 74.4691181 | F103: =VLOOKUP($D$4,'Res Bill Impact (2)'!$B$82:$H$91,7,FALSE) -> 74.4691181 | G103: 0 | H103: 0
B104: All-Electric - Total | D104: =D102*0.65+D103*0.35 -> 110.6696016 | E104: =E102*0.65+E103*0.35 -> 110.6696016 | F104: =F102*0.65+F103*0.35 -> 110.6696016 | G104: 0 | H104: 0
B106: Small Commercial Monthly Average Bills
D107: =$D$24 -> 2026-01-01 | E107: =$E$24 -> 2026-01-01 | F107: Proposed | G107: =$G$24 -> % Change over 1/1/2026 | H107: % Change over Current
B108: NAICS 531 | D108: =((D114*4)+(D120*8))/12 -> 218.2793393 | E108: 218.2793393 | F108: 218.2793393 | G108: =$F108/D108-1 -> 0 | H108: =$F108/E108-1 -> 0
B109: NAICS 621 | D109: 289.9466581 | E109: 289.9466581 | F109: 289.9466581 | G109: 0 | H109: 0
B110: NAICS 722 | D110: 835.6676468 | E110: 835.6676468 | F110: 835.6676468 | G110: 0 | H110: 0
B112: Small Commercial Monthly Average Bills - Summer
D113: =$D$24 -> 2026-01-01 | E113: =$E$24 -> 2026-01-01 | F113: Proposed | G113: =$G$24 -> % Change over 1/1/2026 | H113: % Change over Current
B114: NAICS 531 | D114: ='Bill Impact (GS1) (2)'!C37 -> 247.8943711 | E114: ='Bill Impact (GS1) (2)'!E37 -> 247.8943711 | F114: ='Bill Impact (GS1) (2)'!G37 -> 247.8943711 | G114: =$F114/D114-1 -> 0 | H114: =$F114/E114-1 -> 0
B115: NAICS 621 | D115: ='Bill Impact (GS1) (2)'!C38 -> 395.5458909 | E115: ='Bill Impact (GS1) (2)'!E38 -> 395.5458909 | F115: ='Bill Impact (GS1) (2)'!G38 -> 395.5458909 | G115: 0 | H115: 0
B116: NAICS 722 | D116: ='Bill Impact (GS1) (2)'!C39 -> 1102.634088 | E116: ='Bill Impact (GS1) (2)'!E39 -> 1102.634088 | F116: ='Bill Impact (GS1) (2)'!G39 -> 1102.634088 | G116: 0 | H116: 0
B118: Small Commercial Monthly Average Bills - Winter
D119: =$D$24 -> 2026-01-01 | E119: =$E$24 -> 2026-01-01 | F119: Proposed | G119: =$G$24 -> % Change over 1/1/2026 | H119: % Change over Current
B120: NAICS 531 | D120: ='Bill Impact (GS1) (2)'!D37 -> 203.4718233 | E120: ='Bill Impact (GS1) (2)'!F37 -> 203.4718233 | F120: ='Bill Impact (GS1) (2)'!H37 -> 203.4718233 | G120: =$F120/D120-1 -> 0 | H120: =$F120/E120-1 -> 0
B121: NAICS 621 | D121: ='Bill Impact (GS1) (2)'!D38 -> 237.1470416 | E121: ='Bill Impact (GS1) (2)'!F38 -> 237.1470416 | F121: ='Bill Impact (GS1) (2)'!H38 -> 237.1470416 | G121: 0 | H121: 0
B122: NAICS 722 | D122: ='Bill Impact (GS1) (2)'!D39 -> 702.1844262 | E122: ='Bill Impact (GS1) (2)'!F39 -> 702.1844262 | F122: ='Bill Impact (GS1) (2)'!H39 -> 702.1844262 | G122: 0 | H122: 0

Sheet SAR and RAR (2) (hidden)
B1: CONFIDENTIAL This Excel Sheet Is Marked Confidential In Accordance With Applicable Law and Regulation. Basis for Confidentiality In Accompanying Confidentiality Declaration. Public Disclosure Restricted.
C2: Revenue Change ($000)
B4: Generation | C4: ='Simple Bill Insert Calc (2)'!D8 -> 0 | F4: Allocation
B5: Distribution | C5: ='Simple Bill Insert Calc (2)'!D9 -> 0 | F5: Generation | G5: Distribution | H5: NDC | I5: PPPC | J5: DCPP | K5: NSGC | L5: Transmission | M5: TOTCA | N5: GHG Rev | O5: DWRBC | P5: PUCRF | Q5: SECURITIZATION
B6: Nuclear | C6: ='Simple Bill Insert Calc (2)'!D10 -> 0 | E6: Residential | F6: ='SAR and RAR'!G37 -> 0.4392186652 | G6: 0.4980918019 | H6: ='SAR and RAR'!I37 -> 0.3398582131 | I6: 0.44667316 | J6: ='SAR and RAR'!K37 -> 0.4603675528 | K6: ='SAR and RAR'!L37 -> 0.4405950608 | L6: ='SAR and RAR'!M37 -> 0.4701305758 | M6: ='SAR and RAR'!N37 -> 0.3644316024 | N6: ='SAR and RAR'!O37 -> 0.7897450217 | O6: ='SAR and RAR'!P37 -> 0.2639037907 | P6: ='SAR and RAR'!Q37 -> 0.3398582131 | Q6: ='SAR and RAR'!R37 -> 0.3677970814
B7: Public Purpose | C7: ='Simple Bill Insert Calc (2)'!D11 -> 0
B8: DCPP | C8: ='Simple Bill Insert Calc (2)'!D12 -> 0 | F8: Revenue Change ($000) - System
B9: New System Gen | C9: ='Simple Bill Insert Calc (2)'!D13 -> 0 | F9: Generation | G9: Distribution | H9: NDC | I9: PPPC | J9: DCPP | K9: NSGC | L9: Transmission | M9: TOTCA | N9: GHG Rev | O9: DWRBC | P9: PUCRF | Q9: SECURITIZATION | R9: Total | S9: CARE Adj. | V9: % of CARE Sales (Bundled) | W9: ='SAR and RAR'!Q58 -> 0.3036132459
B10: FERC | C10: ='Simple Bill Insert Calc (2)'!D14 -> 0 | E10: Residential | F10: =F6*F11 -> 0 | G10: 0 | H10: 0 | I10: 0 | J10: 0 | K10: 0 | L10: 0 | M10: 0 | N10: 0 | O10: 0 | P10: 0 | Q10: =Q6*Q11 -> 0 | R10: =SUM(F10:Q10) -> 0 | S10: =(-W11+W14) -> 0 | V10: CARE Effective Discount | W10: ='SAR and RAR'!X10 -> 0.325
B11: TOTCA | C11: ='Simple Bill Insert Calc (2)'!D15 -> 0 | E11: Total System | F11: =C4 -> 0 | G11: =C5 -> 0 | H11: =C6 -> 0 | I11: =C7 -> 0 | J11: =C8 -> 0 | K11: =C9 -> 0 | L11: =C10 -> 0 | M11: =C11 -> 0 | N11: =C12 -> 0 | O11: =C13 -> 0 | P11: =C14 -> 0 | Q11: =C15 -> 0 | R11: =SUM(F11:Q11) -> 0 | S11: 0 | V11: CARE Discounst | W11: =SUM(F10*F16/'SAR and RAR'!K58*'SAR and RAR'!O58,G10:M10,P10)*W9*W10 -> 0
B12: GHG Revenue | C12: ='Simple Bill Insert Calc (2)'!D16 -> 0 | V12: non-CARE Sales | W12: ='SAR and RAR'!G58 -> 19039213.86
B13: DWR | C13: ='Simple Bill Insert Calc (2)'!D17 -> 0 | V13: Total Sales (excl. CARE&SL) | W13: ='SAR and RAR'!G64 -> 71720228.92
B14: PUCRF | C14: ='Simple Bill Insert Calc (2)'!D18 -> 0 | F14: Revenue Split - Bundled | R14: Bundled Revenue Change | V14: Res CARE Surcharge | W14: =W11*W12/W13 -> 0
B15: SECURITIZATION | C15: ='Simple Bill Insert Calc (2)'!D19 -> 0 | F15: Generation | G15: Distribution | H15: NDC | I15: PPPC | J15: DCPP | K15: NSGC | L15: Transmission | M15: TOTCA | N15: GHG Rev | O15: DWRBC | P15: PUCRF | Q15: SECURITIZATION | R15: Total
B16: Total | C16: =SUM(C4:C15) -> 0 | E16: Residential | F16: ='SAR and RAR'!G44 -> 0.9293135105 | G16: ='SAR and RAR'!H44 -> 0.7038417465 | H16: ='SAR and RAR'!I44 -> 0.7154315841 | I16: ='SAR and RAR'!J44 -> 0.7097677222 | J16: ='SAR and RAR'!K44 -> 0.7154315841 | K16: ='SAR and RAR'!L44 -> 0.7154315841 | L16: ='SAR and RAR'!M44 -> 0.7154315841 | M16: ='SAR and RAR'!N44 -> 0.7154315841 | N16: ='SAR and RAR'!O44 -> 0.7043649742 | O16: ='SAR and RAR'!P44 -> 0.6970027268 | P16: ='SAR and RAR'!Q44 -> 0.7154315841 | Q16: ='SAR and RAR'!R44 -> 0.6970027268 | R16: =SUMPRODUCT(F10:Q10,F16:Q16)+S10*'SAR and RAR'!X15 -> 0
E17: Total System | F17: ='SAR and RAR'!G50 -> 0.9257771519 | G17: ='SAR and RAR'!H50 -> 0.6583209223 | H17: ='SAR and RAR'!I50 -> 0.6388478176 | I17: ='SAR and RAR'!J50 -> 0.6512777238 | J17: ='SAR and RAR'!K50 -> 0.6520237334 | K17: ='SAR and RAR'!L50 -> 0.6485268401 | L17: ='SAR and RAR'!M50 -> 0.6706488897 | M17: ='SAR and RAR'!N50 -> 0.6413610128 | N17: ='SAR and RAR'!O50 -> 0.6806631536 | O17: ='SAR and RAR'!P50 -> 0.6251728172 | P17: ='SAR and RAR'!Q50 -> 0.6388478176 | Q17: ='SAR and RAR'!R50 -> 0.6353766549 | R17: =SUMPRODUCT(F11:Q11,F17:Q17) -> 0
R19: =N10*N16 -> 0
E22: Bundled | M22: System (Bundled and Unbundled)
E23: ='Simple Bill Insert Calc (2)'!M4&" Sales" -> 2026 Sales | F23: ='SAR and RAR'!G27 -> 1/1/2026 Avg Rates | G23: Proposed Avg Rates | H23: % Change | M23: ='Simple Bill Insert Calc (2)'!M4&" Sales" -> 2026 Sales | N23: ='SAR and RAR'!O27 -> 1/1/2026 Avg Rates | O23: Proposed Avg Rates | P23: % Change
D24: Residential | E24: ='SAR and RAR'!K58 -> 19559899.51 | F24: =IF('Simple Bill Insert Calc (2)'!$D$6="Y",'SAR and RAR'!W32,'SAR and RAR'!X32) -> 34.45079839 | G24: =R16/E24*100+F24 -> 34.45079839 | H24: =G24/F24-1 -> 0 | L24: Residential | M24: ='SAR and RAR'!O58 -> 27340000 | N24: =IF('Simple Bill Insert Calc (2)'!$D$6="Y",'SAR and RAR'!Z32,'SAR and RAR'!AA32) -> 32.05610311 | O24: =SUM(R10:S10)/M24*100+N24 -> 32.05610311 | P24: =O24/N24-1 -> 0
D25: Total System | E25: ='SAR and RAR'!K64 -> 51392312.02 | F25: =IF('Simple Bill Insert Calc (2)'!$D$6="Y",'SAR and RAR'!W33,'SAR and RAR'!X33) -> 28.8581489 | G25: =R17/E25*100+F25 -> 28.8581489 | H25: =G25/F25-1 -> 0 | L25: Total System | M25: ='SAR and RAR'!O64 -> 80445312.02 | N25: =IF('Simple Bill Insert Calc (2)'!$D$6="Y",'SAR and RAR'!Z33,'SAR and RAR'!AA33) -> 25.19445183 | O25: =SUM(R11:S11)/M25*100+N25 -> 25.19445183 | P25: =O25/N25-1 -> 0

Sheet Res Bill Impact (2) (hidden)
B1: CONFIDENTIAL This Excel Sheet Is Marked Confidential In Accordance With Applicable Law and Regulation. Basis for Confidentiality In Accompanying Confidentiality Declaration. Public Disclosure Restricted.
E3: Schedule D | O3: Schedule D-CARE
E4: ='Simple Bill Insert Calc (2)'!M4 -> 2026 | F4: ='Simple Bill Insert Calc (2)'!M3 -> 2026-01-01 | G4: Proposed | H4: Proposed | O4: ='Simple Bill Insert Calc (2)'!M4 -> 2026 | P4: ='Simple Bill Insert Calc (2)'!M3 -> 2026-01-01 | Q4: Proposed | R4: Proposed
E5: Sales Forecast | F5: Rates | G5: Rates | H5: Revenue | O5: Sales Forecast | P5: Rates | Q5: Rates | R5: Revenue
D7: Baseline - Summer | E7: ='Res Bill Impact'!F97 -> 3341.092086 | F7: ='Res Bill Impact'!F7 -> 0.30862 | G7: =(V10-SUM(R14:R15,H14:H15))/SUM(SUM(E7:E8),F9/F7*SUM(E9:E10),F11/F7*SUM(E11:E12),SUM(O7:O8)*(1+(P7/F7-1)),SUM(O9:O10)*(1+(P9/F9-1))*F9/F7,SUM(O11:O12)*(1+(P11/F11-1))*F11/F7) -> 0.30862 | H7: =E7*G7 -> 1031.127839 | N7: Baseline - Summer | O7: ='Res Bill Impact'!M97 -> 1853.485707 | P7: ='Res Bill Impact'!P7 -> 0.20048 | Q7: =G7*(1+(P7/F7-1)) -> 0.20048 | R7: =O7*Q7 -> 371.5868145 | U7: Bundled Residential Rev Req
D8: - Winter | E8: ='Res Bill Impact'!F98 -> 4595.046326 | F8: ='Res Bill Impact'!F8 -> 0.30862 | G8: =G7 -> 0.30862 | H8: 1418.123197 | N8: - Winter | O8: ='Res Bill Impact'!M98 -> 2569.096495 | P8: ='Res Bill Impact'!P8 -> 0.20048 | Q8: 0.20048 | R8: 515.0524653 | U8: Current | V8: =SUMPRODUCT(E7:E12,F7:F12)+SUMPRODUCT(O7:O12,P7:P12)+(E14*F14*365/12/10^6)+(E15*F15*365/12/10^6)+(O14*P14*365/12/10^6)+(O15*P15*365/12/10^6) -> 6764.476414
D9: 101% - 400% of Baseline - Summer | E9: ='Res Bill Impact'!F99 -> 2086.626226 | F9: ='Res Bill Impact'!F9 -> 0.4097 | G9: =F9/F$7*G$7 -> 0.4097 | H9: 854.8907647 | N9: 101% - 400% of Baseline - Summer | O9: ='Res Bill Impact'!M99 -> 788.5488199 | P9: ='Res Bill Impact'!P9 -> 0.2687 | Q9: 0.2687 | R9: 211.8830679 | U9: Change | V9: ='SAR and RAR (2)'!R16/1000-'SAR and RAR (2)'!R19/1000 -> 0
D10: - Winter | E10: ='Res Bill Impact'!F100 -> 2800.745323 | F10: ='Res Bill Impact'!F10 -> 0.4097 | G10: =G9 -> 0.4097 | H10: 1147.465359 | N10: - Winter | O10: ='Res Bill Impact'!M100 -> 1049.208786 | P10: ='Res Bill Impact'!P10 -> 0.2687 | Q10: 0.2687 | R10: 281.9224009 | U10: Proposed Change | V10: =SUM(V8:V9) -> 6764.476414
D11: 401% of Baseline - Summer | E11: ='Res Bill Impact'!F101 -> 165.8479243 | F11: ='Res Bill Impact'!F11 -> 0.4097 | G11: =F11/F$7*G$7 -> 0.4097 | H11: 67.94789459 | N11: 401% of Baseline - Summer | O11: ='Res Bill Impact'!M101 -> 9.043378596 | P11: ='Res Bill Impact'!P11 -> 0.2687 | Q11: 0.2687 | R11: 2.429955829 | V11: =V10-SUM(H7:H15,R7:R15) -> 0
D12: - Winter | E12: ='Res Bill Impact'!F102 -> 281.0260881 | F12: ='Res Bill Impact'!F12 -> 0.4097 | G12: =G11 -> 0.4097 | H12: 115.1363883 | N12: - Winter | O12: ='Res Bill Impact'!M102 -> 20.13235039 | P12: ='Res Bill Impact'!P12 -> 0.2687 | Q12: 0.2687 | R12: 5.409562549
D14: Basic Charge - Single-Family Residence | E14: ='Res Bill Impact'!F104 -> 19072895.18 | F14: ='Res Bill Impact'!F14 -> 0.794 | G14: =F14 -> 0.794 | H14: =G14*E14*365/12/10^6 -> 460.6263127 | N14: Basic Charge - Single-Family Residence | O14: ='Res Bill Impact'!M104 -> 6438624.757 | P14: ='Res Bill Impact'!P14 -> 0.198 | Q14: =P14 -> 0.198 | R14: =Q14*O14*365/12/10^6 -> 38.7766176
D15: Basic Charge - Multi-Family Residence | E15: ='Res Bill Impact'!F105 -> 8676304.22 | F15: ='Res Bill Impact'!F15 -> 0.794 | G15: =F15 -> 0.794 | H15: =G15*E15*365/12/10^6 -> 209.5399772 | N15: Basic Charge - Multi-Family Residence | O15: ='Res Bill Impact'!M105 -> 5406026.843 | P15: ='Res Bill Impact'!P15 -> 0.198 | Q15: =P15 -> 0.198 | R15: =Q15*O15*365/12/10^6 -> 32.55779666
O19: ='Res Bill Impact'!O19 -> 2025 Recorded Data - Average Monthly Usage - kWh (Bundled / Basic Service Only) | W19: ='Res Bill Impact'!W19 -> 2025 Recorded Data - Average Monthly Usage - kWh (Bundled / All Electric Only)
B20: SCHEDULE D RATES ($/kWh) | H20: MONTHLY BASELINE QUANTITIES | I20: BASIC | K20: ALL-ELECTRIC | O20: Climate Zone | P20: Summer | Q20: Winter | R20: Summer | S20: Winter | T20: Sample Population Weight | W20: Climate Zone | X20: Summer | Y20: Winter | Z20: Summer | AA20: Winter | AB20: Sample Population Weight
B21: Rates | C21: ='Res Bill Impact'!C21 -> Jan 2026 | D21: ='Simple Bill Insert Calc (2)'!M3 -> 2026-01-01 | E21: Proposed | H21: Climate Zone | I21: Summer | J21: Winter | K21: Summer | L21: Winter | P21: Non-CARE | R21: CARE | T21: Non-CARE | U21: CARE | X21: Non-CARE | Z21: CARE | AB21: Non-CARE | AC21: CARE
B22: Tier 1 | C22: ='Res Bill Impact'!C22 -> 0.30862 | D22: =F7 -> 0.30862 | E22: =G7 -> 0.30862 | H22: 5 warm | I22: ='Res Bill Impact'!I22 -> 517.089 | J22: ='Res Bill Impact'!J22 -> 559.6728 | K22: ='Res Bill Impact'!K22 -> 511.0056 | L22: ='Res Bill Impact'!L22 -> 821.259 | O22: 5 warm | P22: ='Res Bill Impact'!P22 -> 392.8180856 | Q22: ='Res Bill Impact'!Q22 -> 420.1466662 | R22: ='Res Bill Impact'!R22 -> 306.7764341 | S22: ='Res Bill Impact'!S22 -> 335.333846 | T22: ='Res Bill Impact'!T22 -> 0.0003805654938 | U22: ='Res Bill Impact'!U22 -> 5.832094013e-05 | W22: 5 warm | X22: ='Res Bill Impact'!X22 -> 401.9191552 | Y22: ='Res Bill Impact'!Y22 -> 466.9704971 | Z22: ='Res Bill Impact'!Z22 -> 348.8324974 | AA22: ='Res Bill Impact'!AA22 -> 431.3141607 | AB22: ='Res Bill Impact'!AB22 -> 0.000285685566 | AC22: ='Res Bill Impact'!AC22 -> 0.0001634218353
B23: Tier 2 | C23: ='Res Bill Impact'!C23 -> 0.4097 | D23: =F9 -> 0.4097 | E23: =G9 -> 0.4097 | H23: 6 cool | I23: ='Res Bill Impact'!I23 -> 346.7538 | J23: ='Res Bill Impact'!J23 -> 334.587 | K23: ='Res Bill Impact'!K23 -> 264.6279 | L23: ='Res Bill Impact'!L23 -> 383.2542 | O23: 6 cool | P23: ='Res Bill Impact'!P23 -> 428.1439387 | Q23: ='Res Bill Impact'!Q23 -> 379.4971467 | R23: ='Res Bill Impact'!R23 -> 396.1779794 | S23: ='Res Bill Impact'!S23 -> 349.3506735 | T23: ='Res Bill Impact'!T23 -> 0.1665870134 | U23: ='Res Bill Impact'!U23 -> 0.05961177694 | W23: 6 cool | X23: ='Res Bill Impact'!X23 -> 327.4946929 | Y23: ='Res Bill Impact'!Y23 -> 327.8519746 | Z23: ='Res Bill Impact'!Z23 -> 361.2313708 | AA23: ='Res Bill Impact'!AA23 -> 369.2885802 | AB23: ='Res Bill Impact'!AB23 -> 0.2603971029 | AC23: ='Res Bill Impact'!AC23 -> 0.1259219715
B24: HUC | C24: ='Res Bill Impact'!C24 -> 0.4097 | D24: =F11 -> 0.4097 | E24: =G11 -> 0.4097 | H24: 8 cool | I24: ='Res Bill Impact'!I24 -> 389.3376 | J24: ='Res Bill Impact'!J24 -> 313.2951 | K24: ='Res Bill Impact'!K24 -> 301.1283 | L24: ='Res Bill Impact'!L24 -> 374.1291 | O24: 8 cool | P24: ='Res Bill Impact'!P24 -> 535.3568139 | Q24: ='Res Bill Impact'!Q24 -> 398.6913352 | R24: ='Res Bill Impact'!R24 -> 486.4008228 | S24: ='Res Bill Impact'!S24 -> 376.6316799 | T24: ='Res Bill Impact'!T24 -> 0.2280925925 | U24: ='Res Bill Impact'!U24 -> 0.1581100127 | W24: 8 cool | X24: ='Res Bill Impact'!X24 -> 378.9108386 | Y24: ='Res Bill Impact'!Y24 -> 341.0081901 | Z24: ='Res Bill Impact'!Z24 -> 403.9378759 | AA24: ='Res Bill Impact'!AA24 -> 368.0942404 | AB24: ='Res Bill Impact'!AB24 -> 0.236976177 | AC24: ='Res Bill Impact'!AC24 -> 0.2059333021
B25: cust $ / Day | C25: ='Res Bill Impact'!C25 -> 0.794 | H25: 9 warm | I25: ='Res Bill Impact'!I25 -> 514.0473 | J25: ='Res Bill Impact'!J25 -> 365.004 | K25: ='Res Bill Impact'!K25 -> 380.2125 | L25: ='Res Bill Impact'!L25 -> 422.7963 | O25: 9 warm | P25: ='Res Bill Impact'!P25 -> 662.7146021 | Q25: ='Res Bill Impact'!Q25 -> 441.2638435 | R25: ='Res Bill Impact'!R25 -> 642.8036573 | S25: ='Res Bill Impact'!S25 -> 423.5758643 | T25: ='Res Bill Impact'!T25 -> 0.1265413456 | U25: ='Res Bill Impact'!U25 -> 0.1015756374 | W25: 9 warm | X25: ='Res Bill Impact'!X25 -> 482.8782994 | Y25: ='Res Bill Impact'!Y25 -> 362.9452712 | Z25: ='Res Bill Impact'!Z25 -> 485.9581988 | AA25: ='Res Bill Impact'!AA25 -> 371.3543401 | AB25: ='Res Bill Impact'!AB25 -> 0.08303398071 | AC25: ='Res Bill Impact'!AC25 -> 0.08865089828
B26: SCHEDULE D-CARE RATES ($/kWh) | H26: 10 hot (Sec 745) | I26: ='Res Bill Impact'!I26 -> 587.0481 | J26: ='Res Bill Impact'!J26 -> 368.0457 | K26: ='Res Bill Impact'!K26 -> 483.6303 | L26: ='Res Bill Impact'!L26 -> 498.8388 | O26: 10 hot (Sec 745) | P26: ='Res Bill Impact'!P26 -> 762.4939433 | Q26: ='Res Bill Impact'!Q26 -> 465.2157645 | R26: ='Res Bill Impact'!R26 -> 836.4764649 | S26: ='Res Bill Impact'!S26 -> 488.3632947 | T26: ='Res Bill Impact'!T26 -> 0.3039324363 | U26: ='Res Bill Impact'!U26 -> 0.402916047 | W26: 10 hot (Sec 745) | X26: ='Res Bill Impact'!X26 -> 571.4352251 | Y26: ='Res Bill Impact'!Y26 -> 406.1255385 | Z26: ='Res Bill Impact'!Z26 -> 615.2053451 | AA26: ='Res Bill Impact'!AA26 -> 415.1421461 | AB26: ='Res Bill Impact'!AB26 -> 0.2636137108 | AC26: ='Res Bill Impact'!AC26 -> 0.3583187162
B27: Rates | C27: =C21 -> Jan 2026 | D27: =D21 -> 2026-01-01 | E27: Proposed | H27: 13 hot | I27: ='Res Bill Impact'!I27 -> 675.2574 | J27: ='Res Bill Impact'!J27 -> 371.0874 | K27: ='Res Bill Impact'!K27 -> 736.0914 | L27: ='Res Bill Impact'!L27 -> 699.591 | O27: 13 hot | P27: ='Res Bill Impact'!P27 -> 909.9939748 | Q27: ='Res Bill Impact'!Q27 -> 472.0882088 | R27: ='Res Bill Impact'!R27 -> 945.4029535 | S27: ='Res Bill Impact'!S27 -> 473.3238809 | T27: ='Res Bill Impact'!T27 -> 0.04964498992 | U27: ='Res Bill Impact'!U27 -> 0.1105181816 | W27: 13 hot | X27: ='Res Bill Impact'!X27 -> 861.9663688 | Y27: ='Res Bill Impact'!Y27 -> 542.7406184 | Z27: ='Res Bill Impact'!Z27 -> 895.1489115 | AA27: ='Res Bill Impact'!AA27 -> 536.4721623 | AB27: ='Res Bill Impact'!AB27 -> 0.03445685354 | AC27: ='Res Bill Impact'!AC27 -> 0.06674147755
B28: Tier 1 | C28: ='Res Bill Impact'!C28 -> 0.20048 | D28: =P7 -> 0.20048 | E28: =Q7 -> 0.20048 | H28: 14 hot | I28: ='Res Bill Impact'!I28 -> 584.0064 | J28: ='Res Bill Impact'!J28 -> 361.9623 | K28: ='Res Bill Impact'!K28 -> 562.7145 | L28: ='Res Bill Impact'!L28 -> 641.7987 | O28: 14 hot | P28: ='Res Bill Impact'!P28 -> 736.4638175 | Q28: ='Res Bill Impact'!Q28 -> 439.8131014 | R28: ='Res Bill Impact'!R28 -> 846.776143 | S28: ='Res Bill Impact'!S28 -> 501.2769208 | T28: ='Res Bill Impact'!T28 -> 0.06190827044 | U28: ='Res Bill Impact'!U28 -> 0.1068400743 | W28: 14 hot | X28: ='Res Bill Impact'!X28 -> 672.5853002 | Y28: ='Res Bill Impact'!Y28 -> 501.1123856 | Z28: ='Res Bill Impact'!Z28 -> 820.3139555 | AA28: ='Res Bill Impact'!AA28 -> 614.9004159 | AB28: ='Res Bill Impact'!AB28 -> 0.04579962861 | AC28: ='Res Bill Impact'!AC28 -> 0.07337640407
B29: Tier 2 | C29: ='Res Bill Impact'!C29 -> 0.2687 | D29: =P9 -> 0.2687 | E29: =Q9 -> 0.2687 | H29: 15 hot | I29: ='Res Bill Impact'!I29 -> 1368.765 | J29: ='Res Bill Impact'!J29 -> 295.0449 | K29: ='Res Bill Impact'!K29 -> 730.008 | L29: ='Res Bill Impact'!L29 -> 529.2558 | O29: 15 hot | P29: ='Res Bill Impact'!P29 -> 1068.875545 | Q29: ='Res Bill Impact'!Q29 -> 514.1791158 | R29: ='Res Bill Impact'!R29 -> 1217.193748 | S29: ='Res Bill Impact'!S29 -> 509.5978566 | T29: ='Res Bill Impact'!T29 -> 0.03250958605 | U29: ='Res Bill Impact'!U29 -> 0.03454349284 | W29: 15 hot | X29: ='Res Bill Impact'!X29 -> 812.9639032 | Y29: ='Res Bill Impact'!Y29 -> 430.627853 | Z29: ='Res Bill Impact'!Z29 -> 1006.011932 | AA29: ='Res Bill Impact'!AA29 -> 491.1893218 | AB29: ='Res Bill Impact'!AB29 -> 0.03529274835 | AC29: ='Res Bill Impact'!AC29 -> 0.04983276499
B30: HUC | C30: ='Res Bill Impact'!C30 -> 0.2687 | D30: =P11 -> 0.2687 | E30: =Q12 -> 0.2687 | H30: 16 cool | I30: ='Res Bill Impact'!I30 -> 447.1299 | J30: ='Res Bill Impact'!J30 -> 377.1708 | K30: ='Res Bill Impact'!K30 -> 410.6295 | L30: ='Res Bill Impact'!L30 -> 705.6744 | O30: 16 cool | P30: ='Res Bill Impact'!P30 -> 492.2823695 | Q30: ='Res Bill Impact'!Q30 -> 390.2262556 | R30: ='Res Bill Impact'!R30 -> 719.3741429 | S30: ='Res Bill Impact'!S30 -> 479.6485674 | T30: ='Res Bill Impact'!T30 -> 0.03040320029 | U30: ='Res Bill Impact'!U30 -> 0.02582645632 | W30: 16 cool | X30: ='Res Bill Impact'!X30 -> 402.4281356 | Y30: ='Res Bill Impact'!Y30 -> 502.6609855 | Z30: ='Res Bill Impact'!Z30 -> 651.0967816 | AA30: ='Res Bill Impact'!AA30 -> 548.3187375 | AB30: ='Res Bill Impact'!AB30 -> 0.0401441125 | AC30: ='Res Bill Impact'!AC30 -> 0.0310610435
B31: cust $ / Day | C31: ='Res Bill Impact'!C31 -> 0.198
N32: Daily to Monthly Conversion Factor | O32: 30.417
C34: NON-CARE | K34: Essential Use (Basic) - Non-CARE | S34: Essential Use (Basic) - CARE
C35: =C27 -> Jan 2026 | E35: =D27 -> 2026-01-01 | G35: =E21 -> Proposed | K35: =C35 -> Jan 2026 | M35: =E35 -> 2026-01-01 | O35: =G35 -> Proposed | S35: =K35 -> Jan 2026 | U35: =M35 -> 2026-01-01 | W35: =O35 -> Proposed
C36: Summer | D36: Winter | E36: Summer | F36: Winter | G36: Summer | H36: Winter | K36: Summer | L36: Winter | M36: Summer | N36: Winter | O36: Summer | P36: Winter | S36: Summer | T36: Winter | U36: Summer | V36: Winter | W36: Summer | X36: Winter
B37: 5 warm | C37: =C$22*MIN(I22,P22)+IF(P22-I22>0,C$23*(P22-I22))+ROUND($C$25*365/12,2)+('Simple Bill Insert Calc (2)'!M17*2)/12 -> 139.3815176 | D37: =C$22*MIN(J22,Q22)+IF(Q22-J22>0,C$23*(Q22-J22))+ROUND($C$25*365/12,2)+('Simple Bill Insert Calc (2)'!M17*2)/12 -> 147.8156641 | E37: =D$22*MIN(I22,P22)+IF(P22-I22>0,D$23*(P22-I22))+ROUND($F$14*365/12,2)+('Simple Bill Insert Calc (2)'!M17*2)/12 -> 139.3815176 | F37: =D$22*MIN(J22,Q22)+IF(Q22-J22>0,D$23*(Q22-J22))+ROUND($F$14*365/12,2)+('Simple Bill Insert Calc (2)'!M17*2)/12 -> 147.8156641 | G37: =E$22*MIN(I22,P22)+IF(P22-I22>0,E$23*(P22-I22))+ROUND($F$14*365/12,2)+('Simple Bill Insert Calc (2)'!M17*2)/12 -> 139.3815176 | H37: =E$22*MIN(J22,Q22)+IF(Q22-J22>0,E$23*(Q22-J22))+ROUND($F$14*365/12,2)+('Simple Bill Insert Calc (2)'!M17*2)/12 -> 147.8156641 | J37: 5 warm | K37: =C$22*I22+ROUND($C$25*365/12,2)+('Simple Bill Insert Calc (2)'!M17*2)/12 -> 177.7340072 | L37: =C$22*J22+ROUND($C$25*365/12,2)+('Simple Bill Insert Calc (2)'!M17*2)/12 -> 190.8762195 | M37: =D$22*I22+ROUND($F$14*365/12,2)+('Simple Bill Insert Calc (2)'!M17*2)/12 -> 177.7340072 | N37: =D$22*J22+ROUND($F$14*365/12,2)+('Simple Bill Insert Calc (2)'!M17*2)/12 -> 190.8762195 | O37: =E$22*I22+ROUND($F$14*365/12,2)+('Simple Bill Insert Calc (2)'!M17*2)/12 -> 177.7340072 | P37: =E$22*J22+ROUND($F$14*365/12,2)+('Simple Bill Insert Calc (2)'!M17*2)/12 -> 190.8762195 | R37: 5 warm | S37: =C$28*I22+ROUND($C$31*365/12,2)+('Simple Bill Insert Calc (2)'!M17*2)/12 -> 103.6860027 | T37: =C$28*J22+ROUND($C$31*365/12,2)+('Simple Bill Insert Calc (2)'!M17*2)/12 -> 112.2232029 | U37: =D$28*I22+ROUND($P$14*365/12,2)+('Simple Bill Insert Calc (2)'!M17*2)/12 -> 103.6860027 | V37: =D$28*J22+ROUND($P$14*365/12,2)+('Simple Bill Insert Calc (2)'!M17*2)/12 -> 112.2232029 | W37: =E$28*I22+ROUND($P$14*365/12,2)+('Simple Bill Insert Calc (2)'!M17*2)/12 -> 103.6860027 | X37: =E$28*J22+ROUND($P$14*365/12,2)+('Simple Bill Insert Calc (2)'!M17*2)/12 -> 112.2232029
B38: 6 cool | C38: =C$22*MIN(I23,P23)+IF(P23-I23>0,C$23*(P23-I23))+ROUND($C$25*365/12,2)+('Simple Bill Insert Calc (2)'!M17*2)/12 -> 158.5106976 | D38: =C$22*MIN(J23,Q23)+IF(Q23-J23>0,C$23*(Q23-J23))+ROUND($C$25*365/12,2)+('Simple Bill Insert Calc (2)'!M17*2)/12 -> 139.809927 | E38: =D$22*MIN(I23,P23)+IF(P23-I23>0,D$23*(P23-I23))+ROUND($F$14*365/12,2)+('Simple Bill Insert Calc (2)'!M17*2)/12 -> 158.5106976 | F38: =D$22*MIN(J23,Q23)+IF(Q23-J23>0,D$23*(Q23-J23))+ROUND($F$14*365/12,2)+('Simple Bill Insert Calc (2)'!M17*2)/12 -> 139.809927 | G38: =E$22*MIN(I23,P23)+IF(P23-I23>0,E$23*(P23-I23))+ROUND($F$14*365/12,2)+('Simple Bill Insert Calc (2)'!M17*2)/12 -> 158.5106976 | H38: =E$22*MIN(J23,Q23)+IF(Q23-J23>0,E$23*(Q23-J23))+ROUND($F$14*365/12,2)+('Simple Bill Insert Calc (2)'!M17*2)/12 -> 139.809927 | J38: 6 cool | K38: =C$22*I23+ROUND($C$25*365/12,2)+('Simple Bill Insert Calc (2)'!M17*2)/12 -> 125.1651578 | L38: =C$22*J23+ROUND($C$25*365/12,2)+('Simple Bill Insert Calc (2)'!M17*2)/12 -> 121.4102399 | M38: =D$22*I23+ROUND($F$14*365/12,2)+('Simple Bill Insert Calc (2)'!M17*2)/12 -> 125.1651578 | N38: =D$22*J23+ROUND($F$14*365/12,2)+('Simple Bill Insert Calc (2)'!M17*2)/12 -> 121.4102399 | O38: =E$22*I23+ROUND($F$14*365/12,2)+('Simple Bill Insert Calc (2)'!M17*2)/12 -> 125.1651578 | P38: =E$22*J23+ROUND($F$14*365/12,2)+('Simple Bill Insert Calc (2)'!M17*2)/12 -> 121.4102399 | R38: 6 cool | S38: =C$28*I23+ROUND($C$31*365/12,2)+('Simple Bill Insert Calc (2)'!M17*2)/12 -> 69.53720182 | T38: =C$28*J23+ROUND($C$31*365/12,2)+('Simple Bill Insert Calc (2)'!M17*2)/12 -> 67.09800176 | U38: =D$28*I23+ROUND($P$14*365/12,2)+('Simple Bill Insert Calc (2)'!M17*2)/12 -> 69.53720182 | V38: =D$28*J23+ROUND($P$14*365/12,2)+('Simple Bill Insert Calc (2)'!M17*2)/12 -> 67.09800176 | W38: =E$28*I23+ROUND($P$14*365/12,2)+('Simple Bill Insert Calc (2)'!M17*2)/12 -> 69.53720182 | X38: =E$28*J23+ROUND($P$14*365/12,2)+('Simple Bill Insert Calc (2)'!M17*2)/12 -> 67.09800176
B39: 8 cool | C39: =C$22*MIN(I24,P24)+IF(P24-I24>0,C$23*(P24-I24))+ROUND($C$25*365/12,2)+('Simple Bill Insert Calc (2)'!M17*2)/12 -> 198.131442 | D39: =C$22*MIN(J24,Q24)+IF(Q24-J24>0,C$23*(Q24-J24))+ROUND($C$25*365/12,2)+('Simple Bill Insert Calc (2)'!M17*2)/12 -> 149.8259713 | E39: =D$22*MIN(I24,P24)+IF(P24-I24>0,D$23*(P24-I24))+ROUND($F$14*365/12,2)+('Simple Bill Insert Calc (2)'!M17*2)/12 -> 198.131442 | F39: =D$22*MIN(J24,Q24)+IF(Q24-J24>0,D$23*(Q24-J24))+ROUND($F$14*365/12,2)+('Simple Bill Insert Calc (2)'!M17*2)/12 -> 149.8259713 | G39: =E$22*MIN(I24,P24)+IF(P24-I24>0,E$23*(P24-I24))+ROUND($F$14*365/12,2)+('Simple Bill Insert Calc (2)'!M17*2)/12 -> 198.131442 | H39: =E$22*MIN(J24,Q24)+IF(Q24-J24>0,E$23*(Q24-J24))+ROUND($F$14*365/12,2)+('Simple Bill Insert Calc (2)'!M17*2)/12 -> 149.8259713 | J39: 8 cool | K39: =C$22*I24+ROUND($C$25*365/12,2)+('Simple Bill Insert Calc (2)'!M17*2)/12 -> 138.3073701 | L39: =C$22*J24+ROUND($C$25*365/12,2)+('Simple Bill Insert Calc (2)'!M17*2)/12 -> 114.8391338 | M39: =D$22*I24+ROUND($F$14*365/12,2)+('Simple Bill Insert Calc (2)'!M17*2)/12 -> 138.3073701 | N39: =D$22*J24+ROUND($F$14*365/12,2)+('Simple Bill Insert Calc (2)'!M17*2)/12 -> 114.8391338 | O39: =E$22*I24+ROUND($F$14*365/12,2)+('Simple Bill Insert Calc (2)'!M17*2)/12 -> 138.3073701 | P39: =E$22*J24+ROUND($F$14*365/12,2)+('Simple Bill Insert Calc (2)'!M17*2)/12 -> 114.8391338 | R39: 8 cool | S39: =C$28*I24+ROUND($C$31*365/12,2)+('Simple Bill Insert Calc (2)'!M17*2)/12 -> 78.07440205 | T39: =C$28*J24+ROUND($C$31*365/12,2)+('Simple Bill Insert Calc (2)'!M17*2)/12 -> 62.82940165 | U39: =D$28*I24+ROUND($P$14*365/12,2)+('Simple Bill Insert Calc (2)'!M17*2)/12 -> 78.07440205 | V39: =D$28*J24+ROUND($P$14*365/12,2)+('Simple Bill Insert Calc (2)'!M17*2)/12 -> 62.82940165 | W39: =E$28*I24+ROUND($P$14*365/12,2)+('Simple Bill Insert Calc (2)'!M17*2)/12 -> 78.07440205 | X39: =E$28*J24+ROUND($P$14*365/12,2)+('Simple Bill Insert Calc (2)'!M17*2)/12 -> 62.82940165
B40: 9 warm | C40: =C$22*MIN(I25,P25)+IF(P25-I25>0,C$23*(P25-I25))+ROUND($C$25*365/12,2)+('Simple Bill Insert Calc (2)'!M17*2)/12 -> 237.7042714 | D40: =C$22*MIN(J25,Q25)+IF(Q25-J25>0,C$23*(Q25-J25))+ROUND($C$25*365/12,2)+('Simple Bill Insert Calc (2)'!M17*2)/12 -> 162.0411923 | E40: =D$22*MIN(I25,P25)+IF(P25-I25>0,D$23*(P25-I25))+ROUND($F$14*365/12,2)+('Simple Bill Insert Calc (2)'!M17*2)/12 -> 237.7042714 | F40: =D$22*MIN(J25,Q25)+IF(Q25-J25>0,D$23*(Q25-J25))+ROUND($F$14*365/12,2)+('Simple Bill Insert Calc (2)'!M17*2)/12 -> 162.0411923 | G40: =E$22*MIN(I25,P25)+IF(P25-I25>0,E$23*(P25-I25))+ROUND($F$14*365/12,2)+('Simple Bill Insert Calc (2)'!M17*2)/12 -> 237.7042714 | H40: =E$22*MIN(J25,Q25)+IF(Q25-J25>0,E$23*(Q25-J25))+ROUND($F$14*365/12,2)+('Simple Bill Insert Calc (2)'!M17*2)/12 -> 162.0411923 | J40: 9 warm | K40: =C$22*I25+ROUND($C$25*365/12,2)+('Simple Bill Insert Calc (2)'!M17*2)/12 -> 176.7952777 | L40: =C$22*J25+ROUND($C$25*365/12,2)+('Simple Bill Insert Calc (2)'!M17*2)/12 -> 130.7975345 | M40: =D$22*I25+ROUND($F$14*365/12,2)+('Simple Bill Insert Calc (2)'!M17*2)/12 -> 176.7952777 | N40: =D$22*J25+ROUND($F$14*365/12,2)+('Simple Bill Insert Calc (2)'!M17*2)/12 -> 130.7975345 | O40: =E$22*I25+ROUND($F$14*365/12,2)+('Simple Bill Insert Calc (2)'!M17*2)/12 -> 176.7952777 | P40: =E$22*J25+ROUND($F$14*365/12,2)+('Simple Bill Insert Calc (2)'!M17*2)/12 -> 130.7975345 | R40: 9 warm | S40: =C$28*I25+ROUND($C$31*365/12,2)+('Simple Bill Insert Calc (2)'!M17*2)/12 -> 103.0762027 | T40: =C$28*J25+ROUND($C$31*365/12,2)+('Simple Bill Insert Calc (2)'!M17*2)/12 -> 73.19600192 | U40: =D$28*I25+ROUND($P$14*365/12,2)+('Simple Bill Insert Calc (2)'!M17*2)/12 -> 103.0762027 | V40: =D$28*J25+ROUND($P$14*365/12,2)+('Simple Bill Insert Calc (2)'!M17*2)/12 -> 73.19600192 | W40: =E$28*I25+ROUND($P$14*365/12,2)+('Simple Bill Insert Calc (2)'!M17*2)/12 -> 103.0762027 | X40: =E$28*J25+ROUND($P$14*365/12,2)+('Simple Bill Insert Calc (2)'!M17*2)/12 -> 73.19600192
B41: 10 hot (Sec 745) | C41: =C$22*MIN(I26,P26)+IF(P26-I26>0,C$23*(P26-I26))+ROUND($C$25*365/12,2)+('Simple Bill Insert Calc (2)'!M17*2)/12 -> 271.2049466 | D41: =C$22*MIN(J26,Q26)+IF(Q26-J26>0,C$23*(Q26-J26))+ROUND($C$25*365/12,2)+('Simple Bill Insert Calc (2)'!M17*2)/12 -> 171.5468394 | E41: =D$22*MIN(I26,P26)+IF(P26-I26>0,D$23*(P26-I26))+ROUND($F$14*365/12,2)+('Simple Bill Insert Calc (2)'!M17*2)/12 -> 271.2049466 | F41: =D$22*MIN(J26,Q26)+IF(Q26-J26>0,D$23*(Q26-J26))+ROUND($F$14*365/12,2)+('Simple Bill Insert Calc (2)'!M17*2)/12 -> 171.5468394 | G41: =E$22*MIN(I26,P26)+IF(P26-I26>0,E$23*(P26-I26))+ROUND($F$14*365/12,2)+('Simple Bill Insert Calc (2)'!M17*2)/12 -> 271.2049466 | H41: =E$22*MIN(J26,Q26)+IF(Q26-J26>0,E$23*(Q26-J26))+ROUND($F$14*365/12,2)+('Simple Bill Insert Calc (2)'!M17*2)/12 -> 171.5468394 | J41: 10 hot (Sec 745) | K41: =C$22*I26+ROUND($C$25*365/12,2)+('Simple Bill Insert Calc (2)'!M17*2)/12 -> 199.3247846 | L41: =C$22*J26+ROUND($C$25*365/12,2)+('Simple Bill Insert Calc (2)'!M17*2)/12 -> 131.7362639 | M41: =D$22*I26+ROUND($F$14*365/12,2)+('Simple Bill Insert Calc (2)'!M17*2)/12 -> 199.3247846 | N41: =D$22*J26+ROUND($F$14*365/12,2)+('Simple Bill Insert Calc (2)'!M17*2)/12 -> 131.7362639 | O41: =E$22*I26+ROUND($F$14*365/12,2)+('Simple Bill Insert Calc (2)'!M17*2)/12 -> 199.3247846 | P41: =E$22*J26+ROUND($F$14*365/12,2)+('Simple Bill Insert Calc (2)'!M17*2)/12 -> 131.7362639 | R41: 10 hot (Sec 745) | S41: =C$28*I26+ROUND($C$31*365/12,2)+('Simple Bill Insert Calc (2)'!M17*2)/12 -> 117.7114031 | T41: =C$28*J26+ROUND($C$31*365/12,2)+('Simple Bill Insert Calc (2)'!M17*2)/12 -> 73.80580194 | U41: =D$28*I26+ROUND($P$14*365/12,2)+('Simple Bill Insert Calc (2)'!M17*2)/12 -> 117.7114031 | V41: =D$28*J26+ROUND($P$14*365/12,2)+('Simple Bill Insert Calc (2)'!M17*2)/12 -> 73.80580194 | W41: =E$28*I26+ROUND($P$14*365/12,2)+('Simple Bill Insert Calc (2)'!M17*2)/12 -> 117.7114031 | X41: =E$28*J26+ROUND($P$14*365/12,2)+('Simple Bill Insert Calc (2)'!M17*2)/12 -> 73.80580194
B42: 13 hot | C42: =C$22*MIN(I27,P27)+IF(P27-I27>0,C$23*(P27-I27))+ROUND($C$25*365/12,2)+('Simple Bill Insert Calc (2)'!M17*2)/12 -> 322.7195135 | D42: =C$22*MIN(J27,Q27)+IF(Q27-J27>0,C$23*(Q27-J27))+ROUND($C$25*365/12,2)+('Simple Bill Insert Calc (2)'!M17*2)/12 -> 174.0550247 | E42: =D$22*MIN(I27,P27)+IF(P27-I27>0,D$23*(P27-I27))+ROUND($F$14*365/12,2)+('Simple Bill Insert Calc (2)'!M17*2)/12 -> 322.7195135 | F42: =D$22*MIN(J27,Q27)+IF(Q27-J27>0,D$23*(Q27-J27))+ROUND($F$14*365/12,2)+('Simple Bill Insert Calc (2)'!M17*2)/12 -> 174.0550247 | G42: =E$22*MIN(I27,P27)+IF(P27-I27>0,E$23*(P27-I27))+ROUND($F$14*365/12,2)+('Simple Bill Insert Calc (2)'!M17*2)/12 -> 322.7195135 | H42: =E$22*MIN(J27,Q27)+IF(Q27-J27>0,E$23*(Q27-J27))+ROUND($F$14*365/12,2)+('Simple Bill Insert Calc (2)'!M17*2)/12 -> 174.0550247 | J42: 13 hot | K42: =C$22*I27+ROUND($C$25*365/12,2)+('Simple Bill Insert Calc (2)'!M17*2)/12 -> 226.5479388 | L42: =C$22*J27+ROUND($C$25*365/12,2)+('Simple Bill Insert Calc (2)'!M17*2)/12 -> 132.6749934 | M42: =D$22*I27+ROUND($F$14*365/12,2)+('Simple Bill Insert Calc (2)'!M17*2)/12 -> 226.5479388 | N42: =D$22*J27+ROUND($F$14*365/12,2)+('Simple Bill Insert Calc (2)'!M17*2)/12 -> 132.6749934 | O42: =E$22*I27+ROUND($F$14*365/12,2)+('Simple Bill Insert Calc (2)'!M17*2)/12 -> 226.5479388 | P42: =E$22*J27+ROUND($F$14*365/12,2)+('Simple Bill Insert Calc (2)'!M17*2)/12 -> 132.6749934 | R42: 13 hot | S42: =C$28*I27+ROUND($C$31*365/12,2)+('Simple Bill Insert Calc (2)'!M17*2)/12 -> 135.3956036 | T42: =C$28*J27+ROUND($C$31*365/12,2)+('Simple Bill Insert Calc (2)'!M17*2)/12 -> 74.41560195 | U42: =D$28*I27+ROUND($P$14*365/12,2)+('Simple Bill Insert Calc (2)'!M17*2)/12 -> 135.3956036 | V42: =D$28*J27+ROUND($P$14*365/12,2)+('Simple Bill Insert Calc (2)'!M17*2)/12 -> 74.41560195 | W42: =E$28*I27+ROUND($P$14*365/12,2)+('Simple Bill Insert Calc (2)'!M17*2)/12 -> 135.3956036 | X42: =E$28*J27+ROUND($P$14*365/12,2)+('Simple Bill Insert Calc (2)'!M17*2)/12 -> 74.41560195
B43: 14 hot | C43: =C$22*MIN(I28,P28)+IF(P28-I28>0,C$23*(P28-I28))+ROUND($C$25*365/12,2)+('Simple Bill Insert Calc (2)'!M17*2)/12 -> 260.8478591 | D43: =C$22*MIN(J28,Q28)+IF(Q28-J28>0,C$23*(Q28-J28))+ROUND($C$25*365/12,2)+('Simple Bill Insert Calc (2)'!M17*2)/12 -> 161.7542784 | E43: =D$22*MIN(I28,P28)+IF(P28-I28>0,D$23*(P28-I28))+ROUND($F$14*365/12,2)+('Simple Bill Insert Calc (2)'!M17*2)/12 -> 260.8478591 | F43: =D$22*MIN(J28,Q28)+IF(Q28-J28>0,D$23*(Q28-J28))+ROUND($F$14*365/12,2)+('Simple Bill Insert Calc (2)'!M17*2)/12 -> 161.7542784 | G43: =E$22*MIN(I28,P28)+IF(P28-I28>0,E$23*(P28-I28))+ROUND($F$14*365/12,2)+('Simple Bill Insert Calc (2)'!M17*2)/12 -> 260.8478591 | H43: =E$22*MIN(J28,Q28)+IF(Q28-J28>0,E$23*(Q28-J28))+ROUND($F$14*365/12,2)+('Simple Bill Insert Calc (2)'!M17*2)/12 -> 161.7542784 | J43: 14 hot | K43: =C$22*I28+ROUND($C$25*365/12,2)+('Simple Bill Insert Calc (2)'!M17*2)/12 -> 198.3860552 | L43: =C$22*J28+ROUND($C$25*365/12,2)+('Simple Bill Insert Calc (2)'!M17*2)/12 -> 129.858805 | M43: =D$22*I28+ROUND($F$14*365/12,2)+('Simple Bill Insert Calc (2)'!M17*2)/12 -> 198.3860552 | N43: =D$22*J28+ROUND($F$14*365/12,2)+('Simple Bill Insert Calc (2)'!M17*2)/12 -> 129.858805 | O43: =E$22*I28+ROUND($F$14*365/12,2)+('Simple Bill Insert Calc (2)'!M17*2)/12 -> 198.3860552 | P43: =E$22*J28+ROUND($F$14*365/12,2)+('Simple Bill Insert Calc (2)'!M17*2)/12 -> 129.858805 | R43: 14 hot | S43: =C$28*I28+ROUND($C$31*365/12,2)+('Simple Bill Insert Calc (2)'!M17*2)/12 -> 117.1016031 | T43: =C$28*J28+ROUND($C$31*365/12,2)+('Simple Bill Insert Calc (2)'!M17*2)/12 -> 72.5862019 | U43: =D$28*I28+ROUND($P$14*365/12,2)+('Simple Bill Insert Calc (2)'!M17*2)/12 -> 117.1016031 | V43: =D$28*J28+ROUND($P$14*365/12,2)+('Simple Bill Insert Calc (2)'!M17*2)/12 -> 72.5862019 | W43: =E$28*I28+ROUND($P$14*365/12,2)+('Simple Bill Insert Calc (2)'!M17*2)/12 -> 117.1016031 | X43: =E$28*J28+ROUND($P$14*365/12,2)+('Simple Bill Insert Calc (2)'!M17*2)/12 -> 72.5862019
B44: 15 hot | C44: =C$22*MIN(I29,P29)+IF(P29-I29>0,C$23*(P29-I29))+ROUND($C$25*365/12,2)+('Simple Bill Insert Calc (2)'!M17*2)/12 -> 348.0263706 | D44: =C$22*MIN(J29,Q29)+IF(Q29-J29>0,C$23*(Q29-J29))+ROUND($C$25*365/12,2)+('Simple Bill Insert Calc (2)'!M17*2)/12 -> 198.9860452 | E44: =D$22*MIN(I29,P29)+IF(P29-I29>0,D$23*(P29-I29))+ROUND($F$14*365/12,2)+('Simple Bill Insert Calc (2)'!M17*2)/12 -> 348.0263706 | F44: =D$22*MIN(J29,Q29)+IF(Q29-J29>0,D$23*(Q29-J29))+ROUND($F$14*365/12,2)+('Simple Bill Insert Calc (2)'!M17*2)/12 -> 198.9860452 | G44: =E$22*MIN(I29,P29)+IF(P29-I29>0,E$23*(P29-I29))+ROUND($F$14*365/12,2)+('Simple Bill Insert Calc (2)'!M17*2)/12 -> 348.0263706 | H44: =E$22*MIN(J29,Q29)+IF(Q29-J29>0,E$23*(Q29-J29))+ROUND($F$14*365/12,2)+('Simple Bill Insert Calc (2)'!M17*2)/12 -> 198.9860452 | J44: 15 hot | K44: =C$22*I29+ROUND($C$25*365/12,2)+('Simple Bill Insert Calc (2)'!M17*2)/12 -> 440.5782543 | L44: =C$22*J29+ROUND($C$25*365/12,2)+('Simple Bill Insert Calc (2)'!M17*2)/12 -> 109.206757 | M44: =D$22*I29+ROUND($F$14*365/12,2)+('Simple Bill Insert Calc (2)'!M17*2)/12 -> 440.5782543 | N44: =D$22*J29+ROUND($F$14*365/12,2)+('Simple Bill Insert Calc (2)'!M17*2)/12 -> 109.206757 | O44: =E$22*I29+ROUND($F$14*365/12,2)+('Simple Bill Insert Calc (2)'!M17*2)/12 -> 440.5782543 | P44: =E$22*J29+ROUND($F$14*365/12,2)+('Simple Bill Insert Calc (2)'!M17*2)/12 -> 109.206757 | R44: 15 hot | S44: =C$28*I29+ROUND($C$31*365/12,2)+('Simple Bill Insert Calc (2)'!M17*2)/12 -> 274.4300072 | T44: =C$28*J29+ROUND($C$31*365/12,2)+('Simple Bill Insert Calc (2)'!M17*2)/12 -> 59.17060155 | U44: =D$28*I29+ROUND($P$14*365/12,2)+('Simple Bill Insert Calc (2)'!M17*2)/12 -> 274.4300072 | V44: =D$28*J29+ROUND($P$14*365/12,2)+('Simple Bill Insert Calc (2)'!M17*2)/12 -> 59.17060155 | W44: =E$28*I29+ROUND($P$14*365/12,2)+('Simple Bill Insert Calc (2)'!M17*2)/12 -> 274.4300072 | X44: =E$28*J29+ROUND($P$14*365/12,2)+('Simple Bill Insert Calc (2)'!M17*2)/12 -> 59.17060155
B45: 16 cool | C45: =C$22*MIN(I30,P30)+IF(P30-I30>0,C$23*(P30-I30))+ROUND($C$25*365/12,2)+('Simple Bill Insert Calc (2)'!M17*2)/12 -> 174.6421965 | D45: =C$22*MIN(J30,Q30)+IF(Q30-J30>0,C$23*(Q30-J30))+ROUND($C$25*365/12,2)+('Simple Bill Insert Calc (2)'!M17*2)/12 -> 139.9012724 | E45: =D$22*MIN(I30,P30)+IF(P30-I30>0,D$23*(P30-I30))+ROUND($F$14*365/12,2)+('Simple Bill Insert Calc (2)'!M17*2)/12 -> 174.6421965 | F45: =D$22*MIN(J30,Q30)+IF(Q30-J30>0,D$23*(Q30-J30))+ROUND($F$14*365/12,2)+('Simple Bill Insert Calc (2)'!M17*2)/12 -> 139.9012724 | G45: =E$22*MIN(I30,P30)+IF(P30-I30>0,E$23*(P30-I30))+ROUND($F$14*365/12,2)+('Simple Bill Insert Calc (2)'!M17*2)/12 -> 174.6421965 | H45: =E$22*MIN(J30,Q30)+IF(Q30-J30>0,E$23*(Q30-J30))+ROUND($F$14*365/12,2)+('Simple Bill Insert Calc (2)'!M17*2)/12 -> 139.9012724 | J45: 16 cool | K45: =C$22*I30+ROUND($C$25*365/12,2)+('Simple Bill Insert Calc (2)'!M17*2)/12 -> 156.1432297 | L45: =C$22*J30+ROUND($C$25*365/12,2)+('Simple Bill Insert Calc (2)'!M17*2)/12 -> 134.5524523 | M45: =D$22*I30+ROUND($F$14*365/12,2)+('Simple Bill Insert Calc (2)'!M17*2)/12 -> 156.1432297 | N45: =D$22*J30+ROUND($F$14*365/12,2)+('Simple Bill Insert Calc (2)'!M17*2)/12 -> 134.5524523 | O45: =E$22*I30+ROUND($F$14*365/12,2)+('Simple Bill Insert Calc (2)'!M17*2)/12 -> 156.1432297 | P45: =E$22*J30+ROUND($F$14*365/12,2)+('Simple Bill Insert Calc (2)'!M17*2)/12 -> 134.5524523 | R45: 16 cool | S45: =C$28*I30+ROUND($C$31*365/12,2)+('Simple Bill Insert Calc (2)'!M17*2)/12 -> 89.66060235 | T45: =C$28*J30+ROUND($C$31*365/12,2)+('Simple Bill Insert Calc (2)'!M17*2)/12 -> 75.63520198 | U45: =D$28*I30+ROUND($P$14*365/12,2)+('Simple Bill Insert Calc (2)'!M17*2)/12 -> 89.66060235 | V45: =D$28*J30+ROUND($P$14*365/12,2)+('Simple Bill Insert Calc (2)'!M17*2)/12 -> 75.63520198 | W45: =E$28*I30+ROUND($P$14*365/12,2)+('Simple Bill Insert Calc (2)'!M17*2)/12 -> 89.66060235 | X45: =E$28*J30+ROUND($P$14*365/12,2)+('Simple Bill Insert Calc (2)'!M17*2)/12 -> 75.63520198
B46: ALL | C46: =SUMPRODUCT(C37:C45,$T$22:$T$30) -> 232.952502 | D46: 159.5418132 | E46: 232.952502 | F46: 159.5418132 | G46: 232.952502 | H46: 159.5418132 | J46: ALL | K46: =SUMPRODUCT(K37:K45,$T$22:$T$30) -> 178.0175738 | L46: 125.3492599 | M46: 178.0175738 | N46: 125.3492599 | O46: 178.0175738 | P46: 125.3492599 | R46: ALL | S46: =SUMPRODUCT(S37:S45,$U$22:$U$30) -> 113.6636786 | T46: =SUMPRODUCT(T37:T45,$U$22:$U$30) -> 71.08954678 | U46: 113.6636786 | V46: 71.08954678 | W46: 113.6636786 | X46: 71.08954678
C49: CARE | K49: Essential Use (All-Electric) - Non-CARE | S49: Essential Use (All-Electric) - CARE
C50: =C27 -> Jan 2026 | E50: =D27 -> 2026-01-01 | G50: =E27 -> Proposed | K50: =C50 -> Jan 2026 | M50: =E50 -> 2026-01-01 | O50: =G50 -> Proposed | S50: =K50 -> Jan 2026 | U50: =M50 -> 2026-01-01 | W50: =O50 -> Proposed
C51: Summer | D51: Winter | E51: Summer | F51: Winter | G51: Summer | H51: Winter | K51: Summer | L51: Winter | M51: Summer | N51: Winter | O51: Summer | P51: Winter | S51: Summer | T51: Winter | U51: Summer | V51: Winter | W51: Summer | X51: Winter
B52: 5 warm | C52: =C$28*MIN(I22,R22)+IF(R22-I22>0,C$29*(R22-I22))+ROUND($C$31*365/12,2)+('Simple Bill Insert Calc (2)'!M17*2)/12 -> 61.52253951 | D52: =C$28*MIN(J22,S22)+IF(S22-J22>0,C$29*(S22-J22))+ROUND($C$31*365/12,2)+('Simple Bill Insert Calc (2)'!M17*2)/12 -> 67.24772944 | E52: =D$28*MIN(I22,R22)+IF(R22-I22>0,D$29*(R22-I22))+ROUND($P$14*365/12,2)+('Simple Bill Insert Calc (2)'!M17*2)/12 -> 61.52253951 | F52: =D$28*MIN(J22,S22)+IF(S22-J22>0,D$29*(S22-J22))+ROUND($P$14*365/12,2)+('Simple Bill Insert Calc (2)'!M17*2)/12 -> 67.24772944 | G52: =E$28*MIN(I22,R22)+IF(R22-I22>0,E$29*(R22-I22))+ROUND($P$14*365/12,2)+('Simple Bill Insert Calc (2)'!M17*2)/12 -> 61.52253951 | H52: =E$28*MIN(J22,S22)+IF(S22-J22>0,E$29*(S22-J22))+ROUND($P$14*365/12,2)+('Simple Bill Insert Calc (2)'!M17*2)/12 -> 67.24772944 | J52: 5 warm | K52: =C$22*K22+ROUND($C$25*365/12,2)+('Simple Bill Insert Calc (2)'!M17*2)/12 -> 175.8565483 | L52: =C$22*L22+ROUND($C$25*365/12,2)+('Simple Bill Insert Calc (2)'!M17*2)/12 -> 271.6069526 | M52: =D$22*K22+ROUND($F$14*365/12,2)+('Simple Bill Insert Calc (2)'!M17*2)/12 -> 175.8565483 | N52: =D$22*L22+ROUND($F$14*365/12,2)+('Simple Bill Insert Calc (2)'!M17*2)/12 -> 271.6069526 | O52: =E$22*K22+ROUND($F$14*365/12,2)+('Simple Bill Insert Calc (2)'!M17*2)/12 -> 175.8565483 | P52: =E$22*L22+ROUND($F$14*365/12,2)+('Simple Bill Insert Calc (2)'!M17*2)/12 -> 271.6069526 | R52: 5 warm | S52: =C$28*K22+ROUND($C$31*365/12,2)+('Simple Bill Insert Calc (2)'!M17*2)/12 -> 102.4664027 | T52: =C$28*L22+ROUND($C$31*365/12,2)+('Simple Bill Insert Calc (2)'!M17*2)/12 -> 164.6660043 | U52: =D$28*K22+ROUND($P$14*365/12,2)+('Simple Bill Insert Calc (2)'!M17*2)/12 -> 102.4664027 | V52: =D$28*L22+ROUND($P$14*365/12,2)+('Simple Bill Insert Calc (2)'!M17*2)/12 -> 164.6660043 | W52: =E$28*K22+ROUND($P$14*365/12,2)+('Simple Bill Insert Calc (2)'!M17*2)/12 -> 102.4664027 | X52: =E$28*L22+ROUND($P$14*365/12,2)+('Simple Bill Insert Calc (2)'!M17*2)/12 -> 164.6660043
B53: 6 cool | C53: =C$28*MIN(I23,R23)+IF(R23-I23>0,C$29*(R23-I23))+ROUND($C$31*365/12,2)+('Simple Bill Insert Calc (2)'!M17*2)/12 -> 82.81747882 | D53: =C$28*MIN(J23,S23)+IF(S23-J23>0,C$29*(S23-J23))+ROUND($C$31*365/12,2)+('Simple Bill Insert Calc (2)'!M17*2)/12 -> 71.06500083 | E53: =D$28*MIN(I23,R23)+IF(R23-I23>0,D$29*(R23-I23))+ROUND($P$14*365/12,2)+('Simple Bill Insert Calc (2)'!M17*2)/12 -> 82.81747882 | F53: =D$28*MIN(J23,S23)+IF(S23-J23>0,D$29*(S23-J23))+ROUND($P$14*365/12,2)+('Simple Bill Insert Calc (2)'!M17*2)/12 -> 71.06500083 | G53: =E$28*MIN(I23,R23)+IF(R23-I23>0,E$29*(R23-I23))+ROUND($P$14*365/12,2)+('Simple Bill Insert Calc (2)'!M17*2)/12 -> 82.81747882 | H53: =E$28*MIN(J23,S23)+IF(S23-J23>0,E$29*(S23-J23))+ROUND($P$14*365/12,2)+('Simple Bill Insert Calc (2)'!M17*2)/12 -> 71.06500083 | J53: 6 cool | K53: =C$22*K23+ROUND($C$25*365/12,2)+('Simple Bill Insert Calc (2)'!M17*2)/12 -> 99.8194625 | L53: =C$22*L23+ROUND($C$25*365/12,2)+('Simple Bill Insert Calc (2)'!M17*2)/12 -> 136.4299112 | M53: =D$22*K23+ROUND($F$14*365/12,2)+('Simple Bill Insert Calc (2)'!M17*2)/12 -> 99.8194625 | N53: =D$22*L23+ROUND($F$14*365/12,2)+('Simple Bill Insert Calc (2)'!M17*2)/12 -> 136.4299112 | O53: =E$22*K23+ROUND($F$14*365/12,2)+('Simple Bill Insert Calc (2)'!M17*2)/12 -> 99.8194625 | P53: =E$22*L23+ROUND($F$14*365/12,2)+('Simple Bill Insert Calc (2)'!M17*2)/12 -> 136.4299112 | R53: 6 cool | S53: =C$28*K23+ROUND($C$31*365/12,2)+('Simple Bill Insert Calc (2)'!M17*2)/12 -> 53.07260139 | T53: =C$28*L23+ROUND($C$31*365/12,2)+('Simple Bill Insert Calc (2)'!M17*2)/12 -> 76.85480202 | U53: =D$28*K23+ROUND($P$14*365/12,2)+('Simple Bill Insert Calc (2)'!M17*2)/12 -> 53.07260139 | V53: =D$28*L23+ROUND($P$14*365/12,2)+('Simple Bill Insert Calc (2)'!M17*2)/12 -> 76.85480202 | W53: =E$28*K23+ROUND($P$14*365/12,2)+('Simple Bill Insert Calc (2)'!M17*2)/12 -> 53.07260139 | X53: =E$28*L23+ROUND($P$14*365/12,2)+('Simple Bill Insert Calc (2)'!M17*2)/12 -> 76.85480202
B54: 8 cool | C54: =C$28*MIN(I24,R24)+IF(R24-I24>0,C$29*(R24-I24))+ROUND($C$31*365/12,2)+('Simple Bill Insert Calc (2)'!M17*2)/12 -> 104.15529 | D54: =C$28*MIN(J24,S24)+IF(S24-J24>0,C$29*(S24-J24))+ROUND($C$31*365/12,2)+('Simple Bill Insert Calc (2)'!M17*2)/12 -> 79.84794065 | E54: =D$28*MIN(I24,R24)+IF(R24-I24>0,D$29*(R24-I24))+ROUND($P$14*365/12,2)+('Simple Bill Insert Calc (2)'!M17*2)/12 -> 104.15529 | F54: =D$28*MIN(J24,S24)+IF(S24-J24>0,D$29*(S24-J24))+ROUND($P$14*365/12,2)+('Simple Bill Insert Calc (2)'!M17*2)/12 -> 79.84794065 | G54: =E$28*MIN(I24,R24)+IF(R24-I24>0,E$29*(R24-I24))+ROUND($P$14*365/12,2)+('Simple Bill Insert Calc (2)'!M17*2)/12 -> 104.15529 | H54: =E$28*MIN(J24,S24)+IF(S24-J24>0,E$29*(S24-J24))+ROUND($P$14*365/12,2)+('Simple Bill Insert Calc (2)'!M17*2)/12 -> 79.84794065 | J54: 8 cool | K54: =C$22*K24+ROUND($C$25*365/12,2)+('Simple Bill Insert Calc (2)'!M17*2)/12 -> 111.0842159 | L54: =C$22*L24+ROUND($C$25*365/12,2)+('Simple Bill Insert Calc (2)'!M17*2)/12 -> 133.6137228 | M54: =D$22*K24+ROUND($F$14*365/12,2)+('Simple Bill Insert Calc (2)'!M17*2)/12 -> 111.0842159 | N54: =D$22*L24+ROUND($F$14*365/12,2)+('Simple Bill Insert Calc (2)'!M17*2)/12 -> 133.6137228 | O54: =E$22*K24+ROUND($F$14*365/12,2)+('Simple Bill Insert Calc (2)'!M17*2)/12 -> 111.0842159 | P54: =E$22*L24+ROUND($F$14*365/12,2)+('Simple Bill Insert Calc (2)'!M17*2)/12 -> 133.6137228 | R54: 8 cool | S54: =C$28*K24+ROUND($C$31*365/12,2)+('Simple Bill Insert Calc (2)'!M17*2)/12 -> 60.39020158 | T54: =C$28*L24+ROUND($C$31*365/12,2)+('Simple Bill Insert Calc (2)'!M17*2)/12 -> 75.02540197 | U54: =D$28*K24+ROUND($P$14*365/12,2)+('Simple Bill Insert Calc (2)'!M17*2)/12 -> 60.39020158 | V54: =D$28*L24+ROUND($P$14*365/12,2)+('Simple Bill Insert Calc (2)'!M17*2)/12 -> 75.02540197 | W54: =E$28*K24+ROUND($P$14*365/12,2)+('Simple Bill Insert Calc (2)'!M17*2)/12 -> 60.39020158 | X54: =E$28*L24+ROUND($P$14*365/12,2)+('Simple Bill Insert Calc (2)'!M17*2)/12 -> 75.02540197
B55: 9 warm | C55: =C$28*MIN(I25,R25)+IF(R25-I25>0,C$29*(R25-I25))+ROUND($C$31*365/12,2)+('Simple Bill Insert Calc (2)'!M17*2)/12 -> 137.6730359 | D55: =C$28*MIN(J25,S25)+IF(S25-J25>0,C$29*(S25-J25))+ROUND($C$31*365/12,2)+('Simple Bill Insert Calc (2)'!M17*2)/12 -> 88.93426186 | E55: =D$28*MIN(I25,R25)+IF(R25-I25>0,D$29*(R25-I25))+ROUND($P$14*365/12,2)+('Simple Bill Insert Calc (2)'!M17*2)/12 -> 137.6730359 | F55: =D$28*MIN(J25,S25)+IF(S25-J25>0,D$29*(S25-J25))+ROUND($P$14*365/12,2)+('Simple Bill Insert Calc (2)'!M17*2)/12 -> 88.93426186 | G55: =E$28*MIN(I25,R25)+IF(R25-I25>0,E$29*(R25-I25))+ROUND($P$14*365/12,2)+('Simple Bill Insert Calc (2)'!M17*2)/12 -> 137.6730359 | H55: =E$28*MIN(J25,S25)+IF(S25-J25>0,E$29*(S25-J25))+ROUND($P$14*365/12,2)+('Simple Bill Insert Calc (2)'!M17*2)/12 -> 88.93426186 | J55: 9 warm | K55: =C$22*K25+ROUND($C$25*365/12,2)+('Simple Bill Insert Calc (2)'!M17*2)/12 -> 135.4911818 | L55: =C$22*L25+ROUND($C$25*365/12,2)+('Simple Bill Insert Calc (2)'!M17*2)/12 -> 148.6333941 | M55: =D$22*K25+ROUND($F$14*365/12,2)+('Simple Bill Insert Calc (2)'!M17*2)/12 -> 135.4911818 | N55: =D$22*L25+ROUND($F$14*365/12,2)+('Simple Bill Insert Calc (2)'!M17*2)/12 -> 148.6333941 | O55: =E$22*K25+ROUND($F$14*365/12,2)+('Simple Bill Insert Calc (2)'!M17*2)/12 -> 135.4911818 | P55: =E$22*L25+ROUND($F$14*365/12,2)+('Simple Bill Insert Calc (2)'!M17*2)/12 -> 148.6333941 | R55: 9 warm | S55: =C$28*K25+ROUND($C$31*365/12,2)+('Simple Bill Insert Calc (2)'!M17*2)/12 -> 76.245002 | T55: =C$28*L25+ROUND($C$31*365/12,2)+('Simple Bill Insert Calc (2)'!M17*2)/12 -> 84.78220222 | U55: =D$28*K25+ROUND($P$14*365/12,2)+('Simple Bill Insert Calc (2)'!M17*2)/12 -> 76.245002 | V55: =D$28*L25+ROUND($P$14*365/12,2)+('Simple Bill Insert Calc (2)'!M17*2)/12 -> 84.78220222 | W55: =E$28*K25+ROUND($P$14*365/12,2)+('Simple Bill Insert Calc (2)'!M17*2)/12 -> 76.245002 | X55: =E$28*L25+ROUND($P$14*365/12,2)+('Simple Bill Insert Calc (2)'!M17*2)/12 -> 84.78220222
B56: 10 hot (Sec 745) | C56: =C$28*MIN(I26,R26)+IF(R26-I26>0,C$29*(R26-I26))+ROUND($C$31*365/12,2)+('Simple Bill Insert Calc (2)'!M17*2)/12 -> 184.7328047 | D56: =C$28*MIN(J26,S26)+IF(S26-J26>0,C$29*(S26-J26))+ROUND($C$31*365/12,2)+('Simple Bill Insert Calc (2)'!M17*2)/12 -> 106.1351396 | E56: =D$28*MIN(I26,R26)+IF(R26-I26>0,D$29*(R26-I26))+ROUND($P$14*365/12,2)+('Simple Bill Insert Calc (2)'!M17*2)/12 -> 184.7328047 | F56: =D$28*MIN(J26,S26)+IF(S26-J26>0,D$29*(S26-J26))+ROUND($P$14*365/12,2)+('Simple Bill Insert Calc (2)'!M17*2)/12 -> 106.1351396 | G56: =E$28*MIN(I26,R26)+IF(R26-I26>0,E$29*(R26-I26))+ROUND($P$14*365/12,2)+('Simple Bill Insert Calc (2)'!M17*2)/12 -> 184.7328047 | H56: =E$28*MIN(J26,S26)+IF(S26-J26>0,E$29*(S26-J26))+ROUND($P$14*365/12,2)+('Simple Bill Insert Calc (2)'!M17*2)/12 -> 106.1351396 | J56: 10 hot (Sec 745) | K56: =C$22*K26+ROUND($C$25*365/12,2)+('Simple Bill Insert Calc (2)'!M17*2)/12 -> 167.4079832 | L56: =C$22*L26+ROUND($C$25*365/12,2)+('Simple Bill Insert Calc (2)'!M17*2)/12 -> 172.1016305 | M56: =D$22*K26+ROUND($F$14*365/12,2)+('Simple Bill Insert Calc (2)'!M17*2)/12 -> 167.4079832 | N56: =D$22*L26+ROUND($F$14*365/12,2)+('Simple Bill Insert Calc (2)'!M17*2)/12 -> 172.1016305 | O56: =E$22*K26+ROUND($F$14*365/12,2)+('Simple Bill Insert Calc (2)'!M17*2)/12 -> 167.4079832 | P56: =E$22*L26+ROUND($F$14*365/12,2)+('Simple Bill Insert Calc (2)'!M17*2)/12 -> 172.1016305 | R56: 10 hot (Sec 745) | S56: =C$28*K26+ROUND($C$31*365/12,2)+('Simple Bill Insert Calc (2)'!M17*2)/12 -> 96.97820254 | T56: =C$28*L26+ROUND($C$31*365/12,2)+('Simple Bill Insert Calc (2)'!M17*2)/12 -> 100.0272026 | U56: =D$28*K26+ROUND($P$14*365/12,2)+('Simple Bill Insert Calc (2)'!M17*2)/12 -> 96.97820254 | V56: =D$28*L26+ROUND($P$14*365/12,2)+('Simple Bill Insert Calc (2)'!M17*2)/12 -> 100.0272026 | W56: =E$28*K26+ROUND($P$14*365/12,2)+('Simple Bill Insert Calc (2)'!M17*2)/12 -> 96.97820254 | X56: =E$28*L26+ROUND($P$14*365/12,2)+('Simple Bill Insert Calc (2)'!M17*2)/12 -> 100.0272026
B57: 13 hot | C57: =C$28*MIN(I27,R27)+IF(R27-I27>0,C$29*(R27-I27))+ROUND($C$31*365/12,2)+('Simple Bill Insert Calc (2)'!M17*2)/12 -> 207.9837138 | D57: =C$28*MIN(J27,S27)+IF(S27-J27>0,C$29*(S27-J27))+ROUND($C$31*365/12,2)+('Simple Bill Insert Calc (2)'!M17*2)/12 -> 101.8865444 | E57: =D$28*MIN(I27,R27)+IF(R27-I27>0,D$29*(R27-I27))+ROUND($P$14*365/12,2)+('Simple Bill Insert Calc (2)'!M17*2)/12 -> 207.9837138 | F57: =D$28*MIN(J27,S27)+IF(S27-J27>0,D$29*(S27-J27))+ROUND($P$14*365/12,2)+('Simple Bill Insert Calc (2)'!M17*2)/12 -> 101.8865444 | G57: =E$28*MIN(I27,R27)+IF(R27-I27>0,E$29*(R27-I27))+ROUND($P$14*365/12,2)+('Simple Bill Insert Calc (2)'!M17*2)/12 -> 207.9837138 | H57: =E$28*MIN(J27,S27)+IF(S27-J27>0,E$29*(S27-J27))+ROUND($P$14*365/12,2)+('Simple Bill Insert Calc (2)'!M17*2)/12 -> 101.8865444 | J57: 13 hot | K57: =C$22*K27+ROUND($C$25*365/12,2)+('Simple Bill Insert Calc (2)'!M17*2)/12 -> 245.3225279 | L57: =C$22*L27+ROUND($C$25*365/12,2)+('Simple Bill Insert Calc (2)'!M17*2)/12 -> 234.0577744 | M57: =D$22*K27+ROUND($F$14*365/12,2)+('Simple Bill Insert Calc (2)'!M17*2)/12 -> 245.3225279 | N57: =D$22*L27+ROUND($F$14*365/12,2)+('Simple Bill Insert Calc (2)'!M17*2)/12 -> 234.0577744 | O57: =E$22*K27+ROUND($F$14*365/12,2)+('Simple Bill Insert Calc (2)'!M17*2)/12 -> 245.3225279 | P57: =E$22*L27+ROUND($F$14*365/12,2)+('Simple Bill Insert Calc (2)'!M17*2)/12 -> 234.0577744 | R57: 13 hot | S57: =C$28*K27+ROUND($C$31*365/12,2)+('Simple Bill Insert Calc (2)'!M17*2)/12 -> 147.5916039 | T57: =C$28*L27+ROUND($C$31*365/12,2)+('Simple Bill Insert Calc (2)'!M17*2)/12 -> 140.2740037 | U57: =D$28*K27+ROUND($P$14*365/12,2)+('Simple Bill Insert Calc (2)'!M17*2)/12 -> 147.5916039 | V57: =D$28*L27+ROUND($P$14*365/12,2)+('Simple Bill Insert Calc (2)'!M17*2)/12 -> 140.2740037 | W57: =E$28*K27+ROUND($P$14*365/12,2)+('Simple Bill Insert Calc (2)'!M17*2)/12 -> 147.5916039 | X57: =E$28*L27+ROUND($P$14*365/12,2)+('Simple Bill Insert Calc (2)'!M17*2)/12 -> 140.2740037
B58: 14 hot | C58: =C$28*MIN(I28,R28)+IF(R28-I28>0,C$29*(R28-I28))+ROUND($C$31*365/12,2)+('Simple Bill Insert Calc (2)'!M17*2)/12 -> 187.707833 | D58: =C$28*MIN(J28,S28)+IF(S28-J28>0,C$29*(S28-J28))+ROUND($C$31*365/12,2)+('Simple Bill Insert Calc (2)'!M17*2)/12 -> 110.0200405 | E58: =D$28*MIN(I28,R28)+IF(R28-I28>0,D$29*(R28-I28))+ROUND($P$14*365/12,2)+('Simple Bill Insert Calc (2)'!M17*2)/12 -> 187.707833 | F58: =D$28*MIN(J28,S28)+IF(S28-J28>0,D$29*(S28-J28))+ROUND($P$14*365/12,2)+('Simple Bill Insert Calc (2)'!M17*2)/12 -> 110.0200405 | G58: =E$28*MIN(I28,R28)+IF(R28-I28>0,E$29*(R28-I28))+ROUND($P$14*365/12,2)+('Simple Bill Insert Calc (2)'!M17*2)/12 -> 187.707833 | H58: =E$28*MIN(J28,S28)+IF(S28-J28>0,E$29*(S28-J28))+ROUND($P$14*365/12,2)+('Simple Bill Insert Calc (2)'!M17*2)/12 -> 110.0200405 | J58: 14 hot | K58: =C$22*K28+ROUND($C$25*365/12,2)+('Simple Bill Insert Calc (2)'!M17*2)/12 -> 191.814949 | L58: =C$22*L28+ROUND($C$25*365/12,2)+('Simple Bill Insert Calc (2)'!M17*2)/12 -> 216.2219148 | M58: =D$22*K28+ROUND($F$14*365/12,2)+('Simple Bill Insert Calc (2)'!M17*2)/12 -> 191.814949 | N58: =D$22*L28+ROUND($F$14*365/12,2)+('Simple Bill Insert Calc (2)'!M17*2)/12 -> 216.2219148 | O58: =E$22*K28+ROUND($F$14*365/12,2)+('Simple Bill Insert Calc (2)'!M17*2)/12 -> 191.814949 | P58: =E$22*L28+ROUND($F$14*365/12,2)+('Simple Bill Insert Calc (2)'!M17*2)/12 -> 216.2219148 | R58: 14 hot | S58: =C$28*K28+ROUND($C$31*365/12,2)+('Simple Bill Insert Calc (2)'!M17*2)/12 -> 112.833003 | T58: =C$28*L28+ROUND($C$31*365/12,2)+('Simple Bill Insert Calc (2)'!M17*2)/12 -> 128.6878034 | U58: =D$28*K28+ROUND($P$14*365/12,2)+('Simple Bill Insert Calc (2)'!M17*2)/12 -> 112.833003 | V58: =D$28*L28+ROUND($P$14*365/12,2)+('Simple Bill Insert Calc (2)'!M17*2)/12 -> 128.6878034 | W58: =E$28*K28+ROUND($P$14*365/12,2)+('Simple Bill Insert Calc (2)'!M17*2)/12 -> 112.833003 | X58: =E$28*L28+ROUND($P$14*365/12,2)+('Simple Bill Insert Calc (2)'!M17*2)/12 -> 128.6878034
B59: 15 hot | C59: =C$28*MIN(I29,R29)+IF(R29-I29>0,C$29*(R29-I29))+ROUND($C$31*365/12,2)+('Simple Bill Insert Calc (2)'!M17*2)/12 -> 244.0430027 | D59: =C$28*MIN(J29,S29)+IF(S29-J29>0,C$29*(S29-J29))+ROUND($C$31*365/12,2)+('Simple Bill Insert Calc (2)'!M17*2)/12 -> 116.820981 | E59: =D$28*MIN(I29,R29)+IF(R29-I29>0,D$29*(R29-I29))+ROUND($P$14*365/12,2)+('Simple Bill Insert Calc (2)'!M17*2)/12 -> 244.0430027 | F59: =D$28*MIN(J29,S29)+IF(S29-J29>0,D$29*(S29-J29))+ROUND($P$14*365/12,2)+('Simple Bill Insert Calc (2)'!M17*2)/12 -> 116.820981 | G59: =E$28*MIN(I29,R29)+IF(R29-I29>0,E$29*(R29-I29))+ROUND($P$14*365/12,2)+('Simple Bill Insert Calc (2)'!M17*2)/12 -> 244.0430027 | H59: =E$28*MIN(J29,S29)+IF(S29-J29>0,E$29*(S29-J29))+ROUND($P$14*365/12,2)+('Simple Bill Insert Calc (2)'!M17*2)/12 -> 116.820981 | J59: 15 hot | K59: =C$22*K29+ROUND($C$25*365/12,2)+('Simple Bill Insert Calc (2)'!M17*2)/12 -> 243.445069 | L59: =C$22*L29+ROUND($C$25*365/12,2)+('Simple Bill Insert Calc (2)'!M17*2)/12 -> 181.488925 | M59: =D$22*K29+ROUND($F$14*365/12,2)+('Simple Bill Insert Calc (2)'!M17*2)/12 -> 243.445069 | N59: =D$22*L29+ROUND($F$14*365/12,2)+('Simple Bill Insert Calc (2)'!M17*2)/12 -> 181.488925 | O59: =E$22*K29+ROUND($F$14*365/12,2)+('Simple Bill Insert Calc (2)'!M17*2)/12 -> 243.445069 | P59: =E$22*L29+ROUND($F$14*365/12,2)+('Simple Bill Insert Calc (2)'!M17*2)/12 -> 181.488925 | R59: 15 hot | S59: =C$28*K29+ROUND($C$31*365/12,2)+('Simple Bill Insert Calc (2)'!M17*2)/12 -> 146.3720038 | T59: =C$28*L29+ROUND($C$31*365/12,2)+('Simple Bill Insert Calc (2)'!M17*2)/12 -> 106.1252028 | U59: =D$28*K29+ROUND($P$14*365/12,2)+('Simple Bill Insert Calc (2)'!M17*2)/12 -> 146.3720038 | V59: =D$28*L29+ROUND($P$14*365/12,2)+('Simple Bill Insert Calc (2)'!M17*2)/12 -> 106.1252028 | W59: =E$28*K29+ROUND($P$14*365/12,2)+('Simple Bill Insert Calc (2)'!M17*2)/12 -> 146.3720038 | X59: =E$28*L29+ROUND($P$14*365/12,2)+('Simple Bill Insert Calc (2)'!M17*2)/12 -> 106.1252028
B60: 16 cool | C60: =C$28*MIN(I30,R30)+IF(R30-I30>0,C$29*(R30-I30))+ROUND($C$31*365/12,2)+('Simple Bill Insert Calc (2)'!M17*2)/12 -> 162.8126304 | D60: =C$28*MIN(J30,S30)+IF(S30-J30>0,C$29*(S30-J30))+ROUND($C$31*365/12,2)+('Simple Bill Insert Calc (2)'!M17*2)/12 -> 103.1709781 | E60: =D$28*MIN(I30,R30)+IF(R30-I30>0,D$29*(R30-I30))+ROUND($P$14*365/12,2)+('Simple Bill Insert Calc (2)'!M17*2)/12 -> 162.8126304 | F60: =D$28*MIN(J30,S30)+IF(S30-J30>0,D$29*(S30-J30))+ROUND($P$14*365/12,2)+('Simple Bill Insert Calc (2)'!M17*2)/12 -> 103.1709781 | G60: =E$28*MIN(I30,R30)+IF(R30-I30>0,E$29*(R30-I30))+ROUND($P$14*365/12,2)+('Simple Bill Insert Calc (2)'!M17*2)/12 -> 162.8126304 | H60: =E$28*MIN(J30,S30)+IF(S30-J30>0,E$29*(S30-J30))+ROUND($P$14*365/12,2)+('Simple Bill Insert Calc (2)'!M17*2)/12 -> 103.1709781 | J60: 16 cool | K60: =C$22*K30+ROUND($C$25*365/12,2)+('Simple Bill Insert Calc (2)'!M17*2)/12 -> 144.8784763 | L60: =C$22*L30+ROUND($C$25*365/12,2)+('Simple Bill Insert Calc (2)'!M17*2)/12 -> 235.9352333 | M60: =D$22*K30+ROUND($F$14*365/12,2)+('Simple Bill Insert Calc (2)'!M17*2)/12 -> 144.8784763 | N60: =D$22*L30+ROUND($F$14*365/12,2)+('Simple Bill Insert Calc (2)'!M17*2)/12 -> 235.9352333 | O60: =E$22*K30+ROUND($F$14*365/12,2)+('Simple Bill Insert Calc (2)'!M17*2)/12 -> 144.8784763 | P60: =E$22*L30+ROUND($F$14*365/12,2)+('Simple Bill Insert Calc (2)'!M17*2)/12 -> 235.9352333 | R60: 16 cool | S60: =C$28*K30+ROUND($C$31*365/12,2)+('Simple Bill Insert Calc (2)'!M17*2)/12 -> 82.34300216 | T60: =C$28*L30+ROUND($C$31*365/12,2)+('Simple Bill Insert Calc (2)'!M17*2)/12 -> 141.4936037 | U60: =D$28*K30+ROUND($P$14*365/12,2)+('Simple Bill Insert Calc (2)'!M17*2)/12 -> 82.34300216 | V60: =D$28*L30+ROUND($P$14*365/12,2)+('Simple Bill Insert Calc (2)'!M17*2)/12 -> 141.4936037 | W60: =E$28*K30+ROUND($P$14*365/12,2)+('Simple Bill Insert Calc (2)'!M17*2)/12 -> 82.34300216 | X60: =E$28*L30+ROUND($P$14*365/12,2)+('Simple Bill Insert Calc (2)'!M17*2)/12 -> 141.4936037
B61: ALL | C61: =SUMPRODUCT(C52:C60,$U$22:$U$30) -> 165.5001888 | D61: 98.37690747 | E61: 165.5001888 | F61: 98.37690747 | G61: 165.5001888 | H61: 98.37690747 | J61: ALL | K61: =SUMPRODUCT(K52:K60,$T$22:$T$30) -> 146.4320244 | L61: 162.5016903 | M61: 146.4320244 | N61: 162.5016903 | O61: 146.4320244 | P61: 162.5016903 | R61: ALL | S61: =SUMPRODUCT(S52:S60,$U$22:$U$30) -> 95.08620255 | T61: =SUMPRODUCT(T52:T60,$U$22:$U$30) -> 101.9397492 | U61: 95.08620255 | V61: 101.9397492 | W61: 95.08620255 | X61: 101.9397492
C64: All-Electric - Non-CARE | J64: ='Simple Bill Insert Calc (2)'!D5 -> 500 | K64: =J64&" kWh Monthly - Non-CARE" -> 500 kWh Monthly - Non-CARE | S64: =J64&" kWh Monthly - CARE" -> 500 kWh Monthly - CARE
C65: =C27 -> Jan 2026 | E65: =D27 -> 2026-01-01 | G65: =E21 -> Proposed | K65: =K50 -> Jan 2026 | M65: =M50 -> 2026-01-01 | O65: =O50 -> Proposed | S65: =S50 -> Jan 2026 | U65: =U50 -> 2026-01-01 | W65: =W50 -> Proposed
C66: Summer | D66: Winter | E66: Summer | F66: Winter | G66: Summer | H66: Winter | K66: Summer | L66: Winter | M66: Summer | N66: Winter | O66: Summer | P66: Winter | S66: Summer | T66: Winter | U66: Summer | V66: Winter | W66: Summer | X66: Winter
B67: 5 warm | C67: =C$22*MIN(K22,X22)+IF(X22-K22>0,C$23*(X22-K22))+ROUND($C$25*365/12,2)+('Simple Bill Insert Calc (2)'!M17*2)/12 -> 142.1902897 | D67: =C$22*MIN(L22,Y22)+IF(Y22-L22>0,C$23*(Y22-L22))+ROUND($C$25*365/12,2)+('Simple Bill Insert Calc (2)'!M17*2)/12 -> 162.2664348 | E67: =D$22*MIN(K22,X22)+IF(X22-K22>0,D$23*(X22-K22))+ROUND($F$14*365/12,2)+('Simple Bill Insert Calc (2)'!M17*2)/12 -> 142.1902897 | F67: =D$22*MIN(L22,Y22)+IF(Y22-L22>0,D$23*(Y22-L22))+ROUND($F$14*365/12,2)+('Simple Bill Insert Calc (2)'!M17*2)/12 -> 162.2664348 | G67: =E$22*MIN(K22,X22)+IF(X22-K22>0,E$23*(X22-K22))+ROUND($F$14*365/12,2)+('Simple Bill Insert Calc (2)'!M17*2)/12 -> 142.1902897 | H67: =E$22*MIN(L22,Y22)+IF(Y22-L22>0,E$23*(Y22-L22))+ROUND($F$14*365/12,2)+('Simple Bill Insert Calc (2)'!M17*2)/12 -> 162.2664348 | J67: 5 warm | K67: =C$22*MIN(I22,$J$64)+IF($J$64-I22>0,C$23*($J$64-I22))+ROUND($C$25*365/12,2)+('Simple Bill Insert Calc (2)'!M17*2)/12 -> 172.46 | L67: =C$22*MIN(J22,$J$64)+IF($J$64-J22>0,C$23*($J$64-J22))+ROUND($C$25*365/12,2)+('Simple Bill Insert Calc (2)'!M17*2)/12 -> 172.46 | M67: =D$22*MIN(I22,$J$64)+IF($J$64-I22>0,D$23*($J$64-I22))+ROUND($F$14*365/12,2)+('Simple Bill Insert Calc (2)'!M17*2)/12 -> 172.46 | N67: =D$22*MIN(J22,$J$64)+IF($J$64-J22>0,D$23*($J$64-J22))+ROUND($F$14*365/12,2)+('Simple Bill Insert Calc (2)'!M17*2)/12 -> 172.46 | O67: =E$22*MIN(I22,$J$64)+IF($J$64-I22>0,E$23*($J$64-I22))+ROUND($F$14*365/12,2)+('Simple Bill Insert Calc (2)'!M17*2)/12 -> 172.46 | P67: =E$22*MIN(J22,$J$64)+IF($J$64-J22>0,E$23*($J$64-J22))+ROUND($F$14*365/12,2)+('Simple Bill Insert Calc (2)'!M17*2)/12 -> 172.46 | R67: 5 warm | S67: =C$28*MIN(I22,$J$64)+IF($J$64-I22>0,C$29*($J$64-I22))+ROUND($C$31*365/12,2)+('Simple Bill Insert Calc (2)'!M17*2)/12 -> 100.26 | T67: =C$28*MIN(J22,$J$64)+IF($J$64-J22>0,C$29*($J$64-J22))+ROUND($C$31*365/12,2)+('Simple Bill Insert Calc (2)'!M17*2)/12 -> 100.26 | U67: =D$28*MIN(I22,$J$64)+IF($J$64-I22>0,D$29*($J$64-I22))+ROUND($P$14*365/12,2)+('Simple Bill Insert Calc (2)'!M17*2)/12 -> 100.26 | V67: =D$28*MIN(J22,$J$64)+IF($J$64-J22>0,D$29*($J$64-J22))+ROUND($P$14*365/12,2)+('Simple Bill Insert Calc (2)'!M17*2)/12 -> 100.26 | W67: =E$28*MIN(I22,$J$64)+IF($J$64-I22>0,E$29*($J$64-I22))+ROUND($P$14*365/12,2)+('Simple Bill Insert Calc (2)'!M17*2)/12 -> 100.26 | X67: =E$28*MIN(J22,$J$64)+IF($J$64-J22>0,E$29*($J$64-J22))+ROUND($P$14*365/12,2)+('Simple Bill Insert Calc (2)'!M17*2)/12 -> 100.26
B68: 6 cool | C68: =C$22*MIN(K23,X23)+IF(X23-K23>0,C$23*(X23-K23))+ROUND($C$25*365/12,2)+('Simple Bill Insert Calc (2)'!M17*2)/12 -> 125.5759875 | D68: =C$22*MIN(L23,Y23)+IF(Y23-L23>0,C$23*(Y23-L23))+ROUND($C$25*365/12,2)+('Simple Bill Insert Calc (2)'!M17*2)/12 -> 119.3316764 | E68: =D$22*MIN(K23,X23)+IF(X23-K23>0,D$23*(X23-K23))+ROUND($F$14*365/12,2)+('Simple Bill Insert Calc (2)'!M17*2)/12 -> 125.5759875 | F68: =D$22*MIN(L23,Y23)+IF(Y23-L23>0,D$23*(Y23-L23))+ROUND($F$14*365/12,2)+('Simple Bill Insert Calc (2)'!M17*2)/12 -> 119.3316764 | G68: =E$22*MIN(K23,X23)+IF(X23-K23>0,E$23*(X23-K23))+ROUND($F$14*365/12,2)+('Simple Bill Insert Calc (2)'!M17*2)/12 -> 125.5759875 | H68: =E$22*MIN(L23,Y23)+IF(Y23-L23>0,E$23*(Y23-L23))+ROUND($F$14*365/12,2)+('Simple Bill Insert Calc (2)'!M17*2)/12 -> 119.3316764 | J68: 6 cool | K68: =C$22*MIN(I23,$J$64)+IF($J$64-I23>0,C$23*($J$64-I23))+ROUND($C$25*365/12,2)+('Simple Bill Insert Calc (2)'!M17*2)/12 -> 187.9501259 | L68: =C$22*MIN(J23,$J$64)+IF($J$64-J23>0,C$23*($J$64-J23))+ROUND($C$25*365/12,2)+('Simple Bill Insert Calc (2)'!M17*2)/12 -> 189.179946 | M68: =D$22*MIN(I23,$J$64)+IF($J$64-I23>0,D$23*($J$64-I23))+ROUND($F$14*365/12,2)+('Simple Bill Insert Calc (2)'!M17*2)/12 -> 187.9501259 | N68: =D$22*MIN(J23,$J$64)+IF($J$64-J23>0,D$23*($J$64-J23))+ROUND($F$14*365/12,2)+('Simple Bill Insert Calc (2)'!M17*2)/12 -> 189.179946 | O68: =E$22*MIN(I23,$J$64)+IF($J$64-I23>0,E$23*($J$64-I23))+ROUND($F$14*365/12,2)+('Simple Bill Insert Calc (2)'!M17*2)/12 -> 187.9501259 | P68: =E$22*MIN(J23,$J$64)+IF($J$64-J23>0,E$23*($J$64-J23))+ROUND($F$14*365/12,2)+('Simple Bill Insert Calc (2)'!M17*2)/12 -> 189.179946 | R68: 6 cool | S68: =C$28*MIN(I23,$J$64)+IF($J$64-I23>0,C$29*($J$64-I23))+ROUND($C$31*365/12,2)+('Simple Bill Insert Calc (2)'!M17*2)/12 -> 110.7144558 | T68: =C$28*MIN(J23,$J$64)+IF($J$64-J23>0,C$29*($J$64-J23))+ROUND($C$31*365/12,2)+('Simple Bill Insert Calc (2)'!M17*2)/12 -> 111.5444749 | U68: =D$28*MIN(I23,$J$64)+IF($J$64-I23>0,D$29*($J$64-I23))+ROUND($P$14*365/12,2)+('Simple Bill Insert Calc (2)'!M17*2)/12 -> 110.7144558 | V68: =D$28*MIN(J23,$J$64)+IF($J$64-J23>0,D$29*($J$64-J23))+ROUND($P$14*365/12,2)+('Simple Bill Insert Calc (2)'!M17*2)/12 -> 111.5444749 | W68: =E$28*MIN(I23,$J$64)+IF($J$64-I23>0,E$29*($J$64-I23))+ROUND($P$14*365/12,2)+('Simple Bill Insert Calc (2)'!M17*2)/12 -> 110.7144558 | X68: =E$28*MIN(J23,$J$64)+IF($J$64-J23>0,E$29*($J$64-J23))+ROUND($P$14*365/12,2)+('Simple Bill Insert Calc (2)'!M17*2)/12 -> 111.5444749
